{"text_format":"1","workbook":"xlsx","n_sheets":7,"sheets":["MMES","Desechos","Desarrollo","Recomendacion","Ru","TIPO","Hoja1"],"not_rendered":{"charts":0,"images":3,"macros":1,"external_links":0,"defined_names":10,"comments":0,"pivot_tables":0},"unopened":[],"bounds":{"document_bytes":16777216,"sheet_cells":100000,"rows_first":2000,"rows_last":500,"rows_between":2000,"halvings":0,"cell_chars":16384,"cell_head_chars":4096},"cells_cut":0,"cells_raw":0,"read":"whole","date_system":"1900"}

{"sheet":"MMES","index":0,"n_rows":223,"n_cols":46,"rows_kept":223,"cut":false,"hidden":false,"merged":[[55,3,55,35],[8,3,8,27],[10,3,10,27],[16,3,16,35],[18,3,18,35],[20,3,20,35],[22,3,22,35],[24,3,24,35],[28,3,28,24],[8,28,8,35],[10,28,10,35],[31,3,31,35],[42,3,42,35],[27,3,27,28],[15,13,15,24],[51,3,51,35],[28,25,28,28],[28,29,28,31],[28,32,28,35],[26,3,26,28],[65,4,65,35],[11,28,11,35],[13,3,13,35],[11,3,11,27],[15,25,15,35],[17,3,17,35],[15,3,15,12],[131,16,131,17],[131,28,131,34],[90,10,90,11],[131,19,131,20],[23,3,23,4],[23,13,23,14],[23,17,23,18],[23,5,23,6],[23,9,23,10],[67,4,68,35],[89,3,89,21],[25,3,25,35],[29,29,29,35],[29,3,29,28],[40,3,40,35],[27,29,27,35],[63,3,63,35],[0,1,0,37],[6,34,6,35],[9,3,9,27],[9,28,9,35],[6,30,6,33],[6,28,6,29],[23,11,23,12],[23,15,23,16],[23,7,23,8],[19,3,19,35],[21,3,21,35],[3,19,3,35],[4,19,4,35],[12,3,12,27],[12,28,12,35],[5,6,5,15],[70,4,70,35],[79,4,79,35],[90,16,90,17],[90,13,90,14],[123,20,127,30],[90,7,90,8],[119,20,121,30],[81,3,87,5],[74,4,74,35],[76,4,77,35],[89,22,89,26],[72,3,72,35],[138,29,138,30],[179,11,179,13],[179,15,179,17],[192,27,192,31],[126,37,128,37],[90,19,90,20],[118,37,121,37],[192,9,192,11],[204,9,204,11],[193,9,193,11],[178,11,178,13],[179,23,179,25],[179,19,179,21],[179,7,179,9],[122,37,124,37],[132,19,132,20],[138,8,138,14],[132,13,132,14],[144,37,146,37],[138,32,138,34],[131,22,131,26],[141,8,141,14],[144,20,146,30],[132,10,132,11],[131,13,131,14],[138,25,138,27],[140,26,140,28],[132,16,132,17],[178,15,178,17],[144,3,146,16],[132,7,132,8],[131,3,131,5],[131,10,131,11],[144,17,146,19],[136,8,136,14],[178,19,178,21],[178,23,178,25],[131,7,131,8],[199,27,199,31],[201,27,201,31],[204,21,204,23],[204,27,204,31],[185,27,185,31],[193,21,193,23],[192,21,192,23],[187,27,187,31],[178,7,178,9],[204,15,204,17],[197,27,197,31],[189,27,189,31],[192,15,192,17],[193,15,193,17],[178,29,178,33],[218,27,221,34],[216,21,216,23],[209,15,209,17],[205,9,205,11],[216,7,216,11],[216,15,216,17],[214,27,216,34],[215,21,215,23],[215,15,215,17],[209,21,209,23],[208,27,208,31],[208,21,208,23],[205,21,205,23],[224,5,224,8],[220,3,220,7],[205,15,205,17],[208,9,208,11],[215,7,215,11],[220,17,221,26],[218,3,218,15],[218,17,219,19],[209,9,209,11],[208,15,208,17],[222,17,222,18],[222,19,222,20],[222,22,222,23]]}
[]
[]
[]
[null,null,null,null,null,null,null,null,null,null,null,null,null,null,null,null,null,null,null,"SEGURO AMBIENTAL DE INCIDENCIA COLECTIVA"]
[null,null,null,null,null,null,null,null,null,null,null,null,null,null,null,null,null,null,null," AUTODETERMINACIÓN DEL MONTO MÍNIMO DE ENTIDAD SUFICIENTE (MMES)"]
[null,null,null,null,null,null,"s a o a l b a c a u c i o n . c o m "]
[null,null,null,"Datos Generales",null,null,null,null,null,null,null,null,null,null,null,null,null,null,null,null,null,null,null,null,null,null,null,null,"FC        =",null,75320.100000000006,null,null,null,"Rev. 17.4"]
[]
[null,null,null,"Razón Social (*)",null,null,null,null,null,null,null,null,null,null,null,null,null,null,null,null,null,null,null,null,null,null,null,null,"Fecha (*)"]
[null,null,null,null,null,null,null,null,null,null,null,null,null,null,null,null,null,null,null,null,null,null,null,null,null,null,null,null,"00/00/0000"]
[null,null,null,"Denominación de la Planta (*)",null,null,null,null,null,null,null,null,null,null,null,null,null,null,null,null,null,null,null,null,null,null,null,null,"CUIT (*)"]
[null,null,null,null,null,null,null,null,null,null,null,null,null,null,null,null,null,null,null,null,null,null,null,null,null,null,null,null,0]
[null,null,null,"Domicilio - Localidad - Provincia -UBICACIÓN DEL RIESGO- (*)"]
[]
[null,null,null,"Teléfono(s) (*)",null,null,null,null,null,null,null,null,null,"Página web",null,null,null,null,null,null,null,null,null,null,"campo opcional","e-mail (*)"]
[]
[null,null,null,"Organismo Solicitante del Seguro - ASEGURADO N°1 (*)"]
[null,null,null,"SELECCIONAR / COMPLETAR",null,null,null,null,null,null,null,null,null,null,null,null,null,null,null,null,null,null,null,null,null,null,null,null,null,null,null,null,null,null,null,null,null,null,1,{"$f":"+IF(AM18=1,1,IF(AM18=6,IF(Y24=0,1,0),0))","v":1},{"$f":"+IF(AM18=6,IF(Y24=0,1,0),0)","v":0}]
[null,null,null,"Organismo Solicitante del Seguro - ASEGURADO N°2"]
[null,null,null,"SELECCIONAR / COMPLETAR",null,null,null,null,null,null,null,null,null,null,null,null,null,null,null,null,null,null,null,null,null,null,null,null,null,null,null,null,null,null,null,null,null,null,1]
[null,null,null,"Organismo Solicitante del Seguro - ASEGURADO N°3"]
[null,null,null,"SELECCIONAR / COMPLETAR",null,null,null,null,null,null,null,null,null,null,null,null,null,null,null,null,null,null,null,null,null,null,null,null,null,null,null,null,null,null,null,null,null,null,1]
[null,null,null,"Coordenadas geográficas (*)",null,null,null,null,null,null,null,null,null,null,null,null,null,null,null,{"$f":"+IF(AM18=6,IF(Y24=0,\"Organismo Solicitante del Seguro\",0),0)","v":0}]
[null,null,null,null,null,null,null,null,null,"Lat. Sur",null,null,null,null,null,null,null,"Long. O"]
[null,null,null,"Persona(s) de contacto (*)"]
[]
[null,null,null,"Responsable Técnico (*)",null,null,null,null,null,null,null,null,null,null,null,null,null,null,null,null,null,null,null,null,null,null,null,null,null,"DNI (*)"]
[]
[null,null,null,"Responsable Medio Ambiente (*)",null,null,null,null,null,null,null,null,null,null,null,null,null,null,null,null,null,null,null,null,null,null,null,null,null,"DNI (*)"]
[]
[]
[null,null,null,"Relevamiento Documental "]
[]
[]
[]
[]
[null,null,null,"Rubro Complementario según RES. 481/2011 - sólo para Rubros Principales = 999999",null,null,null,null,null,null,null,null,null,null,null,null,null,null,null,null,null,null,null,null,null,null,null,null,null,null,null,null,null,null,null,{"$f":"IF(Ru!E2=1,0,IF(Ru!E2<160,\"NO realizar opción de la siguiente ventana para el Rubro principal seleccionado\",\"DEBE realizar una selección adicional de la siguiente ventana de acuerdo a la RES. 481/2011\"))","v":0},null,null,{"$f":"+Ru!E2","v":1},{"$f":"+IF(AM37>=160,IF(AM38>1,1,0))","v":false}]
[null,null,null,null,null,null,null,null,null,null,null,null,null,null,null,null,null,null,null,null,null,null,null,null,null,null,null,null,null,null,null,null,null,null,null,null,null,null,{"$f":"+Ru!E163","v":1}]
[]
[]
[null,null,null,{"$f":"+IF(AM37<160,IF(AM38>1,\"NO CORRESPONDE LA SELECCIÓN SEGÚN RES. 481/2011\",\"  \"),VLOOKUP(AM38,Ru!$A$165:$G$177,7,0))","v":"  "}]
[]
[null,null,null,"Tipos de desechos"]
[null,null,null,null,null,null,null,null,null,null,null,null,null,null,null,null,null,null,null,null,null,null,null,null,null,null,null,null,null,null,null,null,null,0]
[]
[]
[]
[]
[]
[]
[null,null,null,"Detallar la Actividad"]
[]
[]
[null,null,null,"Coeficientes (Efluentes y Residuos)",null,null,null,null,null,null,null,null,null,null,null,null,null,null,null,null,null,null,null,null,null,null,null,null,null,null,null,null,null,null,null,"marcar donde corresponda"]
[]
[null,null,null,"Gaseosos"]
[]
[null,null,null,null,"componentes naturales del aire (incluido vapor de agua) - gases de combustión de gas natural",null,null,null,null,null,null,null,null,null,null,null,null,null,null,null,null,null,null,null,null,null,null,null,null,null,null,null,null,null,null,null,null,null,false,{"$f":"+IF(AM58=TRUE,\"G0\",0)","v":0},{"$f":"+IF(AN62<>0,AN62,IF(AN60<>0,AN60,IF(AN58<>0,AN58,0)))","v":0}]
[]
[null,null,null,null,"gases de combustión de hidrocarburos líquidos",null,null,null,null,null,null,null,null,null,null,null,null,null,null,null,null,null,null,null,null,null,null,null,null,null,null,null,null,null,null,null,null,null,false,{"$f":"+IF(AM60=TRUE,\"G1\",0)","v":0}]
[]
[null,null,null,null,"otros",null,null,null,null,null,null,null,null,null,null,null,null,null,null,null,null,null,null,null,null,null,null,null,null,null,null,null,null,null,null,null,null,null,false,{"$f":"+IF(AM62=TRUE,\"G2\",0)","v":0}]
[]
[null,null,null,"Líquidos"]
[]
[null,null,null,null,"agua sin aditivos; lavado de planta de establecimientos del Rubro 1, a temperatura ambiente",null,null,null,null,null,null,null,null,null,null,null,null,null,null,null,null,null,null,null,null,null,null,null,null,null,null,null,null,null,null,null,null,null,false,{"$f":"+IF(AM66=TRUE,\"L0\",0)","v":0},{"$f":"+IF(AN71<>0,AN71,IF(AN68<>0,AN68,IF(AN66<>0,AN66,0)))","v":0}]
[]
[null,null,null,null,"agua de proceso con aditivos y agua de lavado que no contengan residuos especiales ó que no pudiesen generar residuos especiales                                                        provenientes de plantas de tratamiento en condiciones óptimas de funcionamiento",null,null,null,null,null,null,null,null,null,null,null,null,null,null,null,null,null,null,null,null,null,null,null,null,null,null,null,null,null,null,null,null,null,false,{"$f":"+IF(AM68=TRUE,\"L1\",0)","v":0}]
[]
[]
[null,null,null,null,"con residuos especiales, ó que pudiesen generar residuos especiales Que posean o deban poseer más de un tratamiento",null,null,null,null,null,null,null,null,null,null,null,null,null,null,null,null,null,null,null,null,null,null,null,null,null,null,null,null,null,null,null,null,null,{"$f":"FALSE","v":false},{"$f":"+IF(AM71=TRUE,\"L2\",0)","v":0}]
[]
[null,null,null,"Sólidos y Semisólidos "]
[]
[null,null,null,null,"asimilables a domiciliarios",null,null,null,null,null,null,null,null,null,null,null,null,null,null,null,null,null,null,null,null,null,null,null,null,null,null,null,null,null,null,null,null,null,false,{"$f":"+IF(AM75=TRUE,\"S0\",0)","v":0},{"$f":"+IF(AN80<>0,AN80,IF(AN77<>0,AN77,IF(AN75<>0,AN75,0)))","v":0}]
[]
[null,null,null,null,"resultantes del tratamiento de efluentes líquidos del tipo 0 y/o 1. Otros que no contengan residuos especiales ó de                                                      establecimientos que no pudiesen generar residuos especiales",null,null,null,null,null,null,null,null,null,null,null,null,null,null,null,null,null,null,null,null,null,null,null,null,null,null,null,null,null,null,null,null,null,false,{"$f":"+IF(AM77=TRUE,\"S1\",0)","v":0}]
[]
[]
[null,null,null,null,"que puedan contener sustancias peligrosas o pudiesen generar residuos especiales (por mes - promedio anual)",null,null,null,null,null,null,null,null,null,null,null,null,null,null,null,null,null,null,null,null,null,null,null,null,null,null,null,null,null,null,null,null,null,false,{"$f":"IF((MAX(AN82:AN88))=1,\"S1\",IF((MAX(AN82:AN88))=2,\"S2\",IF((MAX(AN82:AN88))=3,\"S3\",IF((MAX(AN82:AN88))=4,\"S4\",0))))","v":0}]
[]
[null,null,null,{"$f":"+IF(AM80=FALSE,\" \",IF(AM80=TRUE,IF(SUM(AN82:AN88)=0,\"ELEGIR UNO\",\" \")))","v":" "},null,null,null,null,"menor a 10 (diez) kg de masa",null,null,null,null,null,null,null,null,null,null,null,null,null,null,null,null,null,null,null,null,null,null,null,null,null,null,null,null,null,false,{"$f":"+IF(AM82=TRUE,1,0)","v":0}]
[]
[null,null,null,null,null,null,null,null,"mayor o igual a 10 (diez) kg pero menor que 100 (cien) kg de masa",null,null,null,null,null,null,null,null,null,null,null,null,null,null,null,null,null,null,null,null,null,null,null,null,null,null,null,null,null,false,{"$f":"+IF(AM84=TRUE,2,0)","v":0}]
[]
[null,null,null,null,null,null,null,null,"mayor o igual a 100 (cien) kg pero menor a 500 (quinientos) kg de masa",null,null,null,null,null,null,null,null,null,null,null,null,null,null,null,null,null,null,null,null,null,null,null,null,null,null,null,null,null,false,{"$f":"+IF(AM86=TRUE,3,0)","v":0}]
[]
[null,null,null,null,null,null,null,null,"mayor o igual a 500 (quinientos) kg de masa",null,null,null,null,null,null,null,null,null,null,null,null,null,null,null,null,null,null,null,null,null,null,null,null,null,null,null,null,null,{"$f":"FALSE","v":false},{"$f":"+IF(AM88=TRUE,4,0)","v":0}]
[null,null,null,null,null,null,null,null,null,null,null,null,null,null,null,null,null,null,null,null,null,null,null,null,null,null,null,null,null,null,null,null,null,null,null,null,null,null,null,null,"Tipo",0,1,2,3,4]
[null,null,null,"Tipo (resultado según la selección realizada)",null,null,null,null,null,null,null,null,null,null,null,null,null,null,null,null,null,null,{"$f":"+VLOOKUP(AM90,TIPO!$E$2:$F$97,2,0)","v":0},null,null,null,null,null,null,null,null,null,null,null,null,null,null,null,{"$f":"+AO58&AO66&AO75","v":"000"},null,"VALOR",0,1,3,4,6]
[]
[]
[]
[]
[]
[null,null,null,"Información Complementaria",null,null,null,null,null,null,null,null,null,null,null,null,null,null,null,null,null,null,null,null,null,null,null,null,null,null,null,null,null,null,null,"marcar donde corresponda"]
[]
[null,null,null,"Riesgo",null,null,null,null,null,null,null,null,null,null,null,null,null,null,null,null,"Cantidad de personal"]
[]
[null,null,null,null,"Riesgo por aparatos sometidos a presión",null,null,null,null,null,null,null,null,null,null,null,null,null,null,null,null,"Hasta 15",null,null,null,null,null,null,null,null,null,null,null,null,null,null,null,null,false,{"$f":"+IF(AM100=TRUE,1,0)","v":0},null,false,0,{"$f":"+MAX(AQ100:AQ108)","v":0}]
[]
[null,null,null,null,"Riesgo acústico",null,null,null,null,null,null,null,null,null,null,null,null,null,null,null,null,"Entre 16 y 50",null,null,null,null,null,null,null,null,null,null,null,null,null,null,null,null,false,{"$f":"+IF(AM102=TRUE,1,0)","v":0},null,false,{"$f":"+IF(AP102=TRUE,1,0)","v":0}]
[]
[null,null,null,null,"Riesgo por sustancias químicas",null,null,null,null,null,null,null,null,null,null,null,null,null,null,null,null,"Entre 51 y 150",null,null,null,null,null,null,null,null,null,null,null,null,null,null,null,null,false,{"$f":"+IF(AM104=TRUE,1,0)","v":0},null,false,{"$f":"+IF(AP104=TRUE,2,0)","v":0}]
[]
[null,null,null,null,"Riesgo de explosión",null,null,null,null,null,null,null,null,null,null,null,null,null,null,null,null,"Entre 151 y 500",null,null,null,null,null,null,null,null,null,null,null,null,null,null,null,null,false,{"$f":"+IF(AM106=TRUE,1,0)","v":0},null,false,{"$f":"+IF(AP106=TRUE,3,0)","v":0}]
[]
[null,null,null,null,"Riesgo de incendio",null,null,null,null,null,null,null,null,null,null,null,null,null,null,null,null,"Más de 500",null,null,null,null,null,null,null,null,null,null,null,null,null,null,null,null,false,{"$f":"+IF(AM108=TRUE,1,0)","v":0},null,false,{"$f":"+IF(AP108=TRUE,4,0)","v":0}]
[]
[null,null,null,"Potencia instalada en HP",null,null,null,null,null,null,null,null,null,null,null,null,null,null,null,null,"Zona"]
[]
[null,null,null,null,"Hasta 25",null,null,null,null,null,null,null,null,null,null,null,null,null,null,null,null,"Parque industrial",null,null,null,null,null,null,null,null,null,null,null,null,null,null,null,null,false,0,{"$f":"+MAX(AN112:AN118)","v":0},false,0,{"$f":"+MAX(AQ112:AQ116)","v":0}]
[]
[null,null,null,null,"De 26 a 100",null,null,null,null,null,null,null,null,null,null,null,null,null,null,null,null,"Industrial Exclusiva y Rural",null,null,null,null,null,null,null,null,null,null,null,null,null,null,null,null,false,{"$f":"+IF(AM114=TRUE,1,0)","v":0},null,false,{"$f":"+IF(AP114=TRUE,1,0)","v":0}]
[]
[null,null,null,null,"De 101 a 500",null,null,null,null,null,null,null,null,null,null,null,null,null,null,null,null,"El resto de las zonas",null,null,null,null,null,null,null,null,null,null,null,null,null,null,null,null,false,{"$f":"+IF(AM116=TRUE,2,0)","v":0},null,false,{"$f":"+IF(AP116=TRUE,2,0)","v":0}]
[]
[null,null,null,null,"Mayor de 500",null,null,null,null,null,null,null,null,null,null,null,null,null,null,null,null,null,null,null,null,null,null,null,null,null,null,null,null,null,null,null,null,null,false,{"$f":"+IF(AM118=TRUE,3,0)","v":0}]
[]
[null,null,null,"Relación Sup. cubierta / Sup. total",null,null,null,null,null,null,null,null,null,"Servicios corrientes",null,null,null,null,null,null,"Sistema de Gestión Ambiental certificado por un Organismo independiente"]
[]
[null,null,null,null,"Hasta 0.20",null,null,null,null,null,null,null,null,null,"Agua",null,null,null,null,null,null,null,null,null,null,null,null,null,null,null,null,null,null,null,null,null,null,null,false,0,{"$f":"+MAX(AN122:AN128)","v":0},true,{"$f":"+IF(AP122=TRUE,0,0.5)","v":0},{"$f":"+SUM(AQ122:AQ128)","v":1.5},null,2]
[]
[null,null,null,null,"De 0.21 hasta 0.50",null,null,null,null,null,null,null,null,null,"Cloaca",null,null,null,null,null,"Posee sustancias particularmente riesgosas                     en las cantidades definidas por la Resolución 1639/2007",null,null,null,null,null,null,null,null,null,null,null,null,null,null,null,null,null,false,{"$f":"+IF(AM124=TRUE,1,0)","v":0},null,false,{"$f":"+IF(AP124=TRUE,0,0.5)","v":0.5}]
[]
[null,null,null,null,"De 0.51 a 0.80",null,null,null,null,null,null,null,null,null,"Luz",null,null,null,null,null,null,null,null,null,null,null,null,null,null,null,null,null,null,null,null,null,null,null,{"$f":"FALSE","v":false},{"$f":"+IF(AM126=TRUE,2,0)","v":0},null,false,{"$f":"+IF(AP126=TRUE,0,0.5)","v":0.5},null,null,2]
[]
[null,null,null,null,"De 0.81 a 1.00",null,null,null,null,null,null,null,null,null,"Gas ",null,null,null,null,null,null,null,null,null,null,null,null,null,null,null,null,null,null,null,null,null,null,null,false,{"$f":"+IF(AM128=TRUE,3,0)","v":0},null,false,{"$f":"+IF(AP128=TRUE,0,0.5)","v":0.5}]
[]
[]
[]
[null,null,null,"NCAi",null,null,"=",{"$f":"+Ru!F2","v":0},null,"+",{"$f":"+HLOOKUP(W90,$AP$89:$AT$90,2,0)","v":0},null,"+",{"$f":"+SUM(AN100:AN108)","v":0},null,"+",{"$f":"+AR100+AO112+AO122","v":0},null,"+",{"$f":"+AR112+AR122","v":1.5},null,"=",{"$f":"+H132+K132+N132+Q132+T132","v":1.5},null,null,null,null,null,"NCAi < 12"]
[null,null,null,null,null,null,null,"Ru",null,null,"ER",null,null,"Ri",null,null,"Di",null,null,"Lo"]
[]
[null,null,null,"Monto Básico"]
[]
[null,null,null,"FC",null,null,"=",null,{"$f":"AE7","v":75320.100000000006},null,null,null,null,null,null,null,null,null,null,null,null,null,"NCA =",null,null,"NCAi",null,null,"+","AjSP",null,"-","AjSGA"]
[]
[null,null,null,"Ajuste",null,null,"=",null,1,null,null,null,null,null,null,null,null,null,null,null,null,null,"NCA =",null,null,{"$f":"+W132","v":1.5},null,null,"+",{"$f":"+IF(AT126=1,2,0)","v":0},null,"-",{"$f":"+IF(AT122=1,4,0)","v":0}]
[]
[null,null,null,null,null,null,null,null,null,null,null,null,null,null,null,null,null,null,null,null,null,null,"NCA =",null,null,null,{"$f":"+Z139+AD139-AG139","v":1.5}]
[null,null,null,"MB",null,null,"=",null,{"$f":"+W132^2*I137*I139","v":169470.22500000001}]
[]
[]
[null,null,null,"Establecimientos radicados en Cuenca Matanza Riachuelo ",null,null,null,null,null,null,null,null,null,null,null,null,null,"►►",null,null,"Declarado Agente Contaminante",null,null,null,null,null,null,null,null,null,null,null,null,null,null,null,null,null,"CUENCA MR","AG. CONTAM."]
[]
[null,null,null,null,null,null,null,null,null,null,null,null,null,null,null,null,null,null,null,null,null,null,null,null,null,null,null,null,null,null,null,null,null,null,null,null,null,null,{"$f":"+AN147","v":2},2,{"$f":"+IF(AM147=1,IF(AN147=1,1.5,1),1)","v":1}]
[]
[]
[null,null,null,"Factores de Vulnerabilidad"]
[]
[null,null,null,"Tipo de sustrato suprayacente a la zona saturada",null,null,null,null,null,null,null,null,null,null,null,null,null,null,null,null,null,null,null,null,null,null,null,null,null,null,null,null,null,null,null,"(TS)"]
[]
[null,null,null,null,"A Arcillas / suelos residuales / limos / loess / arcillas lutitas",null,null,null,null,null,null,null,null,null,null,null,null,null,null,null,null,null,null,null,null,null,null,null,null,null,null,null,null,null,null,null,null,null,false,{"$f":"+IF(AM154=TRUE,0.4,0)","v":0},{"$f":"+MAX(AN154:AN160)","v":0}]
[]
[null,null,null,null,"B Arenas / limolitas / tobas volcánicas / formaciones ígneas metamórficas y volcánicas / areniscas",null,null,null,null,null,null,null,null,null,null,null,null,null,null,null,null,null,null,null,null,null,null,null,null,null,null,null,null,null,null,null,null,null,false,{"$f":"+IF(AM156=TRUE,0.6,0)","v":0}]
[]
[null,null,null,null,"C Gravas coluviales / calizas blandas / suelo no consolidado (sedimentos)",null,null,null,null,null,null,null,null,null,null,null,null,null,null,null,null,null,null,null,null,null,null,null,null,null,null,null,null,null,null,null,null,null,{"$f":"FALSE","v":false},{"$f":"+IF(AM158=TRUE,0.8,0)","v":0}]
[]
[null,null,null,null,"D Consolidado de rocas porosas o compactas / Desconocimiento del tipo de sustrato",null,null,null,null,null,null,null,null,null,null,null,null,null,null,null,null,null,null,null,null,null,null,null,null,null,null,null,null,null,null,null,null,null,false,{"$f":"+IF(AM160=TRUE,1,0)","v":0}]
[]
[null,null,null,"Profundidad freática",null,null,null,null,null,null,null,null,null,null,null,null,null,null,"(PF)",null,"Entorno",null,null,null,null,null,null,null,null,null,null,null,null,null,null,"(ENT)"]
[]
[null,null,null,null,"Mayor a 10 metros",null,null,null,null,null,null,null,null,null,null,null,null,null,null,null,null,"Residencial o comercial",null,null,null,null,null,null,null,null,null,null,null,null,null,null,null,null,false,{"$f":"+IF(AM164=TRUE,1,0)","v":0},{"$f":"+MAX(AN164:AN168)","v":0},false,{"$f":"+IF(AP164=TRUE,2,0)","v":0},{"$f":"+MAX(AQ164:AQ166)","v":0}]
[]
[null,null,null,null,"Mayor a 5 metros y menor o igual a 10 metros",null,null,null,null,null,null,null,null,null,null,null,null,null,null,null,null,"Área protegida",null,null,null,null,null,null,null,null,null,null,null,null,null,null,null,null,false,{"$f":"+IF(AM166=TRUE,2,0)","v":0},null,false,{"$f":"+IF(AP166=TRUE,6,0)","v":0}]
[]
[null,null,null,null,"Menor o Igual a 5 metros",null,null,null,null,null,null,null,null,null,null,null,null,null,null,null,null,"Ninguna de las anteriores",null,null,null,null,null,null,null,null,null,null,null,null,null,null,null,null,false,{"$f":"+IF(AM168=TRUE,3,0)","v":0}]
[]
[null,null,null,"Distancia de los materiales peligrosos a agua superficial"]
[]
[null,null,null,null,"Mayor a 100 metros (DEA)",null,null,null,null,null,null,null,null,null,null,null,null,null,null,null,null,null,null,null,null,null,null,null,null,null,null,null,null,null,null,null,null,null,false,0,{"$f":"+IF(AN176=3,0,MAX(AN172:AN174))","v":0}]
[]
[null,null,null,null,"Menor o igual a 100 metros (DEA)",null,null,null,null,null,null,null,null,null,null,null,null,null,null,null,null,null,null,null,null,null,null,null,null,null,null,null,null,null,null,null,null,null,false,{"$f":"+IF(AM174=TRUE,1,0)","v":0}]
[]
[null,null,null,null,"Actividades costeras que incluyen carga y descarga de materiales por agua (COS)",null,null,null,null,null,null,null,null,null,null,null,null,null,null,null,null,null,null,null,null,null,null,null,null,null,null,null,null,null,null,null,null,null,false,{"$f":"+IF(AM176=TRUE,3,0)","v":0}]
[]
[]
[null,null,null,"V","=",1,"+",{"$f":"+AO154","v":0},null,null,"*",{"$f":"+AO164","v":0},null,null,"+",{"$f":"+AO172","v":0},null,null,"+",{"$f":"+AN176","v":0},null,null,"+",{"$f":"+AR164","v":0},null,null,null,"=",null,{"$f":"+F179+H179*L179+P179+T179+X179","v":1}]
[null,null,null,null,null,null,null,"TS",null,null,null,"PF",null,null,null,"DEA",null,null,null,"COS",null,null,null,"ENT"]
[]
[null,null,null,"Factores de Existencias de Materiales Peligrosos y de Eliminación Programada"]
[]
[null,null,null,"Materiales Peligrosos"]
[]
[null,null,null,"Volumen sobre la superficie",null,null,null,null,null,null,null,null,null,null,null,null,null,null,null,null,null,null,null,null,null,null,null,0,null,null,null,null,null,"m3"]
[]
[null,null,null,"Volumen bajo la superficie",null,null,null,null,null,null,null,null,null,null,null,null,null,null,null,null,null,null,null,null,null,null,null,0,null,null,null,null,null,"m3"]
[]
[null,null,null,"Volumen bajo la superficie en contacto con el agua",null,null,null,null,null,null,null,null,null,null,null,null,null,null,null,null,null,null,null,null,null,null,null,0,null,null,null,null,null,"m3"]
[]
[]
[null,null,null,"MP",null,"=",null,null,null,{"$f":"0.5*AB186^0.2","v":0},null,null,null,"+",null,{"$f":"+AB188^0.2","v":0},null,null,null,"+",null,{"$f":"1.5*AB190^0.2","v":0},null,null,null,"=",null,{"$f":"+J193+P193+V193","v":0}]
[null,null,null,null,null,null,null,null,null,"MP sup",null,null,null,null,null,"MP ent",null,null,null,null,null,"MP aq"]
[]
[null,null,null,"Materiales Peligrosos - Eliminación Programada"]
[]
[null,null,null,"Volumen sobre la superficie",null,null,null,null,null,null,null,null,null,null,null,null,null,null,null,null,null,null,null,null,null,null,null,0,null,null,null,null,null,"Ton"]
[]
[null,null,null,"Volumen bajo la superficie",null,null,null,null,null,null,null,null,null,null,null,null,null,null,null,null,null,null,null,null,null,null,null,0,null,null,null,null,null,"Ton"]
[]
[null,null,null,"Volumen bajo la superficie en contacto con el agua",null,null,null,null,null,null,null,null,null,null,null,null,null,null,null,null,null,null,null,null,null,null,null,0,null,null,null,null,null,"Ton"]
[]
[]
[null,null,null,"EP",null,"=",null,null,null,{"$f":"+AB198^0.2","v":0},null,null,null,"+",null,{"$f":"2*AB200^0.2","v":0},null,null,null,"+",null,{"$f":"3*AB202^0.2","v":0},null,null,null,null,null,{"$f":"+J205+P205+V205","v":0}]
[null,null,null,null,null,null,null,null,null,"EP sup",null,null,null,null,null,"EP ent",null,null,null,null,null,"EP aq"]
[]
[]
[null,null,null,"D",null,"=",null,null,null,1,null,null,null,"+",null,{"$f":"+AB193","v":0},null,null,null,"+",null,{"$f":"+AB205","v":0},null,null,null,null,null,{"$f":"+J209+P209+V209","v":1}]
[null,null,null,null,null,null,null,null,null,null,null,null,null,null,null,"MP",null,null,null,null,null,"EP"]
[]
[null,null,null,"RESULTADO FINAL MMES"]
[]
[]
[null,null,null,null,null,null,null,null,null,null,null,null,null,null,null,null,null,null,null,null,null,null,null,null,null,null,null,{"$f":"+H216*P216*V216","v":169470.22500000001}]
[null,null,null,"MMES",null,null,"=",{"$f":"+I142","v":169470.22500000001},null,null,null,null,null,"*",null,{"$f":"+AD179","v":1},null,null,null,"*",null,{"$f":"+AB209","v":1}]
[null,null,null,null,null,null,null,"MB",null,null,null,null,null,null,null,"V",null,null,null,null,null,"D"]
[]
[null,null,null,"Superficie Total del predio",null,null,null,null,null,null,null,null,null,null,null,null,null,"MMAES",null,null,null,null,null,null,null,null,null,{"$f":"IF(AB186+AB188+AB190+AB198+AB200+AB202+D221<0.1,0,IF(AB215=3200,0,AB215))","v":0}]
[]
[null,null,null,0,null,null,null,null,null,null,"m2",null,null,"Ha",null,null,null,"Monto Mínimo Asegurable de Entidad Suficiente"]
[]
[null,null,null,"(*) datos obligatorios",null,null,null,null,null,null,null,null,null,null,null,null,null,"NCA =",null,{"$f":"IF(AB219>0,AA141,0)","v":0}]

{"sheet":"Desechos","index":1,"n_rows":47,"n_cols":1,"rows_kept":47,"cut":false,"hidden":true,"merged":[]}
["DESCRIPCION"]
["Y1 - Desechos clínicos resultantes de la atención médica prestada en hospitales, centros médicos y clínicas para salud humana y animal."]
["Y2 - Desechos resultantes de la producción y preparación de productos farmacéuticos."]
["Y3 - Desechos de medicamentos y productos farmacéuticos para la salud humana y animal."]
["Y4 - Desechos resultantes de la producción, la preparación y utilización de biocidas y productos fitosanitarios."]
["Y5 - Desechos resultantes de la fabricación, preparación y utilización de productos químicos para la preservación de la madera."]
["Y6 - Desechos resultantes de la producción, la preparación y la utilización de disolventes orgánicos."]
["Y7 - Desechos que contengan cianuros, resultantes del tratamiento térmico y las operaciones de temple."]
["Y8 - Desechos de aceites minerales no aptos para el uso a que estaban destinados."]
["Y9 - Mezclas y emulsiones de desecho de aceite y agua o de hidrocarburos y agua."]
["Y10 -  Sustancias y artículos de desecho que contengan o estén contaminados por bifenilos policlorados (PCB), trifenilos policlorados (PCT) o bifenilos polibromados (PBB)."]
["Y11 -  Residuos alquitranados resultantes de la refinación, destilación o cualquier otro tratamiento pirolítico."]
["Y12 -  Desechos resultantes de la producción, preparación y utilización de tintas, colorantes, pigmentos, pinturas, lacas o barnices."]
["Y13 -  Desechos resultantes de la producción, preparación y utilización de resinas, látex, plastificantes o colas y adhesivos."]
["Y14 -  Sustancias químicas de desecho, no identificadas o nuevas, resultantes de la investigación y el desarrollo o de las actividades de enseñanza y cuyos efectos en el ser humano o el medio ambiente no se conozcan."]
["Y15 -  Desechos de carácter explosivo que no estén sometidos a una legislación diferente."]
["Y16 -  Desechos resultantes de la producción, preparación y utilización de productos químicos y materiales para fines fotográficos."]
["Y17 -  Desechos resultantes del tratamiento de superficies de metales y plásticos."]
["Y18 -  Residuos resultantes de las operaciones de eliminación de desechos industriales."]
["Y19 -  Metales carbonilos."]
["Y20 -  Berilio, compuesto de berilio."]
["Y21 -  Compuestos de cromo hexavalente."]
["Y22 -  Compuestos de cobre."]
["Y23 -  Compuestos de zinc."]
["Y24 -  Arsénico, compuestos de arsénico."]
["Y25 -  Selenio, compuestos de selenio."]
["Y26 -  Cadmio, compuestos de cadmio."]
["Y27 -  Antimonio, compuestos de antimonio."]
["Y28 -  Telurio, compuestos de telurio."]
["Y29 -  Mercurio, compuestos de mercurio."]
["Y30 -  Talio, compuestos de talio."]
["Y31 -  Plomo, compuestos de plomo."]
["Y32 -  Compuestos inorgánicos de flúor, con exclusión de fluoruro cálcico."]
["Y33 -  Cianuros inorgánicos."]
["Y34 -  Soluciones ácidas o ácidos en forma sólida."]
["Y35 -  Soluciones básicas o bases en forma sólida."]
["Y36 -  Asbestos (polvo y fibras)."]
["Y37 -  Compuestos orgánicos de fósforo."]
["Y38 -  Cianuros orgánicos."]
["Y39 -  Fenoles, compuestos fenólicos, con inclusión de clorofenoles."]
["Y40 -  Eteres."]
["Y41 -  Solventes orgánicos halogenados."]
["Y42 -  Disolventes orgánicos, con exclusión de disolventes halogenados."]
["Y43 -  Cualquier sustancia del grupo de los dibenzofuranos policlorados."]
["Y44 -  Cualquier sustancia del grupo de las dibenzoparadioxinas policloradas."]
["Y45 -  Compuestos organohalogenados, que no sean las sustancias mencionadas en el presente anexo (por ejemplo, Y39, Y41, Y42, Y43, Y44)."]
["Y48 - Todos los materiales y/o elementos diversos contaminados con alguno o algunos de los residuos peligrosos identificados en el Anexo I o que presenten alguna o algunas de las características peligrosas enumeradas en el Anexo II de la Ley de Residuos Peligrosos cuyo destino sea o deba ser una Operación de Eliminación según el Anexo III de la citada ley. A los efectos de la presente norma, se considerarán, en forma no excluyente, materiales diversos y/o elementos diversos contaminados, a los envases, contenedores y/o recipientes en general, tanques, silos, trapos, tierras, filtros, artículos y/o prendas de vestir de uso sanitario y/o industrial y/o de hotelería hospitalaria cuyo destino sea o deba ser una Operación de Eliminación de las previstas en el Anexo III de la presente Ley."]

{"sheet":"Desarrollo","index":2,"n_rows":71,"n_cols":33,"rows_kept":71,"cut":false,"hidden":true,"merged":[[16,1,16,6],[16,13,16,14],[17,1,17,10],[10,1,10,2],[22,32,22,33],[24,17,24,18],[30,1,30,3],[28,1,28,3],[30,11,30,13],[24,1,24,3],[24,5,24,6],[24,14,24,15],[17,13,17,14],[21,1,21,10],[22,5,22,6],[20,1,20,6],[21,13,21,14],[22,1,22,2],[20,13,20,14],[26,17,26,18],[30,5,30,6],[42,23,42,25],[42,11,42,13],[44,23,44,25],[44,11,44,13],[44,15,44,17],[2,26,2,33],[4,1,4,25],[4,26,4,33],[6,1,6,33],[2,1,2,25],[24,11,24,12],[8,32,8,33],[8,1,8,2],[10,13,10,14],[11,1,11,2],[13,32,13,33],[18,32,18,33],[13,1,13,2],[15,1,15,6],[15,13,15,14],[18,1,18,2],[18,5,18,6],[44,19,44,21],[42,19,42,21],[50,7,50,9],[24,8,24,9],[32,11,32,12],[32,14,32,15],[46,1,46,3],[30,8,30,9],[26,8,26,9],[26,11,26,12],[26,5,26,6],[48,13,48,15],[36,5,36,8],[36,1,36,3],[40,1,40,3],[26,1,26,3],[42,15,42,17],[54,1,54,3],[50,13,50,15],[52,1,52,3],[50,1,50,3],[54,13,54,15],[48,1,48,3],[48,7,48,9],[54,7,54,9],[11,32,11,33],[44,7,44,9],[42,7,42,9],[26,14,26,15],[30,14,30,15],[30,17,30,18],[40,30,40,33],[38,1,38,3],[38,5,38,8],[32,17,32,18],[32,1,32,3],[32,5,32,6],[32,8,32,9],[34,30,34,33],[34,1,34,3],[28,30,28,33],[52,30,52,33],[56,13,56,15],[54,19,54,21],[68,19,68,21],[66,19,66,21],[56,19,56,21],[50,19,50,21],[46,30,46,33],[48,19,48,21],[56,7,56,9],[70,29,70,33],[64,1,64,3],[64,30,64,33],[66,5,66,9],[66,13,66,15],[68,5,68,9],[70,1,70,3],[68,13,68,15],[56,1,56,3],[62,19,62,21],[60,19,60,21],[60,1,60,3],[60,7,60,9],[62,1,62,3],[62,7,62,9],[62,13,62,15],[60,13,60,15],[58,1,58,3],[58,30,58,33]]}
[]
[null,"Razón Social (*)",null,null,null,null,null,null,null,null,null,null,null,null,null,null,null,null,null,null,null,null,null,null,null,null,"Fecha (*)"]
[null,{"$f":"+MMES!D10","v":0},null,null,null,null,null,null,null,null,null,null,null,null,null,null,null,null,null,null,null,null,null,null,null,null,{"$f":"+MMES!AC10","v":"00/00/0000"}]
[null,"Denominación de la Planta (*)",null,null,null,null,null,null,null,null,null,null,null,null,null,null,null,null,null,null,null,null,null,null,null,null,"CUIT (*)"]
[null,{"$f":"+MMES!D12","v":0},null,null,null,null,null,null,null,null,null,null,null,null,null,null,null,null,null,null,null,null,null,null,null,null,{"$f":"+MMES!AC12","v":0}]
[null,"Domicilio - Localidad - Provincia -UBICACIÓN DEL RIESGO- (*)"]
[null,{"$f":"+MMES!D14","v":0}]
[]
[null,"Ru",null,null,"=",null,null,null,null,null,null,null,null,null,null,null,null,null,null,null,null,null,null,null,null,null,null,null,null,null,null,null,{"$f":"+MMES!H132","v":0}]
[]
[null,"Tipo",null,null,null,null,null,null,null,null,null,null,"=",{"$f":"+MMES!W90","v":0}]
[null,"ER",null,null,"=",null,null,null,null,null,null,null,null,null,null,null,null,null,null,null,null,null,null,null,null,null,null,null,null,null,null,null,{"$f":"+MMES!K132","v":0}]
[]
[null,"Ri",null,null,"=",null,null,null,null,null,null,null,null,null,null,null,null,null,null,null,null,null,null,null,null,null,null,null,null,null,null,null,{"$f":"+MMES!N132","v":0}]
[]
[null,"Cantidad de Personal",null,null,null,null,null,null,null,null,null,null,"=",{"$f":"+MMES!AR100","v":0}]
[null,"Potencia Instalada",null,null,null,null,null,null,null,null,null,null,"=",{"$f":"+MMES!AO112","v":0}]
[null,"Relación Sup. cubierta / Sup. total",null,null,null,null,null,null,null,null,null,null,"=",{"$f":"+MMES!AO122","v":0}]
[null,"Di",null,null,"=",null,null,null,null,null,null,null,null,null,null,null,null,null,null,null,null,null,null,null,null,null,null,null,null,null,null,null,{"$f":"+MMES!Q132","v":0}]
[]
[null,"Zona",null,null,null,null,null,null,null,null,null,null,"=",{"$f":"+MMES!AR112","v":0}]
[null,"Servicios Corrientes",null,null,null,null,null,null,null,null,null,null,"=",{"$f":"+MMES!AR122","v":1.5}]
[null,"Lo",null,null,"=",null,null,null,null,null,null,null,null,null,null,null,null,null,null,null,null,null,null,null,null,null,null,null,null,null,null,null,{"$f":"+MMES!T132","v":1.5}]
[]
[null,"NCAi",null,null,"=","Ru",null,"+","ER",null,"+","Ri",null,"+","Di",null,"+","Lo"]
[]
[null,"NCAi",null,null,"=",{"$f":"+MMES!H132","v":0},null,"+",{"$f":"+MMES!K132","v":0},null,"+",{"$f":"+MMES!N132","v":0},null,"+",{"$f":"+MMES!Q132","v":0},null,"+",{"$f":"+MMES!T132","v":1.5}]
[]
[null,"NCAi",null,null,"=",null,null,null,null,null,null,null,null,null,null,null,null,null,null,null,null,null,null,null,null,null,null,null,null,null,{"$f":"+F27+I27+L27+O27+R27","v":1.5}]
[]
[null,"NCA",null,null,"=","NCAi",null,"+","AjSP",null,"-","AjSGA"]
[]
[null,"NCA",null,null,"=",{"$f":"+MMES!W132","v":1.5},null,"+",{"$f":"+MMES!AD139","v":0},null,"-",{"$f":"+MMES!AG139","v":0}]
[]
[null,"NCA",null,null,"=",null,null,null,null,null,null,null,null,null,null,null,null,null,null,null,null,null,null,null,null,null,null,null,null,null,{"$f":"+MMES!AA141","v":1.5}]
[]
[null,"FC",null,null,"=",{"$f":"+MMES!I137","v":75320.100000000006}]
[]
[null,"Ajuste",null,null,"=",{"$f":"+MMES!I139","v":1}]
[]
[null,"MB",null,null,"=",null,null,null,null,null,null,null,null,null,null,null,null,null,null,null,null,null,null,null,null,null,null,null,null,null,{"$f":"+MMES!I142","v":169470.22500000001}]
[]
[null,"V",null,null,"=",1,"+","TS",null,null,"*","PF",null,null,"+","DEA",null,null,"+","COS",null,null,"+","ENT"]
[]
[null,"V",null,null,"=",1,"+",{"$f":"+MMES!H179","v":0},null,null,"*",{"$f":"+MMES!L179","v":0},null,null,"+",{"$f":"+MMES!P179","v":0},null,null,"+",{"$f":"+MMES!T179","v":0},null,null,"+",{"$f":"+MMES!X179","v":0}]
[]
[null,"V",null,null,"=",null,null,null,null,null,null,null,null,null,null,null,null,null,null,null,null,null,null,null,null,null,null,null,null,null,{"$f":"+MMES!AD179","v":1}]
[]
[null,"MP",null,null,"=",null,null,"MP sup",null,null,null,"+",null,"MP ent",null,null,null,"+",null,"MP aq"]
[]
[null,"MP",null,null,"=",null,null,{"$f":"+MMES!J193","v":0},null,null,null,"+",null,{"$f":"+MMES!P193","v":0},null,null,null,"+",null,{"$f":"+MMES!V193","v":0}]
[]
[null,"MP",null,null,"=",null,null,null,null,null,null,null,null,null,null,null,null,null,null,null,null,null,null,null,null,null,null,null,null,null,{"$f":"+H51+N51+T51","v":0}]
[]
[null,"EP",null,null,"=",null,null,"EP sup",null,null,null,"+",null,"EP ent",null,null,null,"+",null,"EP aq"]
[]
[null,"EP",null,null,"=",null,null,{"$f":"+MMES!J205","v":0},null,null,null,"+",null,{"$f":"+MMES!P205","v":0},null,null,null,"+",null,{"$f":"+MMES!V205","v":0}]
[]
[null,"EP",null,null,"=",null,null,null,null,null,null,null,null,null,null,null,null,null,null,null,null,null,null,null,null,null,null,null,null,null,{"$f":"+H57+N57+T57","v":0}]
[]
[null,"D",null,null,"=",null,null,1,null,null,null,"+",null,"MP",null,null,null,"+",null,"EP"]
[]
[null,"D",null,null,"=",null,null,{"$f":"+H61","v":1},null,null,null,"+",null,{"$f":"+AE53","v":0},null,null,null,"+",null,{"$f":"+AE59","v":0}]
[]
[null,"D",null,null,"=",null,null,null,null,null,null,null,null,null,null,null,null,null,null,null,null,null,null,null,null,null,null,null,null,null,{"$f":"+H63+N63+T63","v":1}]
[]
[null,"MMES",null,null,"=","MB",null,null,null,null,null,"*",null,"V",null,null,null,"*",null,"D"]
[]
[null,"MMES",null,null,"=",{"$f":"+AE41","v":169470.22500000001},null,null,null,null,null,"*",null,{"$f":"+AE47","v":1},null,null,null,"*",null,{"$f":"+AE65","v":1}]
[]
[null,"MMES",null,null,"=",null,null,null,null,null,null,null,null,null,null,null,null,null,null,null,null,null,null,null,null,null,null,null,null,{"$f":"+F69*N69*T69","v":169470.22500000001}]

{"sheet":"Recomendacion","index":3,"n_rows":47,"n_cols":27,"rows_kept":47,"cut":false,"hidden":true,"merged":[[8,1,8,33],[1,1,1,33],[4,1,4,25],[4,26,4,33],[6,1,6,25],[6,26,6,33],[10,1,10,8],[10,13,10,20],[10,26,10,33],[11,1,11,8],[11,13,11,20],[11,26,11,33],[12,26,12,33],[15,1,15,33],[16,1,16,33],[20,1,20,16],[20,18,20,33],[19,1,19,16],[19,18,19,33],[12,1,12,8],[12,13,12,20],[21,1,21,16],[21,18,21,33],[22,1,22,16],[22,18,22,33],[23,1,23,16],[23,18,23,33],[24,1,24,16],[24,18,24,33],[25,1,25,16],[25,18,25,33],[26,1,26,16],[26,18,26,33],[27,1,27,16],[27,18,27,33],[28,1,28,16],[28,18,28,33],[29,1,29,16],[29,18,29,33],[30,1,30,16],[30,18,30,33],[31,1,31,16],[31,18,31,33],[32,1,32,16],[32,18,32,33],[33,1,33,16],[33,18,33,33],[34,1,34,16],[34,18,34,33],[37,18,37,33],[35,1,35,16],[35,18,35,33],[36,1,36,16],[36,18,36,33],[37,1,37,16],[46,18,46,33],[38,1,38,16],[38,18,38,33],[39,1,39,16],[39,18,39,33],[45,1,45,16]]}
[]
[null,"RECOMENDACIÓN"]
[]
[null,"Razón Social (*)",null,null,null,null,null,null,null,null,null,null,null,null,null,null,null,null,null,null,null,null,null,null,null,null,"Fecha (*)"]
[null,{"$f":"+MMES!D10","v":0},null,null,null,null,null,null,null,null,null,null,null,null,null,null,null,null,null,null,null,null,null,null,null,null,{"$f":"+MMES!AC10","v":"00/00/0000"}]
[null,"Denominación de la Planta (*)",null,null,null,null,null,null,null,null,null,null,null,null,null,null,null,null,null,null,null,null,null,null,null,null,"CUIT (*)"]
[null,{"$f":"+MMES!D12","v":0},null,null,null,null,null,null,null,null,null,null,null,null,null,null,null,null,null,null,null,null,null,null,null,null,{"$f":"+MMES!AC12","v":0}]
[null,"Domicilio - Localidad - Provincia -UBICACIÓN DEL RIESGO- (*)"]
[null,{"$f":"+MMES!D14","v":0}]
[]
[null,"MMES DETERMINADO POR EL",null,null,null,null,null,null,null,null,null,null,null,"MMES DETERMINADO POR LA",null,null,null,null,null,null,null,null,null,null,null,null,"MMES DETERMINADO POR"]
[null,"TOMADOR",null,null,null,null,null,null,null,null,null,null,null,"ASEGURADORA",null,null,null,null,null,null,null,null,null,null,null,null,"KOMALIA S.A."]
[null,null,null,null,null,null,null,null,null,null,null,null,null,null,null,null,null,null,null,null,null,null,null,null,null,null,{"$f":"+MMES!AB219","v":0}]
[]
[null,"JUSTIFICACIÓN"]
[]
[]
[]
[null,"DOCUMENTACIÓN PENDIENTE DE ENTREGA"]
[]
[]
[]
[]
[]
[]
[]
[]
[]
[]
[]
[]
[]
[]
[]
[]
[]
[]
[]
[]
[]
[]
[]
[]
[]
[null,"Auditor"]
[]
[null,null,null,null,null,null,null,null,null,null,null,null,null,null,null,null,null,null,"Firma"]

{"sheet":"Ru","index":4,"n_rows":2302,"n_cols":27,"rows_kept":2302,"cut":false,"hidden":true,"merged":[]}
[1,"SELECCIONAR RUBRO PRINCIPAL",null,null,null,null,null,null,"SELECCIONAR",null,null,null,null,"CIIU","Elija de la lista el CIIU de su Empresa","Grupo","Grupo \nTarifario","Revision","Situacion",null,null,null,"492120","Servicios de transporte automotor de pasajeros mediante taxis y remises, alquiler de autos con chofer","1","1"]
[2,"101000 - Extracción y aglomeración de carbón",2,5,1,{"$f":"+IF(E2>=160,VLOOKUP(E163,$A$165:$D$177,4),VLOOKUP(E2,$A$1:$D$162,4))","v":0},null,null,"MAyDS - Ministerio de Ambiente y Desarrollo Sostenible",null,null,null,null,"611050","Abastecimiento de carnes y derivados excepto las aves","1","2","Rev 2",null,null,null,null,"CIIU","Descripcion","Grupo","Grupo Tarifario","sadasd"]
[3,"102000 - Extracción y aglomeración de lignito",2,5,null,null,null,null,"OPDS - Organismo Provincial para el Desarrollo Sostenible - Pcia. Bs. As.",null,null,null,null,"131300","Acabado de productos textiles","2","3","Rev 4","Comprendido Res 177/07 y Mod",null,null,null,"771290","Alquiler de equipo de transporte n.c.p. sin conductor ni operarios","2","3","Rev 4"]
[4,"103000 - Extracción y aglomeración de turba",1,1,null,null,null,null,"ACUMAR - Autoridad de Cuenca Matanza Riachuelo",null,null,null,null,"171200","Acabado de productos textiles","2","3","Rev3","Comprendido Res 177/07 y Mod",null,null,null,"711100","Alquiler de equipo de transporte para vía terrestre, sin operarios ni tripulación","2","3"]
[5,"111000 - Extracción de petróleo crudo y gas natural",3,10,null,null,null,null,"APRA - Agencia de Protección Ambiental - C.A.B.A.",null,null,null,null,"466110","Venta al por mayor de combustibles y lubricantes para automotores","1","4","Rev3",null,null,null,null,"381100","Recolección, transporte, tratamiento y disposición final de residuos no peligrosos","3","5","Rev 4"]
[6,"112000 - Actividades de servicios relacionadas con la extracción de petróleo y gas, excepto las actividades de prospección",2,5,null,null,null,null,"Ministerio de Ambiente y Cambio Climático - Santa Fe",null,null,null,null,"466932","VENTA AL POR MAYOR DE ABONOS, FERTILIZANTES Y PLAGUICIDAS","1",3,"Rev 4",null,null,null,null,"381200","Recolección, transporte, tratamiento y disposición final de residuos peligrosos","3","5","Rev 4"]
[7,"120000 - Extracción de minerales y concentrados de uranio y torio",3,10,null,null,null,null,"Otro: detallar debajo",null,null,null,null,"462131","Venta al por mayor de cereales (incluye arroz), oleaginosas y forrajeras excepto semillas","1","3","Rev3",null,null,null,null,"492230","Servicio de transporte automotor de animales","2","3","Rev 4"]
[8,"131000 - Extracción de minerales de hierro",3,10,null,null,null,null,"NINGUNO",null,null,null,null,"321087","Acabado de textiles (hilados y tejidos)excepto tejidos de punto (incluye blanqueo, teñido, apresto y estampado industrial). Tintorerías","2","3","Rev 2","Comprendido Res 177/07 y Mod",null,null,null,"492290","Servicio de transporte automotor de cargas n.c.p.","3","5","Rev 4"]
[9,"132000 - Extracción de minerales metalíferos no ferrosos, excepto minerales de uranio y torio",3,10,null,null,null,null,"SELECCIONAR / COMPLETAR",null,null,null,null,"462110","Acopio de algodón","1","4","Rev 4",null,null,null,null,"492221","Servicio de transporte automotor de cereales","3","5","Rev 4"]
[10,"141100 - Extracción de rocas ornamentales",1,1,null,null,null,null,"MINISTERIO DE AMBIENTE Y DESARROLLO SUSTENTABLE (NACIÓN) - 1","Otras jurisdicciones/Organismos ","NACION",null,null,"462132","Acopio y acondicionamiento de cereales y semillas, excepto de algodón y semillas y granos para forrajes","1","4","Rev 4",null,null,null,null,"492229","Servicio de transporte automotor de mercaderías a granel n.c.p.","3","5","Rev 4"]
[11,"141200 - Extracción de piedra caliza y yeso",1,1,null,null,null,null,"AGENCIA DE PROTECCIÓN AMBIENTAL (APRA) - 2","Otras jurisdicciones/Organismos ","CAPITAL FEDERAL",null,null,"461014","Acopio y acondicionamiento en comisión o consignación de cereales (incluye arroz), oleaginosas y forrajeras excepto semillas","1","4","Rev 4",null,null,null,null,"492250","Servicio de transporte automotor de mercaderías y sustancias peligrosas","3","5","Rev 4"]
[12,"141300 - Extracción de arenas, canto rodado y triturados pétreos",1,1,null,null,null,null,"ORGANISMO PROVINCIAL PARA EL DESARROLLO SOSTENIBLE - 3","Otras jurisdicciones/Organismos ","BUENOS AIRES",null,null,"611069","Acopio y venta de cereales (incluye arroz), oleaginosas y forrajeras excepto semillas","1","3","Rev 2",null,null,null,null,"492190","Servicio de transporte automotor de pasajeros n.c.p.","1","3","Rev 4"]
[13,"141400 - Extracción de arcilla y caolín",1,1,null,null,null,null,"AUTORIDAD DE CUENCA MATANZA RIACHUELO - 4","Otras jurisdicciones/Organismos ","BUENOS AIRES",null,null,"611158","Acopio y venta de frutas, legumbres y hortalizas frescas","1","3","Rev 2",null,null,null,null,"602290","Servicio de transporte automotor de pasajeros n.c.p.","1","3"]
[14,"142110 - Extracción de minerales para la fabricación de abonos excepto turba.",1,1,null,null,null,null,"SECRETARIA DE AMBIENTE - MUNICIPALIDAD DE CORDOBA - 5","Otras jurisdicciones/Organismos ","CORDOBA",null,null,"611077","Acopio y venta de semillas","1","3","Rev 2",null,null,null,null,"602260","Servicio de transporte automotor de pasajeros para el turismo","1","3"]
[15,"142120 - Extracción de minerales para la fabricación de productos químicos",1,1,null,null,null,null,"MINISTERIO DE MEDIO AMBIENTE CAMPO Y PRODUCCION - SAN LUIS - 6","Otras jurisdicciones/Organismos ","SAN LUIS",null,null,"611298","Acopio, distribución y venta de productos y subproductos ganaderos y agrícolas no clasificados en otra parte.","1","3","Rev 2",null,null,null,null,"492170","Servicio de transporte automotor internacional de pasajeros","1","3","Rev 4"]
[16,"142200 - Extracción de sal en salinas y de roca",1,1,null,null,null,null,"MINISTERIO DE AGUA AMBIENTE Y SERVICIOS PUBLICOS DE LA PROVINCIA DE CORDOBA - 7","Otras jurisdicciones/Organismos ","CORDOBA",null,null,"112000","Actividades  de servicios relacionadas con la extracción de petróleo y gas, excepto las actividades de prospección","2","5","Rev3","Comprendido Res 177/07 y Mod",null,null,null,"602250","Servicio de transporte automotor interurbano de pasajeros  (Incluye los servicios de transporte regular de más de 50 km., los llamados servicios de larga distancia)","1","3"]
[17,"142900 - Explotación de minas y canteras n.c.p.",1,1,null,null,null,null,"SECRETARIA DE MINERIA Y RECURSOS ENERGETICOS - PROVINCIA DE SALTA - 8","Otras jurisdicciones/Organismos ","SALTA",null,null,"631190","Actividades conexas al procesamiento y hospedaje de datos n.c.p.","1","2","Rev 4",null,null,null,null,"492160","Servicio de transporte automotor interurbano no regular de pasajeros","1","3","Rev 4"]
[18,"151111 - Matanza de ganado bovino ",1,1,null,null,null,null,"MINISTERIO DE MEDIO AMBIENTE - SANTA FE - 9","Otras jurisdicciones/Organismos ","SANTA FE",null,null,"649210","Actividades de crédito para financiar otras actividades económicas","1","1","Rev 4",null,null,null,null,"492150","Servicio de transporte automotor interurbano regular de pasajeros, e1203excepto transporte internacional","1","3","Rev 4"]
[19,"151112 - Procesamiento de carne de ganado bovino",1,1,null,null,null,null,"MINISTERIO DE ENERGIA Y MINERIA - NACION - 10","Otras jurisdicciones/Organismos ","NACION",null,null,"659810","Actividades de crédito para financiar otras actividades económicas  (Incluye las empresas de factoring y otras formas de adelanto, etc.)","1","1","Rev3",null,null,null,null,"492180","Servicio de transporte automotor turístico de pasajeros","1","3","Rev 4"]
[20,"151113 - Saladero y peladero de cueros de ganado bovino",1,1,null,null,null,null,"MINISTERIO DE AGUA Y MEDIO AMBIENTE - SANTIAGO DEL ESTERO - 22","Otras jurisdicciones/Organismos ","SANTIAGO DEL ESTERO",null,null,"452520","Actividades de hincado de pilotes, cimentación y otros trabajos de hormigón armado","1","3","Rev3",null,null,null,null,"492280","Servicio de transporte automotor urbano de carga n.c.p.","2","3","Rev 4"]
[21,"154200 - Elaboración de azúcar",2,5,null,null,null,null,"MINISTERIO DE AMBIENTE - JUJUY - 23","Otras jurisdicciones/Organismos ","JUJUY",null,null,"729000","Actividades de informática n.c.p.","1","2","Rev3",null,null,null,null,"602240","Servicio de transporte automotor urbano de oferta libre de pasajeros  excepto mediante taxis y remises, alquiler de autos con chofer y transporte escolar (Incluye servicios urbanos especiales como charters, servicios contratados, servicios para ámbito po","1","3"]
[22,"155110 - Destilación de alcohol etílico",2,5,null,null,null,null,"MINISTERIO DE AMBIENTE Y CONTROL DEL DESARROLLO SUSTENTABLE - CHUBUT - 24","Otras jurisdicciones/Organismos ","CHUBUT",null,null,"949051","Actividades deportivas profesionales. Deportistas","1","2","Rev 2",null,null,null,null,"602210","Servicio de transporte automotor urbano regular de pasajeros  (Incluye los servicios de transporte regular de menos de 50 km.)","2","3"]
[23,"155120 - Destilación, rectificación y mezcla de bebidas espiritosas",2,5,null,null,null,null,"MINISTERIO DE ECOLOGÍA Y RECURSOS NATURALES RENOVABLES - MISIONES - 25","Otras jurisdicciones/Organismos ","MISIONES",null,null,"439990","Actividades especializadas de construcción n.c.p.","1","3","Rev 4",null,null,null,null,"492140","Servicio de transporte automotor urbano y suburbano no regular de pasajeros de oferta libre, excepto mediante taxis y remises, alquiler de autos con chofer y transporte escolar","1","3","Rev 4"]
[24,"171120 - Preparación de fibras animales de uso textil, incluso lavado de lana",1,1,null,null,null,null,"MINISTERIO DE PLANIFICACIÓN Y AMBIENTE - CHACO - 26","Otras jurisdicciones/Organismos ","CHACO",null,null,"452590","Actividades especializadas de construcción n.c.p. (Incluye el alquiler e instalación de andamios,  la construcción de chimeneas y hornos industriales, el acorazamiento de cajas fuertes y cámaras frigoríficas, el armado e instalación de compuertas para di","1","3","Rev3",null,null,null,null,"492110","Servicio de transporte automotor urbano y suburbano regular de pasajeros","2","3","Rev 4"]
[25,"171200 - Acabado de productos textiles",2,5,null,null,null,null,"SECRETARÍA DE AMBIENTE Y DESARROLLO SUSTENTABLE - SAN JUAN - 42","Otras jurisdicciones/Organismos ","SAN JUAN",null,null,"749009","Actividades profesionales, científicas y técnicas n.c.p.","1","1","Rev 4",null,null,null,null,"492130","Servicio de transporte escolar","1","3","Rev 4"]
[26,"191100 - Curtido y terminación de cueros",3,10,null,null,null,null,"SECRETARÍA DE PLANEAMIENTO INFRAESTRUCTURA Y MEDIO AMBIENTE - NECOCHEA - 44","Otras jurisdicciones/Organismos ","BUENOS AIRES",null,null,"662000","Administración de fondos de jubilaciones y pensiones (A.F.J.P.)","1","1","Rev3",null,null,null,null,"602230","Servicio de transporte escolar (Incluye el servicio de transporte para colonias de vacaciones y clubes)","1","3"]
[27,"201000 - Aserrado y cepillado de madera",2,5,null,null,null,null,"SECRETARÍA DE MEDIO AMBIENTE - LA RIOJA - 45","Otras jurisdicciones/Organismos ","LA RIOJA",null,null,"653000","Administración de fondos de pensiones, excepto la seguridad social obligatoria","1","1","Rev 4",null,null,null,null,"491200","Servicio de transporte ferroviario de cargas","3","5","Rev 4"]
[28,"202100 - Fabricación de hojas de madera para enchapado; fabricación de tableros contrachapados; tableros laminados; tableros de partículas y tableros y paneles n.c.p.",2,5,null,null,null,null,"SECRETARÍA DE AMBIENTE - GOBIERNO DE ENTRE RÍOS - SERV. ADM. CONTABLE - 46","Otras jurisdicciones/Organismos ","ENTRE RIOS",null,null,"910015","Administración pública y defensa","1","1","Rev 2",null,null,null,null,"601100","Servicio de transporte ferroviario de cargas","3","5"]
[29,"210101 - Fabricación de pulpa de madera",3,10,null,null,null,null,"SECRETARÍA DE AMBIENTE Y DESARROLLO SUSTENTABLE GOBIERNO DE RÍO NEGRO - 47","Otras jurisdicciones/Organismos ","RIO NEGRO",null,null,"639100","Agencias de noticias","1","1","Rev 4",null,null,null,null,"491120","Servicio de transporte ferroviario interurbano de pasajeros","2","4","Rev 4"]
[30,"210102 - Fabricación de papel y cartón excepto envases",2,5,null,null,null,null,"SECRETARÍA DE ESTADO DEL AMBIENTE Y DESARROLLO SUSTENTABLE - CATAMARCA - 48","Otras jurisdicciones/Organismos ","CATAMARCA",null,null,"432920","Aislamiento térmico, acústico, hídrico y antivibratorio","1","4","Rev 4",null,null,null,null,"601220","Servicio de transporte ferroviario interurbano de pasajeros","2","4"]
[31,"231000 - Fabricación de productos de hornos de coque",3,10,null,null,null,null,"SECRETARÍA DE CALIDAD AMBIENTAL - JUJUY - 49","Otras jurisdicciones/Organismos ","JUJUY",null,null,"453200","Aislamiento térmico, acústico, hídrico y antivibratorio","1","4","Rev3",null,null,null,null,"491110","Servicio de transporte ferroviario urbano y suburbano de pasajeros","2","4","Rev 4"]
[32,"232000 - Fabricación de productos de la refinación del petróleo",3,10,null,null,null,null,"SUBSECRETARÍA DE AMBIENTE DEL MUNICIPIO DE CORDOBA - 50","Otras jurisdicciones/Organismos ","CORDOBA",null,null,"14292","Albergue y cuidado de  animales de terceros","1","2","Rev3",null,null,null,null,"601210","Servicio de transporte ferroviario urbano y suburbano de pasajeros (Incluye el servicio de subterráneo y de premetro)","2","4"]
[33,"241110 - Fabricación de gases comprimidos y licuados.",3,10,null,null,null,null,"SECRETARÍA DE AMBIENTE DESARROLLO SUSTENTABLE Y CAMBIO CLIMÁTICO - TIERRA DEL FUEGO - 51","Otras jurisdicciones/Organismos ","TIERRA DEL FUEGO",null,null,"16292","Albergue y cuidado de animales de terceros","1","2","Rev 4",null,null,null,null,"492240","Servicio de transporte por camión cisterna","3","5","Rev 4"]
[34,"241120 - Fabricación de curtientes naturales y sintéticos.",3,10,null,null,null,null,"SECRETARIA DE AMBIENTE Y ORDENAMIENTO TERRITORIAL - MENDOZA - 53","Otras jurisdicciones/Organismos ","MENDOZA",null,null,"771110","Alquiler de automóviles sin conductor","1","3","Rev 4",null,null,null,null,"602180","Servicio de transporte urbano de carga n.c.p. (Incluye el transporte realizado por fleteros y distribuidores dentro del égido urbano)","2","3"]
[35,"241130 - Fabricación de materias colorantes básicas, excepto pigmentos preparados.",2,5,null,null,null,null,"MINISTERIO DE AMBIENTE Y PRODUCCIÓN SUSTENTABLE - SALTA - 54","Otras jurisdicciones/Organismos ","SALTA",null,null,"624500","Alquiler de cosas muebles no clasificados en otra parte","1","3","Rev 2",null,null,null,null,"524190","Servicios complementarios para el transporte terrestre n.c.p.","2","4","Rev 4"]
[36,"241180 - Fabricación de materias químicas inorgánicas básicas n.c.p.",3,10,null,null,null,null,"SUBSECRETARÍA DE ENERGÍA Y MINERÍA - MENDOZA - 55","Otras jurisdicciones/Organismos ","MENDOZA",null,null,"772099","Alquiler de efectos personales y enseres domésticos n.c.p.","1","1","Rev 4",null,null,null,null,"633190","Servicios complementarios para el transporte terrestre n.c.p. (Incluye servicios de mantenimiento de material ferroviario, terminales y estaciones)","2","4"]
[37,"241190 - Fabricación de materias químicas orgánicas básicas n.c.p.",3,10,null,null,null,null,"SECRETARIA DE GOBIERNO DE AMBIENTE Y DESARROLLO SUSTENTABLE - 57","Nación","NACION",null,null,"713009","Alquiler de efectos personales y enseres domésticos n.c.p. (Incluye alquiler de artículos deportivos  y de videos)","1","1","Rev3",null,null,null,null,"524110","Servicios de explotación de infraestructura para el transporte terrestre, peajes y otros derechos","1","3","Rev 4"]
[38,"241200 - Fabricación de abonos y compuestos de nitrógeno",1,1,null,null,null,null,"SUBSECRETARIA DE MEDIO AMBIENTE - NEUQUEN - 58","Otras jurisdicciones/Organismos ","NEUQUEN",null,null,"439100","Alquiler de equipo de construcción o demolición dotado de operarios","1","4","Rev 4",null,null,null,null,"633110","Servicios de explotación de infraestructura para el transporte terrestre; peajes y otros derechos","1","3"]
[39,"241301 - Fabricación de resinas y cauchos sintéticos",3,10,null,null,null,null,"MINISTERIO DE LA PRODUCCION Y AMBIENTE - FORMOSA - 59","Otras jurisdicciones/Organismos ","FORMOSA",null,null,"455000","Alquiler de equipo de construcción o demolición dotado de operarios","1","4","Rev3",null,null,null,null,"523019","Servicios de gestión aduanera para el transporte de mercaderías n.c.p.","2","4","Rev 4"]
[40,"241309 - Fabricación de materias plásticas en formas primarias n.c.p.",3,10,null,null,null,null,"SECRETARIA DE ESTADO DE AMBIENTE SANTA CRUZ - 60","Provincias","SANTA CRUZ",null,null,"771290","Alquiler de equipo de transporte n.c.p. sin conductor ni operarios","1","3","Rev 4",null,null,null,null,"635000","Servicios de gestión y logística para el transporte de mercaderías (Incluye las actividades de los agentes aduaneros, actividades de empresas empaquetadoras, etc.)","2","4"]
[41,"242100 - Fabricación de plaguicidas y productos químicos de uso agropecuario ",3,10,null,null,null,null,"SUBSECRETARIA DE AMBIENTE LA PAMPA - 61","Provincias","LA PAMPA",null,null,"711200","Alquiler de equipo de transporte para vía acuática, sin operarios ni tripulación","1","4","Rev3",null,null,null,null,"523090","Servicios de gestión y logística para el transporte de mercaderías n.c.p.","2","4","Rev 4"]
[42,"242200 - Fabricación de pinturas; barnices y productos de revestimiento similares; tintas de imprenta y masillas",3,10,null,null,null,null,"SECRETARIA DE ESTADO DE MEDIO AMBIENTE TUCUMAN - 62","Provincias","TUCUMAN",null,null,"771210","Alquiler de equipo de transporte para vía acuática, sin operarios ni tripulación","1","4","Rev 4",null,null,null,null,"631000","Servicios de manipulación de carga (Incluye los servicios de carga y descarga de mercancías o equipajes de pasajeros, sin discriminar medios de transporte, la estiba y desestiba, etc.)","3","5"]
[43,"242310 - Fabricación de medicamentos de uso humano y productos farmacéuticos",2,5,null,null,null,null,"MINISTERIO DE AMBIENTE Y CONTROL DEL DESARROLLO SUSTENTABLE - CHUBUT - 63","Provincias","CHUBUT",null,null,"711300","Alquiler de equipo de transporte para vía aérea, sin operarios ni tripulación","1","4","Rev3",null,null,null,null,"492120","Servicios de transporte automotor de pasajeros mediante taxis y remises, alquiler de autos con chofer","1","3","Rev 4"]
[44,"242320 - Fabricación de medicamentos de uso veterinario",2,5,null,null,null,null,"SECRETARIA DE DESARROLLO TERRITORIAL Y AMBIENTE - NEUQUEN - 64","Provincias","NEUQUEN",null,null,"771220","Alquiler de equipo de transporte para vía aérea, sin operarios ni tripulación","1","4","Rev 4",null,null,null,null,"602220","Servicios de transporte automotor de pasajeros mediante taxis y remises; alquiler de autos con chofer","1","3"]
[45,"242390 - Fabricación de productos de laboratorio, sustancias químicas medicinales y productos botánicos n.c.p.",2,5,null,null,null,null,"MINISTERIO DE AMBIENTE Y DESARROLLO SOSTENIBLE (NACIÓN) - 65","Otras jurisdicciones/Organismos ","NACION",null,null,"711100","Alquiler de equipo de transporte para vía terrestre, sin operarios ni tripulación","1","3","Rev3",null,null,null,null,"602130","Servicios de transporte de animales","2","3"]
[46,"242411 - Fabricación de preparados para limpieza, pulido y saneamiento ",3,10,null,null,null,null,"MUNICIPALIDAD DE SAN ANTONIO DE ARECO – BUENOS AIRES - 66","Otras jurisdicciones/Organismos ","BUENOS AIRES",null,null,"773010","Alquiler de maquinaria y equipo agropecuario y forestal, sin operarios","1","4","Rev 4",null,null,null,null,"749210","Servicios de transporte de caudales y objetos de valor","1","1"]
[47,"242412 - Fabricación de jabones y detergentes",2,5,null,null,null,null,"MUNICIPALIDAD DE BERISSO – BUENOS AIRES - 67","Otras jurisdicciones/Organismos ","BUENOS AIRES",null,null,"712100","Alquiler de maquinaria y equipo agropecuario, sin operarios","1","4","Rev3",null,null,null,null,"801010","Servicios de transporte de caudales y objetos de valor","1","1","Rev 4"]
[48,"242490 - Fabricación de cosméticos, perfumes y productos de higiene y tocador",2,5,null,null,null,null,"MUNICIPALIDAD DE CONCEPCION DEL URUGUAY – ENTRE RIOS - 68","Otras jurisdicciones/Organismos ","ENTRE RIOS",null,null,"773030","Alquiler de maquinaria y equipo de construcción e ingeniería civil, sin operarios","1","4","Rev 4",null,null,null,null,"602120","Servicios de transporte de mercaderías a granel, incluido el transporte por camión cisterna","3","5"]
[49,"242901 - Fabricación de tintas",3,10,null,null,null,null,"MINISTERIO DE AMBIENTE Y CAMBIO CLIMATICO - SANTA FE - 69","Otras jurisdicciones/Organismos ","SANTA FE",null,null,"712200","Alquiler de maquinaria y equipo de construcción e ingeniería civil, sin operarios(Incluye el alquiler de andamios sin montaje ni desmantelamiento)","1","4","Rev3",null,null,null,null,"20310","Servicios forestales de extracción de madera (Incluye tala de árboles, acarreo y transporte en el interior del bosque, servicios realizados de terceros, etc.)","2","3"]
[50,"242902 - Fabricación de explosivos, municiones y productos de pirotecnia",3,10,null,null,null,null,"SEC. GRAL. DE LA GOBERNACION / SECRETARIA DE AMBIENTE Y CAMBIO CLIMATICO - CORDOBA - 70","Otras jurisdicciones/Organismos ","CORDOBA",null,null,"712300","Alquiler de maquinaria y equipo de oficina, incluso computadoras","1","1","Rev3",null,null,null,null,"711691","Servicios relacionados con el transporte terrestre no clasificados en otra parte (incluye alquiler de automotores sin chofer)",3,4,"Rev 2"]
[51,"242903 - Fabricación de colas, adhesivos, aprestos y cementos excepto los odontológicos obtenidos de sustancias minerales y vegetales",3,10,null,null,null,null,"SECRETARIA DE ESTADO DE MEDIO AMBIENTE Y PARQUES - SAN LUIS - 71","Otras jurisdicciones/Organismos ","SAN LUIS",null,null,"773040","Alquiler de maquinaria y equipo de oficina, incluso computadoras","1","1","Rev 4",null,null,null,null,"713112","Transporte aéreo de pasajeros y de cargas",3,5,"Rev 2"]
[52,"242909 - Fabricación de productos químicos n.c.p.",2,5,null,null,null,null,"MINISTERIO DEL AGUA Y MEDIO AMBIENTE - GOBIERNO DE SANTIAGO DEL ESTERO - 72","Provincias","SANTIAGO DEL ESTERO",null,null,"712902","Alquiler de maquinaria y equipo minero y petrolero, sin personal","1","5","Rev3",null,null,null,null,"602190","Transporte automotor de cargas n.c.p. (Incluye  servicios de transporte de carga refrigerada, automotores, transporte pesado y de mercaderías peligrosas)","3","5"]
[53,"251110 - Fabricación de cubiertas y cámaras",3,10,null,null,null,null,"MINISTERIO DE AMBIENTE - PROVINCIA DE BUENOS AIRES - 73",null,null,null,null,"712909","Alquiler de maquinaria y equipo n.c.p., sin personal","1","5","Rev3",null,null,null,null,"711411","Transporte de carga a corta, mediana y larga distancia excepto servicios de mudanzas y transporte de valores, documentación, encomiendas, mensajes y similares",3,4,"Rev 2"]
[54,"251120 - Recauchutado y renovación de cubiertas",2,5,null,null,null,null,"SECRETARIA DE AMBIENTE DE LA MUNICIPALIDAD DE LA CIUDAD DE CORRIENTES - 74",null,null,null,null,"773090","Alquiler de maquinaria y equipo n.c.p., sin personal","1","5","Rev 4",null,null,null,null,"711314","Transporte de pasajeros en taxímetros y remises",1,3,"Rev 2"]
[55,"251901 - Fabricación de autopartes de caucho excepto cámaras y cubiertas",3,10,null,null,null,null,"MINISTERIO DE AMBIENTE Y ECONOMÍA CIRCULAR DE CÓRDOBA - 75",null,null,null,null,"712901","Alquiler de maquinaria y equipo para la industria manufacturera, sin personal","1","4","Rev3",null,null,null,null,"711322","Transporte de pasajeros no clasificados en otra parte (incluye ómnibus de turismo, escolares, alquiler de automotores con chofer, etc.)",1,3,"Rev 2"]
[56,"251909 - Fabricación de productos de caucho n.c.p.",3,10,null,null,null,null,"SECRETARIA DE AMBIENTE SUSTENTABLE Y ECONOMIA CIRCULAR DE LA MUNICIPALIDAD DE CORDOBA - 76",null,null,null,null,"773020","Alquiler de maquinaria y equipo para la minería, sin operarios","1","5","Rev 4",null,null,null,null,"711446","Transporte de valores, documentación, encomiendas y similares",1,1,"Rev 2"]
[57,"252010 - Fabricación de envases plásticos",2,5,null,null,null,null,"SUBSECRETARÍA DE AMBIENTE (NACIÓN) - 77",null,null,null,null,"772091","Alquiler de prendas de vestir","1","1","Rev 4",null,null,null,null,"711128","Transporte ferroviario de carga y pasajeros",3,4,"Rev 2"]
[58,"252090 - Fabricación de productos plásticos en formas básicas y artículos de plástico n.c.p., excepto muebles",2,5,null,null,null,null,"SECRETARÍA DE AMBIENTE Y CONTROL DEL DESARROLLO SUSTENTABLE - CHUBUT - 78",null,null,null,null,"713001","Alquiler de ropa","1","1","Rev3",null,null,null,null,"711217","Transporte urbano, suburbano e interurbano de pasajeros (incluye subterráneos)",2,3,"Rev 2"]
[59,"261010 - Fabricación de envases de vidrio",2,5,null,null,null,null,"MINISTERIO DE ENERGÍA Y RECURSOS NATURALES DE LA PROVINCIA DEL NEUQUÉN - NEUQUÉN - 79",null,null,null,null,"623075","Alquiler de ropa en general excepto ropa blanca e indumentaria deportiva","1","1","Rev 2"]
[60,"261020 - Fabricación y elaboración de vidrio plano",2,5,null,null,null,null,"SECRETARIA DE ESTADO DE AMBIENTE Y DESARROLLO SUSTENTABLE - SAN LUIS - 80",null,null,null,null,"771190","Alquiler de vehículos automotores n.c.p., sin conductor ni operarios","1","3","Rev 4"]
[61,"261091 - Fabricación de espejos y vitrales",1,1,null,null,null,null,null,null,null,null,null,"772010","Alquiler de videos y video juegos","1","1","Rev 4"]
[62,"261099 - Fabricación de productos de vidrio n.c.p.",1,1,null,null,null,null,null,null,null,null,null,"833045","Alquiler y arrendamiento de equipos de computación y máquinas de oficina,cálculo, y contabilidad (sin personal)","1","1","Rev 2"]
[63,"269110 - Fabricación de artículos sanitarios de cerámica",1,1,null,null,null,null,null,null,null,null,null,"831026","Alquiler y arrendamiento de inmuebles propios exclusivamente (incluye salones para fiestas, residencias, etc )","1","1","Rev 2"]
[64,"269191 - Fabricación de objetos cerámicos para uso industrial y de laboratorio",1,1,null,null,null,null,null,null,null,null,null,"833029","Alquiler y arrendamiento de maquinaria y equipo agrícola (sin personal)","1","4","Rev 2"]
[65,"269192 - Fabricación de objetos cerámicos para uso doméstico excepto artefactos sanitarios",1,1,null,null,null,null,null,null,null,null,null,"833037","Alquiler y arrendamiento de maquinaria y equipo minero y petrolero (sin personal)","1","5","Rev 2"]
[66,"269193 - Fabricación de objetos cerámicos excepto revestimientos de pisos y paredes n.c.p.",1,1,null,null,null,null,null,null,null,null,null,"833053","Alquiler y arrendamiento de maquinaria y equipo no clasificados en otra parte","1","5","Rev 2"]
[67,"269200 - Fabricación de productos de cerámica refractaria",1,1,null,null,null,null,null,null,null,null,null,"833010","Alquiler y arrendamiento de maquinaria y equipo para la manufactura y la construcción (sin personal)","1","4","Rev 2"]
[68,"269301 - Fabricación de ladrillos ",1,1,null,null,null,null,null,null,null,null,null,"14910","Apicultura","1","2","Rev 4"]
[69,"269302 - Fabricación de revestimientos cerámicos ",1,1,null,null,null,null,null,null,null,null,null,"111236","Apicultura","1","2","Rev 2"]
[70,"269309 - Fabricación de productos de arcilla y cerámica no refractaria para uso estructural n.c.p. ",1,1,null,null,null,null,null,null,null,null,null,"12230","Apicultura (Incluye la producción de miel, jalea real, polen, propóleo, etc.)","1","2","Rev3"]
[71,"269410 - Elaboración de cemento",2,5,null,null,null,null,null,null,null,null,null,"649100","Arrendamiento financiero, leasing","1","1","Rev 4"]
[72,"269421 - Elaboración de yeso",2,5,null,null,null,null,null,null,null,null,null,"774000","Arrendamiento y gestión de bienes intangibles no financieros","1","1","Rev 4"]
[73,"269422 - Elaboración de cal",2,5,null,null,null,null,null,null,null,null,null,"201000","Aserrado y cepillado de madera","2","2",null,"Comprendido Res 177/07 y Mod"]
[74,"269510 - Fabricación de mosaicos",1,1,null,null,null,null,null,null,null,null,null,"161002","Aserrado y cepillado de madera implantada","2","2","Rev 4","Comprendido Res 177/07 y Mod"]
[75,"269591 - Fabricación de artículos de cemento y fibrocemento",1,1,null,null,null,null,null,null,null,null,null,"161001","Aserrado y cepillado de madera nativa","2","2","Rev 4","Comprendido Res 177/07 y Mod"]
[76,"269592 - Fabricación de premoldeadas para la construcción",1,1,null,null,null,null,null,null,null,null,null,"420018","Capacitación, purificación y distribución de agua.","2","4","Rev 2","Comprendido Res 177/07 y Mod"]
[77,"269600 - Corte, tallado y acabado de la piedra",1,1,null,null,null,null,null,null,null,null,null,"360010","Captación, depuración y distribución de agua de fuentes subterráneas","2","4","Rev 4","Comprendido Res 177/07 y Mod"]
[78,"269910 - Elaboración primaria n.c.p. de minerales no metálicos",1,1,null,null,null,null,null,null,null,null,null,"410010","Captación, depuración y distribución de agua de fuentes subterráneas","2","4","Rev3","Comprendido Res 177/07 y Mod"]
[79,"269990 - Fabricación de productos minerales no metálicos n.c.p.",1,1,null,null,null,null,null,null,null,null,null,"360020","Captación, depuración y distribución de agua de fuentes superficiales","2","4","Rev 4","Comprendido Res 177/07 y Mod"]
[80,"271001 - Fundición en altos hornos y acerías. Producción de lingotes, planchas o barras",3,10,null,null,null,null,null,null,null,null,null,"410020","Captación, depuración y distribución de agua de fuentes superficiales","2","4","Rev3","Comprendido Res 177/07 y Mod"]
[81,"271002 - Laminación y estirado",3,10,null,null,null,null,null,null,null,null,null,"15010","Caza  y captura de animales vivos y repoblación  de animales de caza  (Incluye la caza de animales para obtener carne, pieles y cueros y la captura de animales vivos para zoológicos, animales de compañía, para investigación, etc.)","1","2","Rev3"]
[82,"271009 - Fabricación en industrias básicas de productos de hierro y acero n.c.p.",3,10,null,null,null,null,null,null,null,null,null,"113018","Caza ordinaria y mediante trampas y repoblación de animales","1","2","Rev 2"]
[83,"272010 - Elaboración de aluminio primario y semielaborados de aluminio",3,10,null,null,null,null,null,null,null,null,null,"17010","Caza y repoblación de animales de caza","1","2","Rev 4"]
[84,"272090 - Producción de metales no ferrosos n.c.p. y sus semielaborados",3,10,null,null,null,null,null,null,null,null,null,"500127","Colocación de carpintería y herrería de obra, vidrios y cerramientos.","1","2","Rev 2"]
[85,"273100 - Fundición de hierro y acero",3,10,null,null,null,null,null,null,null,null,null,"433030","Colocación de cristales en obra","1","2","Rev 4"]
[86,"273200 - Fundición de metales no ferrosos",3,10,null,null,null,null,null,null,null,null,null,"454300","Colocación de cristales en obra (Incluye la instalación y revestimiento de vidrio, espejos y otros artículos de vidrio, etc.)","1","2","Rev3"]
[87,"281101 - Fabricación de carpintería metálica",2,5,null,null,null,null,null,null,null,null,null,"500119","Colocación de cubiertas asfálticas y techos.","1","4","Rev 2"]
[88,"281102 - Fabricación de estructuras metálicas para la construcción",2,5,null,null,null,null,null,null,null,null,null,"500143","Colocación y pulido de pisos y revestimientos de mosaico, mármol, cerámicos y similares.","1","2","Rev 2"]
[89,"281200 - Fabricación de tanques, depósitos y recipientes de metal",2,5,null,null,null,null,null,null,null,null,null,"351310","Comercio mayorista de energía eléctrica","1","5","Rev 4"]
[90,"281300 - Fabricación de generadores de vapor",2,5,null,null,null,null,null,null,null,null,null,"941514","Composición y representación de obras teatrales y canciones. Autores, compositores y artistas","1","2","Rev 2"]
[91,"289100 - Forjado, prensado, estampado y laminado de metales; pulvimetalurgia",2,5,null,null,null,null,null,null,null,null,null,"900021","Composición y representación de obras teatrales, musicales y artísticas","1","2","Rev 4"]
[92,"289200 - Tratamiento y revestimiento de metales; obras de ingeniería mecánica en general realizadas a cambio de una retribución o por contrata",2,5,null,null,null,null,null,null,null,null,null,"921420","Composición y representación de obras teatrales, musicales y artísticas  (Incluye a compositores, actores, músicos, conferencistas, pintores, artistas plásticos etc.)","1","2","Rev3"]
[93,"289301 - Fabricación de herramientas manuales y sus accesorios",2,5,null,null,null,null,null,null,null,null,null,"720097","Comunicaciones no clasificadas en otra parte","1","2","Rev 2"]
[94,"289302 - Fabricación de artículos de cuchillería y utensillos de mesa y de cocina",2,5,null,null,null,null,null,null,null,null,null,"720011","Comunicaciones por correo, telégrafo y télex","1","3","Rev 2"]
[95,"289309 - Fabricación de cerraduras, herrajes y artículos de ferretería n.c.p.",2,5,null,null,null,null,null,null,null,null,null,"720038","Comunicaciones por radio excepto radiodifusión y televisión","1","2","Rev 2"]
[96,"289910 - Fabricación de envases metálicos",2,5,null,null,null,null,null,null,null,null,null,"720046","Comunicaciones telefónicas","1","2","Rev 2"]
[97,"289991 - Fabricación de tejidos de alambre",2,5,null,null,null,null,null,null,null,null,null,"181120","Confección de indumentaria de trabajo, uniformes, guardapolvos y sus accesorios","1","3","Rev3"]
[98,"289992 - Fabricación de cajas de seguridad",2,5,null,null,null,null,null,null,null,null,null,"181130","Confección de indumentaria para bebés y niños","1","3","Rev3"]
[99,"289993 - Fabricación de productos metálicos de tornería y/o matricería",2,5,null,null,null,null,null,null,null,null,null,"181191","Confección de pilotos e impermeables","1","3","Rev3"]
[100,"289999 - Fabricación de productos metálicos n.c.p.",2,5,null,null,null,null,null,null,null,null,null,"141202","Confección de prendas de vestir de cuero","1","3","Rev 4"]
[101,"291100 - Fabricación de motores y turbinas, excepto motores para aeronaves, vehículos automotores y motocicletas",2,5,null,null,null,null,null,null,null,null,null,"181202","Confección de prendas de vestir de cuero","1","3","Rev3"]
[102,"291200 - Fabricación de bombas; compresores; grifos y válvulas",2,5,null,null,null,null,null,null,null,null,null,"322032","Confección de prendas de vestir de cuero y sucedáneos","1","3","Rev 2"]
[103,"291300 - Fabricación de cojinetes; engranajes; trenes de engranaje y piezas de transmisión",2,5,null,null,null,null,null,null,null,null,null,"182001","Confección de prendas de vestir de piel y sucedáneos","1","3","Rev3"]
[104,"291400 - Fabricación de hornos; hogares y quemadores",2,5,null,null,null,null,null,null,null,null,null,"322016","Confección de prendas de vestir excepto las de piel, cuero  y sucedáneos, pilotos e impermeables .","1","3","Rev 2"]
[105,"291500 - Fabricación de equipo de elevación y manipulación",2,5,null,null,null,null,null,null,null,null,null,"181199","Confección de prendas de vestir n.c.p., excepto las de piel, cuero y sucedáneos, pilotos e impermeables","1","3","Rev3"]
[106,"291900 - Fabricación de maquinaria de uso general n.c.p.",2,5,null,null,null,null,null,null,null,null,null,"141199","Confección de prendas de vestir n.c.p., excepto prendas de piel, cuero y de punto","1","3","Rev 4"]
[107,"292110 - Fabricación de tractores",2,5,null,null,null,null,null,null,null,null,null,"141130","Confección de prendas de vestir para bebés y niños","1","3","Rev 4"]
[108,"292190 - Fabricación de maquinaria agropecuaria y forestal, excepto tractores",2,5,null,null,null,null,null,null,null,null,null,"141140","Confección de prendas deportivas","1","3","Rev 4"]
[109,"292200 - Fabricación de máquinas herramienta",2,5,null,null,null,null,null,null,null,null,null,"141120","Confección de ropa de trabajo, uniformes y guardapolvos","1","3","Rev 4"]
[110,"292300 - Fabricación de maquinaria metalúrgica",2,5,null,null,null,null,null,null,null,null,null,"141110","Confección de ropa interior, prendas para dormir y para la playa","1","3","Rev 4"]
[111,"292400 - Fabricación de maquinaria para la explotación de minas y canteras y para obras de construcción",2,5,null,null,null,null,null,null,null,null,null,"181110","Confección de ropa interior, prendas para dormir y para la playa","1","3","Rev3"]
[112,"292500 - Fabricación de maquinaria para la elaboración de alimentos, bebidas y tabaco",2,5,null,null,null,null,null,null,null,null,null,"999998","Construcción de grandes obras de infraestructura","",0,"Rev3","Res 481/2011"]
[113,"292600 - Fabricación de maquinaria para la elaboración de productos textiles, prendas de vestir y cueros",2,5,null,null,null,null,null,null,null,null,null,"384216","Construcción de maquinaria y equipo ferrroviario","2","4","Rev 2","Comprendido Res 177/07 y Mod"]
[114,"292700 - Fabricación de armas y municiones",2,5,null,null,null,null,null,null,null,null,null,"384119","Construcción de motores y piezas para navíos","3","4","Rev 2","Comprendido Res 177/07 y Mod"]
[115,"292901 - Fabricación de maquinaria para la industria del papel y las artes gráficas",2,5,null,null,null,null,null,null,null,null,null,"429090","Construcción de obras de ingeniería civil n.c.p.","1","5","Rev 4"]
[116,"292909 - Fabricación de maquinaria de uso especial n.c.p.",2,5,null,null,null,null,null,null,null,null,null,"301100","Construcción y reparación de buques","3","4","Rev 4","Comprendido Res 177/07 y Mod"]
[117,"293010 - Fabricación de cocinas, calefones, estufas y calefactores de uso doméstico no eléctricos",2,5,null,null,null,null,null,null,null,null,null,"351100","Construcción y reparación de buques y embarcaciones n.c.p. (Incluye construcción de motores y piezas para navíos, etc.)","3","4","Rev3","Comprendido Res 177/07 y Mod"]
[118,"293020 - Fabricación de heladeras, \"freezers\", lavarropas y secarropas",2,5,null,null,null,null,null,null,null,null,null,"301200","Construcción y reparación de embarcaciones de recreo y deporte","2","4","Rev 4","Comprendido Res 177/07 y Mod"]
[119,"293091 - Fabricación de máquinas de coser y tejer",2,5,null,null,null,null,null,null,null,null,null,"351200","Construcción y reparación de embarcaciones de recreo y deporte","2","4",null,"Comprendido Res 177/07 y Mod"]
[120,"293092 - Fabricación de ventiladores, extractores y acondicionadores de aire, aspiradoras y similares",2,5,null,null,null,null,null,null,null,null,null,"384127","Construcción y reparación de embarcaciones excepto las de caucho","2","4","Rev 2","Comprendido Res 177/07 y Mod"]
[121,"293093 - Fabricación de enceradoras, pulidoras, batidoras, licuadoras y similares",2,5,null,null,null,null,null,null,null,null,null,"500011","Construcción, reforma o reparación de calles, carretera, puentes, viaductos, vias férreas, puertos, aeropuertos, centrales hidroeléctricas y otras, gasoductos, trabajos marítimos y demás construcciones pesadas.","1","4","Rev 2"]
[122,"293094 - Fabricación de planchas, calefactores, hornos eléctricos, tostadoras y otros aparatos generadores de calor",2,5,null,null,null,null,null,null,null,null,null,"500038","Construcción, reforma o reparación de edificios.","1","2","Rev 2"]
[123,"293095 - Fabricación de artefactos para iluminación excepto los eléctricos",2,5,null,null,null,null,null,null,null,null,null,"410021","Construcción, reforma y reparación de edificios no residenciales","1","3","Rev 4"]
[124,"293099 - Fabricación de aparatos y accesorios eléctricos n.c.p.",2,5,null,null,null,null,null,null,null,null,null,"452200","Construcción, reforma y reparación de edificios no residenciales (Incluye construcción, reforma y reparación de restaurantes, bares, campamentos, bancos, oficinas, galerías comerciales, estaciones de servicio, edificios para tráfico y comunicaciones, gar","1","3","Rev3"]
[125,"311000 - Fabricación de motores, generadores y transformadores eléctricos",2,5,null,null,null,null,null,null,null,null,null,"410011","Construcción, reforma y reparación de edificios residenciales","1","2","Rev 4"]
[126,"312000 - Fabricación de aparatos de distribución y control de la energía eléctrica",2,5,null,null,null,null,null,null,null,null,null,"452100","Construcción, reforma y reparación de edificios residenciales (Incluye la construcción, reforma y reparación  de viviendas unifamiliares y multifamiliares; bungalows, cabañas, casas de campo, departamentos, albergues para ancianos, niños, estudiantes, et","1","2","Rev3"]
[127,"313000 - Fabricación de hilos y cables aislados",2,5,null,null,null,null,null,null,null,null,null,"452390","Construcción, reforma y reparación de obras de infraestructura del transporte n.c.p (Incluye la construcción, reforma y reparación de calles, autopistas, carreteras, puentes, túneles, vías férreas y pistas de aterrizaje, la señalización mediante pintura,","1","4","Rev3"]
[128,"314000 - Fabricación de acumuladores y de pilas y baterías primarias",2,5,null,null,null,null,null,null,null,null,null,"421000","Construcción, reforma y reparación de obras de infraestructura para el transporte","1","4","Rev 4"]
[129,"315000 - Fabricación de lámparas eléctricas y equipo de iluminación",2,5,null,null,null,null,null,null,null,null,null,"429010","Construcción, reforma y reparación de obras hidráulicas","1","5","Rev 4"]
[130,"319000 - Fabricación de equipo eléctrico n.c.p.",2,5,null,null,null,null,null,null,null,null,null,"452310","Construcción, reforma y reparación de obras hidráulicas (Incluye obras fluviales y canales, acueductos, diques, etc.)","1","5","Rev3"]
[131,"321000 - Fabricación de tubos, válvulas y otros componentes electrónicos ",2,5,null,null,null,null,null,null,null,null,null,"452400","Construcción, reforma y reparación de redes (Incluye  la construcción, reforma y reparación de redes de electricidad, de gas, de agua, de telecomunicaciones, etc.)","1","5","Rev3"]
[132,"322000 - Fabricación de transmisores de radio y televisión y de aparatos para telefonía y telegrafía con hilos",2,5,null,null,null,null,null,null,null,null,null,"422200","Construcción, reforma y reparación de redes distribución de electricidad, gas, agua, telecomunicaciones y de otros servicios públicos","1","5","Rev 4"]
[133,"323000 - Fabricación de receptores de radio y televisión, aparatos de grabación y reproducción de sonido y video, y productos conexos",2,5,null,null,null,null,null,null,null,null,null,"122017","Corte, desbaste de troncos y madera en bruto ","1","3","Rev 2"]
[134,"341000 - Fabricación de vehículos automotores",2,5,null,null,null,null,null,null,null,null,null,"239600","Corte, tallado y acabado de la piedra","1","3","Rev 4"]
[135,"342000 - Fabricación de carrocerías para vehículos automotores; fabricación de remolques y semirremolques",2,5,null,null,null,null,null,null,null,null,null,"269600","Corte, tallado y acabado de la piedra (Incluye mármoles y granitos, etc.)","1","3","Rev3"]
[136,"343000 - Fabricación de partes; piezas y accesorios para vehículos automotores y sus motores",2,5,null,null,null,null,null,null,null,null,null,"112046","Cosecha y recolección de cultivos","1","2","Rev 2"]
[137,"351100 - Construcción y reparación de buques",3,10,null,null,null,null,null,null,null,null,null,"111139","Cría de animales de pedigri excepto equino. Cabañas","1","2","Rev 2"]
[138,"351200 - Construcción y reparación de embarcaciones de recreo y deporte",2,5,null,null,null,null,null,null,null,null,null,"12242","Cría de animales para la obtención de pelos","1","2","Rev3"]
[139,"352000 - Fabricación de locomotoras y de material rodante para ferrocarriles y tranvías",2,5,null,null,null,null,null,null,null,null,null,"12241","Cría de animales para la obtención de pieles y cueros","1","2","Rev3"]
[140,"353000 - Fabricación y reparación de aeronaves ",2,5,null,null,null,null,null,null,null,null,null,"12243","Cría de animales para la obtención de plumas","1","2","Rev3"]
[141,"359100 - Fabricación de motocicletas",2,5,null,null,null,null,null,null,null,null,null,"14930","Cría de animales pelíferos, pilíferos y plumíferos, excepto de las especies ganaderas","1","2","Rev 4"]
[142,"359200 - Fabricación de bicicletas y de sillones de ruedas para inválidos",1,1,null,null,null,null,null,null,null,null,null,"14990","Cría de animales y obtención de productos de origen animal, n.c.p.","1","2","Rev 4"]
[143,"371000 - Reciclamiento de desperdicios y desechos metálicos",2,5,null,null,null,null,null,null,null,null,null,"12290","Cría de animales y obtención de productos de origen animal, n.c.p. (Incluye ciervo, conejo -excepto para pelos-, gato, gusano de seda, lombriz, pájaro, perro, rana, animales para experimentación, caracoles vivos, frescos, congelados y secos -excepto mari","1","2","Rev3"]
[144,"372000 - Reciclamiento de desperdicios y desechos no metálicos",2,5,null,null,null,null,null,null,null,null,null,"14810","Cría de aves de corral, excepto para la producción de huevos","1","2","Rev 4"]
[145,"401110 - Generación de energía térmica convencional",3,10,null,null,null,null,null,null,null,null,null,"12211","Cría de aves para producción de carne","1","2"]
[146,"401130 - Generación de energía hidráulica",1,1,null,null,null,null,null,null,null,null,null,"111201","Cría de aves para producción de carnes","1","2","Rev 2"]
[147,"401190 - Generación de energía n.c.p.",1,1,null,null,null,null,null,null,null,null,null,"12212","Cría de aves para producción de huevos (Incluye pollitos BB para postura)","1","2","Rev3"]
[148,"401200 - Transporte de energía eléctrica",2,5,null,null,null,null,null,null,null,null,null,"14300","Cría de camélidos","1","2","Rev 4"]
[149,"401300 - Distribución de energía eléctrica",2,5,null,null,null,null,null,null,null,null,null,"111112","Cría de ganado bovino","1","2","Rev 2"]
[150,"402001 - Fabricación y distribución de gas",2,5,null,null,null,null,null,null,null,null,null,"12161","Cría de ganado bovino en cabañas (Incluye la producción de semen)","1","2","Rev3"]
[151,"402009 - Fabricación y distribución de combustibles gaseosos n.c.p.",2,5,null,null,null,null,null,null,null,null,null,"12111","Cría de ganado bovino -excepto en cabañas y para la producción de leche-","1","2","Rev3"]
[152,"410010 - Captación, depuración y distribución de agua de fuentes subterráneas",2,5,null,null,null,null,null,null,null,null,null,"14121","Cría de ganado bovino realizada en cabañas","1","2","Rev 4"]
[153,"410020 - Captación, depuración y distribución de agua de fuentes superficiales",2,5,null,null,null,null,null,null,null,null,null,"14113","Cría de ganado bovino, excepto la realizada en cabañas y para la producción de leche","1","2","Rev 4"]
[154,"505000 - Venta al por menor de combustible para vehículos automotores y motocicletas",3,10,null,null,null,null,null,null,null,null,null,"14430","Cría de ganado caprino -excepto la realizada en cabañas y para producción de pelos y de leche-","1","2","Rev 4"]
[155,"851110 - Servicios de internación",1,1,null,null,null,null,null,null,null,null,null,"14440","Cría de ganado caprino realizada en cabañas","1","2","Rev 4"]
[156,"851400 - Servicios de diagnóstico",1,1,null,null,null,null,null,null,null,null,null,"12150","Cría de ganado caprino, excepto en cabañas y para producción de leche","1","2","Rev3"]
[157,"900010 - Recolección, reducción y eliminación de desperdicios",3,10,null,null,null,null,null,null,null,null,null,"12163","Cría de ganado equino en haras (Incluye la producción de semen)","1","2","Rev3"]
[158,"900020 - Servicios de depuración de aguas residuales, alcantarillado y cloacas",3,10,null,null,null,null,null,null,null,null,null,"14221","Cría de ganado equino realizada en haras","1","2","Rev 4"]
[159,"900090 - Servicios de saneamiento público n.c.p.",2,5,null,null,null,null,null,null,null,null,null,"12140","Cría de ganado equino, excepto en haras (Incluye equinos de trabajo)","1","2","Rev3"]
[160,"999999 - Depósitos de gases, hidrocarburos y sus derivados, y productos químicos (Item 28.1.)",3,10,null,null,null,null,null,null,null,null,null,"14211","Cría de ganado equino, excepto la realizada en haras","1","2","Rev 4"]
[161,"999999 - Construcción de grandes obras de infraestructura (Item 28.2.)",3,10,null,null,null,null,null,null,null,null,null,"111147","Cría de ganado equino. Haras","1","2","Rev 2"]
[162,"999999 - Toda otra actividad que elabore o manipule sustancias inflamables, tóxicas, corrosivas, de alta reactividad química, infecciosas, teratogénicas, mutagénicas, carcinógenas o radioactivas (Item 28.3.)",3,10,null,null,null,null,null,null,null,null,null,"12190","Cría de ganado n.c.p. (Incluye la cría de alpaca, asno, búfalo, guanaco, llama, mula, vicuña, etc.)","1","2","Rev3"]
[null,null,null,null,1,null,null,null,null,null,null,null,null,"14410","Cría de ganado ovino -excepto en cabañas y para la producción de lana y leche-","1","2","Rev 4"]
[null,null,null,null,null,null,null,null,null,null,null,null,null,"14420","Cría de ganado ovino realizada en cabañas","1","2","Rev 4"]
[1,null,null,null,null,null,"  ",null,null,null,null,null,null,"111163","Cría de ganado ovino y su explotación lanera","1","2","Rev 2"]
[2,"SUST. PELIGROSAS (RES.1639/07) + GENERADORA RESIDUOS PELIGROSOS O ESPECIALES",3,10,null,null,"RES. 481/2011 - El Establecimiento acopia sustancias peligrosas (incluyendo residuos peligrosos) por encima de los niveles de umbral establecidos en el Anexo II de la Res. 1639/07 y además está obligado a cumplir con la inscripción como generadora de residuos peligrosos o especiales por la normativa de la jurisdicción. ACOPIO: cantidad máxima cualquier día del año.",null,null,null,null,null,null,"12120","Cría de ganado ovino, excepto en cabañas y para la  producción de lana","1","2","Rev3"]
[3,"REGULADO POR SECRETARÍA DE ENERGÍA + GENERADORA RESIDUOS PELIGROSOS O ESPECIALES",3,10,null,null,"RES. 481/2011 - El Establecimiento debe cumplir con requerimientos regulatorios de la Secretaría de Energía para el almacenamiento de combustibles y además está obligado a cumplir con la inscripción como generadora de residuos peligrosos o especiales por la normativa de la jurisdicción",null,null,null,null,null,null,"12162","Cría de ganado ovino, porcino y caprino en cabañas (Incluye la producción de semen)","1","2","Rev3"]
[4,"25m³ Ó MAS DE SUSTANCIAS PELIGROSAS Y/O RESIDUOS PELIGROSOS",3,10,null,null,"RES. 481/2011 - El Establecimiento acopia un volumen igual o superior a 25m³ de sustancias peligrosas o sus mezclas líquidas o semisólidas (incluidos residuos de éstas clasificados como peligrosos o especiales por la normativa jurisdiccional). ACOPIO: cantidad máxima cualquier día del año.",null,null,null,null,null,null,"111171","Cría de ganado porcino ","1","2","Rev 2"]
[5,"1m³ Ó MAS DE SUSTANCIAS PELIGROSAS DE ELIMINACIÓN PROGRAMADA",3,10,null,null,"RES. 481/2011 - El Establecimiento acopia una cantidad igual o superior a 1m³ de sustancias o sus mezclas (incluidos los residuos) de eliminación programada por normativa específica para la sustancia, en cualquier estado de agregación. ACOPIO: cantidad máxima cualquier día del año.",null,null,null,null,null,null,"14520","Cría de ganado porcino realizado en cabañas","1","2","Rev 4"]
[6,"EXPLOSIVOS",3,10,null,null,"RES. 481/2011 - El Establecimiento acopia explosivos o mezclas que los contengan, reguladas por autoridad competente en la materia. ACOPIO: cantidad máxima cualquier día del año.",null,null,null,null,null,null,"12130","Cría de ganado porcino, excepto en cabañas","1","2","Rev3"]
[7,"GRUPO 3 DETERMINADO POR LA AUTORIDAD AMBIENTAL COMPETENTE",3,10,null,null,"RES. 481/2011 - El Establecimiento tiene una asignación en el grupo 3 en base a un criterio sitio específico determinado por la Autoridad Ambiental competente de la Jurisdicción",null,null,null,null,null,null,"14510","Cría de ganado porcino, excepto la realizada en cabañas","1","2","Rev 4"]
[8,"NO ES GRUPO 3 Y ACOPIA 10 m³ Ó MAS DE SUSTANCIAS PELIGROSAS",2,5,null,null,"RES. 481/2011 - El Establecimiento no está comprendido en el grupo 3 y acopia sustancias peligrosas o sus mezclas (incluidos residuos peligrosos o especiales clasificados como tales por la normativa jurisdiccional) en cualquier estado de agrgación, en volumen igual o superior a 10 m³. ACOPIO: cantidad máxima cualquier día del año.",null,null,null,null,null,null,"12169","Cría en cabañas de ganado n.c.p.","1","2","Rev3"]
[9,"NO ES GRUPO 3 Y ACOPIA 50 KG. Ó MAS DE SUSTANCIAS PELIGROSAS DE ELIMINACIÓN PROGRAMADA",2,5,null,null,"RES. 481/2011 - El Establecimiento no está comprendido en el grupo 3 y acopia una cantidad igual o superior a 50 kg de peso bruto de sustancias o sus mezclas (incluidos los residuos) de eliminación programada por normativa específica para la sustancia, en cualquier estado de agregación. ACOPIO: cantidad máxima cualquier día del año.",null,null,null,null,null,null,"111244","Cría y explotación de animales no clasificados en otra parte (incluye ganado caprino, otros animales de granja y su explotación, etc.)","1","2","Rev 2"]
[10,"NO ES GRUPO 3 Y ACOPIA 1 m³ Ó MAS DE SUSTANCIAS MUY TÓXICAS (Res. 1639/2007)",2,5,null,null,"RES. 481/2011 - El Establecimiento no está comprendido en el grupo 3 y acopia sustancias y sus mezclas (incluidos los residuos) MUY TOXICAS - clasificación de toxicidad aguda de la Parte 2 del Anexo II de la Res. 1639/07 - en volumen igual o superior a 1m³. ACOPIO: cantidad máxima cualquier día del año.",null,null,null,null,null,null,"111228","Cría y explotación de aves para producción de huevos","1","2","Rev 2"]
[11,"GRUPO 2 DETERMINADO POR LA AUTORIDAD AMBIENTAL COMPETENTE",2,5,null,null,"RES. 481/2011 - El Establecimiento tiene una asignación en el grupo 2 en base a un criterio sitio específico determinado por la Autoridad Ambiental competente de la Jurisdicción",null,null,null,null,null,null,"11411","Cultivo de algodón","1","2","Rev3"]
[12,"ACTIV. INDUSTRIAL/SERVICIO NO INCLUIDA EN GRUPOS 3 Y 2 + GENERADORA RESIDUOS PELIGROSOS O ESPECIALES",1,1,null,null,"RES. 481/2011 - Toda otra actividad industrial o de servicio no incluida en los grupos 3 y 2 que esté obligada a cumplir con la inscripción como generadora de residuos peligrosos o especiales según la normativa de la jurisdicción",null,null,null,null,null,null,"11501","Cultivo de algodón","1","2","Rev 4"]
[13,"GRUPO 1 DETERMINADO POR LA AUTORIDAD AMBIENTAL COMPETENTE",1,1,null,null,"RES. 481/2011 - El Establecimiento tiene una asignación en el grupo 1 en base a un criterio sitio específico determinado por la Autoridad Ambiental competente de la Jurisdicción",null,null,null,null,null,null,"111333","Cultivo de algodón","1","2","Rev 2"]
[null,null,null,null,null,null,null,null,null,null,null,null,null,"11111","Cultivo de arroz","1","2"]
[null,null,null,null,null,null,null,null,null,null,null,null,null,"111309","Cultivo de arroz","1","2","Rev 2"]
[null,null,null,null,null,null,null,null,null,null,null,null,null,"11329","Cultivo de bulbos, brotes, raíces y hortalizas de fruto n.c.p.","1","2","Rev 4"]
[null,null,null,null,null,null,null,null,null,null,null,null,null,"11229","Cultivo de bulbos, brotes, raíces y hortalizas de frutos n.c.p.(Incluye los cultivos de oleaginosas para aceites comestibles y/o uso industrial: cártamo, colza, jojoba, lino oleaginoso, maní, olivo para aceite, ricino, sésamo, tung, etc.)","1","2","Rev3"]
[null,null,null,null,null,null,null,null,null,null,null,null,null,"11421","Cultivo de caña de azúcar","1","2","Rev3"]
[null,null,null,null,null,null,null,null,null,null,null,null,null,"12510","Cultivo de caña de azúcar","1","2","Rev 4"]
[null,null,null,null,null,null,null,null,null,null,null,null,null,"111341","Cultivo de caña de azúcar con maquinarias ","1","2","Rev 2"]
[null,null,null,null,null,null,null,null,null,null,null,null,null,"111325","Cultivo de cereales excepto arroz, oleaginosas excepto soja y forrajeras no clasificados en otra parte","1","2","Rev 2"]
[null,null,null,null,null,null,null,null,null,null,null,null,null,"11119","Cultivo de cereales excepto los forrajeros y  las semillas n.c.p. (Incluye alforfón, cebada cervecera, etc.)","1","2","Rev3"]
[null,null,null,null,null,null,null,null,null,null,null,null,null,"11129","Cultivo de cereales forrajeros n.c.p. (Incluye alpiste, avena, cebada forrajera, centeno, mijo, etc.)","1","2","Rev3"]
[null,null,null,null,null,null,null,null,null,null,null,null,null,"111260","Cultivo de cítricos","1","2","Rev 2"]
[null,null,null,null,null,null,null,null,null,null,null,null,null,"11460","Cultivo de especias (de hoja, de semilla, de flor y de fruto) y de plantas aromáticas y medicinales","1","2","Rev3"]
[null,null,null,null,null,null,null,null,null,null,null,null,null,"12800","Cultivo de especias y de plantas aromáticas y medicinales","1","2","Rev 4"]
[null,null,null,null,null,null,null,null,null,null,null,null,null,"11251","Cultivo de flores","1","2","Rev3"]
[null,null,null,null,null,null,null,null,null,null,null,null,null,"11911","Cultivo de flores","1","2","Rev 4"]
[null,null,null,null,null,null,null,null,null,null,null,null,null,"111414","Cultivo de flores y plantas de ornamentación. Viveros e invernaderos.","1","2","Rev 2"]
[null,null,null,null,null,null,null,null,null,null,null,null,null,"12200","Cultivo de frutas cítricas","1","2","Rev 4"]
[null,null,null,null,null,null,null,null,null,null,null,null,null,"11330","Cultivo de frutas cítricas (Incluye bergamota, lima, limón, mandarina, naranja, pomelo, kinoto, etc.)","1","2","Rev3"]
[null,null,null,null,null,null,null,null,null,null,null,null,null,"12320","Cultivo de frutas de carozo","1","2","Rev 4"]
[null,null,null,null,null,null,null,null,null,null,null,null,null,"11320","Cultivo de frutas de carozo (Incluye cereza, ciruela, damasco, durazno, pelón, etc.)","1","2","Rev3"]
[null,null,null,null,null,null,null,null,null,null,null,null,null,"12319","Cultivo de frutas de pepita n.c.p.","1","2","Rev 4"]
[null,null,null,null,null,null,null,null,null,null,null,null,null,"11319","Cultivo de frutas de pepita n.c.p. (Incluye membrillo, níspero, etc.)","1","2"]
[null,null,null,null,null,null,null,null,null,null,null,null,null,"12490","Cultivo de frutas n.c.p.","1","2","Rev 4"]
[null,null,null,null,null,null,null,null,null,null,null,null,null,"11390","Cultivo de frutas n.c.p. (Incluye ananá, banana, higo, kiwi, mamón, palta, uva de mesa, etc.)","1","2","Rev3"]
[null,null,null,null,null,null,null,null,null,null,null,null,null,"12420","Cultivo de frutas secas","1","2","Rev 4"]
[null,null,null,null,null,null,null,null,null,null,null,null,null,"12410","Cultivo de frutas tropicales y subtropicales","1","2","Rev 4"]
[null,null,null,null,null,null,null,null,null,null,null,null,null,"12600","Cultivo de frutos oleaginosos","1","2","Rev 4"]
[null,null,null,null,null,null,null,null,null,null,null,null,null,"11132","Cultivo de girasol","1","2","Rev3"]
[null,null,null,null,null,null,null,null,null,null,null,null,null,"11291","Cultivo de girasol","1","2","Rev 4"]
[null,null,null,null,null,null,null,null,null,null,null,null,null,"11331","Cultivo de hortalizas de hoja y de otras hortalizas frescas","1","2","Rev 4"]
[null,null,null,null,null,null,null,null,null,null,null,null,null,"11230","Cultivo de hortalizas de hoja y de otras hortalizas frescas (Incluye acelga, apio, cebolla de verdeo, choclo, coles, espinaca, lechuga, perejil, radicheta, repollo, etc.)","1","2","Rev3"]
[null,null,null,null,null,null,null,null,null,null,null,null,null,"111406","Cultivo de hortalizas y legumbres no clasificados en otra parte","1","2","Rev 2"]
[null,null,null,null,null,null,null,null,null,null,null,null,null,"11341","Cultivo de legumbres frescas","1","2","Rev 4"]
[null,null,null,null,null,null,null,null,null,null,null,null,null,"11241","Cultivo de legumbres frescas (Incluye arveja, chaucha, haba, lupino, poroto, etc.)","1","2","Rev3"]
[null,null,null,null,null,null,null,null,null,null,null,null,null,"11342","Cultivo de legumbres secas","1","2","Rev 4"]
[null,null,null,null,null,null,null,null,null,null,null,null,null,"11242","Cultivo de legumbres secas (Incluye arveja, garbanzo, haba, lenteja, poroto, etc.)","1","2","Rev3"]
[null,null,null,null,null,null,null,null,null,null,null,null,null,"11121","Cultivo de maíz","1","2","Rev3"]
[null,null,null,null,null,null,null,null,null,null,null,null,null,"11311","Cultivo de manzana y pera","1","2","Rev3"]
[null,null,null,null,null,null,null,null,null,null,null,null,null,"12311","Cultivo de manzana y pera","1","2","Rev 4"]
[null,null,null,null,null,null,null,null,null,null,null,null,null,"111279","Cultivo de manzanas y peras","1","2","Rev 2"]
[null,null,null,null,null,null,null,null,null,null,null,null,null,"11340","Cultivo de nueces y frutas secas (Incluye almendra, avellana, castaña, nuez, pistacho, etc.)","1","2","Rev3"]
[null,null,null,null,null,null,null,null,null,null,null,null,null,"11139","Cultivo de oleaginosas n.c.p. (Incluye los cultivos de oleaginosas para aceites comestibles y/o uso industrial: cártamo, colza, jojoba, lino oleaginoso, maní, olivo para aceite, ricino, sésamo, tung, etc.)","1","2","Rev3"]
[null,null,null,null,null,null,null,null,null,null,null,null,null,"11299","Cultivo de oleaginosas n.c.p. excepto soja y girasol","1","2","Rev 4"]
[null,null,null,null,null,null,null,null,null,null,null,null,null,"11210","Cultivo de papa, batata y mandioca","1","2","Rev3"]
[null,null,null,null,null,null,null,null,null,null,null,null,null,"11310","Cultivo de papa, batata y mandioca","1","2","Rev 4"]
[null,null,null,null,null,null,null,null,null,null,null,null,null,"111384","Cultivo de papas y batatas","1","2","Rev 2"]
[null,null,null,null,null,null,null,null,null,null,null,null,null,"11130","Cultivo de pastos de uso forrajero","1","2","Rev 4"]
[null,null,null,null,null,null,null,null,null,null,null,null,null,"11140","Cultivo de pastos forrajeros  (Incluye alfalfa, moha, pastos consociados, sorgo azucarado y forrajero, etc.)","1","2","Rev3"]
[null,null,null,null,null,null,null,null,null,null,null,null,null,"11252","Cultivo de plantas ornamentales","1","2","Rev3"]
[null,null,null,null,null,null,null,null,null,null,null,null,null,"11912","Cultivo de plantas ornamentales","1","2","Rev 4"]
[null,null,null,null,null,null,null,null,null,null,null,null,null,"11509","Cultivo de plantas para la obtención de fibras n.c.p.","1","2","Rev 4"]
[null,null,null,null,null,null,null,null,null,null,null,null,null,"11419","Cultivo de plantas para la obtención de fibras n.c.p.  (Incluye abacá, cáñamo, formio, lino textil, maíz de Guinea, ramio, yute, etc.)","1","2","Rev3"]
[null,null,null,null,null,null,null,null,null,null,null,null,null,"12590","Cultivo de plantas sacaríferas n.c.p.","1","2","Rev 4"]
[null,null,null,null,null,null,null,null,null,null,null,null,null,"11429","Cultivo de plantas sacaríferas n.c.p. (Incluye remolacha azucarera, etc.)","1","2","Rev3"]
[null,null,null,null,null,null,null,null,null,null,null,null,null,"11131","Cultivo de soja","1","2","Rev3"]
[null,null,null,null,null,null,null,null,null,null,null,null,null,"11211","Cultivo de soja","1","2","Rev 4"]
[null,null,null,null,null,null,null,null,null,null,null,null,null,"111317","Cultivo de soja","1","2","Rev 2"]
[null,null,null,null,null,null,null,null,null,null,null,null,null,"11122","Cultivo de sorgo granífero","1","2","Rev3"]
[null,null,null,null,null,null,null,null,null,null,null,null,null,"11400","Cultivo de tabaco","1","2","Rev 4"]
[null,null,null,null,null,null,null,null,null,null,null,null,null,"11450","Cultivo de tabaco","1","2","Rev3"]
[null,null,null,null,null,null,null,null,null,null,null,null,null,"111376","Cultivo de tabaco","1","2","Rev 2"]
[null,null,null,null,null,null,null,null,null,null,null,null,null,"12709","Cultivo de té y otras plantas cuyas hojas se utilizan para preparar infusiones","1","2","Rev 4"]
[null,null,null,null,null,null,null,null,null,null,null,null,null,"11440","Cultivo de té, yerba mate y otras plantas cuyas hojas se utilizan para preparar bebidas (infusiones)","1","2","Rev3"]
[null,null,null,null,null,null,null,null,null,null,null,null,null,"111368","Cultivo de té, yerba mate y tuna con maquinarias","1","2","Rev 2"]
[null,null,null,null,null,null,null,null,null,null,null,null,null,"11221","Cultivo de tomate","1","2","Rev3"]
[null,null,null,null,null,null,null,null,null,null,null,null,null,"11321","Cultivo de tomate","1","2","Rev 4"]
[null,null,null,null,null,null,null,null,null,null,null,null,null,"111392","Cultivo de tomates","1","2","Rev 2"]
[null,null,null,null,null,null,null,null,null,null,null,null,null,"11112","Cultivo de trigo","1","2","Rev3"]
[null,null,null,null,null,null,null,null,null,null,null,null,null,"12121","Cultivo de uva de mesa","1","2","Rev 4"]
[null,null,null,null,null,null,null,null,null,null,null,null,null,"111252","Cultivo de vid","1","2","Rev 2"]
[null,null,null,null,null,null,null,null,null,null,null,null,null,"11430","Cultivo de vid para vinificar","1","2","Rev3"]
[null,null,null,null,null,null,null,null,null,null,null,null,null,"12110","Cultivo de vid para vinificar","1","2","Rev 4"]
[null,null,null,null,null,null,null,null,null,null,null,null,null,"12701","Cultivo de yerba mate","1","2","Rev 4"]
[null,null,null,null,null,null,null,null,null,null,null,null,null,"111287","Cultivos de frutales no clasificados en otra parte ","1","2","Rev 2"]
[null,null,null,null,null,null,null,null,null,null,null,null,null,"111295","Cultivos de olivos, nogales y de plantas de frutos afines no clasificados en otra parte","1","2","Rev 2"]
[null,null,null,null,null,null,null,null,null,null,null,null,null,"11490","Cultivos industriales n.c.p.(Incluye olivo para conserva, palmitos, etc.)","1","2","Rev3"]
[null,null,null,null,null,null,null,null,null,null,null,null,null,"111481","Cultivos no clasificados en otra parte","1","2","Rev 2"]
[null,null,null,null,null,null,null,null,null,null,null,null,null,"12900","Cultivos perennes n.c.p.","1","2","Rev 4"]
[null,null,null,null,null,null,null,null,null,null,null,null,null,"11990","Cultivos temporales n.c.p.","1","2","Rev 4"]
[null,null,null,null,null,null,null,null,null,null,null,null,null,"14920","Cunicultura","1","2","Rev 4"]
[null,null,null,null,null,null,null,null,null,null,null,null,null,"151100","Curtido y terminación de cueros","3","5","Rev 4","Comprendido Res 177/07 y Mod"]
[null,null,null,null,null,null,null,null,null,null,null,null,null,"191100","Curtido y terminación de cueros","3","5","Rev3","Comprendido Res 177/07 y Mod"]
[null,null,null,null,null,null,null,null,null,null,null,null,null,"323136","Curtido, acabado, repujado y charolado de cuero. Curtiembres y talleres de acabado","3","5","Rev 2","Comprendido Res 177/07 y Mod"]
[null,null,null,null,null,null,null,null,null,null,null,null,null,"500054","Demolición y excavación","1","4","Rev 2"]
[null,null,null,null,null,null,null,null,null,null,null,null,null,"431100","Demolición y voladura de edificios y de sus partes","1","4","Rev 4"]
[null,null,null,null,null,null,null,null,null,null,null,null,null,"451100","Demolición y voladura de edificios y de sus partes  (Incluye los trabajos de limpieza de escombros asociados a la demolición y voladura, las perforaciones asociadas a la preparación del terreno para la construcción de obras, la limpieza del terreno de ma","1","4","Rev3"]
[null,null,null,null,null,null,null,null,null,null,null,null,null,"999997","Depósitos de gases, hidrocarburos y sus derivados, y productos químicos","",0,"Rev3","Res 481/2011"]
[null,null,null,null,null,null,null,null,null,null,null,null,null,"719218","Depósitos y almacenamiento ( incluye cámaras refrigeradoras, etc )","1","4","Rev 2"]
[null,null,null,null,null,null,null,null,null,null,null,null,null,"311626","Descascaramiento, pulido, limpieza y molienda de arroz","1","3","Rev 2"]
[null,null,null,null,null,null,null,null,null,null,null,null,null,"390000","Descontaminación y otros servicios de gestión de residuos","2","5","Rev 4","Comprendido Res 177/07 y Mod"]
[null,null,null,null,null,null,null,null,null,null,null,null,null,"171111","Desmotado de algodón; preparación de fibras de algodón","1","2","Rev3"]
[null,null,null,null,null,null,null,null,null,null,null,null,null,"155110","Destilación de alcohol etílico","2","4","Rev3","Comprendido Res 177/07 y Mod"]
[null,null,null,null,null,null,null,null,null,null,null,null,null,"313122","Destilación de alcohol etílico","2","4","Rev 2","Comprendido Res 177/07 y Mod"]
[null,null,null,null,null,null,null,null,null,null,null,null,null,"313114","Destilación, rectificación y mezcla de bebidas alcohólicas (incluye whisky, cognac, ron, ginebra.etc.)","2","4","Rev 2","Comprendido Res 177/07 y Mod"]
[null,null,null,null,null,null,null,null,null,null,null,null,null,"110100","Destilación, rectificación y mezcla de bebidas espiritosas","2","4","Rev 4","Comprendido Res 177/07 y Mod"]
[null,null,null,null,null,null,null,null,null,null,null,null,null,"155120","Destilación, rectificación y mezcla de bebidas espiritosas","2","4","Rev3","Comprendido Res 177/07 y Mod"]
[null,null,null,null,null,null,null,null,null,null,null,null,null,"352020","Distribución de combustibles gaseosos por tuberías","2","5","Rev 4","Comprendido Res 177/07 y Mod"]
[null,null,null,null,null,null,null,null,null,null,null,null,null,"410144","Distribución de electricidad","2","3","Rev 2","Comprendido Res 177/07 y Mod"]
[null,null,null,null,null,null,null,null,null,null,null,null,null,"351320","Distribución de energía eléctrica","2","3","Rev 4","Comprendido Res 177/07 y Mod"]
[null,null,null,null,null,null,null,null,null,null,null,null,null,"401300","Distribución de energía eléctrica","2","3","Rev3","Comprendido Res 177/07 y Mod"]
[null,null,null,null,null,null,null,null,null,null,null,null,null,"591200","Distribución de filmes y videocintas","1","3","Rev 4"]
[null,null,null,null,null,null,null,null,null,null,null,null,null,"921120","Distribución de filmes y videocintas","1","3","Rev3"]
[null,null,null,null,null,null,null,null,null,null,null,null,null,"410322","Distribución de vapor y agua caliente.","1","3","Rev 2"]
[null,null,null,null,null,null,null,null,null,null,null,null,null,"941212","Distribución y alquiler de películas cinematográficas","1","3","Rev 2"]
[null,null,null,null,null,null,null,null,null,null,null,null,null,"618039","Distribución y venta de componentes, repuestos y accesorios para vehículos","1","3","Rev 2"]
[null,null,null,null,null,null,null,null,null,null,null,null,null,"618012","Distribución y venta de motores , maquinarias, equipos y aparatos industriales(incluye los eléctricos)","1","3","Rev 2"]
[null,null,null,null,null,null,null,null,null,null,null,null,null,"614033","Distribución y venta de papel y productos de papel y cartón excepto envases","1","3","Rev 2"]
[null,null,null,null,null,null,null,null,null,null,null,null,null,"613061","Distribución y venta de prendas de vestir excepto los de cuero (no incluye calzado)","1","2","Rev 2"]
[null,null,null,null,null,null,null,null,null,null,null,null,null,"619108","Distribución y venta de productos en general, Almacenes y supermercados mayoristas","1","3","Rev 2"]
[null,null,null,null,null,null,null,null,null,null,null,null,null,"616087","Distribución y venta de puertas, ventanas y armazones","1","2","Rev 2"]
[null,null,null,null,null,null,null,null,null,null,null,null,null,"615013","Distribución y venta de sustancias químicas industriales y materias primas para la elaboración de plásticos","1","5","Rev 2"]
[null,null,null,null,null,null,null,null,null,null,null,null,null,"581200","Edición de directorios y listas de correos","1","1","Rev 4"]
[null,null,null,null,null,null,null,null,null,null,null,null,null,"221300","Edición de grabaciones","1","2"]
[null,null,null,null,null,null,null,null,null,null,null,null,null,"342041","Edición de libros y publicaciones. Editoriales con talleres propios.","1","2","Rev 2"]
[null,null,null,null,null,null,null,null,null,null,null,null,null,"221100","Edición de libros, folletos, partituras y otras publicaciones","1","2"]
[null,null,null,null,null,null,null,null,null,null,null,null,null,"581100","Edición de libros, folletos, y otras publicaciones","1","2","Rev 4"]
[null,null,null,null,null,null,null,null,null,null,null,null,null,"221200","Edición de periódicos, revistas y publicaciones periódicas","1","2"]
[null,null,null,null,null,null,null,null,null,null,null,null,null,"581300","Edición de periódicos, revistas y publicaciones periódicas","1","2","Rev 4"]
[null,null,null,null,null,null,null,null,null,null,null,null,null,"221900","Edición n.c.p.","1","2"]
[null,null,null,null,null,null,null,null,null,null,null,null,null,"581900","Edición n.c.p.","1","2","Rev 4"]
[null,null,null,null,null,null,null,null,null,null,null,null,null,"453190","Ejecución y mantenimiento de instalaciones eléctricas y electrónicas n.c.p. (Incluye la instalación de antenas, pararrayos, sistemas de alarmas contra incendios y robos, sistemas de telecomunicación, etc.)","1","2","Rev3"]
[null,null,null,null,null,null,null,null,null,null,null,null,null,"269421","Elaboración de  yeso","2","4","Rev3","Comprendido Res 177/07 y Mod"]
[null,null,null,null,null,null,null,null,null,null,null,null,null,"104012","Elaboración de aceite de oliva","1","3","Rev 4"]
[null,null,null,null,null,null,null,null,null,null,null,null,null,"151410","Elaboración de aceites y grasas  vegetales sin refinar y sus subproductos; elaboración de aceite virgen","1","3","Rev3"]
[null,null,null,null,null,null,null,null,null,null,null,null,null,"151420","Elaboración de aceites y grasas vegetales refinadas (No incluye aceite de maíz)","1","3","Rev3"]
[null,null,null,null,null,null,null,null,null,null,null,null,null,"104013","Elaboración de aceites y grasas vegetales refinados","1","3","Rev 4"]
[null,null,null,null,null,null,null,null,null,null,null,null,null,"104011","Elaboración de aceites y grasas vegetales sin refinar","1","3","Rev 4"]
[null,null,null,null,null,null,null,null,null,null,null,null,null,"106131","Elaboración de alimentos a base de cereales","1","3","Rev 4"]
[null,null,null,null,null,null,null,null,null,null,null,null,null,"153131","Elaboración de alimentos a base de cereales","1","3","Rev3"]
[null,null,null,null,null,null,null,null,null,null,null,null,null,"311650","Elaboración de alimentos a base de cereales","1","3","Rev 2"]
[null,null,null,null,null,null,null,null,null,null,null,null,null,"108000","Elaboración de alimentos preparados para animales","1","3","Rev 4"]
[null,null,null,null,null,null,null,null,null,null,null,null,null,"153300","Elaboración de alimentos preparados para animales","1","3","Rev3"]
[null,null,null,null,null,null,null,null,null,null,null,null,null,"153200","Elaboración de almidones y productos derivados del almidón (Incluye la elaboración de glucosa, gluten, aceites de maíz)","1","3","Rev3"]
[null,null,null,null,null,null,null,null,null,null,null,null,null,"106200","Elaboración de almidones y productos derivados del almidón, molienda húmeda de maíz","1","3","Rev 4"]
[null,null,null,null,null,null,null,null,null,null,null,null,null,"242010","Elaboración de aluminio primario y semielaborados de aluminio","3","4","Rev 4","Comprendido Res 177/07 y Mod"]
[null,null,null,null,null,null,null,null,null,null,null,null,null,"272010","Elaboración de aluminio primario y semielaborados de aluminio","3","4","Rev3","Comprendido Res 177/07 y Mod"]
[null,null,null,null,null,null,null,null,null,null,null,null,null,"107200","Elaboración de azúcar","2","3","Rev 4","Comprendido Res 177/07 y Mod"]
[null,null,null,null,null,null,null,null,null,null,null,null,null,"154200","Elaboración de azúcar","2","3","Rev3","Comprendido Res 177/07 y Mod"]
[null,null,null,null,null,null,null,null,null,null,null,null,null,"110420","Elaboración de bebidas gaseosas, excepto soda","1","2","Rev 4"]
[null,null,null,null,null,null,null,null,null,null,null,null,null,"155420","Elaboración de bebidas gaseosas, excepto soda","1","2","Rev3"]
[null,null,null,null,null,null,null,null,null,null,null,null,null,"313432","Elaboración de bebidas no alcohólicas excepto extractos, jarabes y concentrados(incluye bebidas refrescantes, gaseosas, etc.)      ","1","2","Rev 2"]
[null,null,null,null,null,null,null,null,null,null,null,null,null,"110492","Elaboración de bebidas no alcohólicas n.c.p.","1","2","Rev 4"]
[null,null,null,null,null,null,null,null,null,null,null,null,null,"107301","Elaboración de cacao y chocolate","1","4","Rev 4"]
[null,null,null,null,null,null,null,null,null,null,null,null,null,"154301","Elaboración de cacao, chocolate y  productos a base de cacao","1","4","Rev3"]
[null,null,null,null,null,null,null,null,null,null,null,null,null,"239422","Elaboración de cal","2","4","Rev 4","Comprendido Res 177/07 y Mod"]
[null,null,null,null,null,null,null,null,null,null,null,null,null,"269422","Elaboración de cal","2","4","Rev3","Comprendido Res 177/07 y Mod"]
[null,null,null,null,null,null,null,null,null,null,null,null,null,"239410","Elaboración de cemento","2","4","Rev 4","Comprendido Res 177/07 y Mod"]
[null,null,null,null,null,null,null,null,null,null,null,null,null,"269410","Elaboración de cemento","2","4","Rev3","Comprendido Res 177/07 y Mod"]
[null,null,null,null,null,null,null,null,null,null,null,null,null,"155300","Elaboración de cerveza, bebidas malteadas y de malta","1","4","Rev3"]
[null,null,null,null,null,null,null,null,null,null,null,null,null,"110300","Elaboración de cerveza, bebidas malteadas y malta","1","4","Rev 4"]
[null,null,null,null,null,null,null,null,null,null,null,null,null,"120091","Elaboración de cigarrillos","1","3","Rev 4"]
[null,null,null,null,null,null,null,null,null,null,null,null,null,"160091","Elaboración de cigarrillos","1","3","Rev3"]
[null,null,null,null,null,null,null,null,null,null,null,null,null,"107500","Elaboración de comidas preparadas para reventa","1","2","Rev 4"]
[null,null,null,null,null,null,null,null,null,null,null,null,null,"107991","Elaboración de extractos, jarabes y concentrados","1","3","Rev 4"]
[null,null,null,null,null,null,null,null,null,null,null,null,null,"154991","Elaboración de extractos, jarabes y concentrados","1","3"]
[null,null,null,null,null,null,null,null,null,null,null,null,null,"312185","Elaboración de extractos, jarabes y concentrados","1","3","Rev 2"]
[null,null,null,null,null,null,null,null,null,null,null,null,null,"101030","Elaboración de fiambres y embutidos","1","3","Rev 4"]
[null,null,null,null,null,null,null,null,null,null,null,null,null,"151130","Elaboración de fiambres y embutidos","1","3","Rev3"]
[null,null,null,null,null,null,null,null,null,null,null,null,null,"311162","Elaboración de fiambres, embutidos, chacinados y otros preparados a base de carnes","1","3","Rev 2"]
[null,null,null,null,null,null,null,null,null,null,null,null,null,"103099","Elaboración de frutas deshidratadas o desecadas, preparación n.c.p. de frutas","1","3","Rev 4"]
[null,null,null,null,null,null,null,null,null,null,null,null,null,"311316","Elaboración de frutas y legumbres frescas para su envasado y conservación. Envasado y conservación de frutas, legumbres y jugos.","1","2","Rev 2"]
[null,null,null,null,null,null,null,null,null,null,null,null,null,"311324","Elaboración de frutas y legumbres secas","1","3","Rev 2"]
[null,null,null,null,null,null,null,null,null,null,null,null,null,"103030","Elaboración de frutas, hortalizas y legumbres congeladas","1","3","Rev 4"]
[null,null,null,null,null,null,null,null,null,null,null,null,null,"151340","Elaboración de frutas, hortalizas y legumbres congeladas","1","3","Rev3"]
[null,null,null,null,null,null,null,null,null,null,null,null,null,"151390","Elaboración de frutas, hortalizas y legumbres deshidratadas o desecadas; preparación n.c.p. de frutas, hortalizas y legumbres (Incluye la elaboración de harina y escamas de papa, sémola de hortalizas y legumbres, frutas, hortalizas y legumbres deshidrata","1","3","Rev3"]
[null,null,null,null,null,null,null,null,null,null,null,null,null,"107110","Elaboración de galletitas y bizcochos","1","3","Rev 4"]
[null,null,null,null,null,null,null,null,null,null,null,null,null,"154110","Elaboración de galletitas y bizcochos","1","3"]
[null,null,null,null,null,null,null,null,null,null,null,null,null,"110491","Elaboración de hielo","1","2","Rev 4"]
[null,null,null,null,null,null,null,null,null,null,null,null,null,"155490","Elaboración de hielo, jugos envasados para diluir y otras bebidas no alcohólicas (Incluye los jugos para diluir o en polvo llamados \"sintéticos\" o de un contenido en jugos naturales inferior al 50%)","1","2","Rev3"]
[null,null,null,null,null,null,null,null,null,null,null,null,null,"239591","Elaboración de hormigón","1","3","Rev 4"]
[null,null,null,null,null,null,null,null,null,null,null,null,null,"103091","Elaboración de hortalizas y legumbres deshidratadas o desecadas, preparación n.c.p. de hortalizas y legumbres","1","3","Rev 4"]
[null,null,null,null,null,null,null,null,null,null,null,null,null,"103020","Elaboración de jugos naturales y sus concentrados, de frutas, hortalizas y legumbres","1","2","Rev 4"]
[null,null,null,null,null,null,null,null,null,null,null,null,null,"151320","Elaboración de jugos naturales y sus concentrados, de frutas, hortalizas y legumbres","1","2","Rev3"]
[null,null,null,null,null,null,null,null,null,null,null,null,null,"105010","Elaboración de leches y productos lácteos deshidratados","1","3","Rev 4"]
[null,null,null,null,null,null,null,null,null,null,null,null,null,"152010","Elaboración de leches y productos lácteos deshidratados (Incluye la estandarización, homogeneización, pasteurización y esterilización de leche, la elaboración de leches chocolatadas y otras leches saborizadas, leches condensadas, leche en polvo, dulce de","1","3","Rev3"]
[null,null,null,null,null,null,null,null,null,null,null,null,null,"104020","Elaboración de margarinas y grasas vegetales comestibles similares","1","3","Rev 4"]
[null,null,null,null,null,null,null,null,null,null,null,null,null,"151430","Elaboración de margarinas y grasas vegetales comestibles similares","1","3","Rev3"]
[null,null,null,null,null,null,null,null,null,null,null,null,null,"154191","Elaboración de masas y productos de pastelería","1","3","Rev3"]
[null,null,null,null,null,null,null,null,null,null,null,null,null,"110211","Elaboración de mosto","1","3","Rev 4"]
[null,null,null,null,null,null,null,null,null,null,null,null,null,"107410","Elaboración de pastas alimentarias frescas","1","3","Rev 4"]
[null,null,null,null,null,null,null,null,null,null,null,null,null,"154410","Elaboración de pastas alimentarias frescas","1","3","Rev3"]
[null,null,null,null,null,null,null,null,null,null,null,null,null,"107420","Elaboración de pastas alimentarias secas","1","3","Rev 4"]
[null,null,null,null,null,null,null,null,null,null,null,null,null,"154420","Elaboración de pastas alimentarias secas","1","3","Rev3"]
[null,null,null,null,null,null,null,null,null,null,null,null,null,"151201","Elaboración de pescados de mar, crustáceos y  productos marinos n.c.p.","1","4","Rev3"]
[null,null,null,null,null,null,null,null,null,null,null,null,null,"311413","Elaboración de pescados de mar, crustáceos y otros productos marinos. Envasado y conservación.","1","4","Rev 2"]
[null,null,null,null,null,null,null,null,null,null,null,null,null,"102001","Elaboración de pescados de mar, crustáceos y productos marinos","1","4","Rev 4"]
[null,null,null,null,null,null,null,null,null,null,null,null,null,"311421","Elaboración de pescados de río y lagunas y otros productos fluviales y lacustres. Envasado y conservación","1","3","Rev 2"]
[null,null,null,null,null,null,null,null,null,null,null,null,null,"102002","Elaboración de pescados de ríos y lagunas y otros productos fluviales y lacustres","1","3","Rev 4"]
[null,null,null,null,null,null,null,null,null,null,null,null,null,"151202","Elaboración de pescados de ríos y lagunas y otros productos fluviales y lacustres","1","3","Rev3"]
[null,null,null,null,null,null,null,null,null,null,null,null,null,"107999","Elaboración de productos alimenticios n.c.p.","1","3","Rev 4"]
[null,null,null,null,null,null,null,null,null,null,null,null,null,"154999","Elaboración de productos alimenticios n.c.p. (Incluye la elaboración de polvos para preparar postres y gelatinas, levadura, productos para copetín, sopas y concentrados, sal de mesa, mayonesa, mostaza, etc.)","1","3","Rev3"]
[null,null,null,null,null,null,null,null,null,null,null,null,null,"107309","Elaboración de productos de confitería n.c.p.","1","3","Rev 4"]
[null,null,null,null,null,null,null,null,null,null,null,null,null,"154309","Elaboración de productos de confitería n.c.p. (Incluye caramelos, frutas confitadas, pastillas, gomas de mascar, etc.)","1","3","Rev3"]
[null,null,null,null,null,null,null,null,null,null,null,null,null,"107129","Elaboración de productos de panadería n.c.p.","1","3","Rev 4"]
[null,null,null,null,null,null,null,null,null,null,null,null,null,"154199","Elaboración de productos de panadería n.c.p. (Incluye la elaboración de churros, prepizzas, masas fritas, de hojaldre, etc. en establecimientos de hasta 10 ocupados)","1","3","Rev3"]
[null,null,null,null,null,null,null,null,null,null,null,null,null,"120099","Elaboración de productos de tabaco n.c.p.","1","3","Rev 4"]
[null,null,null,null,null,null,null,null,null,null,null,null,null,"160099","Elaboración de productos de tabaco n.c.p.","1","3","Rev3"]
[null,null,null,null,null,null,null,null,null,null,null,null,null,"105090","Elaboración de productos lácteos n.c.p.","1","3","Rev 4"]
[null,null,null,null,null,null,null,null,null,null,null,null,null,"152090","Elaboración de productos lácteos n.c.p.   (Incluye la producción de caseínas, caseinatos lácteos, cremas, manteca, postres, etc.)","1","3","Rev3"]
[null,null,null,null,null,null,null,null,null,null,null,null,null,"105020","Elaboración de quesos","1","3","Rev 4"]
[null,null,null,null,null,null,null,null,null,null,null,null,null,"152020","Elaboración de quesos (Incluye la producción de suero)","1","3","Rev3"]
[null,null,null,null,null,null,null,null,null,null,null,null,null,"110290","Elaboración de sidra y otras bebidas alcohólicas fermentadas","1","3","Rev 4"]
[null,null,null,null,null,null,null,null,null,null,null,null,null,"155290","Elaboración de sidra y otras bebidas alcohólicas fermentadas a partir de frutas","1","3","Rev3"]
[null,null,null,null,null,null,null,null,null,null,null,null,null,"312118","Elaboración de té","1","3","Rev 2"]
[null,null,null,null,null,null,null,null,null,null,null,null,null,"312169","Elaboración de vinagre","1","3","Rev 2"]
[null,null,null,null,null,null,null,null,null,null,null,null,null,"107992","Elaboración de vinagres","1","3","Rev 4"]
[null,null,null,null,null,null,null,null,null,null,null,null,null,"154992","Elaboración de vinagres","1","3","Rev3"]
[null,null,null,null,null,null,null,null,null,null,null,null,null,"110212","Elaboración de vinos","1","3","Rev 4"]
[null,null,null,null,null,null,null,null,null,null,null,null,null,"155210","Elaboración de vinos (Incluye el fraccionamiento)","1","3","Rev3"]
[null,null,null,null,null,null,null,null,null,null,null,null,null,"107930","Elaboración de yerba mate","1","3","Rev 4"]
[null,null,null,null,null,null,null,null,null,null,null,null,null,"154930","Elaboración de yerba mate","1","3","Rev3"]
[null,null,null,null,null,null,null,null,null,null,null,null,null,"239421","Elaboración de yeso","2","4","Rev 4","Comprendido Res 177/07 y Mod"]
[null,null,null,null,null,null,null,null,null,null,null,null,null,"105030","Elaboración industrial de helados","1","2","Rev 4"]
[null,null,null,null,null,null,null,null,null,null,null,null,null,"152030","Elaboración industrial de helados (No incluye las heladerías artesanales)","1","2","Rev3"]
[null,null,null,null,null,null,null,null,null,null,null,null,null,"107121","Elaboración industrial de productos de panadería, excepto galletitas y bizcochos","1","3","Rev 4"]
[null,null,null,null,null,null,null,null,null,null,null,null,null,"154120","Elaboración industrial de productos de panadería, excluido galletitas y bizcochos (Incluye la elaboración en  establecimientos con más de 10 ocupados)","1","3","Rev3"]
[null,null,null,null,null,null,null,null,null,null,null,null,null,"269910","Elaboración primaria n.c.p. de minerales no metálicos","1","3","Rev3"]
[null,null,null,null,null,null,null,null,null,null,null,null,null,"311332","Elaboración y envasado de conservas, caldos y sopas concentradas y de limentos a base de frutas y legumbres deshidratadas.","1","2","Rev 2"]
[null,null,null,null,null,null,null,null,null,null,null,null,null,"103012","Elaboración y envasado de dulces, mermeladas y jaleas","1","2","Rev 4"]
[null,null,null,null,null,null,null,null,null,null,null,null,null,"151330","Elaboración y envasado de dulces, mermeladas y jaleas","1","2","Rev3"]
[null,null,null,null,null,null,null,null,null,null,null,null,null,"311340","Elaboración y envasado de dulces, mermeladas y jaleas.","1","2","Rev 2"]
[null,null,null,null,null,null,null,null,null,null,null,null,null,"312150","Elaboración y molienda de especias","1","3","Rev 2"]
[null,null,null,null,null,null,null,null,null,null,null,null,null,"154912","Elaboración y molienda de hierbas aromáticas y  especias","1","3","Rev3"]
[null,null,null,null,null,null,null,null,null,null,null,null,null,"107912","Elaboración y molienda de hierbas aromáticas y especias","1","3","Rev 4"]
[null,null,null,null,null,null,null,null,null,null,null,null,null,"311227","Elaboración, pasteurización y homogeneización de leche (incluida la condensada y en polvo)","1","3","Rev 2"]
[null,null,null,null,null,null,null,null,null,null,null,null,null,"110411","Embotellado de aguas naturales y minerales","1","2","Rev 4"]
[null,null,null,null,null,null,null,null,null,null,null,null,null,"155411","Embotellado de aguas naturales y minerales","1","2","Rev3"]
[null,null,null,null,null,null,null,null,null,null,null,null,null,"313416","Embotellado de aguas naturales y minerales","1","2","Rev 2"]
[null,null,null,null,null,null,null,null,null,null,null,null,null,"642091","Emisión de programas de televisión","1","2","Rev3"]
[null,null,null,null,null,null,null,null,null,null,null,null,null,"602310","Emisión de señales de televisión por suscripción","1","2","Rev 4"]
[null,null,null,null,null,null,null,null,null,null,null,null,null,"941328","Emisión y producción de radio y televisión (incluye circuitos cerrados de televisión y retransmisoras de radio y televisión)","1","2","Rev 2"]
[null,null,null,null,null,null,null,null,null,null,null,null,null,"601000","Emisión y retransmisión de radio","1","2","Rev 4"]
[null,null,null,null,null,null,null,null,null,null,null,null,null,"602100","Emisión y retransmisión de televisión abierta","1","2","Rev 4"]
[null,null,null,null,null,null,null,null,null,null,null,null,null,"12113","Engorde en corrales (Fed-Lot)","1","2","Rev3"]
[null,null,null,null,null,null,null,null,null,null,null,null,null,"14115","Engorde en corrales (feed-lot)","1","2","Rev 4"]
[null,null,null,null,null,null,null,null,null,null,null,null,null,"712000","Ensayos y análisis técnicos","1","4","Rev 4"]
[null,null,null,null,null,null,null,null,null,null,null,null,null,"742200","Ensayos y análisis técnicos","1","4","Rev3"]
[null,null,null,null,null,null,null,null,null,null,null,null,null,"803100","Enseñanza  terciaria","1","3","Rev3"]
[null,null,null,null,null,null,null,null,null,null,null,null,null,"854960","Enseñanza artística","1","2","Rev 4"]
[null,null,null,null,null,null,null,null,null,null,null,null,null,"854920","Enseñanza de cursos relacionados con informática","1","2","Rev 4"]
[null,null,null,null,null,null,null,null,null,null,null,null,null,"854950","Enseñanza de gimnasia, deportes y actividades físicas","1","2","Rev 4"]
[null,null,null,null,null,null,null,null,null,null,null,null,null,"854910","Enseñanza de idiomas","1","2","Rev 4"]
[null,null,null,null,null,null,null,null,null,null,null,null,null,"854940","Enseñanza especial y para discapacitados","1","2","Rev 4"]
[null,null,null,null,null,null,null,null,null,null,null,null,null,"801000","Enseñanza inicial y primaria","1","1"]
[null,null,null,null,null,null,null,null,null,null,null,null,null,"851020","Enseñanza inicial, jardín de infantes y primaria","1","1","Rev 4"]
[null,null,null,null,null,null,null,null,null,null,null,null,null,"809000","Enseñanza para adultos y servicios de enseñanza n.c.p. (Incluye instrucción impartida mediante programas de radio, televisión, correspondencia y otros medios de comunicación, escuelas de manejo, actividades de enseñanza a domicilio y/o particulares, etc.","1","2","Rev3"]
[null,null,null,null,null,null,null,null,null,null,null,null,null,"854930","Enseñanza para adultos, excepto discapacitados","1","2","Rev 4"]
[null,null,null,null,null,null,null,null,null,null,null,null,null,"931012","Enseñanza preprimaria, primaria, secundaria, superior, por correspondencia, etc","1","1","Rev 2"]
[null,null,null,null,null,null,null,null,null,null,null,null,null,"802100","Enseñanza secundaria de formación general","1","1","Rev3"]
[null,null,null,null,null,null,null,null,null,null,null,null,null,"852100","Enseñanza secundaria de formación general","1","1","Rev 4"]
[null,null,null,null,null,null,null,null,null,null,null,null,null,"802200","Enseñanza secundaria de formación técnica y profesional","1","2","Rev3"]
[null,null,null,null,null,null,null,null,null,null,null,null,null,"852200","Enseñanza secundaria de formación técnica y profesional","1","2","Rev 4"]
[null,null,null,null,null,null,null,null,null,null,null,null,null,"853100","Enseñanza terciaria","1","3","Rev 4"]
[null,null,null,null,null,null,null,null,null,null,null,null,null,"803200","Enseñanza universitaria excepto formación de posgrado","1","3","Rev3"]
[null,null,null,null,null,null,null,null,null,null,null,null,null,"853201","Enseñanza universitaria excepto formación de posgrado","1","3","Rev 4"]
[null,null,null,null,null,null,null,null,null,null,null,null,null,"381977","Estampado de metales","2","3","Rev 2","Comprendido Res 177/07 y Mod"]
[null,null,null,null,null,null,null,null,null,null,null,null,null,"732000","Estudio de mercado, realización de encuestas de opinión pública","1","1","Rev 4"]
[null,null,null,null,null,null,null,null,null,null,null,null,null,"741300","Estudio de mercado, realización de encuestas de opinión pública","1","1","Rev3"]
[null,null,null,null,null,null,null,null,null,null,null,null,null,"591300","Exhibición de filmes y videocintas","1","1","Rev 4"]
[null,null,null,null,null,null,null,null,null,null,null,null,null,"921200","Exhibición de filmes y videocintas","1","1","Rev3"]
[null,null,null,null,null,null,null,null,null,null,null,null,null,"941239","Exhibición de películas cinematográficas","1","1","Rev 2"]
[null,null,null,null,null,null,null,null,null,null,null,null,null,"631035","Expendio de bebidas con servicio de mesa y/o  en mostrador para consumo inmediato en el lugar.Bares excepto, los lácteos: cervecerías, cafés, \"wiskerias\" y similares ( sin espectáculo)","1","2","Rev 2"]
[null,null,null,null,null,null,null,null,null,null,null,null,null,"631019","Expendio de comidas elaboradas (no incluye pizzas, empanadas, hamburguesas y afines y parrilladas ) y bebidas con servicio de mesa para consumo inmediato en el lugar. Restaurantes y cantinas ( sin espectáculo )","1","2","Rev 2"]
[null,null,null,null,null,null,null,null,null,null,null,null,null,"631078","Expendio de comidas y bebidas con servicio de mesa para consumo inmediato en el lugar, con espectáculo","1","2","Rev 2"]
[null,null,null,null,null,null,null,null,null,null,null,null,null,"552120","Expendio de helados","1","2"]
[null,null,null,null,null,null,null,null,null,null,null,null,null,"631027","Expendio de pizzas, empanadas, hamburguesas y afines, parrilladas y bebidas con servicio de mesa. Pizzerias, \"grills\", \"snack bars\", \"fast foods\" y parrillas","1","2","Rev 2"]
[null,null,null,null,null,null,null,null,null,null,null,null,null,"631043","Expendio de productos lácteos y helados con servicio de mesa y/o en mostrador. Bares lácteos y heladerías","1","2","Rev 2"]
[null,null,null,null,null,null,null,null,null,null,null,null,null,"121010","Explotación de bosques excepto plantación, repoblación y conservación de bosques (Incluye producción de carbón vegetal, viveros de árboles forestales, etc.)","1","3","Rev 2"]
[null,null,null,null,null,null,null,null,null,null,null,null,null,"50200","Explotación de criaderos de peces, granjas piscícolas y otros frutos acuáticos  (acuicultura)","1","3","Rev3"]
[null,null,null,null,null,null,null,null,null,null,null,null,null,"32000","Explotación de criaderos de peces, granjas piscícolas y otros frutos acuáticos (acuicultura)","1","3","Rev 4"]
[null,null,null,null,null,null,null,null,null,null,null,null,null,"931020","Explotación de instalaciones deportivas, excepto clubes","1","3","Rev 4"]
[null,null,null,null,null,null,null,null,null,null,null,null,null,"210013","Explotación de minas de carbón","2","5","Rev 2","Comprendido Res 177/07 y Mod"]
[null,null,null,null,null,null,null,null,null,null,null,null,null,"290300","Explotación de minas de sal. Molienda y refinación en salinas","1","3","Rev 2"]
[null,null,null,null,null,null,null,null,null,null,null,null,null,"89900","Explotación de minas y canteras n.c.p.","1","5","Rev 4"]
[null,null,null,null,null,null,null,null,null,null,null,null,null,"142900","Explotación de minas y canteras n.c.p. (Incluye amianto, baritina, cuarzo, diatomita, piedra pómez, ágata, agua marina, amatista, cristal de roca, rodocrosita, topacio, corindón, feldespato, mica, zeolita, perlita, granulado volcánico, puzolana, toba, ta","1","5","Rev3"]
[null,null,null,null,null,null,null,null,null,null,null,null,null,"21030","Explotación de viveros forestales","1","2","Rev 4"]
[null,null,null,null,null,null,null,null,null,null,null,null,null,"20130","Explotación de viveros forestales  (Incluye propagación de especies forestales)","1","2","Rev3"]
[null,null,null,null,null,null,null,null,null,null,null,null,null,"230200","Extracción  de minerales metálicos no ferrosos","3","5","Rev 2","Comprendido Res 177/07 y Mod"]
[null,null,null,null,null,null,null,null,null,null,null,null,null,"81400","Extracción de arcilla y caolín","1","4","Rev 4"]
[null,null,null,null,null,null,null,null,null,null,null,null,null,"141400","Extracción de arcilla y caolín (Incluye andalucita, arcillas, bentonita, caolín, pirofilita, silimanita, mullita, tierra de chamota o de dinas, etc.)","1","4","Rev3"]
[null,null,null,null,null,null,null,null,null,null,null,null,null,"290130","Extracción de arcillas","1","4","Rev 2"]
[null,null,null,null,null,null,null,null,null,null,null,null,null,"290122","Extracción de arenas","1","4","Rev 2"]
[null,null,null,null,null,null,null,null,null,null,null,null,null,"81300","Extracción de arenas, canto rodado y triturados pétreos","1","4","Rev 4"]
[null,null,null,null,null,null,null,null,null,null,null,null,null,"141300","Extracción de arenas, canto rodado y triturados pétreos (Incluye arena para construcción, arena silícea, otras arenas naturales, canto rodado, dolomita triturada,  granito triturado, piedra partida  y  otros triturados pétreos, etc.)","1","4","Rev3"]
[null,null,null,null,null,null,null,null,null,null,null,null,null,"62000","Extracción de gas natural","3","5","Rev 4","Comprendido Res 177/07 y Mod"]
[null,null,null,null,null,null,null,null,null,null,null,null,null,"72910","Extracción de metales preciosos","1","4","Rev 4"]
[null,null,null,null,null,null,null,null,null,null,null,null,null,"230103","Extracción de mineral de hierro","3","5","Rev 2","Comprendido Res 177/07 y Mod"]
[null,null,null,null,null,null,null,null,null,null,null,null,null,"71000","Extracción de minerales de hierro","3","5","Rev 4","Comprendido Res 177/07 y Mod"]
[null,null,null,null,null,null,null,null,null,null,null,null,null,"131000","Extracción de minerales de hierro (Incluye hematitas, limonitas, magnetitas, siderita, etc.)","3","5","Rev3","Comprendido Res 177/07 y Mod"]
[null,null,null,null,null,null,null,null,null,null,null,null,null,"72990","Extracción de minerales metalíferos no ferrosos n.c.p., excepto minerales de uranio y torio","3","5","Rev 4","Comprendido Res 177/07 y Mod"]
[null,null,null,null,null,null,null,null,null,null,null,null,null,"132000",null,"3","5","Rev3","Comprendido Res 177/07 y Mod"]
[null,null,null,null,null,null,null,null,null,null,null,null,null,"290904","Extracción de minerales no clasificados en otra parte","1","5","Rev 2"]
[null,null,null,null,null,null,null,null,null,null,null,null,null,"89110","Extracción de minerales para la fabricación de abonos excepto turba","1","4","Rev 4"]
[null,null,null,null,null,null,null,null,null,null,null,null,null,"142110","Extracción de minerales para la fabricación de abonos excepto turba. (Incluye guano, silvita, silvinita y otras sales de potasio naturales, etc.)","1","4","Rev3"]
[null,null,null,null,null,null,null,null,null,null,null,null,null,"290203","Extracción de minerales para la fabricación de abonos y productos químicos (incluye guano)","2","4","Rev 2","Comprendido Res 177/07 y Mod"]
[null,null,null,null,null,null,null,null,null,null,null,null,null,"89120","Extracción de minerales para la fabricación de productos químicos","1","5","Rev 4"]
[null,null,null,null,null,null,null,null,null,null,null,null,null,"142120","Extracción de minerales para la fabricación de productos químicos (Incluye azufre, boracita e hidroboracita, calcita, celestina, colemanita, fluorita, litio y sales de litio naturales, sulfato de aluminio, sulfato de hierro, sulfato de magnesio, sulfato","1","5","Rev3"]
[null,null,null,null,null,null,null,null,null,null,null,null,null,"72100","Extracción de minerales y concentrados de uranio y torio","3","5","Rev 4","Comprendido Res 177/07 y Mod"]
[null,null,null,null,null,null,null,null,null,null,null,null,null,"120000","Extracción de minerales y concentrados de uranio y torio","3","5",null,"Comprendido Res 177/07 y Mod"]
[null,null,null,null,null,null,null,null,null,null,null,null,null,"61000","Extracción de petróleo crudo","3","5","Rev 4","Comprendido Res 177/07 y Mod"]
[null,null,null,null,null,null,null,null,null,null,null,null,null,"111000","Extracción de petróleo crudo y gas natural (Incluye gas natural licuado y gaseoso, arenas alquitraníferas, esquistos bituminosos o lutitas, aceites de petróleo y de minerales bituminosos, petróleo, coque de petróleo, etc.)","3","5","Rev3","Comprendido Res 177/07 y Mod"]
[null,null,null,null,null,null,null,null,null,null,null,null,null,"290149","Extracción de piedra caliza (cal, cemento, yeso, etc.)","1","4","Rev 2"]
[null,null,null,null,null,null,null,null,null,null,null,null,null,"81200","Extracción de piedra caliza y yeso","1","4","Rev 4"]
[null,null,null,null,null,null,null,null,null,null,null,null,null,"141200","Extracción de piedra caliza y yeso (Incluye caliza, castina, conchilla, riolita, yeso natural, anhidrita, etc.)","1","4","Rev3"]
[null,null,null,null,null,null,null,null,null,null,null,null,null,"290114","Extracción de piedra para la construcción (mármoles, lajas, canto rodado,etc.) excepto piedra caliza (cal, cemento, yeso, etc.)   ","1","4","Rev 2"]
[null,null,null,null,null,null,null,null,null,null,null,null,null,"22010","Extracción de productos forestales de bosques cultivados","1","3","Rev 4"]
[null,null,null,null,null,null,null,null,null,null,null,null,null,"20210","Extracción de productos forestales de bosques cultivados (Incluye tala de árboles, desbaste de troncos y producción de madera en bruto, rollizos, leña, postes, carbón, carbonilla y productos forestales n.c.p.)","1","3","Rev3"]
[null,null,null,null,null,null,null,null,null,null,null,null,null,"22020","Extracción de productos forestales de bosques nativos","1","3","Rev 4"]
[null,null,null,null,null,null,null,null,null,null,null,null,null,"20220","Extracción de productos forestales de bosques nativos (Incluye tala de árboles, desbaste de troncos y producción de madera en bruto, leña, postes, carbón, carbonilla, la extracción de rodrigones, varas, varillas y la recolección de crines vegetales, goma","1","3","Rev3"]
[null,null,null,null,null,null,null,null,null,null,null,null,null,"81100","Extracción de rocas ornamentales","1","4","Rev 4"]
[null,null,null,null,null,null,null,null,null,null,null,null,null,"141100","Extracción de rocas ornamentales (Incluye areniscas, cuarcita, dolomita, granito, mármol, piedra laja, pizarra, pórfido, serpentina , etc.)","1","4","Rev3"]
[null,null,null,null,null,null,null,null,null,null,null,null,null,"89300","Extracción de sal","1","3","Rev 4"]
[null,null,null,null,null,null,null,null,null,null,null,null,null,"142200","Extracción de sal en salinas y de roca","1","3"]
[null,null,null,null,null,null,null,null,null,null,null,null,null,"51000","Extracción y aglomeración de carbón","2","5","Rev 4","Comprendido Res 177/07 y Mod"]
[null,null,null,null,null,null,null,null,null,null,null,null,null,"101000","Extracción y aglomeración de carbón (Incluye la producción de hulla no aglomerada, antracita, carbón bituminoso no aglomerado, briquetas, ovoides y combustibles sólidos análogos a base de hulla, etc.)","2","5","Rev3","Comprendido Res 177/07 y Mod"]
[null,null,null,null,null,null,null,null,null,null,null,null,null,"52000","Extracción y aglomeración de lignito","2","5","Rev 4","Comprendido Res 177/07 y Mod"]
[null,null,null,null,null,null,null,null,null,null,null,null,null,"102000","Extracción y aglomeración de lignito (Incluye la producción de lignito aglomerado y no aglomerado)","2","5","Rev3","Comprendido Res 177/07 y Mod"]
[null,null,null,null,null,null,null,null,null,null,null,null,null,"89200","Extracción y aglomeración de turba","1","5","Rev 4"]
[null,null,null,null,null,null,null,null,null,null,null,null,null,"103000","Extracción y aglomeración de turba (Incluye la producción de turba utilizada como corrector de suelos)","1","5","Rev3"]
[null,null,null,null,null,null,null,null,null,null,null,null,null,"291100","Fabricación  de  motores  y  turbinas,  excepto  motores  para aeronaves, vehículos automotores   y motocicletas","2","4","Rev3","Comprendido Res 177/07 y Mod"]
[null,null,null,null,null,null,null,null,null,null,null,null,null,"319000","Fabricación  de equipo eléctrico n.c.p.","2","3","Rev3","Comprendido Res 177/07 y Mod"]
[null,null,null,null,null,null,null,null,null,null,null,null,null,"251909","Fabricación  de productos de caucho n.c.p.","3","4","Rev3","Comprendido Res 177/07 y Mod"]
[null,null,null,null,null,null,null,null,null,null,null,null,null,"251901","Fabricación de  autopartes de caucho excepto cámaras y cubiertas","3","4","Rev3","Comprendido Res 177/07 y Mod"]
[null,null,null,null,null,null,null,null,null,null,null,null,null,"291900","Fabricación de  maquinaria de uso general n.c.p.","2","3","Rev3","Comprendido Res 177/07 y Mod"]
[null,null,null,null,null,null,null,null,null,null,null,null,null,"162201","Fabricación de aberturas y estructuras de madera para la construcción","1","2","Rev 4"]
[null,null,null,null,null,null,null,null,null,null,null,null,null,"202201","Fabricación de aberturas y estructuras de madera para la construcción","1","2","Rev3"]
[null,null,null,null,null,null,null,null,null,null,null,null,null,"201300","Fabricación de abonos y compuestos de nitrógeno","1","5","Rev 4"]
[null,null,null,null,null,null,null,null,null,null,null,null,null,"241200","Fabricación de abonos y compuestos de nitrógeno","1","5","Rev3"]
[null,null,null,null,null,null,null,null,null,null,null,null,null,"351210","Fabricación de abonos y fertilizantes incluidos los biológicos.","1","5","Rev 2"]
[null,null,null,null,null,null,null,null,null,null,null,null,null,"141201","Fabricación de accesorios de vestir de cuero","1","3","Rev 4"]
[null,null,null,null,null,null,null,null,null,null,null,null,null,"181201","Fabricación de accesorios de vestir de cuero","1","3","Rev3"]
[null,null,null,null,null,null,null,null,null,null,null,null,null,"141191","Fabricación de accesorios de vestir excepto de cuero","1","3","Rev 4"]
[null,null,null,null,null,null,null,null,null,null,null,null,null,"181192","Fabricación de accesorios de vestir excepto de cuero","1","3","Rev3"]
[null,null,null,null,null,null,null,null,null,null,null,null,null,"322059","Fabricación de accesorios para vestir ","1","3","Rev 2"]
[null,null,null,null,null,null,null,null,null,null,null,null,null,"311529","Fabricación de aceites y grasas animales no comestibles","1","4","Rev 2"]
[null,null,null,null,null,null,null,null,null,null,null,null,null,"101091","Fabricación de aceites y grasas de origen animal","1","4","Rev 4"]
[null,null,null,null,null,null,null,null,null,null,null,null,null,"151191","Fabricación de aceites y grasas de origen animal","1","4","Rev3"]
[null,null,null,null,null,null,null,null,null,null,null,null,null,"311510","Fabricación de aceites y grasas vegetales comestibles y sus subproductos.","1","3","Rev 2"]
[null,null,null,null,null,null,null,null,null,null,null,null,null,"311537","Fabricación de aceites y harinas de pescado y otros animales marinos fluviales y lacustres","1","4","Rev 2"]
[null,null,null,null,null,null,null,null,null,null,null,null,null,"102003","Fabricación de aceites, grasas, harinas y productos a base de pescados","1","4","Rev 4"]
[null,null,null,null,null,null,null,null,null,null,null,null,null,"151203","Fabricación de aceites, grasas, harinas y productos a base de pescados n.c.p.","1","4","Rev3"]
[null,null,null,null,null,null,null,null,null,null,null,null,null,"314000","Fabricación de acumuladores y de pilas y baterías primarias","2","5","Rev3","Comprendido Res 177/07 y Mod"]
[null,null,null,null,null,null,null,null,null,null,null,null,null,"383937","Fabricación de acumuladores y pilas eléctricas.","2","5","Rev 2","Comprendido Res 177/07 y Mod"]
[null,null,null,null,null,null,null,null,null,null,null,null,null,"272000","Fabricación de acumuladores, pilas y baterías primarias","2","5","Rev 4","Comprendido Res 177/07 y Mod"]
[null,null,null,null,null,null,null,null,null,null,null,null,null,"384518","Fabricación de aeronaves, planeadores y otros vehículos del espacio, sus componentes, repuestos y accesorios.","2","4","Rev 2","Comprendido Res 177/07 y Mod"]
[null,null,null,null,null,null,null,null,null,null,null,null,null,"201210","Fabricación de alcohol","2","4","Rev 4","Comprendido Res 177/07 y Mod"]
[null,null,null,null,null,null,null,null,null,null,null,null,null,"312215","Fabricación de alimentos preparados para animales","1","3","Rev 2"]
[null,null,null,null,null,null,null,null,null,null,null,null,null,"271020","Fabricación de aparatos de distribución y control de la energía eléctrica","2","4","Rev 4","Comprendido Res 177/07 y Mod"]
[null,null,null,null,null,null,null,null,null,null,null,null,null,"312000","Fabricación de aparatos de distribución y control de la energía eléctrica","2","4","Rev3","Comprendido Res 177/07 y Mod"]
[null,null,null,null,null,null,null,null,null,null,null,null,null,"275099","Fabricación de aparatos de uso doméstico n.c.p.","2","3","Rev 4","Comprendido Res 177/07 y Mod"]
[null,null,null,null,null,null,null,null,null,null,null,null,null,"383368","Fabricación de aparatos y accesorios eléctricos de uso doméstico no clasificados en otra parte.","2","3","Rev 2","Comprendido Res 177/07 y Mod"]
[null,null,null,null,null,null,null,null,null,null,null,null,null,"293099","Fabricación de aparatos y accesorios eléctricos n.c.p.","2","3",null,"Comprendido Res 177/07 y Mod"]
[null,null,null,null,null,null,null,null,null,null,null,null,null,"267002","Fabricación de aparatos y accesorios para fotografía excepto películas, placas y papeles sensibles","1","3","Rev 4"]
[null,null,null,null,null,null,null,null,null,null,null,null,null,"332001","Fabricación de aparatos y accesorios para fotografía excepto películas, placas y papeles sensibles","1","3","Rev3"]
[null,null,null,null,null,null,null,null,null,null,null,null,null,"385212","Fabricación de aparatos y accesorios para fotografía excepto películas, placas y papeles sensibles.","1","3","Rev 2"]
[null,null,null,null,null,null,null,null,null,null,null,null,null,"252000","Fabricación de armas y municiones","2","5","Rev 4","Comprendido Res 177/07 y Mod"]
[null,null,null,null,null,null,null,null,null,null,null,null,null,"292700","Fabricación de armas y municiones","2","5","Rev3","Comprendido Res 177/07 y Mod"]
[null,null,null,null,null,null,null,null,null,null,null,null,null,"382957","Fabricación de armas.","2","5","Rev 2","Comprendido Res 177/07 y Mod"]
[null,null,null,null,null,null,null,null,null,null,null,null,null,"293095","Fabricación de artefactos para iluminación excepto los eléctricos","2","3","Rev3","Comprendido Res 177/07 y Mod"]
[null,null,null,null,null,null,null,null,null,null,null,null,null,"361046","Fabricación de artefactos sanitarios.","1","3","Rev 2"]
[null,null,null,null,null,null,null,null,null,null,null,null,null,"321281","Fabricación de artículos confeccionados con materiales textiles excepto prendas de vestir, no clasificados en otra parte.","1","3","Rev 2"]
[null,null,null,null,null,null,null,null,null,null,null,null,null,"172109","Fabricación de artículos confeccionados de materiales textiles excepto prendas de vestir n.c.p.","1","3","Rev3"]
[null,null,null,null,null,null,null,null,null,null,null,null,null,"139209","Fabricación de artículos confeccionados de materiales textiles n.c.p., excepto prendas de vestir","1","3","Rev 4"]
[null,null,null,null,null,null,null,null,null,null,null,null,null,"269591","Fabricación de artículos de cemento y fibrocemento","1","4"]
[null,null,null,null,null,null,null,null,null,null,null,null,null,"369918","Fabricación de artículos de cemento y fibrocemento.","1","4","Rev 2"]
[null,null,null,null,null,null,null,null,null,null,null,null,null,"239593","Fabricación de artículos de cemento, fibrocemento y yeso excepto hormigón y mosaicos","1","4","Rev 4"]
[null,null,null,null,null,null,null,null,null,null,null,null,null,"239399","Fabricación de artículos de cerámica no refractaria para uso no estructural n.c.p.","1","3","Rev 4"]
[null,null,null,null,null,null,null,null,null,null,null,null,null,"202901","Fabricación de artículos de cestería, caña y mimbre","1","1"]
[null,null,null,null,null,null,null,null,null,null,null,null,null,"259302","Fabricación de artículos de cuchillería y utensillos de mesa y de cocina","2","2","Rev 4","Comprendido Res 177/07 y Mod"]
[null,null,null,null,null,null,null,null,null,null,null,null,null,"289302","Fabricación de artículos de cuchillería y utensillos de mesa y de cocina","2","2",null,"Comprendido Res 177/07 y Mod"]
[null,null,null,null,null,null,null,null,null,null,null,null,null,"323001","Fabricación de artículos de deporte","1","2","Rev 4"]
[null,null,null,null,null,null,null,null,null,null,null,null,null,"369300","Fabricación de artículos de deporte (Incluye equipos de deporte, para gimnasios y campos de juegos, equipos de pesca y camping, etc., excepto indumentaria deportiva)","1","2","Rev3"]
[null,null,null,null,null,null,null,null,null,null,null,null,null,"390313","Fabricación de artículos de deporte y atletismo (incluye equipos de deporte, para gimnasios y campos de juego, equipos de pesca y camping, etc. indumentaria deportiva)","1","2","Rev 2"]
[null,null,null,null,null,null,null,null,null,null,null,null,null,"139203","Fabricación de artículos de lona y sucedáneos de lona","1","3","Rev 4"]
[null,null,null,null,null,null,null,null,null,null,null,null,null,"172103","Fabricación de artículos de lona y sucedáneos de lona","1","3"]
[null,null,null,null,null,null,null,null,null,null,null,null,null,"321230","Fabricación de artículos de lona y sucedáneos de lona. ","1","3","Rev 2"]
[null,null,null,null,null,null,null,null,null,null,null,null,null,"162902","Fabricación de artículos de madera en tornerías","1","1","Rev 4"]
[null,null,null,null,null,null,null,null,null,null,null,null,null,"202903","Fabricación de artículos de madera en tornerías","1","1"]
[null,null,null,null,null,null,null,null,null,null,null,null,null,"331929","Fabricación de artículos de madera en tornerías","1","1","Rev 2"]
[null,null,null,null,null,null,null,null,null,null,null,null,null,"170910","Fabricación de artículos de papel y cartón de uso doméstico e higiénico sanitario","1","4","Rev 4"]
[null,null,null,null,null,null,null,null,null,null,null,null,null,"210910","Fabricación de artículos de papel y cartón de uso doméstico e higiénico sanitario","1","4","Rev3"]
[null,null,null,null,null,null,null,null,null,null,null,null,null,"170990","Fabricación de artículos de papel y cartón n.c.p.","1","4","Rev 4"]
[null,null,null,null,null,null,null,null,null,null,null,null,null,"210990","Fabricación de artículos de papel y cartón n.c.p.","1","4","Rev3"]
[null,null,null,null,null,null,null,null,null,null,null,null,null,"341916","Fabricación de artículos de pulpa, papel y cartón no clasificados en otra parte ","1","4","Rev 2"]
[null,null,null,null,null,null,null,null,null,null,null,null,null,"362026","Fabricación de artículos de vidrio y cristal excepto espejos y vitrales.","2","4","Rev 2","Comprendido Res 177/07 y Mod"]
[null,null,null,null,null,null,null,null,null,null,null,null,null,"390976","Fabricación de artículos no clasificados en otra parte.","1","3","Rev 2"]
[null,null,null,null,null,null,null,null,null,null,null,null,null,"239310","Fabricación de artículos sanitarios de cerámica","1","3","Rev 4"]
[null,null,null,null,null,null,null,null,null,null,null,null,null,"269110","Fabricación de artículos sanitarios de cerámica","1","3","Rev3"]
[null,null,null,null,null,null,null,null,null,null,null,null,null,"162901","Fabricación de ataúdes","1","2","Rev 4"]
[null,null,null,null,null,null,null,null,null,null,null,null,null,"202902","Fabricación de ataúdes","1","2","Rev3"]
[null,null,null,null,null,null,null,null,null,null,null,null,null,"331910","Fabricación de ataúdes","1","2","Rev 2"]
[null,null,null,null,null,null,null,null,null,null,null,null,null,"221901","Fabricación de autopartes de caucho excepto cámaras y cubiertas","3","4","Rev 4","Comprendido Res 177/07 y Mod"]
[null,null,null,null,null,null,null,null,null,null,null,null,null,"309200","Fabricación de bicicletas y de sillones de ruedas ortopédicos","1","3","Rev 4"]
[null,null,null,null,null,null,null,null,null,null,null,null,null,"359200","Fabricación de bicicletas y de sillones de ruedas para inválidos","1","3","Rev3"]
[null,null,null,null,null,null,null,null,null,null,null,null,null,"321020","Fabricación de bijouterie","1","2","Rev 4"]
[null,null,null,null,null,null,null,null,null,null,null,null,null,"201220","Fabricación de biocombustibles excepto alcohol","3","5","Rev 4","Comprendido Res 177/07 y Mod"]
[null,null,null,null,null,null,null,null,null,null,null,null,null,"139204","Fabricación de bolsas de materiales textiles para productos a granel","1","3","Rev 4"]
[null,null,null,null,null,null,null,null,null,null,null,null,null,"172104","Fabricación de bolsas de materiales textiles para productos a granel","1","3","Rev3"]
[null,null,null,null,null,null,null,null,null,null,null,null,null,"321249","Fabricación de bolsas de materiales textiles para productos a granel","1","3","Rev 2"]
[null,null,null,null,null,null,null,null,null,null,null,null,null,"281201","Fabricación de bombas","2","4","Rev 4","Comprendido Res 177/07 y Mod"]
[null,null,null,null,null,null,null,null,null,null,null,null,null,"291200","Fabricación de bombas; compresores; grifos y válvulas","2","4","Rev3","Comprendido Res 177/07 y Mod"]
[null,null,null,null,null,null,null,null,null,null,null,null,null,"273110","Fabricación de cables de fibra óptica","2","3","Rev 4","Comprendido Res 177/07 y Mod"]
[null,null,null,null,null,null,null,null,null,null,null,null,null,"311928","Fabricación de cacao,chocolate, bombones y otros productos a base del grano de cacao","1","4","Rev 2"]
[null,null,null,null,null,null,null,null,null,null,null,null,null,"259992","Fabricación de cajas de seguridad","2","2","Rev 4","Comprendido Res 177/07 y Mod"]
[null,null,null,null,null,null,null,null,null,null,null,null,null,"289992","Fabricación de cajas de seguridad","2","2",null,"Comprendido Res 177/07 y Mod"]
[null,null,null,null,null,null,null,null,null,null,null,null,null,"381942","Fabricación de cajas de seguridad.","2","2","Rev 2","Comprendido Res 177/07 y Mod"]
[null,null,null,null,null,null,null,null,null,null,null,null,null,"369217","Fabricación de cal.","2","4","Rev 2","Comprendido Res 177/07 y Mod"]
[null,null,null,null,null,null,null,null,null,null,null,null,null,"324019","Fabricación de calzado de cuero ","1","3","Rev 2"]
[null,null,null,null,null,null,null,null,null,null,null,null,null,"152011","Fabricación de calzado de cuero, excepto calzado deportivo y ortopédico","1","3","Rev 4"]
[null,null,null,null,null,null,null,null,null,null,null,null,null,"192010","Fabricación de calzado de cuero, excepto el ortopédico","1","3","Rev3"]
[null,null,null,null,null,null,null,null,null,null,null,null,null,"152021","Fabricación de calzado de materiales n.c.p., excepto calzado deportivo y ortopédico","1","4","Rev 4"]
[null,null,null,null,null,null,null,null,null,null,null,null,null,"324027","Fabricación de calzado de tela y de otros materiales excepto el de cuero, caucho vulcanizado o moldeado, madera y plástico.","1","4","Rev 2"]
[null,null,null,null,null,null,null,null,null,null,null,null,null,"192020","Fabricación de calzado de tela, plástico, goma, caucho y otros materiales, excepto calzado ortopédico y de asbesto","1","4","Rev3"]
[null,null,null,null,null,null,null,null,null,null,null,null,null,"152031","Fabricación de calzado deportivo","1","3","Rev 4"]
[null,null,null,null,null,null,null,null,null,null,null,null,null,"355119","Fabricación de cámaras y cubiertas.","3","4","Rev 2","Comprendido Res 177/07 y Mod"]
[null,null,null,null,null,null,null,null,null,null,null,null,null,"251101","Fabricación de carpintería metálica","2","2","Rev 4","Comprendido Res 177/07 y Mod"]
[null,null,null,null,null,null,null,null,null,null,null,null,null,"281101","Fabricación de carpintería metálica","2","2","Rev3","Comprendido Res 177/07 y Mod"]
[null,null,null,null,null,null,null,null,null,null,null,null,null,"292000","Fabricación de carrocerías para vehículos automotores, fabricación de remolques y semirremolques","2","4","Rev 4","Comprendido Res 177/07 y Mod"]
[null,null,null,null,null,null,null,null,null,null,null,null,null,"342000","Fabricación de carrocerías para vehículos automotores; fabricación de remolques y semirremolques","2","4","Rev3","Comprendido Res 177/07 y Mod"]
[null,null,null,null,null,null,null,null,null,null,null,null,null,"329030","Fabricación de carteles, señales e indicadores -eléctricos o no-","1","3","Rev 4"]
[null,null,null,null,null,null,null,null,null,null,null,null,null,"170202","Fabricación de cartón ondulado y envases de cartón","1","3","Rev 4"]
[null,null,null,null,null,null,null,null,null,null,null,null,null,"369225","Fabricación de cemento.","2","4","Rev 2","Comprendido Res 177/07 y Mod"]
[null,null,null,null,null,null,null,null,null,null,null,null,null,"369920","Fabricación de cepillos y pinceles","1","3","Rev3"]
[null,null,null,null,null,null,null,null,null,null,null,null,null,"390933","Fabricación de cepillos, pinceles y escobas.","1","3","Rev 2"]
[null,null,null,null,null,null,null,null,null,null,null,null,null,"259309","Fabricación de cerraduras, herrajes y artículos de ferretería n.c.p.","2","2","Rev 4","Comprendido Res 177/07 y Mod"]
[null,null,null,null,null,null,null,null,null,null,null,null,null,"289309","Fabricación de cerraduras, herrajes y artículos de ferretería n.c.p.  (No incluye clavos, productos de bulonería, vajilla de mesa y de cocina, etc.)","2","2","Rev3","Comprendido Res 177/07 y Mod"]
[null,null,null,null,null,null,null,null,null,null,null,null,null,"381152","Fabricación de cerraduras, llaves, herrajes y otros artículos de ferreteria.","2","2","Rev 2","Comprendido Res 177/07 y Mod"]
[null,null,null,null,null,null,null,null,null,null,null,null,null,"314013","Fabricación de cigarrillos","1","3","Rev 2"]
[null,null,null,null,null,null,null,null,null,null,null,null,null,"382922","Fabricación de cocinas, calefones, estufas y calefactores de uso doméstico excepto los eléctricos.","2","4","Rev 2","Comprendido Res 177/07 y Mod"]
[null,null,null,null,null,null,null,null,null,null,null,null,null,"293010","Fabricación de cocinas, calefones, estufas y calefactores de uso doméstico no eléctricos","2","4","Rev3","Comprendido Res 177/07 y Mod"]
[null,null,null,null,null,null,null,null,null,null,null,null,null,"275010","Fabricación de cocinas, calefones, estufas y calefactores no eléctricos","2","4","Rev 4","Comprendido Res 177/07 y Mod"]
[null,null,null,null,null,null,null,null,null,null,null,null,null,"281400","Fabricación de cojinetes, engranajes, trenes de engranaje y piezas de transmisión","2","4","Rev 4","Comprendido Res 177/07 y Mod"]
[null,null,null,null,null,null,null,null,null,null,null,null,null,"291300","Fabricación de cojinetes; engranajes; trenes de engranaje y piezas de transmisión","2","4","Rev3","Comprendido Res 177/07 y Mod"]
[null,null,null,null,null,null,null,null,null,null,null,null,null,"202907","Fabricación de colas, adhesivos, aprestos y cementos excepto los odontológicos obtenidos de sustancias minerales y vegetales","3","5","Rev 4","Comprendido Res 177/07 y Mod"]
[null,null,null,null,null,null,null,null,null,null,null,null,null,"242903","Fabricación de colas, adhesivos, aprestos y cementos excepto los odontológicos obtenidos de sustancias minerales y vegetales","3","5","Rev3","Comprendido Res 177/07 y Mod"]
[null,null,null,null,null,null,null,null,null,null,null,null,null,"352942","Fabricación de colas, adhesivos, aprestos y cementos excepto los odontológicos obtenidos de sustancias minerales y vegetales","3","5","Rev 2","Comprendido Res 177/07 y Mod"]
[null,null,null,null,null,null,null,null,null,null,null,null,null,"332038","Fabricación de colchones.","1","4","Rev 2"]
[null,null,null,null,null,null,null,null,null,null,null,null,null,"233000","Fabricación de combustible nuclear","1","5","Rev3"]
[null,null,null,null,null,null,null,null,null,null,null,null,null,"201140","Fabricación de combustible nuclear, sustancias y materiales radiactivos","1","5","Rev 4"]
[null,null,null,null,null,null,null,null,null,null,null,null,null,"261000","Fabricación de componentes electrónicos","2","3","Rev 4","Comprendido Res 177/07 y Mod"]
[null,null,null,null,null,null,null,null,null,null,null,null,null,"281301","Fabricación de compresores, grifos y válvulas","2","4","Rev 4","Comprendido Res 177/07 y Mod"]
[null,null,null,null,null,null,null,null,null,null,null,null,null,"383945","Fabricación de conductores eléctricos","2","3","Rev 2","Comprendido Res 177/07 y Mod"]
[null,null,null,null,null,null,null,null,null,null,null,null,null,"242490","Fabricación de cosméticos, perfumes y  productos de higiene y tocador","2","5","Rev3","Comprendido Res 177/07 y Mod"]
[null,null,null,null,null,null,null,null,null,null,null,null,null,"202320","Fabricación de cosméticos, perfumes y productos de higiene y tocador","2","5","Rev 4","Comprendido Res 177/07 y Mod"]
[null,null,null,null,null,null,null,null,null,null,null,null,null,"221110","Fabricación de cubiertas y cámaras","3","4","Rev 4","Comprendido Res 177/07 y Mod"]
[null,null,null,null,null,null,null,null,null,null,null,null,null,"251110","Fabricación de cubiertas y cámaras","3","4","Rev3","Comprendido Res 177/07 y Mod"]
[null,null,null,null,null,null,null,null,null,null,null,null,null,"381136","Fabricación de cuchillería, vajilla y baterias de cocina de acero inoxidable.","2","4","Rev 2","Comprendido Res 177/07 y Mod"]
[null,null,null,null,null,null,null,null,null,null,null,null,null,"381144","Fabricación de cuchillería, vajilla y baterías de cocina, excepto las de acero inoxidable.","2","2","Rev 2","Comprendido Res 177/07 y Mod"]
[null,null,null,null,null,null,null,null,null,null,null,null,null,"139400","Fabricación de cuerdas, cordeles, bramantes y redes","1","3","Rev 4"]
[null,null,null,null,null,null,null,null,null,null,null,null,null,"172300","Fabricación de cuerdas, cordeles, bramantes y redes","1","3"]
[null,null,null,null,null,null,null,null,null,null,null,null,null,"201120","Fabricación de curtientes naturales y sintéticos","3","5","Rev 4","Comprendido Res 177/07 y Mod"]
[null,null,null,null,null,null,null,null,null,null,null,null,null,"241120","Fabricación de curtientes naturales y sintéticos.","3","5","Rev3","Comprendido Res 177/07 y Mod"]
[null,null,null,null,null,null,null,null,null,null,null,null,null,"293093","Fabricación de enceradoras, pulidoras, batidoras, licuadoras y similares","2","3","Rev3","Comprendido Res 177/07 y Mod"]
[null,null,null,null,null,null,null,null,null,null,null,null,null,"341223","Fabricación de envases de carton","1","3","Rev 2"]
[null,null,null,null,null,null,null,null,null,null,null,null,null,"210202","Fabricación de envases de cartón","1","3","Rev3"]
[null,null,null,null,null,null,null,null,null,null,null,null,null,"381918","Fabricacion de envases de hojalata.","2","2","Rev 2","Comprendido Res 177/07 y Mod"]
[null,null,null,null,null,null,null,null,null,null,null,null,null,"210201","Fabricación de envases de papel","1","3","Rev3"]
[null,null,null,null,null,null,null,null,null,null,null,null,null,"341215","Fabricación de envases de papel","1","3","Rev 2"]
[null,null,null,null,null,null,null,null,null,null,null,null,null,"356018","Fabricación de envases de plástico","2","4","Rev 2","Comprendido Res 177/07 y Mod"]
[null,null,null,null,null,null,null,null,null,null,null,null,null,"231010","Fabricación de envases de vidrio","2","4","Rev 4","Comprendido Res 177/07 y Mod"]
[null,null,null,null,null,null,null,null,null,null,null,null,null,"261010","Fabricación de envases de vidrio","2","4","Rev3","Comprendido Res 177/07 y Mod"]
[null,null,null,null,null,null,null,null,null,null,null,null,null,"259910","Fabricación de envases metálicos","2","2","Rev 4","Comprendido Res 177/07 y Mod"]
[null,null,null,null,null,null,null,null,null,null,null,null,null,"289910","Fabricación de envases metálicos","2","2","Rev3","Comprendido Res 177/07 y Mod"]
[null,null,null,null,null,null,null,null,null,null,null,null,null,"222010","Fabricación de envases plásticos","2","4","Rev 4","Comprendido Res 177/07 y Mod"]
[null,null,null,null,null,null,null,null,null,null,null,null,null,"252010","Fabricación de envases plásticos","2","4","Rev3","Comprendido Res 177/07 y Mod"]
[null,null,null,null,null,null,null,null,null,null,null,null,null,"331228","Fabricación de envases y embalajes de madera (barriles, tambores, cajas, etc.).","1","2","Rev 2"]
[null,null,null,null,null,null,null,null,null,null,null,null,null,"267001","Fabricación de equipamiento e instrumentos ópticos y sus accesorios","1","2","Rev 4"]
[null,null,null,null,null,null,null,null,null,null,null,null,null,"265102","Fabricación de equipo de control de procesos industriales","1","3","Rev 4"]
[null,null,null,null,null,null,null,null,null,null,null,null,null,"331300","Fabricación de equipo de control de procesos industriales","1","3","Rev3"]
[null,null,null,null,null,null,null,null,null,null,null,null,null,"291500","Fabricación de equipo de elevación y manipulación (Incluye la fabricación de ascensores, escaleras mecánicas, montacargas, etc.)","2","3","Rev3","Comprendido Res 177/07 y Mod"]
[null,null,null,null,null,null,null,null,null,null,null,null,null,"329040","Fabricación de equipo de protección y seguridad, excepto calzado","1","3","Rev 4"]
[null,null,null,null,null,null,null,null,null,null,null,null,null,"309900","Fabricación de equipo de transporte n.c.p.","1","4","Rev 4"]
[null,null,null,null,null,null,null,null,null,null,null,null,null,"359900","Fabricación de equipo de transporte n.c.p.","1","4","Rev3"]
[null,null,null,null,null,null,null,null,null,null,null,null,null,"279000","Fabricación de equipo eléctrico n.c.p.","2","3","Rev 4","Comprendido Res 177/07 y Mod"]
[null,null,null,null,null,null,null,null,null,null,null,null,null,"331100","Fabricación de equipo médico y quirúrgico y de aparatos ortopédicos","1","2","Rev3"]
[null,null,null,null,null,null,null,null,null,null,null,null,null,"266090","Fabricación de equipo médico y quirúrgico y de aparatos ortopédicos n.c.p.","1","2","Rev 4"]
[null,null,null,null,null,null,null,null,null,null,null,null,null,"266010","Fabricación de equipo médico y quirúrgico y de aparatos ortopédicos principalmente electrónicos y/o eléctricos","1","2","Rev 4"]
[null,null,null,null,null,null,null,null,null,null,null,null,null,"263000","Fabricación de equipos de comunicaciones y transmisores de radio y televisión","2","3","Rev 4","Comprendido Res 177/07 y Mod"]
[null,null,null,null,null,null,null,null,null,null,null,null,null,"262000","Fabricación de equipos y productos informáticos","1","3","Rev 4"]
[null,null,null,null,null,null,null,null,null,null,null,null,null,"329020","Fabricación de escobas, cepillos y pinceles","1","3","Rev 4"]
[null,null,null,null,null,null,null,null,null,null,null,null,null,"261091","Fabricación de espejos y vitrales","1","4","Rev3"]
[null,null,null,null,null,null,null,null,null,null,null,null,null,"281102","Fabricación de estructuras metálicas para la construcción","2","2","Rev3","Comprendido Res 177/07 y Mod"]
[null,null,null,null,null,null,null,null,null,null,null,null,null,"381322","Fabricación de estructuras metálicas para la construcción.","2","2","Rev 2","Comprendido Res 177/07 y Mod"]
[null,null,null,null,null,null,null,null,null,null,null,null,null,"202906","Fabricación de explosivos y productos de pirotecnia","3","5","Rev 4","Comprendido Res 177/07 y Mod"]
[null,null,null,null,null,null,null,null,null,null,null,null,null,"242902","Fabricación de explosivos, municiones y productos de pirotecnia","3","5","Rev3","Comprendido Res 177/07 y Mod"]
[null,null,null,null,null,null,null,null,null,null,null,null,null,"352934","Fabricación de explosivos, municiones y productos de pirotecnia.","3","5","Rev 2","Comprendido Res 177/07 y Mod"]
[null,null,null,null,null,null,null,null,null,null,null,null,null,"351334","Fabricación de fibras artificiales no clasificadas en otra parte excepto vidrio.","1","4","Rev 2"]
[null,null,null,null,null,null,null,null,null,null,null,null,null,"203000","Fabricación de fibras manufacturadas","1","4","Rev 4"]
[null,null,null,null,null,null,null,null,null,null,null,null,null,"243000","Fabricación de fibras manufacturadas","1","4","Rev3"]
[null,null,null,null,null,null,null,null,null,null,null,null,null,"369991","Fabricación de fósforos","1","5","Rev3"]
[null,null,null,null,null,null,null,null,null,null,null,null,null,"321214","Fabricacion de frazadas , mantas , ponchos, colchas, cobertores, etc.","1","3","Rev 2"]
[null,null,null,null,null,null,null,null,null,null,null,null,null,"139201","Fabricación de frazadas, mantas, ponchos, colchas, cobertores, etc.","1","3","Rev 4"]
[null,null,null,null,null,null,null,null,null,null,null,null,null,"172101","Fabricación de frazadas, mantas, ponchos, colchas, cobertores, etc.","1","3","Rev3"]
[null,null,null,null,null,null,null,null,null,null,null,null,null,"311723","Fabricación de galletitas, bizcochos y otros productos secos de panadería","1","3","Rev 2"]
[null,null,null,null,null,null,null,null,null,null,null,null,null,"352010","Fabricación de gas y procesamiento de gas natural","2","5","Rev 4","Comprendido Res 177/07 y Mod"]
[null,null,null,null,null,null,null,null,null,null,null,null,null,"351121","Fabricación de gases comprimidos y licuados excepto los de uso doméstico.","3","5","Rev 2","Comprendido Res 177/07 y Mod"]
[null,null,null,null,null,null,null,null,null,null,null,null,null,"241110","Fabricación de gases comprimidos y licuados.","3","5","Rev3","Comprendido Res 177/07 y Mod"]
[null,null,null,null,null,null,null,null,null,null,null,null,null,"201110","Fabricación de gases industriales y medicinales comprimidos o licuados","3","5","Rev 4","Comprendido Res 177/07 y Mod"]
[null,null,null,null,null,null,null,null,null,null,null,null,null,"251300","Fabricación de generadores de vapor","2","2","Rev 4","Comprendido Res 177/07 y Mod"]
[null,null,null,null,null,null,null,null,null,null,null,null,null,"281300","Fabricación de generadores de vapor","2","2",null,"Comprendido Res 177/07 y Mod"]
[null,null,null,null,null,null,null,null,null,null,null,null,null,"275020","Fabricación de heladeras, \"freezers\", lavarropas y secarropas","2","4","Rev 4","Comprendido Res 177/07 y Mod"]
[null,null,null,null,null,null,null,null,null,null,null,null,null,"293020","Fabricación de heladeras, \"freezers\", lavarropas y secarropas","2","4",null,"Comprendido Res 177/07 y Mod"]
[null,null,null,null,null,null,null,null,null,null,null,null,null,"383317","Fabricación de heladeras,\"freezers\", lavarropas y secarropas.","2","4","Rev 2","Comprendido Res 177/07 y Mod"]
[null,null,null,null,null,null,null,null,null,null,null,null,null,"381128","Fabricación de herramientas manuales para campo y jardín, para plomería, albañileria, etc.","2","3","Rev 2","Comprendido Res 177/07 y Mod"]
[null,null,null,null,null,null,null,null,null,null,null,null,null,"259301","Fabricación de herramientas manuales y sus accesorios","2","3","Rev 4","Comprendido Res 177/07 y Mod"]
[null,null,null,null,null,null,null,null,null,null,null,null,null,"289301","Fabricación de herramientas manuales y sus accesorios","2","3","Rev3","Comprendido Res 177/07 y Mod"]
[null,null,null,null,null,null,null,null,null,null,null,null,null,"171132","Fabricación de hilados de algodón y sus mezclas","1","3","Rev3"]
[null,null,null,null,null,null,null,null,null,null,null,null,null,"171131","Fabricación de hilados de lana y sus mezclas","1","3","Rev3"]
[null,null,null,null,null,null,null,null,null,null,null,null,null,"131132","Fabricación de hilados textiles de algodón y sus mezclas","1","3","Rev 4"]
[null,null,null,null,null,null,null,null,null,null,null,null,null,"131131","Fabricación de hilados textiles de lana, pelos y sus mezclas","1","3","Rev 4"]
[null,null,null,null,null,null,null,null,null,null,null,null,null,"171139","Fabricación de hilados textiles excepto de lana y de algodón","1","3","Rev3"]
[null,null,null,null,null,null,null,null,null,null,null,null,null,"131139","Fabricación de hilados textiles n.c.p., excepto de lana y de algodón","1","3","Rev 4"]
[null,null,null,null,null,null,null,null,null,null,null,null,null,"313000","Fabricación de hilos y cables aislados","2","3","Rev3","Comprendido Res 177/07 y Mod"]
[null,null,null,null,null,null,null,null,null,null,null,null,null,"273190","Fabricación de hilos y cables aislados n.c.p.","2","3","Rev 4","Comprendido Res 177/07 y Mod"]
[null,null,null,null,null,null,null,null,null,null,null,null,null,"162100","Fabricación de hojas de madera para enchapado, fabricación de tableros contrachapados, tableros laminados, tableros de partículas y tableros y paneles n.c.p.","2","2","Rev 4","Comprendido Res 177/07 y Mod"]
[null,null,null,null,null,null,null,null,null,null,null,null,null,"202100","Fabricación de hojas de madera para enchapado; fabricación de tableros contrachapados; tableros laminados; tableros de partículas y tableros y paneles n.c.p. (Incluye la fabricación de madera terciada y  machimbre)","2","2","Rev3","Comprendido Res 177/07 y Mod"]
[null,null,null,null,null,null,null,null,null,null,null,null,null,"381926","Fabricación de hornos, estufas y calefactores industriales excepto los eléctricos","2","3","Rev 2","Comprendido Res 177/07 y Mod"]
[null,null,null,null,null,null,null,null,null,null,null,null,null,"281500","Fabricación de hornos, hogares y quemadores","2","3","Rev 4","Comprendido Res 177/07 y Mod"]
[null,null,null,null,null,null,null,null,null,null,null,null,null,"291400","Fabricación de hornos; hogares y quemadores","2","3","Rev3","Comprendido Res 177/07 y Mod"]
[null,null,null,null,null,null,null,null,null,null,null,null,null,"282130","Fabricación de implementos de uso agropecuario","2","4","Rev 4","Comprendido Res 177/07 y Mod"]
[null,null,null,null,null,null,null,null,null,null,null,null,null,"202101","Fabricación de insecticidas, plaguicidas y productos químicos de uso agropecuario","3","5","Rev 4","Comprendido Res 177/07 y Mod"]
[null,null,null,null,null,null,null,null,null,null,null,null,null,"322001","Fabricación de instrumentos de música","1","2","Rev 4"]
[null,null,null,null,null,null,null,null,null,null,null,null,null,"369200","Fabricación de instrumentos de música","1","2","Rev3"]
[null,null,null,null,null,null,null,null,null,null,null,null,null,"390216","Fabricación de instrumentos de música","1","2","Rev 2"]
[null,null,null,null,null,null,null,null,null,null,null,null,null,"332003","Fabricación de instrumentos de óptica","1","2"]
[null,null,null,null,null,null,null,null,null,null,null,null,null,"385220","Fabricación de instrumentos de óptica .","1","2","Rev 2"]
[null,null,null,null,null,null,null,null,null,null,null,null,null,"331200","Fabricación de instrumentos y aparatos para medir, verificar, ensayar, navegar y otros fines, excepto el equipo de control  de procesos industriales","1","3","Rev3"]
[null,null,null,null,null,null,null,null,null,null,null,null,null,"265101","Fabricación de instrumentos y aparatos para medir, verificar, ensayar, navegar y otros fines, excepto el equipo de control de procesos industriales","1","3","Rev 4"]
[null,null,null,null,null,null,null,null,null,null,null,null,null,"202312","Fabricación de jabones y detergentes","2","5","Rev 4","Comprendido Res 177/07 y Mod"]
[null,null,null,null,null,null,null,null,null,null,null,null,null,"242412","Fabricación de jabones y detergentes","2","5",null,"Comprendido Res 177/07 y Mod"]
[null,null,null,null,null,null,null,null,null,null,null,null,null,"352314","Fabricación de jabones y detergentes .","2","5","Rev 2","Comprendido Res 177/07 y Mod"]
[null,null,null,null,null,null,null,null,null,null,null,null,null,"390119","Fabricación de joyas (incluye corte, tallado y pulido de piedras preciosas y semipreciosas, estampado de medallas y acuñación de monedas)","1","2","Rev 2"]
[null,null,null,null,null,null,null,null,null,null,null,null,null,"321011","Fabricación de joyas finas y artículos conexos","1","2","Rev 4"]
[null,null,null,null,null,null,null,null,null,null,null,null,null,"369101","Fabricación de joyas y artículos conexos","1","2"]
[null,null,null,null,null,null,null,null,null,null,null,null,null,"324000","Fabricación de juegos y juguetes","1","4","Rev 4"]
[null,null,null,null,null,null,null,null,null,null,null,null,null,"369400","Fabricación de juegos y juguetes","1","4","Rev3"]
[null,null,null,null,null,null,null,null,null,null,null,null,null,"390917","Fabricación de juegos y juguetes excepto los de caucho y de plástico.","1","4","Rev 2"]
[null,null,null,null,null,null,null,null,null,null,null,null,null,"239201","Fabricación de ladrillos","1","3","Rev 4"]
[null,null,null,null,null,null,null,null,null,null,null,null,null,"269301","Fabricación de ladrillos","1","3","Rev3"]
[null,null,null,null,null,null,null,null,null,null,null,null,null,"369128","Fabricación de ladrillos comunes.","1","3","Rev 2"]
[null,null,null,null,null,null,null,null,null,null,null,null,null,"369136","Fabricación de ladrillos de máquina y baldosas.","1","3","Rev 2"]
[null,null,null,null,null,null,null,null,null,null,null,null,null,"274000","Fabricación de lámparas eléctricas y equipo de iluminación","2","3","Rev 4","Comprendido Res 177/07 y Mod"]
[null,null,null,null,null,null,null,null,null,null,null,null,null,"315000","Fabricación de lámparas eléctricas y equipo de iluminación (Incluye la fabricación de letreros luminosos)","2","3","Rev3","Comprendido Res 177/07 y Mod"]
[null,null,null,null,null,null,null,null,null,null,null,null,null,"383910","Fabricación de lámparas y tubos eléctricos","2","3","Rev 2","Comprendido Res 177/07 y Mod"]
[null,null,null,null,null,null,null,null,null,null,null,null,null,"369910","Fabricación de lápices, lapiceras,  bolígrafos, sellos y artículos similares para oficinas y artistas","1","3","Rev3"]
[null,null,null,null,null,null,null,null,null,null,null,null,null,"390925","Fabricación de lápices, lapiceras, bolígrafos, plumas estilográficas y artículos similares para oficina y artistas.","1","3","Rev 2"]
[null,null,null,null,null,null,null,null,null,null,null,null,null,"329010","Fabricación de lápices, lapiceras, bolígrafos, sellos y artículos similares para oficinas y artistas","1","3","Rev 4"]
[null,null,null,null,null,null,null,null,null,null,null,null,null,"332002","Fabricación de lentes y otros artículos oftálmicos","1","2","Rev3"]
[null,null,null,null,null,null,null,null,null,null,null,null,null,"352000","Fabricación de locomotoras y de material rodante para ferrocarriles y tranvías","2","4","Rev3","Comprendido Res 177/07 y Mod"]
[null,null,null,null,null,null,null,null,null,null,null,null,null,"151200","Fabricación de maletas, bolsos de mano y similares, artículos de talabartería y artículos de cuero n.c.p.","1","3","Rev 4"]
[null,null,null,null,null,null,null,null,null,null,null,null,null,"191200","Fabricación de maletas, bolsos de mano y similares, artículos de talabartería y artículos de cuero n.c.p.","1","3","Rev3"]
[null,null,null,null,null,null,null,null,null,null,null,null,null,"313319","Fabricación de malta, cerveza y bebidas malteadas","1","4","Rev 2"]
[null,null,null,null,null,null,null,null,null,null,null,null,null,"292190","Fabricación de maquinaria agropecuaria y forestal, excepto tractores","2","4","Rev3","Comprendido Res 177/07 y Mod"]
[null,null,null,null,null,null,null,null,null,null,null,null,null,"300000","Fabricación de maquinaria de oficina, contabilidad e informática","-","3","Rev3"]
[null,null,null,null,null,null,null,null,null,null,null,null,null,"292909","Fabricación de maquinaria de uso especial n.c.p.","2","3","Rev3","Comprendido Res 177/07 y Mod"]
[null,null,null,null,null,null,null,null,null,null,null,null,null,"282300","Fabricación de maquinaria metalúrgica","2","4","Rev 4","Comprendido Res 177/07 y Mod"]
[null,null,null,null,null,null,null,null,null,null,null,null,null,"292300","Fabricación de maquinaria metalúrgica","2","4","Rev3","Comprendido Res 177/07 y Mod"]
[null,null,null,null,null,null,null,null,null,null,null,null,null,"282500","Fabricación de maquinaria para la elaboración de alimentos, bebidas y tabaco","2","2","Rev 4","Comprendido Res 177/07 y Mod"]
[null,null,null,null,null,null,null,null,null,null,null,null,null,"292500","Fabricación de maquinaria para la elaboración de alimentos, bebidas y tabaco","2","2","Rev3","Comprendido Res 177/07 y Mod"]
[null,null,null,null,null,null,null,null,null,null,null,null,null,"282600","Fabricación de maquinaria para la elaboración de productos textiles, prendas de vestir y cueros","2","3","Rev 4","Comprendido Res 177/07 y Mod"]
[null,null,null,null,null,null,null,null,null,null,null,null,null,"292600","Fabricación de maquinaria para la elaboración de productos textiles, prendas de vestir y cueros","2","3","Rev3","Comprendido Res 177/07 y Mod"]
[null,null,null,null,null,null,null,null,null,null,null,null,null,"282400","Fabricación de maquinaria para la explotación de minas y canteras y para obras de construcción","2","4","Rev 4","Comprendido Res 177/07 y Mod"]
[null,null,null,null,null,null,null,null,null,null,null,null,null,"292400","Fabricación de maquinaria para la explotación de minas y canteras y para obras de construcción (Incluye la fabricación de máquinas y equipos viales)","2","4","Rev3","Comprendido Res 177/07 y Mod"]
[null,null,null,null,null,null,null,null,null,null,null,null,null,"282901","Fabricación de maquinaria para la industria del papel y las artes gráficas","2","3","Rev 4","Comprendido Res 177/07 y Mod"]
[null,null,null,null,null,null,null,null,null,null,null,null,null,"292901","Fabricación de maquinaria para la industria del papel y las artes gráficas","2","3","Rev3","Comprendido Res 177/07 y Mod"]
[null,null,null,null,null,null,null,null,null,null,null,null,null,"281600","Fabricación de maquinaria y equipo de elevación y manipulación","2","3","Rev 4","Comprendido Res 177/07 y Mod"]
[null,null,null,null,null,null,null,null,null,null,null,null,null,"281700","Fabricación de maquinaria y equipo de oficina, excepto equipo informático","1","3","Rev 4"]
[null,null,null,null,null,null,null,null,null,null,null,null,null,"282120","Fabricación de maquinaria y equipo de uso agropecuario y forestal","2","4","Rev 4","Comprendido Res 177/07 y Mod"]
[null,null,null,null,null,null,null,null,null,null,null,null,null,"282909","Fabricación de maquinaria y equipo de uso especial n.c.p.","2","3","Rev 4","Comprendido Res 177/07 y Mod"]
[null,null,null,null,null,null,null,null,null,null,null,null,null,"281900","Fabricación de maquinaria y equipo de uso general n.c.p.","2","3","Rev 4","Comprendido Res 177/07 y Mod"]
[null,null,null,null,null,null,null,null,null,null,null,null,null,"293091","Fabricación de máquinas de coser y tejer","2","3","Rev3","Comprendido Res 177/07 y Mod"]
[null,null,null,null,null,null,null,null,null,null,null,null,null,"282200","Fabricación de máquinas herramienta","2","4","Rev 4","Comprendido Res 177/07 y Mod"]
[null,null,null,null,null,null,null,null,null,null,null,null,null,"292200","Fabricación de máquinas herramienta","2","4","Rev3","Comprendido Res 177/07 y Mod"]
[null,null,null,null,null,null,null,null,null,null,null,null,null,"384917","Fabricación de material de transporte no clasificado en otra parte (incluye carretillas, rodados para bebé, etc.)","1","4","Rev 2"]
[null,null,null,null,null,null,null,null,null,null,null,null,null,"369152","Fabricación de material refractario.","1","3","Rev 2"]
[null,null,null,null,null,null,null,null,null,null,null,null,null,"201130","Fabricación de materias colorantes básicas, excepto pigmentos preparados","2","5","Rev 4","Comprendido Res 177/07 y Mod"]
[null,null,null,null,null,null,null,null,null,null,null,null,null,"241130","Fabricación de materias colorantes básicas, excepto pigmentos preparados.","2","5","Rev3","Comprendido Res 177/07 y Mod"]
[null,null,null,null,null,null,null,null,null,null,null,null,null,"201409","Fabricación de materias plásticas en formas primarias n.c.p.","3","5","Rev 4","Comprendido Res 177/07 y Mod"]
[null,null,null,null,null,null,null,null,null,null,null,null,null,"241309","Fabricación de materias plásticas en formas primarias n.c.p.","3","5","Rev3","Comprendido Res 177/07 y Mod"]
[null,null,null,null,null,null,null,null,null,null,null,null,null,"351326","Fabricación de materias plásticas.","3","5","Rev 2","Comprendido Res 177/07 y Mod"]
[null,null,null,null,null,null,null,null,null,null,null,null,null,"201180","Fabricación de materias químicas inorgánicas básicas n.c.p.","3","5","Rev 4","Comprendido Res 177/07 y Mod"]
[null,null,null,null,null,null,null,null,null,null,null,null,null,"241180","Fabricación de materias químicas inorgánicas básicas n.c.p.","3","5",null,"Comprendido Res 177/07 y Mod"]
[null,null,null,null,null,null,null,null,null,null,null,null,null,"201190","Fabricación de materias químicas orgánicas básicas n.c.p.","3","5","Rev 4","Comprendido Res 177/07 y Mod"]
[null,null,null,null,null,null,null,null,null,null,null,null,null,"241190","Fabricación de materias químicas orgánicas básicas n.c.p. (Incluye la fabricación de alcoholes excepto el etílico,  sustancias químicas para la elaboración de sustancias plásticas, etc.)","3","5","Rev3","Comprendido Res 177/07 y Mod"]
[null,null,null,null,null,null,null,null,null,null,null,null,null,"143010","Fabricación de medias","1","3","Rev 4"]
[null,null,null,null,null,null,null,null,null,null,null,null,null,"173010","Fabricación de medias","1","3","Rev3"]
[null,null,null,null,null,null,null,null,null,null,null,null,null,"321311","Fabricación de medias","1","3","Rev 2"]
[null,null,null,null,null,null,null,null,null,null,null,null,null,"210010","Fabricación de medicamentos de uso humano y productos farmacéuticos","2","5","Rev 4","Comprendido Res 177/07 y Mod"]
[null,null,null,null,null,null,null,null,null,null,null,null,null,"242310","Fabricación de medicamentos de uso humano y productos farmacéuticos","2","5","Rev3","Comprendido Res 177/07 y Mod"]
[null,null,null,null,null,null,null,null,null,null,null,null,null,"210020","Fabricación de medicamentos de uso veterinario","2","5","Rev 4","Comprendido Res 177/07 y Mod"]
[null,null,null,null,null,null,null,null,null,null,null,null,null,"242320","Fabricación de medicamentos de uso veterinario","2","5","Rev3","Comprendido Res 177/07 y Mod"]
[null,null,null,null,null,null,null,null,null,null,null,null,null,"239510","Fabricación de mosaicos","1","3","Rev 4"]
[null,null,null,null,null,null,null,null,null,null,null,null,null,"269510","Fabricación de mosaicos","1","3","Rev3"]
[null,null,null,null,null,null,null,null,null,null,null,null,null,"369934","Fabricación de mosaicos, baldosas y revestimientos de paredes y pisos no cerámicos.","1","3","Rev 2"]
[null,null,null,null,null,null,null,null,null,null,null,null,null,"309100","Fabricación de motocicletas","2","4","Rev 4","Comprendido Res 177/07 y Mod"]
[null,null,null,null,null,null,null,null,null,null,null,null,null,"359100","Fabricación de motocicletas","2","4","Rev3","Comprendido Res 177/07 y Mod"]
[null,null,null,null,null,null,null,null,null,null,null,null,null,"384410","Fabricación de motocicletas, bicicletas y vehículos similares, sus componentes,repuestos y accesorios.","2","3","Rev 2","Comprendido Res 177/07 y Mod"]
[null,null,null,null,null,null,null,null,null,null,null,null,null,"281100","Fabricación de motores y turbinas, excepto motores para aeronaves, vehículos automotores y motocicletas","2","4","Rev 4","Comprendido Res 177/07 y Mod"]
[null,null,null,null,null,null,null,null,null,null,null,null,null,"271010","Fabricación de motores, generadores y transformadores eléctricos","2","4","Rev 4","Comprendido Res 177/07 y Mod"]
[null,null,null,null,null,null,null,null,null,null,null,null,null,"311000","Fabricación de motores, generadores y transformadores eléctricos","2","4","Rev3","Comprendido Res 177/07 y Mod"]
[null,null,null,null,null,null,null,null,null,null,null,null,null,"332011","Fabricación de muebles y accesorios (excluye colchones) excepto los que son principalmente metálicos y de plástico moldeado ","1","2","Rev 2"]
[null,null,null,null,null,null,null,null,null,null,null,null,null,"381217","Fabricación de muebles y accesorios principalmente metálicos.","1","3","Rev 2"]
[null,null,null,null,null,null,null,null,null,null,null,null,null,"310020","Fabricación de muebles y partes de muebles, excepto los que son principalmente de madera (metal, plástico, etc.)","1","3","Rev 4"]
[null,null,null,null,null,null,null,null,null,null,null,null,null,"310010","Fabricación de muebles y partes de muebles, principalmente de madera","1","2","Rev 4"]
[null,null,null,null,null,null,null,null,null,null,null,null,null,"361010","Fabricación de muebles y partes de muebles, principalmente de madera","1","2","Rev3"]
[null,null,null,null,null,null,null,null,null,null,null,null,null,"361020","Fabricación de muebles y partes de muebles, principalmente de otros materiales (metal, plástico, etc.)","1","3","Rev3"]
[null,null,null,null,null,null,null,null,null,null,null,null,null,"269193","Fabricación de objetos cerámicos excepto revestimientos de pisos y paredes n.c.p.","1","3","Rev3"]
[null,null,null,null,null,null,null,null,null,null,null,null,null,"239391","Fabricación de objetos cerámicos para uso doméstico excepto artefactos sanitarios","1","3","Rev 4"]
[null,null,null,null,null,null,null,null,null,null,null,null,null,"269192","Fabricación de objetos cerámicos para uso doméstico excepto artefactos sanitarios","1","3","Rev3"]
[null,null,null,null,null,null,null,null,null,null,null,null,null,"361011","Fabricación de objetos cerámicos para uso doméstico excepto artefactos sanitarios.","1","3","Rev 2"]
[null,null,null,null,null,null,null,null,null,null,null,null,null,"269191","Fabricación de objetos cerámicos para uso industrial y de laboratorio","1","3","Rev3"]
[null,null,null,null,null,null,null,null,null,null,null,null,null,"361038","Fabricación de objetos cerámicos para uso industrial y de laboratorio.","1","3","Rev 2"]
[null,null,null,null,null,null,null,null,null,null,null,null,null,"321012","Fabricación de objetos de platería","1","2","Rev 4"]
[null,null,null,null,null,null,null,null,null,null,null,null,null,"369102","Fabricación de objetos de platería y artículos enchapados","1","2","Rev3"]
[null,null,null,null,null,null,null,null,null,null,null,null,null,"390127","Fabricación de objetos de platería y artículos enchapados.","1","2","Rev 2"]
[null,null,null,null,null,null,null,null,null,null,null,null,null,"311715","Fabricación de pan y demás productos de panadería excepto los secos","1","3","Rev 2"]
[null,null,null,null,null,null,null,null,null,null,null,null,null,"341126","Fabricación de papel de cartón ","2","4","Rev 2","Comprendido Res 177/07 y Mod"]
[null,null,null,null,null,null,null,null,null,null,null,null,null,"170201","Fabricación de papel ondulado y envases de papel","1","3","Rev 4"]
[null,null,null,null,null,null,null,null,null,null,null,null,null,"170102","Fabricación de papel y cartón excepto envases","2","4","Rev 4","Comprendido Res 177/07 y Mod"]
[null,null,null,null,null,null,null,null,null,null,null,null,null,"210102","Fabricación de papel y cartón excepto envases","2","4","Rev3","Comprendido Res 177/07 y Mod"]
[null,null,null,null,null,null,null,null,null,null,null,null,null,"369992","Fabricación de paraguas","1","3","Rev3"]
[null,null,null,null,null,null,null,null,null,null,null,null,null,"152040","Fabricación de partes de calzado","1","4","Rev 4"]
[null,null,null,null,null,null,null,null,null,null,null,null,null,"192030","Fabricación de partes de calzado","1","4","Rev3"]
[null,null,null,null,null,null,null,null,null,null,null,null,null,"293090","Fabricación de partes, piezas y accesorios para vehículos automotores y sus motores n.c.p.","2","4","Rev 4","Comprendido Res 177/07 y Mod"]
[null,null,null,null,null,null,null,null,null,null,null,null,null,"343000","Fabricación de partes; piezas y accesorios para vehículos automotores y sus motores","2","4","Rev3","Comprendido Res 177/07 y Mod"]
[null,null,null,null,null,null,null,null,null,null,null,null,null,"170101","Fabricación de pasta de madera","3","4","Rev 4","Comprendido Res 177/07 y Mod"]
[null,null,null,null,null,null,null,null,null,null,null,null,null,"311758","Fabricación de pastas frescas","1","3","Rev 2"]
[null,null,null,null,null,null,null,null,null,null,null,null,null,"311766","Fabricación de pastas secas","1","3","Rev 2"]
[null,null,null,null,null,null,null,null,null,null,null,null,null,"352330","Fabricación de perfumes, cosméticos y otros productos de tocador e higiene.","2","5","Rev 2","Comprendido Res 177/07 y Mod"]
[null,null,null,null,null,null,null,null,null,null,null,null,null,"383252","Fabricación de piezas y suministros utilizados especialmente para aparatos de radio, televisión y comunicaciones.","2","3","Rev 2","Comprendido Res 177/07 y Mod"]
[null,null,null,null,null,null,null,null,null,null,null,null,null,"384364","Fabricación de piezas, repuestos y accesorios para automotores excepto cámaras y cubiertas.","2","4","Rev 2","Comprendido Res 177/07 y Mod"]
[null,null,null,null,null,null,null,null,null,null,null,null,null,"202200","Fabricación de pinturas, barnices y productos de revestimiento similares, tintas de imprenta y masillas","3","5","Rev 4","Comprendido Res 177/07 y Mod"]
[null,null,null,null,null,null,null,null,null,null,null,null,null,"352128","Fabricación de pinturas, barnices, lacas, esmaltes y productos similares y conexos","3","5","Rev 2","Comprendido Res 177/07 y Mod"]
[null,null,null,null,null,null,null,null,null,null,null,null,null,"242200","Fabricación de pinturas; barnices y productos de revestimiento similares; tintas de imprenta y masillas","3","5","Rev3","Comprendido Res 177/07 y Mod"]
[null,null,null,null,null,null,null,null,null,null,null,null,null,"351229","Fabricación de plaguicidas incluídos los biológicos.","3","5","Rev 2","Comprendido Res 177/07 y Mod"]
[null,null,null,null,null,null,null,null,null,null,null,null,null,"242100","Fabricación de plaguicidas y  productos químicos de uso agropecuario","3","5","Rev3","Comprendido Res 177/07 y Mod"]
[null,null,null,null,null,null,null,null,null,null,null,null,null,"275092","Fabricación de planchas, calefactores, hornos eléctricos, tostadoras y otros aparatos generadores de calor","2","3","Rev 4","Comprendido Res 177/07 y Mod"]
[null,null,null,null,null,null,null,null,null,null,null,null,null,"293094","Fabricación de planchas, calefactores, hornos eléctricos, tostadoras y otros aparatos generadores de calor","2","3","Rev3","Comprendido Res 177/07 y Mod"]
[null,null,null,null,null,null,null,null,null,null,null,null,null,"383341","Fabricación de planchas, calefactores, hornos eléctricos, tostadoras y otros aparatos generadores de calor.","2","3","Rev 2","Comprendido Res 177/07 y Mod"]
[null,null,null,null,null,null,null,null,null,null,null,null,null,"239592","Fabricación de premoldeadas para la construcción","1","4","Rev 4"]
[null,null,null,null,null,null,null,null,null,null,null,null,null,"269592","Fabricación de premoldeadas para la construcción","1","4","Rev3"]
[null,null,null,null,null,null,null,null,null,null,null,null,null,"369926","Fabricación de premoldeadas para la construcción (incluye viviendas premoldeadas).","1","4","Rev 2"]
[null,null,null,null,null,null,null,null,null,null,null,null,null,"143020","Fabricación de prendas de vestir y artículos similares de punto","1","3","Rev 4"]
[null,null,null,null,null,null,null,null,null,null,null,null,null,"202311","Fabricación de preparados para limpieza, pulido y saneamiento","3","5","Rev 4","Comprendido Res 177/07 y Mod"]
[null,null,null,null,null,null,null,null,null,null,null,null,null,"242411","Fabricación de preparados para limpieza, pulido y saneamiento","3","5","Rev3","Comprendido Res 177/07 y Mod"]
[null,null,null,null,null,null,null,null,null,null,null,null,null,"352322","Fabricación de preparados para limpieza, pulido y saneamiento.","3","5","Rev 2","Comprendido Res 177/07 y Mod"]
[null,null,null,null,null,null,null,null,null,null,null,null,null,"312193","Fabricación de productos alimentarios no clasificados en otra parte","1","3","Rev 2"]
[null,null,null,null,null,null,null,null,null,null,null,null,null,"239209","Fabricación de productos de arcilla y cerámica no refractaria para uso estructural n.c.p.","1","3","Rev 4"]
[null,null,null,null,null,null,null,null,null,null,null,null,null,"269309","Fabricación de productos de arcilla y cerámica no refractaria para uso estructural n.c.p.","1","3","Rev3"]
[null,null,null,null,null,null,null,null,null,null,null,null,null,"381314","Fabricación de productos de carpintería metálica.","2","2","Rev 2","Comprendido Res 177/07 y Mod"]
[null,null,null,null,null,null,null,null,null,null,null,null,null,"355135","Fabricación de productos de caucho excepto cámaras y cubiertas, destinados a la industria automotriz.","3","4","Rev 2","Comprendido Res 177/07 y Mod"]
[null,null,null,null,null,null,null,null,null,null,null,null,null,"221909","Fabricación de productos de caucho n.c.p.","3","4","Rev 4","Comprendido Res 177/07 y Mod"]
[null,null,null,null,null,null,null,null,null,null,null,null,null,"355925","Fabricación de productos de caucho no clasificados en otra parte.","3","4","Rev 2","Comprendido Res 177/07 y Mod"]
[null,null,null,null,null,null,null,null,null,null,null,null,null,"239100","Fabricación de productos de cerámica refractaria","-","3","Rev 4"]
[null,null,null,null,null,null,null,null,null,null,null,null,null,"269200","Fabricación de productos de cerámica refractaria","1","3","Rev3"]
[null,null,null,null,null,null,null,null,null,null,null,null,null,"311936","Fabricación de productos de confitería no clasificados en otra parte (incluye caramelos, frutas confitadas, pastillas, gomas de mascar, etc.)","1","3","Rev 2"]
[null,null,null,null,null,null,null,null,null,null,null,null,null,"162903","Fabricación de productos de corcho","1","1","Rev 4"]
[null,null,null,null,null,null,null,null,null,null,null,null,null,"202904","Fabricación de productos de corcho","1","1","Rev3"]
[null,null,null,null,null,null,null,null,null,null,null,null,null,"331937","Fabricación de productos de corcho.","1","1","Rev 2"]
[null,null,null,null,null,null,null,null,null,null,null,null,null,"323314","Fabricación de productos de cuero y sucedáneos (bolsos, valijas, carteras, arneces, etc.) excepto calzado y otras prendas de vestir .","1","3","Rev 2"]
[null,null,null,null,null,null,null,null,null,null,null,null,null,"191000","Fabricación de productos de hornos de coque","3","5","Rev 4","Comprendido Res 177/07 y Mod"]
[null,null,null,null,null,null,null,null,null,null,null,null,null,"231000","Fabricación de productos de hornos de coque","3","5","Rev3","Comprendido Res 177/07 y Mod"]
[null,null,null,null,null,null,null,null,null,null,null,null,null,"192000","Fabricación de productos de la refinación del petróleo","3","5","Rev 4","Comprendido Res 177/07 y Mod"]
[null,null,null,null,null,null,null,null,null,null,null,null,null,"232000","Fabricación de productos de la refinación del petróleo","3","5","Rev3","Comprendido Res 177/07 y Mod"]
[null,null,null,null,null,null,null,null,null,null,null,null,null,"210090","Fabricación de productos de laboratorio y productos botánicos de uso farmaceútico n.c.p.","2","5","Rev 4","Comprendido Res 177/07 y Mod"]
[null,null,null,null,null,null,null,null,null,null,null,null,null,"242390","Fabricación de productos de laboratorio,  sustancias químicas medicinales y productos botánicos n.c.p.","2","5","Rev3","Comprendido Res 177/07 y Mod"]
[null,null,null,null,null,null,null,null,null,null,null,null,null,"202909","Fabricación de productos de madera n.c.p","1","2","Rev3"]
[null,null,null,null,null,null,null,null,null,null,null,null,null,"162909","Fabricación de productos de madera n.c.p, fabricación de artículos de paja y materiales trenzables","1","2","Rev4"]
[null,null,null,null,null,null,null,null,null,null,null,null,null,"331945","Fabricación de productos de madera no clasificados en otra parte .","1","2","Rev 2"]
[null,null,null,null,null,null,null,null,null,null,null,null,null,"369942","Fabricación de productos de mármol y granito. Marmolerías.","1","3","Rev 2"]
[null,null,null,null,null,null,null,null,null,null,null,null,null,"171149","Fabricación de productos de tejeduría n.c.p.","1","3","Rev3"]
[null,null,null,null,null,null,null,null,null,null,null,null,null,"231090","Fabricación de productos de vidrio n.c.p.","1","4","Rev 4"]
[null,null,null,null,null,null,null,null,null,null,null,null,null,"261099","Fabricación de productos de vidrio n.c.p.","1","4","Rev3"]
[null,null,null,null,null,null,null,null,null,null,null,null,null,"314021","Fabricación de productos del tabaco no clasificados en otra parte","1","3","Rev 2"]
[null,null,null,null,null,null,null,null,null,null,null,null,null,"354015","Fabricación de productos derivados del petróleo y del carbón excepto  la refinación de petróleo.","3","5","Rev 2","Comprendido Res 177/07 y Mod"]
[null,null,null,null,null,null,null,null,null,null,null,null,null,"259999","Fabricación de productos elaborados de metal n.c.p.","2","4","Rev 4","Comprendido Res 177/07 y Mod"]
[null,null,null,null,null,null,null,null,null,null,null,null,null,"352217","Fabricación de productos farmacéuticos y medicinales (medicamentos) excepto productos medicinales de uso veterinario.","2","5","Rev 2","Comprendido Res 177/07 y Mod"]
[null,null,null,null,null,null,null,null,null,null,null,null,null,"311235","Fabricación de productos lácteos no clasificados en otra parte (incluye cremas, yogures, helados, etc.)","1","3","Rev 2"]
[null,null,null,null,null,null,null,null,null,null,null,null,null,"259993","Fabricación de productos metálicos de tornería y/o matricería","2","2","Rev 4","Comprendido Res 177/07 y Mod"]
[null,null,null,null,null,null,null,null,null,null,null,null,null,"289993","Fabricación de productos metálicos de tornería y/o matricería","2","2",null,"Comprendido Res 177/07 y Mod"]
[null,null,null,null,null,null,null,null,null,null,null,null,null,"381950","Fabricación de productos metálicos de tornería y/o matricería.","2","2","Rev 2","Comprendido Res 177/07 y Mod"]
[null,null,null,null,null,null,null,null,null,null,null,null,null,"289999","Fabricación de productos metálicos n.c.p. (Incluye clavos, productos de bulonería, vajilla de mesa y de cocina, etc.)","2","4","Rev3","Comprendido Res 177/07 y Mod"]
[null,null,null,null,null,null,null,null,null,null,null,null,null,"251102","Fabricación de productos metálicos para uso estructural","2","2","Rev 4","Comprendido Res 177/07 y Mod"]
[null,null,null,null,null,null,null,null,null,null,null,null,null,"239900","Fabricación de productos minerales no metálicos n.c.p.","1","3","Rev 4"]
[null,null,null,null,null,null,null,null,null,null,null,null,null,"269990","Fabricación de productos minerales no metálicos n.c.p.","1","3","Rev3"]
[null,null,null,null,null,null,null,null,null,null,null,null,null,"369950","Fabricación de productos minerales no metálicos no clasificados en otra parte.","1","3","Rev 2"]
[null,null,null,null,null,null,null,null,null,null,null,null,null,"222090","Fabricación de productos plásticos en formas básicas y artículos de plástico n.c.p., excepto muebles","2","4","Rev 4","Comprendido Res 177/07 y Mod"]
[null,null,null,null,null,null,null,null,null,null,null,null,null,"252090","Fabricación de productos plásticos en formas básicas y artículos de plástico n.c.p., excepto muebles","2","4","Rev3","Comprendido Res 177/07 y Mod"]
[null,null,null,null,null,null,null,null,null,null,null,null,null,"356026","Fabricación de productos plásticos no clasificados en otra parte","2","4","Rev 2","Comprendido Res 177/07 y Mod"]
[null,null,null,null,null,null,null,null,null,null,null,null,null,"372013","Fabricación de productos primarios de metales no ferrosos (incluye aleación, laminación, estirado, etc.)","3","4","Rev 2","Comprendido Res 177/07 y Mod"]
[null,null,null,null,null,null,null,null,null,null,null,null,null,"242090","Fabricación de productos primarios de metales preciosos y metales no ferrosos n.c.p. y sus semielaborados","3","4","Rev 4","Comprendido Res 177/07 y Mod"]
[null,null,null,null,null,null,null,null,null,null,null,null,null,"202908","Fabricación de productos químicos n.c.p.","2","5","Rev 4","Comprendido Res 177/07 y Mod"]
[null,null,null,null,null,null,null,null,null,null,null,null,null,"242909","Fabricación de productos químicos n.c.p. (Incluye la producción de aceites esenciales, etc.)","2","5","Rev3","Comprendido Res 177/07 y Mod"]
[null,null,null,null,null,null,null,null,null,null,null,null,null,"352950","Fabricación de productos químicos no clasificados en otra parte.","2","5","Rev 2","Comprendido Res 177/07 y Mod"]
[null,null,null,null,null,null,null,null,null,null,null,null,null,"139900","Fabricación de productos textiles n.c.p.","1","3","Rev 4"]
[null,null,null,null,null,null,null,null,null,null,null,null,null,"172900","Fabricación de productos textiles n.c.p.","1","3","Rev3"]
[null,null,null,null,null,null,null,null,null,null,null,null,null,"331139","Fabricación de puertas, ventanas y estructuras de madera para la construcción.Carpintería de obra .","1","2","Rev 2"]
[null,null,null,null,null,null,null,null,null,null,null,null,null,"210101","Fabricación de pulpa de madera","3","4","Rev3","Comprendido Res 177/07 y Mod"]
[null,null,null,null,null,null,null,null,null,null,null,null,null,"341118","Fabricación de pulpa de madera","3","4","Rev 2","Comprendido Res 177/07 y Mod"]
[null,null,null,null,null,null,null,null,null,null,null,null,null,"311219","Fabricación de quesos y mantecas","1","3","Rev 2"]
[null,null,null,null,null,null,null,null,null,null,null,null,null,"264000","Fabricación de receptores de radio y televisión, aparatos de grabación y reproducción de sonido y video, y productos conexos","2","3","Rev 4","Comprendido Res 177/07 y Mod"]
[null,null,null,null,null,null,null,null,null,null,null,null,null,"323000","Fabricación de receptores de radio y televisión, aparatos de grabación y reproducción de sonido y video, y productos conexos","2","3","Rev3","Comprendido Res 177/07 y Mod"]
[null,null,null,null,null,null,null,null,null,null,null,null,null,"383228","Fabricación de receptores de radio, televisión, grabación y reproducción de imagen, grabación y reproducción de sonido.","2","3","Rev 2","Comprendido Res 177/07 y Mod"]
[null,null,null,null,null,null,null,null,null,null,null,null,null,"162300","Fabricación de recipientes de madera","1","2","Rev 4"]
[null,null,null,null,null,null,null,null,null,null,null,null,null,"202300","Fabricación de recipientes de madera","1","2","Rev3"]
[null,null,null,null,null,null,null,null,null,null,null,null,null,"265200","Fabricación de relojes","1","2","Rev 4"]
[null,null,null,null,null,null,null,null,null,null,null,null,null,"333000","Fabricación de relojes","1","2","Rev3"]
[null,null,null,null,null,null,null,null,null,null,null,null,null,"384356","Fabricación de remolques y semirremolques.","2","4","Rev 2","Comprendido Res 177/07 y Mod"]
[null,null,null,null,null,null,null,null,null,null,null,null,null,"351318","Fabricación de resinas y caucho sintéticos.","3","5","Rev 2","Comprendido Res 177/07 y Mod"]
[null,null,null,null,null,null,null,null,null,null,null,null,null,"201401","Fabricación de resinas y cauchos sintéticos","3","5","Rev 4","Comprendido Res 177/07 y Mod"]
[null,null,null,null,null,null,null,null,null,null,null,null,null,"241301","Fabricación de resinas y cauchos sintéticos","3","5","Rev3","Comprendido Res 177/07 y Mod"]
[null,null,null,null,null,null,null,null,null,null,null,null,null,"239202","Fabricación de revestimientos cerámicos","1","3","Rev 4"]
[null,null,null,null,null,null,null,null,null,null,null,null,null,"269302","Fabricación de revestimientos cerámicos","1","3","Rev3"]
[null,null,null,null,null,null,null,null,null,null,null,null,null,"369144","Fabricación de revestimientos cerámicos para pisos y paredes.","1","3","Rev 2"]
[null,null,null,null,null,null,null,null,null,null,null,null,null,"139202","Fabricación de ropa de cama y mantelería","1","3","Rev 4"]
[null,null,null,null,null,null,null,null,null,null,null,null,null,"172102","Fabricación de ropa de cama y mantelería","1","3","Rev3"]
[null,null,null,null,null,null,null,null,null,null,null,null,null,"321222","Fabricación de ropa de cama y mantelería.","1","3","Rev 2"]
[null,null,null,null,null,null,null,null,null,null,null,null,null,"313238","Fabricación de sidras y bebidas fermentadas excepto las malteadas","1","3","Rev 2"]
[null,null,null,null,null,null,null,null,null,null,null,null,null,"313424","Fabricación de soda","1","2","Rev 2"]
[null,null,null,null,null,null,null,null,null,null,null,null,null,"110412","Fabricación de sodas","1","2","Rev 4"]
[null,null,null,null,null,null,null,null,null,null,null,null,null,"155412","Fabricación de sodas","1","2","Rev3"]
[null,null,null,null,null,null,null,null,null,null,null,null,null,"321516","Fabricación de sogas, cordelos y artículos conexos de cáñamo, sisal, lino y fibras artificiales","1","3","Rev 2"]
[null,null,null,null,null,null,null,null,null,null,null,null,null,"310030","Fabricación de somieres y colchones","1","4","Rev 4"]
[null,null,null,null,null,null,null,null,null,null,null,null,null,"361030","Fabricación de somieres y colchones","1","4","Rev3"]
[null,null,null,null,null,null,null,null,null,null,null,null,null,"268000","Fabricación de soportes ópticos y magnéticos","1","3","Rev 4"]
[null,null,null,null,null,null,null,null,null,null,null,null,null,"173020","Fabricación de suéteres y artículos similares de punto","1","3","Rev3"]
[null,null,null,null,null,null,null,null,null,null,null,null,null,"351164","Fabricación de sustancias químicas industriales básicas excepto abonos, no clasificadas en otra parte .","3","5","Rev 2","Comprendido Res 177/07 y Mod"]
[null,null,null,null,null,null,null,null,null,null,null,null,null,"210030","Fabricación de sustancias químicas para la elaboración de medicamentos","2","5","Rev 4","Comprendido Res 177/07 y Mod"]
[null,null,null,null,null,null,null,null,null,null,null,null,null,"351156","Fabricación de tanino","3","5","Rev 2","Comprendido Res 177/07 y Mod"]
[null,null,null,null,null,null,null,null,null,null,null,null,null,"381330","Fabricación de tanques y depósitos metálicos.","2","2","Rev 2","Comprendido Res 177/07 y Mod"]
[null,null,null,null,null,null,null,null,null,null,null,null,null,"251200","Fabricación de tanques, depósitos y recipientes de metal","2","2","Rev 4","Comprendido Res 177/07 y Mod"]
[null,null,null,null,null,null,null,null,null,null,null,null,null,"281200","Fabricación de tanques, depósitos y recipientes de metal","2","2","Rev3","Comprendido Res 177/07 y Mod"]
[null,null,null,null,null,null,null,null,null,null,null,null,null,"139300","Fabricación de tapices y alfombras","1","3","Rev 4"]
[null,null,null,null,null,null,null,null,null,null,null,null,null,"172200","Fabricación de tapices y alfombras","1","3","Rev3"]
[null,null,null,null,null,null,null,null,null,null,null,null,null,"321419","Fabricación de tapices y alfombras ","1","3","Rev 2"]
[null,null,null,null,null,null,null,null,null,null,null,null,null,"321338","Fabricación de tejido y artículos de punto","1","3","Rev 2"]
[null,null,null,null,null,null,null,null,null,null,null,null,null,"171142","Fabricación de tejidos (telas) planos de algodón y sus mezclas","1","3","Rev3"]
[null,null,null,null,null,null,null,null,null,null,null,null,null,"131202","Fabricación de tejidos (telas) planos de algodón y sus mezclas, incluye hilanderías y tejedurías integradas","1","3","Rev 4"]
[null,null,null,null,null,null,null,null,null,null,null,null,null,"171143","Fabricación de tejidos (telas) planos de fibras manufacturadas y seda","1","3","Rev3"]
[null,null,null,null,null,null,null,null,null,null,null,null,null,"171148","Fabricación de tejidos (telas) planos de fibras textiles n.c.p.  (Incluye hilanderías y tejedurías integradas)","1","3","Rev3"]
[null,null,null,null,null,null,null,null,null,null,null,null,null,"131209","Fabricación de tejidos (telas) planos de fibras textiles n.c.p., incluye hilanderías y tejedurías integradas","1","3","Rev 4"]
[null,null,null,null,null,null,null,null,null,null,null,null,null,"171141","Fabricación de tejidos (telas) planos de lana y sus mezclas","1","3","Rev3"]
[null,null,null,null,null,null,null,null,null,null,null,null,null,"131201","Fabricación de tejidos (telas) planos de lana y sus mezclas, incluye hilanderías y tejedurías integradas","1","3","Rev 4"]
[null,null,null,null,null,null,null,null,null,null,null,null,null,"259991","Fabricación de tejidos de alambre","2","2","Rev 4","Comprendido Res 177/07 y Mod"]
[null,null,null,null,null,null,null,null,null,null,null,null,null,"289991","Fabricación de tejidos de alambre","2","2","Rev3","Comprendido Res 177/07 y Mod"]
[null,null,null,null,null,null,null,null,null,null,null,null,null,"381934","Fabricación de tejidos de alambre.","2","2","Rev 2","Comprendido Res 177/07 y Mod"]
[null,null,null,null,null,null,null,null,null,null,null,null,null,"139100","Fabricación de tejidos de punto","1","3","Rev 4"]
[null,null,null,null,null,null,null,null,null,null,null,null,null,"173090","Fabricación de tejidos y artículos de punto n.c.p.","1","3","Rev3"]
[null,null,null,null,null,null,null,null,null,null,null,null,null,"242901","Fabricación de tintas","3","5","Rev3","Comprendido Res 177/07 y Mod"]
[null,null,null,null,null,null,null,null,null,null,null,null,null,"282110","Fabricación de tractores","2","4","Rev 4","Comprendido Res 177/07 y Mod"]
[null,null,null,null,null,null,null,null,null,null,null,null,null,"292110","Fabricación de tractores","2","4","Rev3","Comprendido Res 177/07 y Mod"]
[null,null,null,null,null,null,null,null,null,null,null,null,null,"322000","Fabricación de transmisores de radio y televisión y de aparatos para telefonía y telegrafía con hilos","2","3","Rev3","Comprendido Res 177/07 y Mod"]
[null,null,null,null,null,null,null,null,null,null,null,null,null,"321000","Fabricación de tubos, válvulas  y otros  componentes electrónicos","2","3","Rev3","Comprendido Res 177/07 y Mod"]
[null,null,null,null,null,null,null,null,null,null,null,null,null,"322067","Fabricación de uniformes y sus accesorios y otras prendas no clasificadas en otra parte","1","3","Rev 2"]
[null,null,null,null,null,null,null,null,null,null,null,null,null,"352225","Fabricación de vacunas, sueros y otros productos medicinales para animales.","2","5","Rev 2","Comprendido Res 177/07 y Mod"]
[null,null,null,null,null,null,null,null,null,null,null,null,null,"291000","Fabricación de vehículos automotores","2","4","Rev 4","Comprendido Res 177/07 y Mod"]
[null,null,null,null,null,null,null,null,null,null,null,null,null,"341000","Fabricación de vehículos automotores (Incluye la fabricación de motores para automotores)","2","4","Rev3","Comprendido Res 177/07 y Mod"]
[null,null,null,null,null,null,null,null,null,null,null,null,null,"275091","Fabricación de ventiladores, extractores de aire, aspiradoras y similares","2","3","Rev 4","Comprendido Res 177/07 y Mod"]
[null,null,null,null,null,null,null,null,null,null,null,null,null,"293092","Fabricación de ventiladores, extractores y acondicionadores de aire, aspiradoras y similares","2","3","Rev3","Comprendido Res 177/07 y Mod"]
[null,null,null,null,null,null,null,null,null,null,null,null,null,"383325","Fabricación de ventiladores, extractores y acondicionadores de aire, aspiradoras y similares.","2","3","Rev 2","Comprendido Res 177/07 y Mod"]
[null,null,null,null,null,null,null,null,null,null,null,null,null,"362018","Fabricación de vidrios planos y templados.","2","4","Rev 2","Comprendido Res 177/07 y Mod"]
[null,null,null,null,null,null,null,null,null,null,null,null,null,"313211","Fabricación de vinos","1","3","Rev 2"]
[null,null,null,null,null,null,null,null,null,null,null,null,null,"162202","Fabricación de viviendas prefabricadas de madera","1","2","Rev 4"]
[null,null,null,null,null,null,null,null,null,null,null,null,null,"202202","Fabricación de viviendas prefabricadas de madera","1","2","Rev3"]
[null,null,null,null,null,null,null,null,null,null,null,null,null,"331147","Fabricación de viviendas prefabricadas de madera.","1","2","Rev 2"]
[null,null,null,null,null,null,null,null,null,null,null,null,null,"369233","Fabricación de yeso.","2","4","Rev 2","Comprendido Res 177/07 y Mod"]
[null,null,null,null,null,null,null,null,null,null,null,null,null,"241009","Fabricación en industrias básicas de productos de hierro y acero n.c.p.","3","4","Rev 4","Comprendido Res 177/07 y Mod"]
[null,null,null,null,null,null,null,null,null,null,null,null,null,"271009","Fabricación en industrias básicas de productos de hierro y acero n.c.p.","3","4","Rev3","Comprendido Res 177/07 y Mod"]
[null,null,null,null,null,null,null,null,null,null,null,null,null,"371033","Fabricación en industrias básicas de productos de hierro y acero no clasificados en otra parte.","3","4","Rev 2","Comprendido Res 177/07 y Mod"]
[null,null,null,null,null,null,null,null,null,null,null,null,null,"384348","Fabricación y armado de automotores.","2","4","Rev 2","Comprendido Res 177/07 y Mod"]
[null,null,null,null,null,null,null,null,null,null,null,null,null,"385328","Fabricación y armado de relojes: fabricación de piezas y cajas para relojes y mecanismos para dispositivos sincronizadores","1","2","Rev 2"]
[null,null,null,null,null,null,null,null,null,null,null,null,null,"321915","Fabricación y confección de artículos textiles no clasificados en otra parte excepto prendas de vestir","1","3","Rev 2"]
[null,null,null,null,null,null,null,null,null,null,null,null,null,"402009","Fabricación y distribución de combustibles gaseosos n.c.p.","2","5","Rev3","Comprendido Res 177/07 y Mod"]
[null,null,null,null,null,null,null,null,null,null,null,null,null,"402001","Fabricación y distribución de gas (No incluye el transporte por gasoductos)","2","5","Rev3","Comprendido Res 177/07 y Mod"]
[null,null,null,null,null,null,null,null,null,null,null,null,null,"231020","Fabricación y elaboración de vidrio plano","2","4","Rev 4","Comprendido Res 177/07 y Mod"]
[null,null,null,null,null,null,null,null,null,null,null,null,null,"261020","Fabricación y elaboración de vidrio plano","2","4",null,"Comprendido Res 177/07 y Mod"]
[null,null,null,null,null,null,null,null,null,null,null,null,null,"311812","Fabricación y refinación de azúcar de caña. Ingenios y refinerías","2","3","Rev 2","Comprendido Res 177/07 y Mod"]
[null,null,null,null,null,null,null,null,null,null,null,null,null,"303000","Fabricación y reparación de aeronaves","2","4","Rev 4","Comprendido Res 177/07 y Mod"]
[null,null,null,null,null,null,null,null,null,null,null,null,null,"353000","Fabricación y reparación de aeronaves","2","4","Rev3","Comprendido Res 177/07 y Mod"]
[null,null,null,null,null,null,null,null,null,null,null,null,null,"385123","Fabricación y reparación de equipo profesional y científico e instrumentos de medida y de control no clasificados en otra parte.","1","3","Rev 2"]
[null,null,null,null,null,null,null,null,null,null,null,null,null,"383120","Fabricación y reparación de equipos de distribución y transmisión de electricidad","2","4","Rev 2","Comprendido Res 177/07 y Mod"]
[null,null,null,null,null,null,null,null,null,null,null,null,null,"382949","Fabricación y reparación de grúas y equipos transportadores mecánicos.","2","3","Rev 2","Comprendido Res 177/07 y Mod"]
[null,null,null,null,null,null,null,null,null,null,null,null,null,"385115","Fabricación y reparación de instrumental y equipo de cirugía, medicina, odontología y ortopedia, sus piezas especiales y accesorios.","1","2","Rev 2"]
[null,null,null,null,null,null,null,null,null,null,null,null,null,"302000","Fabricación y reparación de locomotoras y de material rodante para transporte ferroviario","2","4","Rev 4","Comprendido Res 177/07 y Mod"]
[null,null,null,null,null,null,null,null,null,null,null,null,null,"382965","Fabricación y reparación de maquinaria y equipo no clasificados en otra parte excepto la maquinaria eléctrica.","2","3","Rev 2","Comprendido Res 177/07 y Mod"]
[null,null,null,null,null,null,null,null,null,null,null,null,null,"382213","Fabricación y reparación de maquinaria y equipo para la agricultura y la ganadería","2","4","Rev 2","Comprendido Res 177/07 y Mod"]
[null,null,null,null,null,null,null,null,null,null,null,null,null,"382434","Fabricación y reparación de maquinaria y equipo para la elaboración y envasado de productos alimentarios y bebidas","2","2","Rev 2","Comprendido Res 177/07 y Mod"]
[null,null,null,null,null,null,null,null,null,null,null,null,null,"382450","Fabricación y reparación de maquinaria y equipo para la industria del papel y las artes gráficas.","2","3","Rev 2","Comprendido Res 177/07 y Mod"]
[null,null,null,null,null,null,null,null,null,null,null,null,null,"382426","Fabricación y reparación de maquinaria y equipo para la industria minera y petrolera","2","4","Rev 2","Comprendido Res 177/07 y Mod"]
[null,null,null,null,null,null,null,null,null,null,null,null,null,"382442","Fabricación y reparación de maquinaria y equipo para la industria textil","2","3","Rev 2","Comprendido Res 177/07 y Mod"]
[null,null,null,null,null,null,null,null,null,null,null,null,null,"382310","Fabricación y reparación de maquinaria y equipo para trabajar los metales y la madera","2","3","Rev 2","Comprendido Res 177/07 y Mod"]
[null,null,null,null,null,null,null,null,null,null,null,null,null,"382515","Fabricación y reparación de máquinas de oficina, cálculo, contabilidad, equipos computadores, máquinas de escribir, cajas registradoras, etc.","1","3","Rev 2"]
[null,null,null,null,null,null,null,null,null,null,null,null,null,"383112","Fabricación y reparación de motores eléctricos, transformadores y generadores.","2","4","Rev 2","Comprendido Res 177/07 y Mod"]
[null,null,null,null,null,null,null,null,null,null,null,null,null,"382116","Fabricación y reparación de motores excepto los eléctricos.Fabricación de turbinas y máquinas a vapor.","2","2","Rev 2","Comprendido Res 177/07 y Mod"]
[null,null,null,null,null,null,null,null,null,null,null,null,null,"643009","Fondos y sociedades de inversión y entidades financieras similares n.c.p.","1","1","Rev 4"]
[null,null,null,null,null,null,null,null,null,null,null,null,null,"121029","Forestación (plantación, repoblación y conservación de bosques)","1","1","Rev 2"]
[null,null,null,null,null,null,null,null,null,null,null,null,null,"259100","Forjado, prensado, estampado y laminado de metales, pulvimetalurgia","2","2","Rev 4","Comprendido Res 177/07 y Mod"]
[null,null,null,null,null,null,null,null,null,null,null,null,null,"289100","Forjado, prensado, estampado y laminado de metales; pulvimetalurgia","2","2","Rev3","Comprendido Res 177/07 y Mod"]
[null,null,null,null,null,null,null,null,null,null,null,null,null,"803300","Formación de posgrado","1","2"]
[null,null,null,null,null,null,null,null,null,null,null,null,null,"853300","Formación de posgrado","1","2","Rev 4"]
[null,null,null,null,null,null,null,null,null,null,null,null,null,"466121","Fraccionamiento y distribución de gas licuado","1","5","Rev 4"]
[null,null,null,null,null,null,null,null,null,null,null,null,null,"514191","Fraccionamiento y distribución de gas licuado","1","5","Rev3"]
[null,null,null,null,null,null,null,null,null,null,null,null,null,"615099","Fraccionamiento y distribución de gas licuado","1","5","Rev 2"]
[null,null,null,null,null,null,null,null,null,null,null,null,null,"112011","Fumigación, aspersión y pulverización de agentes perjudiciales para los cultivos","1","4","Rev 2"]
[null,null,null,null,null,null,null,null,null,null,null,null,null,"243100","Fundición de hierro y acero","3","4","Rev 4","Comprendido Res 177/07 y Mod"]
[null,null,null,null,null,null,null,null,null,null,null,null,null,"273100","Fundición de hierro y acero","3","4",null,"Comprendido Res 177/07 y Mod"]
[null,null,null,null,null,null,null,null,null,null,null,null,null,"243200","Fundición de metales no ferrosos","3","4","Rev 4","Comprendido Res 177/07 y Mod"]
[null,null,null,null,null,null,null,null,null,null,null,null,null,"273200","Fundición de metales no ferrosos","3","4",null,"Comprendido Res 177/07 y Mod"]
[null,null,null,null,null,null,null,null,null,null,null,null,null,"271001","Fundición en altos hornos y acerías. Producción de lingotes, planchas o barras","3","4","Rev3","Comprendido Res 177/07 y Mod"]
[null,null,null,null,null,null,null,null,null,null,null,null,null,"371017","Fundición en altos hornos y acerías. Producción de lingotes, planchas o barras.","3","4","Rev 2","Comprendido Res 177/07 y Mod"]
[null,null,null,null,null,null,null,null,null,null,null,null,null,"381969","Galvaoplastía, esmaltado, laqueado, pulido y otros procesos similares en productos metálicos excepto estampado de metales.","2","4","Rev 2","Comprendido Res 177/07 y Mod"]
[null,null,null,null,null,null,null,null,null,null,null,null,null,"410128","Generación de electricidad","3","5","Rev 2","Comprendido Res 177/07 y Mod"]
[null,null,null,null,null,null,null,null,null,null,null,null,null,"351130","Generación de energía hidráulica","1","5","Rev 4"]
[null,null,null,null,null,null,null,null,null,null,null,null,null,"401130","Generación de energía hidráulica (Incluye la producción de energía eléctrica mediante centrales de bombeo)","1","5","Rev3"]
[null,null,null,null,null,null,null,null,null,null,null,null,null,"351190","Generación de energía n.c.p.","1","4","Rev 4"]
[null,null,null,null,null,null,null,null,null,null,null,null,null,"401190","Generación de energía n.c.p. (Incluye la producción de energía eléctrica mediante fuentes de energía solar, biomasa, eólica, geotérmica, mareomotriz, etc.)","1","4","Rev3"]
[null,null,null,null,null,null,null,null,null,null,null,null,null,"351110","Generación de energía térmica convencional","3","4","Rev 4","Comprendido Res 177/07 y Mod"]
[null,null,null,null,null,null,null,null,null,null,null,null,null,"401110","Generación de energía térmica convencional (Incluye la producción de energía eléctrica mediante máquinas turbo-gas, turbo vapor, ciclo combinado y turbo diesel)","3","4","Rev3","Comprendido Res 177/07 y Mod"]
[null,null,null,null,null,null,null,null,null,null,null,null,null,"351120","Generación de energía térmica nuclear","1","5","Rev 4"]
[null,null,null,null,null,null,null,null,null,null,null,null,null,"401120","Generación de energía térmica nuclear (Incluye la producción de energía eléctrica mediante combustible nuclear)","1","5","Rev3"]
[null,null,null,null,null,null,null,null,null,null,null,null,null,"851010","Guarderías y jardines maternales","1","1","Rev 4"]
[null,null,null,null,null,null,null,null,null,null,null,null,null,"321060","Hilado de algodón. Hilanderías","1","3","Rev 2"]
[null,null,null,null,null,null,null,null,null,null,null,null,null,"321079","Hilado de fibras textiles excepto lana y algodón . Hilanderías ","1","3","Rev 2"]
[null,null,null,null,null,null,null,null,null,null,null,null,null,"321052","Hilado de lana . Hilanderías","1","3","Rev 2"]
[null,null,null,null,null,null,null,null,null,null,null,null,null,"439910","Hincado de pilotes, cimentación y otros trabajos de hormigón armado","1","3","Rev 4"]
[null,null,null,null,null,null,null,null,null,null,null,null,null,"631120","Hospedaje de datos","1","1","Rev 4"]
[null,null,null,null,null,null,null,null,null,null,null,null,null,"181101","Impresión de diarios y revistas","1","2","Rev 4"]
[null,null,null,null,null,null,null,null,null,null,null,null,null,"222101","Impresión de diarios y revistas","1","2","Rev3"]
[null,null,null,null,null,null,null,null,null,null,null,null,null,"342033","Impresión de diarios y revistas .","1","2","Rev 2"]
[null,null,null,null,null,null,null,null,null,null,null,null,null,"222109","Impresión excepto de diarios y revistas","1","3"]
[null,null,null,null,null,null,null,null,null,null,null,null,null,"342017","Impresión excepto de diarios y revistas, y encuadernación.","1","3","Rev 2"]
[null,null,null,null,null,null,null,null,null,null,null,null,null,"181109","Impresión n.c.p., excepto de diarios y revistas","1","3","Rev 4"]
[null,null,null,null,null,null,null,null,null,null,null,null,null,"329090","Industrias manufactureras n.c.p.","1","3","Rev 4"]
[null,null,null,null,null,null,null,null,null,null,null,null,null,"369999","Industrias manufactureras n.c.p.  (Incluye fabricación de cochecitos de bebé, termos, velas, pelucas, etc.)","1","3","Rev3"]
[null,null,null,null,null,null,null,null,null,null,null,null,null,"14210","Inseminación artificial y servicios n.c.p. para mejorar la reproducción de los animales y el rendimiento de sus productos","1","2","Rev3"]
[null,null,null,null,null,null,null,null,null,null,null,null,null,"16210","Inseminación artificial y servicios n.c.p. para mejorar la reproducción de los animales y el rendimiento de sus productos","1","2","Rev 4"]
[null,null,null,null,null,null,null,null,null,null,null,null,null,"332000","Instalación de maquinaria y equipos industriales","1","3","Rev 4"]
[null,null,null,null,null,null,null,null,null,null,null,null,null,"500089","Instalación de plomería, gas y cloacas.","1","3","Rev 2"]
[null,null,null,null,null,null,null,null,null,null,null,null,null,"432110","Instalación de sistemas de iluminación, control y señalización eléctrica para el transporte","1","2","Rev 4"]
[null,null,null,null,null,null,null,null,null,null,null,null,null,"453120","Instalación de sistemas de iluminación, control y señalización eléctrica para el transporte","1","2","Rev3"]
[null,null,null,null,null,null,null,null,null,null,null,null,null,"502910","Instalación y reparación de caños de escape","1","2"]
[null,null,null,null,null,null,null,null,null,null,null,null,null,"452700","Instalación y reparación de caños de escape y radiadores","1","2","Rev 4"]
[null,null,null,null,null,null,null,null,null,null,null,null,null,"452910","Instalación y reparación de equipos de gnc","1","3","Rev 4"]
[null,null,null,null,null,null,null,null,null,null,null,null,null,"502300","Instalación y reparación de lunetas y ventanillas,  alarmas, cerraduras, radios, sistemas de climatización automotor y grabado de cristales (Incluye instalación y reparación de parabrisas, aletas, burletes, colisas, levantavidrios, parlantes y autoestere","1","2","Rev3"]
[null,null,null,null,null,null,null,null,null,null,null,null,null,"452300","Instalación y reparación de parabrisas, lunetas y ventanillas, cerraduras no eléctricas y grabado de cristales","1","2","Rev 4"]
[null,null,null,null,null,null,null,null,null,null,null,null,null,"432190","Instalación, ejecución y mantenimiento de instalaciones eléctricas, electromecánicas y electrónicas n.c.p.","1","2","Rev 4"]
[null,null,null,null,null,null,null,null,null,null,null,null,null,"453110","Instalaciones de ascensores, montacargas y  escaleras mecánicas","1","2","Rev3"]
[null,null,null,null,null,null,null,null,null,null,null,null,null,"432910","Instalaciones de ascensores, montacargas y escaleras mecánicas","1","2","Rev 4"]
[null,null,null,null,null,null,null,null,null,null,null,null,null,"433010","Instalaciones de carpintería, herrería de obra y artística","1","2","Rev 4"]
[null,null,null,null,null,null,null,null,null,null,null,null,null,"454100","Instalaciones de carpintería, herrería de obra y artística (Incluye instalación de puertas y ventanas, carpintería metálica y no metálica, etc.)","1","2","Rev3"]
[null,null,null,null,null,null,null,null,null,null,null,null,null,"432200","Instalaciones de gas, agua, sanitarios y de climatización, con sus artefactos conexos","1","3","Rev 4"]
[null,null,null,null,null,null,null,null,null,null,null,null,null,"453300","Instalaciones de gas, agua, sanitarios y de climatización, con sus artefactos conexos (Incluye la instalación de compactadores, calderas, sistemas de calefacción central, etc.)","1","3","Rev3"]
[null,null,null,null,null,null,null,null,null,null,null,null,null,"500097","Instalaciones eléctricas.","1","2","Rev 2"]
[null,null,null,null,null,null,null,null,null,null,null,null,null,"500100","Instalaciones no clasificadas en otra parte (incluye ascensores, montacargas,calefacción, refrigeración, etc)","1","2","Rev 2"]
[null,null,null,null,null,null,null,null,null,null,null,null,null,"432990","Instalaciones para edificios y obras de ingeniería civil n.c.p.","1","2","Rev 4"]
[null,null,null,null,null,null,null,null,null,null,null,null,null,"453900","Instalaciones para edificios y obras de ingeniería civil n.c.p.","1","2","Rev3"]
[null,null,null,null,null,null,null,null,null,null,null,null,null,"12112","Invernada  de ganado bovino excepto el engorde en corrales (Fed-Lot)","1","2","Rev3"]
[null,null,null,null,null,null,null,null,null,null,null,null,null,"111120","Invernada de ganado bovino","1","2","Rev 2"]
[null,null,null,null,null,null,null,null,null,null,null,null,null,"14114","Invernada de ganado bovino excepto el engorde en corrales (feed-lot)","1","2","Rev 4"]
[null,null,null,null,null,null,null,null,null,null,null,null,null,"731100","Investigación  y desarrollo experimental en el campo de la ingeniería y la tecnología","1","4","Rev3"]
[null,null,null,null,null,null,null,null,null,null,null,null,null,"731300","Investigación  y desarrollo experimental en el campo de las ciencias agropecuarias","1","4","Rev3"]
[null,null,null,null,null,null,null,null,null,null,null,null,null,"732200","Investigación  y desarrollo experimental en el campo de las ciencias humanas","1","3","Rev3"]
[null,null,null,null,null,null,null,null,null,null,null,null,null,"731200","Investigación  y desarrollo experimental en el campo de las ciencias médicas","1","4","Rev3"]
[null,null,null,null,null,null,null,null,null,null,null,null,null,"732100","Investigación  y desarrollo experimental en el campo de las ciencias sociales","1","3","Rev3"]
[null,null,null,null,null,null,null,null,null,null,null,null,null,"721010","Investigación y desarrollo experimental en el campo de la ingeniería y la tecnología","1","4","Rev 4"]
[null,null,null,null,null,null,null,null,null,null,null,null,null,"721030","Investigación y desarrollo experimental en el campo de las ciencias agropecuarias","1","4","Rev 4"]
[null,null,null,null,null,null,null,null,null,null,null,null,null,"721090","Investigación y desarrollo experimental en el campo de las ciencias exactas y naturales n.c.p.","1","4","Rev 4"]
[null,null,null,null,null,null,null,null,null,null,null,null,null,"731900","Investigación y desarrollo experimental en el campo de las ciencias exactas y naturales n.c.p.","1","4","Rev3"]
[null,null,null,null,null,null,null,null,null,null,null,null,null,"722020","Investigación y desarrollo experimental en el campo de las ciencias humanas","1","3","Rev 4"]
[null,null,null,null,null,null,null,null,null,null,null,null,null,"721020","Investigación y desarrollo experimental en el campo de las ciencias médicas","1","4","Rev 4"]
[null,null,null,null,null,null,null,null,null,null,null,null,null,"722010","Investigación y desarrollo experimental en el campo de las ciencias sociales","1","3","Rev 4"]
[null,null,null,null,null,null,null,null,null,null,null,null,null,"932019","Investigaciones y ciencias. Instituciones y/o centros de investigacion y científicos","1","3","Rev 2"]
[null,null,null,null,null,null,null,null,null,null,null,null,null,"271002","Laminación y estirado","3","4","Rev3","Comprendido Res 177/07 y Mod"]
[null,null,null,null,null,null,null,null,null,null,null,null,null,"241001","Laminación y estirado. Producción de lingotes, planchas o barras fabricadas por operadores independientes","3","4","Rev 4","Comprendido Res 177/07 y Mod"]
[null,null,null,null,null,null,null,null,null,null,null,null,null,"502100","Lavado automático y manual","1","2","Rev3"]
[null,null,null,null,null,null,null,null,null,null,null,null,null,"452101","Lavado automático y manual de vehículos automotores","1","2","Rev 4"]
[null,null,null,null,null,null,null,null,null,null,null,null,null,"930100","Lavado y limpieza de artículos de tela, cuero y/o de piel, incluso la limpieza en seco","1","3","Rev3"]
[null,null,null,null,null,null,null,null,null,null,null,null,null,"960102","Lavado y limpieza de artículos de tela, cuero y/o de piel, incluso la limpieza en seco","1","3","Rev 4"]
[null,null,null,null,null,null,null,null,null,null,null,null,null,"321044","Lavado y limpieza de lana. Lavaderos","1","3","Rev 2"]
[null,null,null,null,null,null,null,null,null,null,null,null,null,"502920","Mantenimiento y reparación de frenos","1","3","Rev3"]
[null,null,null,null,null,null,null,null,null,null,null,null,null,"452800","Mantenimiento y reparación de frenos y embragues","1","3","Rev 4"]
[null,null,null,null,null,null,null,null,null,null,null,null,null,"725000","Mantenimiento y reparación de maquinaria de oficina, contabilidad e informática","1","2","Rev3"]
[null,null,null,null,null,null,null,null,null,null,null,null,null,"454020","Mantenimiento y reparación de motocicletas","1","2","Rev 4"]
[null,null,null,null,null,null,null,null,null,null,null,null,null,"504020","Mantenimiento y reparación de motocicletas","1","2","Rev3"]
[null,null,null,null,null,null,null,null,null,null,null,null,null,"452990","Mantenimiento y reparación del motor n.c.p., mecánica integral","1","3","Rev 4"]
[null,null,null,null,null,null,null,null,null,null,null,null,null,"502990","Mantenimiento y reparación del motor n.c.p.; mecánica integral  (Incluye auxilio y servicios de grúa para automotores; instalación y reparación de equipos de GNC)","1","3","Rev3"]
[null,null,null,null,null,null,null,null,null,null,null,null,null,"101099","Matanza de animales n.c.p. y procesamiento de su carne, elaboración de subproductos cárnicos n.c.p.","1","4","Rev 4"]
[null,null,null,null,null,null,null,null,null,null,null,null,null,"151199","Matanza de animales n.c.p. y procesamiento de su carne; elaboración de subproductos cárnicos n.c.p.","1","4","Rev3"]
[null,null,null,null,null,null,null,null,null,null,null,null,null,"101011","Matanza de ganado bovino","1","3","Rev 4"]
[null,null,null,null,null,null,null,null,null,null,null,null,null,"151111","Matanza de ganado bovino","1","3"]
[null,null,null,null,null,null,null,null,null,null,null,null,null,"101040","Matanza de ganado excepto el bovino y procesamiento de su carne","1","3","Rev 4"]
[null,null,null,null,null,null,null,null,null,null,null,null,null,"151140","Matanza de ganado excepto el bovino y procesamiento de su carne  (Incluye ganado ovino, porcino, equino, búfalo, etc.)","1","3","Rev3"]
[null,null,null,null,null,null,null,null,null,null,null,null,null,"311111","Matanza de ganado. Mataderos","1","3","Rev 2"]
[null,null,null,null,null,null,null,null,null,null,null,null,null,"151120","Matanza y procesamiento de carne de aves","1","3"]
[null,null,null,null,null,null,null,null,null,null,null,null,null,"311154","Matanza, preparación y conservación de animales no clasificados en otra parte","1","3","Rev 2"]
[null,null,null,null,null,null,null,null,null,null,null,null,null,"311146","Matanza, preparación y conservación de aves ","1","3","Rev 2"]
[null,null,null,null,null,null,null,null,null,null,null,null,null,"311634","Molienda de legumbres y cereales no calificados en otra parte","1","3","Rev 2"]
[null,null,null,null,null,null,null,null,null,null,null,null,null,"106110","Molienda de trigo","1","3","Rev 4"]
[null,null,null,null,null,null,null,null,null,null,null,null,null,"153110","Molienda de trigo","1","3"]
[null,null,null,null,null,null,null,null,null,null,null,null,null,"311618","Molienda de trigo","1","3","Rev 2"]
[null,null,null,null,null,null,null,null,null,null,null,null,null,"311642","Molienda de yerba mate","1","3","Rev 2"]
[null,null,null,null,null,null,null,null,null,null,null,null,null,"431210","Movimiento de suelos y preparación de terrenos para obras","1","4","Rev 4"]
[null,null,null,null,null,null,null,null,null,null,null,null,null,"451900","Movimiento de suelos y preparación de terrenos para obras n.c.p. (Incluye el drenaje, remoción de rocas, excavación de zanjas para servicios públicos, alcantarillado urbano y para construcciones diversas, movimientos de tierras para hacer terraplenes o d","1","4","Rev3"]
[null,null,null,null,null,null,null,null,null,null,null,null,null,"452900","Obras de ingeniería civil n.c.p. (Incluye los trabajos generales de construcción para la minería y la industria,  de centrales eléctricas y nucleares, excavaciones de sepulturas, etc.)","1","5","Rev3"]
[null,null,null,null,null,null,null,null,null,null,null,null,null,"651310","Obras sociales","1","1","Rev 4"]
[null,null,null,null,null,null,null,null,null,null,null,null,null,"749100","Obtención y dotación de personal","1","1","Rev3"]
[null,null,null,null,null,null,null,null,null,null,null,null,null,"780000","Obtención y dotación de personal","1","1","Rev 4"]
[null,null,null,null,null,null,null,null,null,null,null,null,null,"831018","Operaciones con inmuebles, excepto alquiler o arrendamiento de inmuebles propios (incluye alquiler y arrendamiento de inmuebles de terceros, explotación, loteo, urbanización y subdivisión, compra, venta, administración, valuación de inmuebles etc).Otros","1","1","Rev 2"]
[null,null,null,null,null,null,null,null,null,null,null,null,null,"461031","Operaciones de intermediación de carne - consignatario directo -","1","2","Rev 4"]
[null,null,null,null,null,null,null,null,null,null,null,null,null,"511911","Operaciones de intermediación de carne - consignatario directo -","1","2","Rev3"]
[null,null,null,null,null,null,null,null,null,null,null,null,null,"461032","Operaciones de intermediación de carne excepto consignatario directo","1","2","Rev 4"]
[null,null,null,null,null,null,null,null,null,null,null,null,null,"511912","Operaciones de intermediación de carne excepto consignatario directo (Incluye matarifes abastecedores de carne, etc.)","1","2","Rev3"]
[null,null,null,null,null,null,null,null,null,null,null,null,null,"611034","Operaciones de intermediación de ganado en pie de remates de feria.","1","2","Rev 2"]
[null,null,null,null,null,null,null,null,null,null,null,null,null,"511121","Operaciones de intermediación de ganado en pie. (Incluye consignatarios de hacienda y ferieros)","1","2","Rev3"]
[null,null,null,null,null,null,null,null,null,null,null,null,null,"511122","Operaciones de intermediación de lanas, cueros y productos afines de terceros.","1","2","Rev3"]
[null,null,null,null,null,null,null,null,null,null,null,null,null,"611042","Operaciones de intermediación de reces, Matarifes.","1","2","Rev 2"]
[null,null,null,null,null,null,null,null,null,null,null,null,null,"810118","Operaciones de intermediación de recursos monetarios realizadas por Bancos","1","1","Rev 2"]
[null,null,null,null,null,null,null,null,null,null,null,null,null,"810231","Operaciones de intermediación financiera realizadas por cajas de crédito","1","1","Rev 2"]
[null,null,null,null,null,null,null,null,null,null,null,null,null,"810215","Operaciones de intermediación financiera realizadas por compañías financieras","1","1","Rev 2"]
[null,null,null,null,null,null,null,null,null,null,null,null,null,"810223","Operaciones de intermediación financiera realizadas por sociedades de ahorro y préstamo para la vivienda y otros inmuebles","1","1","Rev 2"]
[null,null,null,null,null,null,null,null,null,null,null,null,null,"810290","Operaciones de intermediación habitual entre oferta y demanda de recursos financieros realizadas por entidades no clasificadas en otra parte ( excluye casas de cambio y agentes de bolsa)","1","1","Rev 2"]
[null,null,null,null,null,null,null,null,null,null,null,null,null,"810436","Operaciones financieras con divisas, acciones y otros valores mobiliarios propios. Rentistas","1","1","Rev 2"]
[null,null,null,null,null,null,null,null,null,null,null,null,null,"810428","Operaciones financieras con recursos monetarios propios. Prestamistas.","1","1","Rev 2"]
[null,null,null,null,null,null,null,null,null,null,null,null,null,"602200","Operadores de televisión por suscripción.","1","2","Rev 4"]
[null,null,null,null,null,null,null,null,null,null,null,null,null,"21020","Pepoblación y conservación de bosques nativos y zonas forestadas","1","1","Rev 4"]
[null,null,null,null,null,null,null,null,null,null,null,null,null,"422100","Perforación de pozos de agua","1","3","Rev 4"]
[null,null,null,null,null,null,null,null,null,null,null,null,null,"452510","Perforación de pozos de agua","1","3"]
[null,null,null,null,null,null,null,null,null,null,null,null,null,"500062","Perforación de pozos de agua","1","3","Rev 2"]
[null,null,null,null,null,null,null,null,null,null,null,null,null,"451200","Perforación y sondeo excepto: perforación de pozos de petróleo, de gas, de minas e hidráulicos  y prospección de yacimientos de petróleo (Incluye los trabajos de perforación, sondeo y muestreo con fines de construcción o para estudios geofísicos, geológi","1","4","Rev3"]
[null,null,null,null,null,null,null,null,null,null,null,null,null,"431220","Perforación y sondeo, excepto perforación de pozos de petróleo, de gas, de minas e hidráulicos y prospección de yacimientos de petróleo","1","4","Rev 4"]
[null,null,null,null,null,null,null,null,null,null,null,null,null,"50120","Pesca continental, fluvial y lacustre","1","3","Rev3"]
[null,null,null,null,null,null,null,null,null,null,null,null,null,"31200","Pesca continental: fluvial y lacustre","1","3","Rev 4"]
[null,null,null,null,null,null,null,null,null,null,null,null,null,"130109","Pesca de altura y costera (marítima)","1","4","Rev 2"]
[null,null,null,null,null,null,null,null,null,null,null,null,null,"31110","Pesca de organismos marinos, excepto cuando es realizada en buques procesadores","1","4","Rev 4"]
[null,null,null,null,null,null,null,null,null,null,null,null,null,"130206","Pesca fluvial y lacustre (continental) y explotación de criaderos o viveros de peces y otros frutos acuáticos ","1","3","Rev 2"]
[null,null,null,null,null,null,null,null,null,null,null,null,null,"50110","Pesca marítima, costera y de altura (Incluye peces, crustáceos, moluscos y otros animales acuáticos)","1","4","Rev3"]
[null,null,null,null,null,null,null,null,null,null,null,null,null,"31120","Pesca y elaboración de productos marinos realizada a bordo de buques procesadores","1","4","Rev 4"]
[null,null,null,null,null,null,null,null,null,null,null,null,null,"500178","Pintura y empapelado","1","2","Rev 2"]
[null,null,null,null,null,null,null,null,null,null,null,null,null,"433040","Pintura y trabajos de decoración","1","2","Rev 4"]
[null,null,null,null,null,null,null,null,null,null,null,null,null,"454400","Pintura y trabajos de decoración","1","2","Rev3"]
[null,null,null,null,null,null,null,null,null,null,null,null,null,"20110","Plantación de bosques","1","1","Rev3"]
[null,null,null,null,null,null,null,null,null,null,null,null,null,"21010","Plantación de bosques","1","1","Rev 4"]
[null,null,null,null,null,null,null,null,null,null,null,null,null,"930300","Pompas fúnebres y servicios conexos (crematorios)","1","5","Rev3"]
[null,null,null,null,null,null,null,null,null,null,null,null,null,"960300","Pompas fúnebres y servicios conexos (crematorios)","1","5","Rev 4"]
[null,null,null,null,null,null,null,null,null,null,null,null,null,"631200","Portales web","1","1","Rev 4"]
[null,null,null,null,null,null,null,null,null,null,null,null,null,"591120","Postproducción de filmes y videocintas","1","2","Rev 4"]
[null,null,null,null,null,null,null,null,null,null,null,null,null,"106120","Preparación de arroz","1","3","Rev 4"]
[null,null,null,null,null,null,null,null,null,null,null,null,null,"153120","Preparación de arroz","1","3","Rev3"]
[null,null,null,null,null,null,null,null,null,null,null,null,null,"103011","Preparación de conservas de frutas, hortalizas y legumbres","1","2","Rev 4"]
[null,null,null,null,null,null,null,null,null,null,null,null,null,"151310","Preparación de conservas de frutas, hortalizas y legumbres","1","2","Rev3"]
[null,null,null,null,null,null,null,null,null,null,null,null,null,"131120","Preparación de fibras animales de uso textil","1","3","Rev 4"]
[null,null,null,null,null,null,null,null,null,null,null,null,null,"171120","Preparación de fibras animales de uso textil, incluso lavado de lana","1","3","Rev3"]
[null,null,null,null,null,null,null,null,null,null,null,null,null,"321028","Preparación de fibras de algodón","1","2","Rev 2"]
[null,null,null,null,null,null,null,null,null,null,null,null,null,"171112","Preparación de fibras textiles vegetales excepto de algodón (Incluye la preparación de fibras de yute, ramio, cáñamo y lino)","1","3","Rev3"]
[null,null,null,null,null,null,null,null,null,null,null,null,null,"131110","Preparación de fibras textiles vegetales, desmotado de algodón","1","2","Rev 4"]
[null,null,null,null,null,null,null,null,null,null,null,null,null,"120010","Preparación de hojas de tabaco","1","3","Rev 4"]
[null,null,null,null,null,null,null,null,null,null,null,null,null,"160010","Preparación de hojas de tabaco","1","3","Rev3"]
[null,null,null,null,null,null,null,null,null,null,null,null,null,"107920","Preparación de hojas de té","1","3","Rev 4"]
[null,null,null,null,null,null,null,null,null,null,null,null,null,"154920","Preparación de hojas de té","1","3","Rev3"]
[null,null,null,null,null,null,null,null,null,null,null,null,null,"331120","Preparación de maderas y conglomeradas","2","2","Rev 2","Comprendido Res 177/07 y Mod"]
[null,null,null,null,null,null,null,null,null,null,null,null,null,"311138","Preparación y conservación de carne de ganado. Frigoríficos","1","4","Rev 2"]
[null,null,null,null,null,null,null,null,null,null,null,null,null,"331112","Preparación y conservación de maderas excepto las terciadas y conglomeradas. Aserraderos.Talleres para preparar la madera excepto las terciadas y las conglomeradas ","2","2","Rev 2","Comprendido Res 177/07 y Mod"]
[null,null,null,null,null,null,null,null,null,null,null,null,null,"153139","Preparación y molienda de legumbres y cereales n.c.p. (excepto trigo)","1","3","Rev3"]
[null,null,null,null,null,null,null,null,null,null,null,null,null,"106139","Preparación y molienda de legumbres y cereales n.c.p., excepto trigo y arroz y molienda húmeda de maíz","1","3","Rev 4"]
[null,null,null,null,null,null,null,null,null,null,null,null,null,"552290","Preparación y venta de comidas para llevar n.c.p. (Incluye casas de comidas, rotiserías y demás lugares que no poseen espacio para el consumo in situ)","1","2","Rev3"]
[null,null,null,null,null,null,null,null,null,null,null,null,null,"323217","Preparación, decoloración y teñido de pieles.","1","4","Rev 2"]
[null,null,null,null,null,null,null,null,null,null,null,null,null,"500194","Prestaciones relacionadas con la construcción no clasificadas en otra parte.","1","4","Rev 2"]
[null,null,null,null,null,null,null,null,null,null,null,null,null,"101012","Procesamiento de carne de ganado bovino","1","4","Rev 4"]
[null,null,null,null,null,null,null,null,null,null,null,null,null,"151112","Procesamiento de carne de ganado bovino (Incluye los mataderos y frigoríficos que sacrifican principalmente ganado bovino)","1","4","Rev3"]
[null,null,null,null,null,null,null,null,null,null,null,null,null,"631110","Procesamiento de datos","1","1","Rev 4"]
[null,null,null,null,null,null,null,null,null,null,null,null,null,"723000","Procesamiento de datos","1","1","Rev3"]
[null,null,null,null,null,null,null,null,null,null,null,null,null,"900011","Producción de espectáculos teatrales y musicales","1","2","Rev 4"]
[null,null,null,null,null,null,null,null,null,null,null,null,null,"921410","Producción de espectáculos teatrales y musicales","1","2","Rev3"]
[null,null,null,null,null,null,null,null,null,null,null,null,null,"591110","Producción de filmes y videocintas","1","3","Rev 4"]
[null,null,null,null,null,null,null,null,null,null,null,null,null,"921110","Producción de filmes y videocintas","1","3","Rev3"]
[null,null,null,null,null,null,null,null,null,null,null,null,null,"410217","Producción de gas natural.","2","5","Rev2","Comprendido Res 177/07 y Mod"]
[null,null,null,null,null,null,null,null,null,null,null,null,null,"12220","Producción de huevos","1","2","Rev3"]
[null,null,null,null,null,null,null,null,null,null,null,null,null,"14820","Producción de huevos","1","2","Rev 4"]
[null,null,null,null,null,null,null,null,null,null,null,null,null,"12181","Producción de lana","1","2","Rev3"]
[null,null,null,null,null,null,null,null,null,null,null,null,null,"14710","Producción de lana y pelo de oveja y cabra (cruda)","1","2","Rev 4"]
[null,null,null,null,null,null,null,null,null,null,null,null,null,"14610","Producción de leche bovina","1","2","Rev 4"]
[null,null,null,null,null,null,null,null,null,null,null,null,null,"12171","Producción de leche de ganado bovino","1","2","Rev3"]
[null,null,null,null,null,null,null,null,null,null,null,null,null,"12179","Producción de leche de ganado n.c.p. (Incluye la cría de ganado de búfala, cabra, etc. para la producción de leche)","1","2","Rev3"]
[null,null,null,null,null,null,null,null,null,null,null,null,null,"14620","Producción de leche de oveja y de cabra","1","2","Rev 4"]
[null,null,null,null,null,null,null,null,null,null,null,null,null,"111155","Producción de leche.Tambos           ","1","2","Rev 2"]
[null,null,null,null,null,null,null,null,null,null,null,null,null,"272090","Producción de metales no ferrosos n.c.p. y sus semielaborados","3","4","Rev3","Comprendido Res 177/07 y Mod"]
[null,null,null,null,null,null,null,null,null,null,null,null,null,"13020","Producción de otras formas de propagación de cultivos agrícolas","1","2","Rev 4"]
[null,null,null,null,null,null,null,null,null,null,null,null,null,"11520","Producción de otras formas de propagación de cultivos agrícolas (Incluye gajos, bulbos, estacas enraizadas o no, esquejes, plantines, etc.)","1","2","Rev3"]
[null,null,null,null,null,null,null,null,null,null,null,null,null,"941115","Producción de películas cinematográficas y de televisión.","1","2","Rev 2"]
[null,null,null,null,null,null,null,null,null,null,null,null,null,"12182","Producción de pelos (Incluye la cría de caprinos, camélidos, etc., para la obtención de pelos)","1","2","Rev3"]
[null,null,null,null,null,null,null,null,null,null,null,null,null,"14720","Producción de pelos de ganado n.c.p.","1","2","Rev 4"]
[null,null,null,null,null,null,null,null,null,null,null,null,null,"220019","Producción de petróleo crudo y gas natural ","3","5","Rev 2","Comprendido Res 177/07 y Mod"]
[null,null,null,null,null,null,null,null,null,null,null,null,null,"602320","Producción de programas de televisión","1","2","Rev 4"]
[null,null,null,null,null,null,null,null,null,null,null,null,null,"11519","Producción de semillas de cultivos agrícolas n.c.p.","1","2","Rev3"]
[null,null,null,null,null,null,null,null,null,null,null,null,null,"13019","Producción de semillas de cultivos agrícolas n.c.p.","1","2","Rev 4"]
[null,null,null,null,null,null,null,null,null,null,null,null,null,"11513","Producción de semillas de hortalizas y legumbres, flores y plantas ornamentales y árboles frutales","1","2","Rev3"]
[null,null,null,null,null,null,null,null,null,null,null,null,null,"13013","Producción de semillas de hortalizas y legumbres, flores y plantas ornamentales y árboles frutales","1","2","Rev 4"]
[null,null,null,null,null,null,null,null,null,null,null,null,null,"11511","Producción de semillas híbridas de cereales y oleaginosas","1","2","Rev3"]
[null,null,null,null,null,null,null,null,null,null,null,null,null,"13011","Producción de semillas híbridas de cereales y oleaginosas","1","2","Rev 4"]
[null,null,null,null,null,null,null,null,null,null,null,null,null,"11512","Producción de semillas varietales o autofecundadas de cereales, oleaginosas, y forrajeras","1","2","Rev3"]
[null,null,null,null,null,null,null,null,null,null,null,null,null,"13012","Producción de semillas varietales o autofecundadas de cereales, oleaginosas, y forrajeras","1","2","Rev 4"]
[null,null,null,null,null,null,null,null,null,null,null,null,null,"921302","Producción y distribución por televisión (No incluye la transmisión, actividad 642010)","1","2","Rev3"]
[null,null,null,null,null,null,null,null,null,null,null,null,null,"941417","Producción y espectáculos teatrales y musicales","1","2","Rev 2"]
[null,null,null,null,null,null,null,null,null,null,null,null,null,"101020","Producción y procesamiento de carne de aves","1","3","Rev 4"]
[null,null,null,null,null,null,null,null,null,null,null,null,null,"941425","Producción y servicios de grabaciones musicales. Empresas grabadoras.Servicios de difusión musical.","1","2","Rev 2"]
[null,null,null,null,null,null,null,null,null,null,null,null,null,"924120","Promoción y producción de espectáculos deportivos","1","2","Rev3"]
[null,null,null,null,null,null,null,null,null,null,null,null,null,"931030","Promoción y producción de espectáculos deportivos","1","2","Rev 4"]
[null,null,null,null,null,null,null,null,null,null,null,null,null,"552210","Provisión de comidas preparadas para empresas  (Incluye el servicio de catering, el suministro de comidas para banquetes, bodas, fiestas y otras celebraciones, etc.)","1","2","Rev3"]
[null,null,null,null,null,null,null,null,null,null,null,null,null,"652000","Reaseguros","1","1","Rev 4"]
[null,null,null,null,null,null,null,null,null,null,null,null,null,"661300","Reaseguros","1","1","Rev3"]
[null,null,null,null,null,null,null,null,null,null,null,null,null,"221120","Recauchutado y renovación de cubiertas","2","4","Rev 4","Comprendido Res 177/07 y Mod"]
[null,null,null,null,null,null,null,null,null,null,null,null,null,"251120","Recauchutado y renovación de cubiertas","2","4","Rev3","Comprendido Res 177/07 y Mod"]
[null,null,null,null,null,null,null,null,null,null,null,null,null,"355127","Recauchutado y vulcanización de cubiertas.","2","4","Rev 2","Comprendido Res 177/07 y Mod"]
[null,null,null,null,null,null,null,null,null,null,null,null,null,"371000","Reciclamiento de desperdicios y desechos metálicos","2","5","Rev3","Comprendido Res 177/07 y Mod"]
[null,null,null,null,null,null,null,null,null,null,null,null,null,"372000","Reciclamiento de desperdicios y desechos no metálicos","2","5","Rev3","Comprendido Res 177/07 y Mod"]
[null,null,null,null,null,null,null,null,null,null,null,null,null,"31130","Recolección de organismos marinos excepto peces, crustáceos y moluscos","1","3","Rev 4"]
[null,null,null,null,null,null,null,null,null,null,null,null,null,"50130","Recolección de productos marinos (Incluye la recolección de algas marinas y otras plantas acuáticas, corales,  esponjas)","1","3","Rev3"]
[null,null,null,null,null,null,null,null,null,null,null,null,null,"920010","Recolección de residuos y Limpieza en la vía pública","3","4","Rev 2","Comprendido Res 177/07 y Mod"]
[null,null,null,null,null,null,null,null,null,null,null,null,null,"900010","Recolección, reducción y eliminación de desperdicios","3","5",null,"Comprendido Res 177/07 y Mod"]
[null,null,null,null,null,null,null,null,null,null,null,null,null,"381100","Recolección, transporte, tratamiento y disposición final de residuos no peligrosos","3","5","Rev 4","Comprendido Res 177/07 y Mod"]
[null,null,null,null,null,null,null,null,null,null,null,null,null,"381200","Recolección, transporte, tratamiento y disposición final de residuos peligrosos","3","5","Rev 4","Comprendido Res 177/07 y Mod"]
[null,null,null,null,null,null,null,null,null,null,null,null,null,"293011","Rectificación de motores","2","4","Rev 4","Comprendido Res 177/07 y Mod"]
[null,null,null,null,null,null,null,null,null,null,null,null,null,"382010","Recuperación de materiales y desechos metálicos","2","5","Rev 4","Comprendido Res 177/07 y Mod"]
[null,null,null,null,null,null,null,null,null,null,null,null,null,"382020","Recuperación de materiales y desechos no metálicos","2","5","Rev 4","Comprendido Res 177/07 y Mod"]
[null,null,null,null,null,null,null,null,null,null,null,null,null,"353019","Refinación de petróleo. Refinerías.","3","5","Rev 2","Comprendido Res 177/07 y Mod"]
[null,null,null,null,null,null,null,null,null,null,null,null,null,"952910","Reforma y reparación de cerraduras, duplicación de llaves. Cerrajerías","1","2","Rev 4"]
[null,null,null,null,null,null,null,null,null,null,null,null,null,"526909","Reparación de  artículos  n.c.p.","1","2","Rev3"]
[null,null,null,null,null,null,null,null,null,null,null,null,null,"502220","Reparación de amortiguadores,  alineación de dirección y balanceo de ruedas","1","2","Rev3"]
[null,null,null,null,null,null,null,null,null,null,null,null,null,"452220","Reparación de amortiguadores, alineación de dirección y balanceo de ruedas","1","2","Rev 4"]
[null,null,null,null,null,null,null,null,null,null,null,null,null,"951218","Reparación de artefactos eléctricos de uso doméstico y personal","1","2","Rev 2"]
[null,null,null,null,null,null,null,null,null,null,null,null,null,"526200","Reparación de artículos eléctricos de uso doméstico","1","2","Rev3"]
[null,null,null,null,null,null,null,null,null,null,null,null,null,"952100","Reparación de artículos eléctricos y electrónicos de uso doméstico","1","2","Rev 4"]
[null,null,null,null,null,null,null,null,null,null,null,null,null,"951315","Reparación de automotores, motocicletas y sus componentes","1","3","Rev 2"]
[null,null,null,null,null,null,null,null,null,null,null,null,null,"526100","Reparación de calzado y artículos de marroquinería","1","2","Rev3"]
[null,null,null,null,null,null,null,null,null,null,null,null,null,"952200","Reparación de calzado y artículos de marroquinería","1","2","Rev 4"]
[null,null,null,null,null,null,null,null,null,null,null,null,null,"951110","Reparación de calzado y otros artículos de cuero","1","2","Rev 2"]
[null,null,null,null,null,null,null,null,null,null,null,null,null,"452210","Reparación de cámaras y cubiertas","1","2","Rev 4"]
[null,null,null,null,null,null,null,null,null,null,null,null,null,"502210","Reparación de cámaras y cubiertas (Incluye reparación de llantas)","1","2","Rev3"]
[null,null,null,null,null,null,null,null,null,null,null,null,null,"952990","Reparación de efectos personales y enseres domésticos n.c.p.","1","2","Rev 4"]
[null,null,null,null,null,null,null,null,null,null,null,null,null,"526901","Reparación de relojes y joyas","1","1","Rev3"]
[null,null,null,null,null,null,null,null,null,null,null,null,null,"951412","Reparación de relojes y joyas","1","1","Rev 2"]
[null,null,null,null,null,null,null,null,null,null,null,null,null,"952920","Reparación de relojes y joyas. Relojerías","1","1","Rev 4"]
[null,null,null,null,null,null,null,null,null,null,null,null,null,"952300","Reparación de tapizados y muebles","1","2","Rev 4"]
[null,null,null,null,null,null,null,null,null,null,null,null,null,"951200","Reparación y mantenimiento de equipos de telefonía y de comunicación","1","2","Rev 4"]
[null,null,null,null,null,null,null,null,null,null,null,null,null,"951100","Reparación y mantenimiento de equipos informáticos","1","2","Rev 4"]
[null,null,null,null,null,null,null,null,null,null,null,null,null,"331301","Reparación y mantenimiento de instrumentos médicos, ópticos y de precisión, equipo fotográfico, aparatos para medir, ensayar o navegar, relojes, excepto para uso personal o domésti","1","2","Rev 4"]
[null,null,null,null,null,null,null,null,null,null,null,null,null,"331290","Reparación y mantenimiento de maquinaria de uso especial n.c.p.","1","2","Rev 4"]
[null,null,null,null,null,null,null,null,null,null,null,null,null,"331210","Reparación y mantenimiento de maquinaria de uso general","1","2","Rev 4"]
[null,null,null,null,null,null,null,null,null,null,null,null,null,"331400","Reparación y mantenimiento de maquinaria y aparatos eléctricos","1","2","Rev 4"]
[null,null,null,null,null,null,null,null,null,null,null,null,null,"331220","Reparación y mantenimiento de maquinaria y equipo de uso agropecuario y forestal","1","3","Rev 4"]
[null,null,null,null,null,null,null,null,null,null,null,null,null,"331900","Reparación y mantenimiento de máquinas y equipo n.c.p.","1","2","Rev 4"]
[null,null,null,null,null,null,null,null,null,null,null,null,null,"331101","Reparación y mantenimiento de productos de metal, excepto maquinaria y equipo","1","2","Rev 4"]
[null,null,null,null,null,null,null,null,null,null,null,null,null,"452600","Reparación y pintura de carrocerías, colocación y reparación de guardabarros y protecciones exteriores","1","3","Rev 4"]
[null,null,null,null,null,null,null,null,null,null,null,null,null,"502600","Reparación y pintura de carrocerías; colocación de guardabarros y protecciones exteriores","1","3","Rev3"]
[null,null,null,null,null,null,null,null,null,null,null,null,null,"452401","Reparaciones eléctricas del tablero e instrumental, reparación y recarga de baterías, instalación de alarmas, radios, sistemas de climatización","1","2","Rev 4"]
[null,null,null,null,null,null,null,null,null,null,null,null,null,"502500","Reparaciones eléctricas, del tablero e instrumental; reparación y recarga de baterías","1","2","Rev3"]
[null,null,null,null,null,null,null,null,null,null,null,null,null,"20120","Repoblación y conservación de bosques nativos y zonas forestadas","1","1","Rev3"]
[null,null,null,null,null,null,null,null,null,null,null,null,null,"182000","Reproducción de grabaciones","1","2","Rev 4"]
[null,null,null,null,null,null,null,null,null,null,null,null,null,"223000","Reproducción de grabaciones","1","2","Rev3"]
[null,null,null,null,null,null,null,null,null,null,null,null,null,"500135","Revoque y enyesado de paredes y cielorrasos","1","2","Rev 2"]
[null,null,null,null,null,null,null,null,null,null,null,null,null,"112038","Roturación y  siembra","1","2","Rev 2"]
[null,null,null,null,null,null,null,null,null,null,null,null,null,"101013","Saladero y peladero de cueros de ganado bovino","1","3","Rev 4"]
[null,null,null,null,null,null,null,null,null,null,null,null,null,"151113","Saladero y peladero de cueros de ganado bovino","1","3","Rev3"]
[null,null,null,null,null,null,null,null,null,null,null,null,null,"323128","Salado y pelado de cueros. Saladeros y peladeros ","1","3","Rev 2"]
[null,null,null,null,null,null,null,null,null,null,null,null,null,"811000","Servicio combinado de apoyo a edificios","1","2","Rev 4"]
[null,null,null,null,null,null,null,null,null,null,null,null,null,"933112","Servicio de asistencia médica y odontológica prestados por sanatorios, clínicas y otras instituciones similares","1","3","Rev 2"]
[null,null,null,null,null,null,null,null,null,null,null,null,null,"530010","Servicio de correo postal","1","3","Rev 4"]
[null,null,null,null,null,null,null,null,null,null,null,null,null,"561030","Servicio de expendio de helados","1","2","Rev 4"]
[null,null,null,null,null,null,null,null,null,null,null,null,null,"711438","Servicio de mudanza","1","2","Rev 2"]
[null,null,null,null,null,null,null,null,null,null,null,null,null,"512000","Servicio de transporte aéreo de cargas","1","5","Rev 4"]
[null,null,null,null,null,null,null,null,null,null,null,null,null,"621000","Servicio de transporte aéreo de cargas","1","5","Rev3"]
[null,null,null,null,null,null,null,null,null,null,null,null,null,"511000","Servicio de transporte aéreo de pasajeros","1","4","Rev 4"]
[null,null,null,null,null,null,null,null,null,null,null,null,null,"622000","Servicio de transporte aéreo de pasajeros","1","4","Rev3"]
[null,null,null,null,null,null,null,null,null,null,null,null,null,"492230","Servicio de transporte automotor de animales","1","3","Rev 4"]
[null,null,null,null,null,null,null,null,null,null,null,null,null,"492290","Servicio de transporte automotor de cargas n.c.p.","1","5","Rev 4"]
[null,null,null,null,null,null,null,null,null,null,null,null,null,"492221","Servicio de transporte automotor de cereales","1","5","Rev 4"]
[null,null,null,null,null,null,null,null,null,null,null,null,null,"492229","Servicio de transporte automotor de mercaderías a granel n.c.p.","1","5","Rev 4"]
[null,null,null,null,null,null,null,null,null,null,null,null,null,"492250","Servicio de transporte automotor de mercaderías y sustancias peligrosas","1","5","Rev 4"]
[null,null,null,null,null,null,null,null,null,null,null,null,null,"492190","Servicio de transporte automotor de pasajeros n.c.p.","1","3","Rev 4"]
[null,null,null,null,null,null,null,null,null,null,null,null,null,"602290","Servicio de transporte automotor de pasajeros n.c.p.","1","3","Rev3"]
[null,null,null,null,null,null,null,null,null,null,null,null,null,"602260","Servicio de transporte automotor de pasajeros para el turismo","1","3","Rev3"]
[null,null,null,null,null,null,null,null,null,null,null,null,null,"492170","Servicio de transporte automotor internacional de pasajeros","1","3","Rev 4"]
[null,null,null,null,null,null,null,null,null,null,null,null,null,"602250","Servicio de transporte automotor interurbano de pasajeros  (Incluye los servicios de transporte regular de más de 50 km., los llamados servicios de larga distancia)","1","3","Rev3"]
[null,null,null,null,null,null,null,null,null,null,null,null,null,"492160","Servicio de transporte automotor interurbano no regular de pasajeros","1","3","Rev 4"]
[null,null,null,null,null,null,null,null,null,null,null,null,null,"492150","Servicio de transporte automotor interurbano regular de pasajeros, e1203excepto transporte internacional","1","3","Rev 4"]
[null,null,null,null,null,null,null,null,null,null,null,null,null,"492180","Servicio de transporte automotor turístico de pasajeros","1","3","Rev 4"]
[null,null,null,null,null,null,null,null,null,null,null,null,null,"492280","Servicio de transporte automotor urbano de carga n.c.p.","1","3","Rev 4"]
[null,null,null,null,null,null,null,null,null,null,null,null,null,"602240","Servicio de transporte automotor urbano de oferta libre de pasajeros  excepto mediante taxis y remises, alquiler de autos con chofer y transporte escolar (Incluye servicios urbanos especiales como charters, servicios contratados, servicios para ámbito po","1","3","Rev3"]
[null,null,null,null,null,null,null,null,null,null,null,null,null,"602210","Servicio de transporte automotor urbano regular de pasajeros  (Incluye los servicios de transporte regular de menos de 50 km.)","1","3","Rev3"]
[null,null,null,null,null,null,null,null,null,null,null,null,null,"492140","Servicio de transporte automotor urbano y suburbano no regular de pasajeros de oferta libre, excepto mediante taxis y remises, alquiler de autos con chofer y transporte escolar","1","3","Rev 4"]
[null,null,null,null,null,null,null,null,null,null,null,null,null,"492110","Servicio de transporte automotor urbano y suburbano regular de pasajeros","1","3","Rev 4"]
[null,null,null,null,null,null,null,null,null,null,null,null,null,"492130","Servicio de transporte escolar","1","3","Rev 4"]
[null,null,null,null,null,null,null,null,null,null,null,null,null,"602230","Servicio de transporte escolar (Incluye el servicio de transporte para colonias de vacaciones y clubes)","1","3","Rev3"]
[null,null,null,null,null,null,null,null,null,null,null,null,null,"491200","Servicio de transporte ferroviario de cargas","1","5","Rev 4"]
[null,null,null,null,null,null,null,null,null,null,null,null,null,"601100","Servicio de transporte ferroviario de cargas","1","5","Rev3"]
[null,null,null,null,null,null,null,null,null,null,null,null,null,"491120","Servicio de transporte ferroviario interurbano de pasajeros","1","4","Rev 4"]
[null,null,null,null,null,null,null,null,null,null,null,null,null,"601220","Servicio de transporte ferroviario interurbano de pasajeros","1","4","Rev3"]
[null,null,null,null,null,null,null,null,null,null,null,null,null,"491110","Servicio de transporte ferroviario urbano y suburbano de pasajeros","1","4","Rev 4"]
[null,null,null,null,null,null,null,null,null,null,null,null,null,"601210","Servicio de transporte ferroviario urbano y suburbano de pasajeros (Incluye el servicio de subterráneo y de premetro)","1","4","Rev3"]
[null,null,null,null,null,null,null,null,null,null,null,null,null,"612100","Servicio de transporte fluvial de cargas","1","5","Rev3"]
[null,null,null,null,null,null,null,null,null,null,null,null,null,"612200","Servicio de transporte fluvial de pasajeros","1","4","Rev3"]
[null,null,null,null,null,null,null,null,null,null,null,null,null,"502200","Servicio de transporte fluvial y lacustre de carga","1","5","Rev 4"]
[null,null,null,null,null,null,null,null,null,null,null,null,null,"502101","Servicio de transporte fluvial y lacustre de pasajeros","1","4","Rev 4"]
[null,null,null,null,null,null,null,null,null,null,null,null,null,"501200","Servicio de transporte marítimo de carga","1","5","Rev 4"]
[null,null,null,null,null,null,null,null,null,null,null,null,null,"611100","Servicio de transporte marítimo de carga","1","5","Rev3"]
[null,null,null,null,null,null,null,null,null,null,null,null,null,"501100","Servicio de transporte marítimo de pasajeros","1","4","Rev 4"]
[null,null,null,null,null,null,null,null,null,null,null,null,null,"611200","Servicio de transporte marítimo de pasajeros","1","4","Rev3"]
[null,null,null,null,null,null,null,null,null,null,null,null,null,"492240","Servicio de transporte por camión cisterna","1","5","Rev 4"]
[null,null,null,null,null,null,null,null,null,null,null,null,null,"493200","Servicio de transporte por gasoductos","1","5","Rev 4"]
[null,null,null,null,null,null,null,null,null,null,null,null,null,"603200","Servicio de transporte por gasoductos","1","5","Rev3"]
[null,null,null,null,null,null,null,null,null,null,null,null,null,"493110","Servicio de transporte por oleoductos","1","5","Rev 4"]
[null,null,null,null,null,null,null,null,null,null,null,null,null,"603100","Servicio de transporte por oleoductos y poliductos","1","5","Rev3"]
[null,null,null,null,null,null,null,null,null,null,null,null,null,"493120","Servicio de transporte por poliductos y fueloductos","1","5","Rev 4"]
[null,null,null,null,null,null,null,null,null,null,null,null,null,"602180","Servicio de transporte urbano de carga n.c.p. (Incluye el transporte realizado por fleteros y distribuidores dentro del égido urbano)","1","3","Rev3"]
[null,null,null,null,null,null,null,null,null,null,null,null,null,"863300","Servicio médico integrado de consulta, diagnóstico y tratamiento","1","5","Rev 4"]
[null,null,null,null,null,null,null,null,null,null,null,null,null,"741102","Servicios  notariales","1","1","Rev3"]
[null,null,null,null,null,null,null,null,null,null,null,null,null,"633120","Servicios  prestados por playas de estacionamiento y garajes","1","3","Rev3"]
[null,null,null,null,null,null,null,null,null,null,null,null,null,"14190","Servicios agrícolas n.c.p (Incluye planificación y diseño paisajista, plantación y mantenimiento de jardines, parques y cementerios, riego, polinización o alquiler de colmenas, control acústico de plagas, etc.)","1","2","Rev3"]
[null,null,null,null,null,null,null,null,null,null,null,null,null,"112054","Servicios agropecuarios no clasificados en otra parte","1","2","Rev 2"]
[null,null,null,null,null,null,null,null,null,null,null,null,null,"672200","Servicios auxiliares a la administración de fondos de jubilaciones y pensiones","1","1","Rev3"]
[null,null,null,null,null,null,null,null,null,null,null,null,null,"661999","Servicios auxiliares a la intermediación financiera n.c.p.","1","1","Rev 4"]
[null,null,null,null,null,null,null,null,null,null,null,null,null,"671990","Servicios auxiliares a la intermediación financiera n.c.p., excepto a los servicios de seguros y de administración de fondos de jubilaciones y pensiones","1","1","Rev3"]
[null,null,null,null,null,null,null,null,null,null,null,null,null,"662090","Servicios auxiliares a los servicios de seguros n.c.p.","1","1","Rev 4"]
[null,null,null,null,null,null,null,null,null,null,null,null,null,"672190","Servicios auxiliares a los servicios de seguros n.c.p.","1","1","Rev3"]
[null,null,null,null,null,null,null,null,null,null,null,null,null,"841900","Servicios auxiliares para los servicios generales de la administración pública","1","1","Rev 4"]
[null,null,null,null,null,null,null,null,null,null,null,null,null,"751900","Servicios auxiliares para los servicios generales de la Administración Pública n.c.p. (Incluye las actividades de servicios generales y de personal; la administración, dirección y apoyo de servicios generales, compras y suministros, etc. )","1","1","Rev3"]
[null,null,null,null,null,null,null,null,null,null,null,null,null,"661910","Servicios bursátiles de mediación o por cuenta de terceros","1","1","Rev 4"]
[null,null,null,null,null,null,null,null,null,null,null,null,null,"671200","Servicios bursátiles de mediación o por cuenta de terceros (Incluye la actividad de agentes y sociedades de bolsa)","1","1","Rev3"]
[null,null,null,null,null,null,null,null,null,null,null,null,null,"821100","Servicios combinados de gestión administrativa de oficinas","1","1","Rev 4"]
[null,null,null,null,null,null,null,null,null,null,null,null,null,"634300","Servicios complementarios de apoyo turístico","1","2","Rev3"]
[null,null,null,null,null,null,null,null,null,null,null,null,null,"791909","Servicios complementarios de apoyo turístico n.c.p.","1","2","Rev 4"]
[null,null,null,null,null,null,null,null,null,null,null,null,null,"524390","Servicios complementarios para el transporte aéreo n.c.p.","1","4","Rev 4"]
[null,null,null,null,null,null,null,null,null,null,null,null,null,"633390","Servicios complementarios para el transporte aéreo n.c.p. (Incluye servicios de prevención y extinción de incendios)","1","4","Rev3"]
[null,null,null,null,null,null,null,null,null,null,null,null,null,"524290","Servicios complementarios para el transporte marítimo n.c.p.","1","4","Rev 4"]
[null,null,null,null,null,null,null,null,null,null,null,null,null,"633290","Servicios complementarios para el transporte por agua n.c.p. (Incluye explotación de servicios de terminales como puertos y muelles)","1","4","Rev3"]
[null,null,null,null,null,null,null,null,null,null,null,null,null,"524190","Servicios complementarios para el transporte terrestre n.c.p.","1","4","Rev 4"]
[null,null,null,null,null,null,null,null,null,null,null,null,null,"633190","Servicios complementarios para el transporte terrestre n.c.p. (Incluye servicios de mantenimiento de material ferroviario, terminales y estaciones)","1","4","Rev3"]
[null,null,null,null,null,null,null,null,null,null,null,null,null,"900030","Servicios conexos a la producción de espectáculos teatrales y musicales","1","2","Rev 4"]
[null,null,null,null,null,null,null,null,null,null,null,null,null,"921430","Servicios conexos a la producción de espectáculos teatrales y musicales  (Incluye diseño y manejo de escenografía, montaje de iluminación y sonido, funcionamiento de agencias de venta de billetes de teatro, conciertos, etc.)","1","2","Rev3"]
[null,null,null,null,null,null,null,null,null,null,null,null,null,"719110","Servicios conexos con los de transporte ( incluye agencias de turismo, agentes marítimos y aéreos, embalajes, etc )","1","2","Rev 2"]
[null,null,null,null,null,null,null,null,null,null,null,null,null,"942014","Servicios culturales de bibliotecas, museos, jardines botánicos y zoológicos y otros servicios culturales no clasificados en otra parte","1","1","Rev 2"]
[null,null,null,null,null,null,null,null,null,null,null,null,null,"910900","Servicios culturales n.c.p.","1","3","Rev 4"]
[null,null,null,null,null,null,null,null,null,null,null,null,null,"851210","Servicios de  atención ambulatoria (Incluye las actividades de consultorios médicos de establecimientos sin internación, consultorios de guardia para resolver urgencias médicas, vacunatorios, centros del primer nivel de atención, etc. Los servicios de ci","1","3","Rev3"]
[null,null,null,null,null,null,null,null,null,null,null,null,null,"561013","Servicios de \"fast food\" y locales de venta de comidas y bebidas al paso","1","2","Rev 4"]
[null,null,null,null,null,null,null,null,null,null,null,null,null,"931050","Servicios de acondicionamiento físico","1","2","Rev 4"]
[null,null,null,null,null,null,null,null,null,null,null,null,null,"682010","Servicios de administración de consorcios de edificios","1","3","Rev 4"]
[null,null,null,null,null,null,null,null,null,null,null,null,null,"661992","Servicios de administradoras de vales y tickets","1","2","Rev 4"]
[null,null,null,null,null,null,null,null,null,null,null,null,null,"829100","Servicios de agencias de cobro y calificación crediticia","1","1","Rev 4"]
[null,null,null,null,null,null,null,null,null,null,null,null,null,"922000","Servicios de agencias de noticias y servicios de información  (Incluye el suministro de material informativo, fotográfico y periodístico a medios de difusión)","1","1","Rev3"]
[null,null,null,null,null,null,null,null,null,null,null,null,null,"900040","Servicios de agencias de ventas de entradas","1","2","Rev 4"]
[null,null,null,null,null,null,null,null,null,null,null,null,null,"523020","Servicios de agencias marítimas para el transporte de mercaderías","1","4","Rev 4"]
[null,null,null,null,null,null,null,null,null,null,null,null,null,"649910","Servicios de agentes de mercado abierto \"puros","1","1","Rev 4"]
[null,null,null,null,null,null,null,null,null,null,null,null,null,"659910","Servicios de agentes de mercado abierto \"puros\" (Incluye las transacciones extrabursátiles - por cuenta propia -)","1","1","Rev3"]
[null,null,null,null,null,null,null,null,null,null,null,null,null,"632000","Servicios de almacenamiento y depósito (Incluye silos de granos, depósitos con cámaras frigoríficas, almacenes para mercancías diversas, incluso productos de zona franca, etc.)","1","4","Rev3"]
[null,null,null,null,null,null,null,null,null,null,null,null,null,"522020","Servicios de almacenamiento y depósito en cámaras frigoríficas","1","4","Rev 4"]
[null,null,null,null,null,null,null,null,null,null,null,null,null,"522010","Servicios de almacenamiento y depósito en silos","1","4","Rev 4"]
[null,null,null,null,null,null,null,null,null,null,null,null,null,"522099","Servicios de almacenamiento y depósito n.c.p.","1","4","Rev 4"]
[null,null,null,null,null,null,null,null,null,null,null,null,null,"551100","Servicios de alojamiento en camping (Incluye refugios de montaña)","1","2"]
[null,null,null,null,null,null,null,null,null,null,null,null,null,"552000","Servicios de alojamiento en campings","1","2","Rev 4"]
[null,null,null,null,null,null,null,null,null,null,null,null,null,"551022","Servicios de alojamiento en hoteles, hosterías y residenciales similares, excepto por hora, que incluyen servicio de restaurante al público","1","2","Rev 4"]
[null,null,null,null,null,null,null,null,null,null,null,null,null,"551222","Servicios de alojamiento en hoteles, hosterías y residenciales similares, excepto por hora, que incluyen servicio de restaurante al público","1","2","Rev3"]
[null,null,null,null,null,null,null,null,null,null,null,null,null,"551023","Servicios de alojamiento en hoteles, hosterías y residenciales similares, excepto por hora, que no incluyen servicio de restaurante al público","1","2","Rev 4"]
[null,null,null,null,null,null,null,null,null,null,null,null,null,"551223","Servicios de alojamiento en hoteles, hosterías y residenciales similares, excepto por hora, que no incluyen servicio de restaurante al público","1","2","Rev3"]
[null,null,null,null,null,null,null,null,null,null,null,null,null,"551021","Servicios de alojamiento en pensiones","1","1","Rev 4"]
[null,null,null,null,null,null,null,null,null,null,null,null,null,"551221","Servicios de alojamiento en pensiones","1","1","Rev3"]
[null,null,null,null,null,null,null,null,null,null,null,null,null,"551010","Servicios de alojamiento por hora","1","1","Rev 4"]
[null,null,null,null,null,null,null,null,null,null,null,null,null,"551210","Servicios de alojamiento por hora","1","1","Rev3"]
[null,null,null,null,null,null,null,null,null,null,null,null,null,"632015","Servicios de alojamiento, comida y/u hospedajes prestados en hoteles, residenciales y hosterías excepto pensiones y alojamientos por hora","1","2","Rev 2"]
[null,null,null,null,null,null,null,null,null,null,null,null,null,"632023","Servicios de alojamiento, comida y/u hospedajes prestados en pensiones","1","1","Rev 2"]
[null,null,null,null,null,null,null,null,null,null,null,null,null,"681020","Servicios de alquiler de consultorios médicos","1","1","Rev 4"]
[null,null,null,null,null,null,null,null,null,null,null,null,null,"681010","Servicios de alquiler y explotación de inmuebles para fiestas, convenciones y otros eventos similares","1","1","Rev 4"]
[null,null,null,null,null,null,null,null,null,null,null,null,null,"701010","Servicios de alquiler y explotación de inmuebles para fiestas, convenciones y otros eventos similares","1","1","Rev3"]
[null,null,null,null,null,null,null,null,null,null,null,null,null,"933147","Servicios de ambulancias, ambulancias especiales, de terapia intensiva móvil y similares","1","3","Rev 2"]
[null,null,null,null,null,null,null,null,null,null,null,null,null,"933139","Servicios de análisis clínicos. Laboratorios","1","3","Rev 2"]
[null,null,null,null,null,null,null,null,null,null,null,null,null,"855000","Servicios de apoyo a la educación","1","2","Rev 4"]
[null,null,null,null,null,null,null,null,null,null,null,null,null,"16190","Servicios de apoyo agrícolas n.c.p","1","2","Rev 4"]
[null,null,null,null,null,null,null,null,null,null,null,null,null,"17020","Servicios de apoyo para la caza","1","2","Rev 4"]
[null,null,null,null,null,null,null,null,null,null,null,null,null,"91000","Servicios de apoyo para la extracción de petróleo y gas natural","2","5","Rev 4","Comprendido Res 177/07 y Mod"]
[null,null,null,null,null,null,null,null,null,null,null,null,null,"99000","Servicios de apoyo para la minería, excepto para la extracción de petróleo y gas natual","1","5","Rev 4"]
[null,null,null,null,null,null,null,null,null,null,null,null,null,"31300","Servicios de apoyo para la pesca","1","2","Rev 4"]
[null,null,null,null,null,null,null,null,null,null,null,null,null,"16299","Servicios de apoyo pecuarios n.c.p.","1","2","Rev 4"]
[null,null,null,null,null,null,null,null,null,null,null,null,null,"711009","Servicios de arquitectura e ingeniería y servicios conexos de asesoramiento técnico n.c.p.","1","3","Rev 4"]
[null,null,null,null,null,null,null,null,null,null,null,null,null,"742109","Servicios de arquitectura e ingeniería y servicios conexos de asesoramiento técnico n.c.p.","1","3","Rev3"]
[null,null,null,null,null,null,null,null,null,null,null,null,null,"661210","Servicios de aseguradoras de riesgo de trabajo (A.R.T.)","1","1","Rev3"]
[null,null,null,null,null,null,null,null,null,null,null,null,null,"651210","Servicios de aseguradoras de riesgo de trabajo (art)","1","1","Rev 4"]
[null,null,null,null,null,null,null,null,null,null,null,null,null,"702099","Servicios de asesoramiento, dirección y gestión empresarial n.c.p.","1","1","Rev 4"]
[null,null,null,null,null,null,null,null,null,null,null,null,null,"741409","Servicios de asesoramiento, dirección y gestión empresarial n.c.p.","1","1","Rev3"]
[null,null,null,null,null,null,null,null,null,null,null,null,null,"702092","Servicios de asesoramiento, dirección y gestión empresarial realizados por integrantes de cuerpos de dirección en sociedades excepto las anónimas","1","1","Rev 4"]
[null,null,null,null,null,null,null,null,null,null,null,null,null,"741402","Servicios de asesoramiento, dirección y gestión empresarial realizados por integrantes de cuerpos de dirección en sociedades excepto las anónimas","1","1","Rev3"]
[null,null,null,null,null,null,null,null,null,null,null,null,null,"702091","Servicios de asesoramiento, dirección y gestión empresarial realizados por integrantes de los órganos de administración y/o fiscalización en sociedades anónimas","1","1","Rev 4"]
[null,null,null,null,null,null,null,null,null,null,null,null,null,"741401","Servicios de asesoramiento, dirección y gestión empresarial realizados por integrantes de los órganos de administración y/o fiscalización en sociedades anónimas","1","1","Rev3"]
[null,null,null,null,null,null,null,null,null,null,null,null,null,"933198","Servicios de asistencia médicas y servicios relacionados con la medicina no clasificados en otra parte","1","3","Rev 2"]
[null,null,null,null,null,null,null,null,null,null,null,null,null,"933120","Servicios de asistencia prestados por médicos, odontólogos y otras especialidades médicas","1","3","Rev 2"]
[null,null,null,null,null,null,null,null,null,null,null,null,null,"934011","Servicios de asistencias en asilos, hogares para ancianos, guarderías y similares","1","3","Rev 2"]
[null,null,null,null,null,null,null,null,null,null,null,null,null,"911200","Servicios de asociaciones de especialistas en disciplinas científicas, prácticas profesionales y esferas técnicas","1","1","Rev3"]
[null,null,null,null,null,null,null,null,null,null,null,null,null,"919900","Servicios de asociaciones n.c.p.","1","1","Rev3"]
[null,null,null,null,null,null,null,null,null,null,null,null,null,"949990","Servicios de asociaciones n.c.p.","1","1","Rev 4"]
[null,null,null,null,null,null,null,null,null,null,null,null,null,"752100","Servicios de asuntos exteriores","1","1","Rev3"]
[null,null,null,null,null,null,null,null,null,null,null,null,null,"842100","Servicios de asuntos exteriores","1","1","Rev 4"]
[null,null,null,null,null,null,null,null,null,null,null,null,null,"853110","Servicios de atención a ancianos con alojamiento","1","3","Rev3"]
[null,null,null,null,null,null,null,null,null,null,null,null,null,"870210","Servicios de atención a ancianos con alojamiento","1","3","Rev 4"]
[null,null,null,null,null,null,null,null,null,null,null,null,null,"853130","Servicios de atención a menores con alojamiento","1","3","Rev3"]
[null,null,null,null,null,null,null,null,null,null,null,null,null,"853140","Servicios de atención a mujeres con alojamiento","1","3","Rev3"]
[null,null,null,null,null,null,null,null,null,null,null,null,null,"870920","Servicios de atención a mujeres con alojamiento","1","3","Rev 4"]
[null,null,null,null,null,null,null,null,null,null,null,null,null,"870910","Servicios de atención a niños y adolescentes carenciados con alojamiento","1","3","Rev 4"]
[null,null,null,null,null,null,null,null,null,null,null,null,null,"870100","Servicios de atención a personas con problemas de salud mental o de adicciones, con alojamiento","1","3","Rev 4"]
[null,null,null,null,null,null,null,null,null,null,null,null,null,"853120","Servicios de atención a personas minusválidas con alojamiento","1","3","Rev3"]
[null,null,null,null,null,null,null,null,null,null,null,null,null,"870220","Servicios de atención a personas minusválidas con alojamiento","1","3","Rev 4"]
[null,null,null,null,null,null,null,null,null,null,null,null,null,"851220","Servicios de atención domiciliaria programada (Incluye las actividades llevadas a cabo en establecimientos que ofrecen atención por módulos a domicilio y actividades de agentes sanitarios relacionados con la prevención y educación para la salud)","1","2","Rev3"]
[null,null,null,null,null,null,null,null,null,null,null,null,null,"862130","Servicios de atención médica en dispensarios, salitas, vacunatorios y otros locales de atención primaria de la salud","1","3","Rev 4"]
[null,null,null,null,null,null,null,null,null,null,null,null,null,"552114","Servicios de bares y confiterías (Incluye locales de expendio de bebidas con servicio de mesa y/o de mostrador para consumo en el lugar, salones de té, servicios de comedores escolares, cantinas deportivas, fábricas etc.)","1","2","Rev3"]
[null,null,null,null,null,null,null,null,null,null,null,null,null,"959138","Servicios de bellezas excepto los de peluquería. Salones de belleza","1","3","Rev 2"]
[null,null,null,null,null,null,null,null,null,null,null,null,null,"910100","Servicios de bibliotecas y archivos","1","2","Rev 4"]
[null,null,null,null,null,null,null,null,null,null,null,null,null,"923100","Servicios de bibliotecas y archivos","1","2","Rev3"]
[null,null,null,null,null,null,null,null,null,null,null,null,null,"661131","Servicios de bolsas de comercio","1","1","Rev 4"]
[null,null,null,null,null,null,null,null,null,null,null,null,null,"671130","Servicios de bolsas de comercio","1","1","Rev3"]
[null,null,null,null,null,null,null,null,null,null,null,null,null,"651320","Servicios de cajas de previsión social pertenecientes a asociaciones profesionales","1","1","Rev 4"]
[null,null,null,null,null,null,null,null,null,null,null,null,null,"822000","Servicios de call center","1","3","Rev 4"]
[null,null,null,null,null,null,null,null,null,null,null,null,null,"562091","Servicios de cantinas con atención exclusiva a los empleados o estudiantes dentro de empresas o establecimientos educativos.","1","2","Rev 4"]
[null,null,null,null,null,null,null,null,null,null,null,null,null,"661920","Servicios de casas y agencias de cambio","1","1","Rev 4"]
[null,null,null,null,null,null,null,null,null,null,null,null,null,"671910","Servicios de casas y agencias de cambio","1","1"]
[null,null,null,null,null,null,null,null,null,null,null,null,null,"960910","Servicios de centros de estética, spa y similares","1","2","Rev 4"]
[null,null,null,null,null,null,null,null,null,null,null,null,null,"731001","Servicios de comercialización de tiempo y espacio publicitario","1","1","Rev 4"]
[null,null,null,null,null,null,null,null,null,null,null,null,null,"562099","Servicios de comidas n.c.p.","1","2","Rev 4"]
[null,null,null,null,null,null,null,null,null,null,null,null,null,"642020","Servicios de comunicación por medio de teléfono, telégrafo y télex","1","2","Rev3"]
[null,null,null,null,null,null,null,null,null,null,null,null,null,"949920","Servicios de consorcios de edificios","1","2","Rev 4"]
[null,null,null,null,null,null,null,null,null,null,null,null,null,"862110","Servicios de consulta médica","1","3","Rev 4"]
[null,null,null,null,null,null,null,null,null,null,null,null,null,"620200","Servicios de consultores en equipo de informática","1","1","Rev 4"]
[null,null,null,null,null,null,null,null,null,null,null,null,null,"721000","Servicios de consultores en equipo de informática","1","1","Rev3"]
[null,null,null,null,null,null,null,null,null,null,null,null,null,"620100","Servicios de consultores en informática y suministros de programas de informática","1","1","Rev 4"]
[null,null,null,null,null,null,null,null,null,null,null,null,null,"722000","Servicios de consultores en informática y suministros de programas de informática","1","1","Rev3"]
[null,null,null,null,null,null,null,null,null,null,null,null,null,"620300","Servicios de consultores en tecnología de la información","1","1","Rev 4"]
[null,null,null,null,null,null,null,null,null,null,null,null,null,"832928","Servicios de consultoría económica y financiera","1","1","Rev 2"]
[null,null,null,null,null,null,null,null,null,null,null,null,null,"741200","Servicios de contabilidad y teneduría de libros, auditoría y asesoría fiscal","1","1","Rev3"]
[null,null,null,null,null,null,null,null,null,null,null,null,null,"692000","Servicios de contabilidad, auditoría y asesoría fiscal","1","1","Rev 4"]
[null,null,null,null,null,null,null,null,null,null,null,null,null,"832219","Servicios de contabilidad, auditoría, teneduría de libros y otros asesoramientos afines","1","1","Rev 2"]
[null,null,null,null,null,null,null,null,null,null,null,null,null,"16130","Servicios de contratistas de mano de obra agrícola","1","2","Rev 4"]
[null,null,null,null,null,null,null,null,null,null,null,null,null,"14130","Servicios de contratistas de mano de obra agrícola  (Incluye la poda de árboles, transplante, fumigación y desinfección manual, cosecha manual de citrus, algodón, etc.)","1","2","Rev3"]
[null,null,null,null,null,null,null,null,null,null,null,null,null,"16220","Servicios de contratistas de mano de obra pecuaria","1","2","Rev 4"]
[null,null,null,null,null,null,null,null,null,null,null,null,null,"14220","Servicios de contratistas de mano de obra pecuaria (Incluye arreo, castración de aves, esquila de ovejas, recolección de estiércol,  etc.)","1","2","Rev3"]
[null,null,null,null,null,null,null,null,null,null,null,null,null,"949930","Servicios de cooperativas cuando realizan varias actividades","1","1","Rev 4"]
[null,null,null,null,null,null,null,null,null,null,null,null,null,"641000","Servicios de correos","1","3","Rev3"]
[null,null,null,null,null,null,null,null,null,null,null,null,null,"16120","Servicios de cosecha mecánica","1","2","Rev 4"]
[null,null,null,null,null,null,null,null,null,null,null,null,null,"14120","Servicios de cosecha mecánica  (Incluye la cosecha mecánica de granos, caña de azúcar, algodón, forrajes, el enfardado, enrrollado, etc.)","1","2","Rev3"]
[null,null,null,null,null,null,null,null,null,null,null,null,null,"649290","Servicios de crédito n.c.p.","1","1","Rev 4"]
[null,null,null,null,null,null,null,null,null,null,null,null,null,"659890","Servicios de crédito n.c.p. (Incluye el otorgamiento de préstamos por entidades que no reciben depósitos y que están fuera del sistema bancario y cuyo destino es financiar el consumo, la vivienda u otros bienes)","1","1","Rev3"]
[null,null,null,null,null,null,null,null,null,null,null,null,null,"752200","Servicios de defensa","1","1","Rev3"]
[null,null,null,null,null,null,null,null,null,null,null,null,null,"842200","Servicios de defensa","1","1","Rev 4"]
[null,null,null,null,null,null,null,null,null,null,null,null,null,"370000","Servicios de depuración de aguas residuales, alcantarillado y cloacas","3","5","Rev 4","Comprendido Res 177/07 y Mod"]
[null,null,null,null,null,null,null,null,null,null,null,null,null,"900020","Servicios de depuración de aguas residuales, alcantarillado y cloacas","3","5","Rev3","Comprendido Res 177/07 y Mod"]
[null,null,null,null,null,null,null,null,null,null,null,null,null,"812020","Servicios de desinfección y exterminio de plagas en el ámbito urbano","1","4","Rev 4"]
[null,null,null,null,null,null,null,null,null,null,null,null,null,"851400","Servicios de diagnóstico (Incluye las actividades de laboratorios de análisis clínicos y patológicos, centros de diagnóstico por imágenes, centros de endoscopía, de electrodiagnóstico, consultorios de hemodinamia, etc.)","1","3","Rev3"]
[null,null,null,null,null,null,null,null,null,null,null,null,null,"741000","Servicios de diseño especializado","1","3","Rev 4"]
[null,null,null,null,null,null,null,null,null,null,null,null,null,"949019","Servicios de diversión y esparcimiento prestados en salones de baile, discotecas y similares","1","2","Rev 2"]
[null,null,null,null,null,null,null,null,null,null,null,null,null,"949094","Servicios de diversión y esparcimientos no clasificados en otra parte (incluye servicios de caballerizas y \" studs\", alquiler de botes, explotación de piscinas etc)","1","3","Rev 2"]
[null,null,null,null,null,null,null,null,null,null,null,null,null,"832316","Servicios de elaboración de datos y computación","1","1","Rev 2"]
[null,null,null,null,null,null,null,null,null,null,null,null,null,"851600","Servicios de emergencias y traslados","1","3","Rev3"]
[null,null,null,null,null,null,null,null,null,null,null,null,null,"864000","Servicios de emergencias y traslados","1","3","Rev 4"]
[null,null,null,null,null,null,null,null,null,null,null,null,null,"854990","Servicios de enseñanza n.c.p.","1","2","Rev 4"]
[null,null,null,null,null,null,null,null,null,null,null,null,null,"649220","Servicios de entidades de tarjeta de compra y/o crédito","1","1","Rev 4"]
[null,null,null,null,null,null,null,null,null,null,null,null,null,"659920","Servicios de entidades de tarjeta de compra y/o crédito","1","1","Rev3"]
[null,null,null,null,null,null,null,null,null,null,null,null,null,"924990","Servicios de entretenimiento n.c.p.","1","3","Rev3"]
[null,null,null,null,null,null,null,null,null,null,null,null,null,"939090","Servicios de entretenimiento n.c.p.","1","3","Rev 4"]
[null,null,null,null,null,null,null,null,null,null,null,null,null,"749500","Servicios de envase y empaque","1","3","Rev3"]
[null,null,null,null,null,null,null,null,null,null,null,null,null,"829200","Servicios de envase y empaque","1","3","Rev 4"]
[null,null,null,null,null,null,null,null,null,null,null,null,null,"661991","Servicios de envio y recepción de fondos desde y hacia el exterior","1","3","Rev 4"]
[null,null,null,null,null,null,null,null,null,null,null,null,null,"924910","Servicios de esparcimiento relacionados con juegos de azar y apuestas","1","3","Rev3"]
[null,null,null,null,null,null,null,null,null,null,null,null,null,"900091","Servicios de espectáculos artísticos n.c.p.","1","2","Rev 4"]
[null,null,null,null,null,null,null,null,null,null,null,null,null,"921990","Servicios de espectáculos artísticos y de diversión  n.c.p. (Incluye parques de diversión y centros similares, circenses, de títeres, mimos etc.)","1","2","Rev3"]
[null,null,null,null,null,null,null,null,null,null,null,null,null,"16230","Servicios de esquila de animales","1","2","Rev 4"]
[null,null,null,null,null,null,null,null,null,null,null,null,null,"524130","Servicios de estaciones terminales de ómnibus y ferroviárias","1","3","Rev 4"]
[null,null,null,null,null,null,null,null,null,null,null,null,null,"832448","Servicios de estudios técnicos y arquitectónicos no clasificados en otra parte","1","1","Rev 2"]
[null,null,null,null,null,null,null,null,null,null,null,null,null,"662010","Servicios de evaluación de riesgos y daños","1","1","Rev 4"]
[null,null,null,null,null,null,null,null,null,null,null,null,null,"561014","Servicios de expendio de bebidas en bares","1","2","Rev 4"]
[null,null,null,null,null,null,null,null,null,null,null,null,null,"552119","Servicios de expendio de comidas y bebidas en establecimientos con servicio de mesa y/o en mostrador - excepto en heladerías - n.c.p.","1","2","Rev3"]
[null,null,null,null,null,null,null,null,null,null,null,null,null,"561019","Servicios de expendio de comidas y bebidas en establecimientos con servicio de mesa y/o en mostrador n.c.p.","1","2","Rev 4"]
[null,null,null,null,null,null,null,null,null,null,null,null,null,"524310","Servicios de explotación de infraestructura para el transporte aéreo, derechos de aeropuerto","1","4","Rev 4"]
[null,null,null,null,null,null,null,null,null,null,null,null,null,"524210","Servicios de explotación de infraestructura para el transporte marítimo, derechos de puerto","1","4","Rev 4"]
[null,null,null,null,null,null,null,null,null,null,null,null,null,"633210","Servicios de explotación de infraestructura para el transporte por agua;  derechos de puerto","1","4","Rev3"]
[null,null,null,null,null,null,null,null,null,null,null,null,null,"524110","Servicios de explotación de infraestructura para el transporte terrestre, peajes y otros derechos","1","3","Rev 4"]
[null,null,null,null,null,null,null,null,null,null,null,null,null,"633110","Servicios de explotación de infraestructura para el transporte terrestre; peajes y otros derechos","1","3","Rev3"]
[null,null,null,null,null,null,null,null,null,null,null,null,null,"911100","Servicios de federaciones, asociaciones, cámaras, gremios y organizaciones similares","1","1","Rev3"]
[null,null,null,null,null,null,null,null,null,null,null,null,null,"643001","Servicios de fideicomisos","1","1","Rev 4"]
[null,null,null,null,null,null,null,null,null,null,null,null,null,"810339","Servicios de financiación a través de tarjetas de compra y crédito","1","1","Rev 2"]
[null,null,null,null,null,null,null,null,null,null,null,null,null,"649999","Servicios de financiación y actividades financieras n.c.p.","1","1","Rev 4"]
[null,null,null,null,null,null,null,null,null,null,null,null,null,"659990","Servicios de financiación y actividades financieras n.c.p. (Incluye actividades de inversión en acciones, títulos,  fondos comunes de inversión, la actividad de corredores de bolsa, las sociedades de inversión inmobiliaria y sociedades de cartera,  arren","1","1","Rev3"]
[null,null,null,null,null,null,null,null,null,null,null,null,null,"821900","Servicios de fotocopiado, preparación de documentos y otros servicios de apoyo de oficina","1","3","Rev 4"]
[null,null,null,null,null,null,null,null,null,null,null,null,null,"742000","Servicios de fotografía","1","1","Rev 4"]
[null,null,null,null,null,null,null,null,null,null,null,null,null,"749400","Servicios de fotografía","1","1"]
[null,null,null,null,null,null,null,null,null,null,null,null,null,"959219","Servicios de fotografía. Estudios y laboratorios fotográficos    ","1","1","Rev 2"]
[null,null,null,null,null,null,null,null,null,null,null,null,null,"702010","Servicios de gerenciamiento de empresas e instituciones de salud, servicios de auditoria y medicina legal, servicio de asesoramiento farmacéutico","1","3","Rev 4"]
[null,null,null,null,null,null,null,null,null,null,null,null,null,"523019","Servicios de gestión aduanera para el transporte de mercaderías n.c.p.","1","4","Rev 4"]
[null,null,null,null,null,null,null,null,null,null,null,null,null,"523011","Servicios de gestión aduanera realizados por despachantes de aduana","1","4","Rev 4"]
[null,null,null,null,null,null,null,null,null,null,null,null,null,"523031","Servicios de gestión de agentes de transporte aduanero excepto agencias marítimas","1","4","Rev 4"]
[null,null,null,null,null,null,null,null,null,null,null,null,null,"522092","Servicios de gestión de depósitos fiscales","1","1","Rev 4"]
[null,null,null,null,null,null,null,null,null,null,null,null,null,"663000","Servicios de gestión de fondos a cambio de una retribución o por contrata","1","1","Rev 4"]
[null,null,null,null,null,null,null,null,null,null,null,null,null,"635000","Servicios de gestión y logística para el transporte de mercaderías (Incluye las actividades de los agentes aduaneros, actividades de empresas empaquetadoras, etc.)","1","4","Rev3"]
[null,null,null,null,null,null,null,null,null,null,null,null,null,"523090","Servicios de gestión y logística para el transporte de mercaderías n.c.p.","1","4","Rev 4"]
[null,null,null,null,null,null,null,null,null,null,null,null,null,"592000","Servicios de grabación de sonido y edición de música","1","2","Rev 4"]
[null,null,null,null,null,null,null,null,null,null,null,null,null,"712329","Servicios de guarderías de lanchas","1","4","Rev 2"]
[null,null,null,null,null,null,null,null,null,null,null,null,null,"524220","Servicios de guarderías náuticas","1","4","Rev 4"]
[null,null,null,null,null,null,null,null,null,null,null,null,null,"633220","Servicios de guarderías náuticas","1","4","Rev3"]
[null,null,null,null,null,null,null,null,null,null,null,null,null,"524320","Servicios de hangares y estacionamiento de aeronaves","1","4","Rev 4"]
[null,null,null,null,null,null,null,null,null,null,null,null,null,"633310","Servicios de hangares, estacionamiento y remolque de aeronaves","1","4","Rev3"]
[null,null,null,null,null,null,null,null,null,null,null,null,null,"959936","Servicios de higiene y estética corporal","1","2","Rev 2"]
[null,null,null,null,null,null,null,null,null,null,null,null,null,"950000","Servicios de hogares privados que contratan servicio doméstico","1","1","Rev3"]
[null,null,null,null,null,null,null,null,null,null,null,null,null,"970000","Servicios de hogares privados que contratan servicio doméstico","1","1","Rev 4"]
[null,null,null,null,null,null,null,null,null,null,null,null,null,"551090","Servicios de hospedaje temporal n.c.p.","1","2","Rev 4"]
[null,null,null,null,null,null,null,null,null,null,null,null,null,"551229","Servicios de hospedaje temporal n.c.p. (Incluye hospedaje en estancias, residencias para estudiantes y albergues juveniles, apartamentos turísticos, etc.)","1","2","Rev3"]
[null,null,null,null,null,null,null,null,null,null,null,null,null,"851120","Servicios de hospital de día (Incluye las actividades de tratamiento que no necesitan hospitalización a tiempo completo, tales como tratamientos oncológicos; infectológicos; dialíticos; atención de la salud mental; atención pediátrica; atención gerontoló","1","3","Rev3"]
[null,null,null,null,null,null,null,null,null,null,null,null,null,"749600","Servicios de impresión heliográfica, fotocopia y otras formas de reproducciones","1","3","Rev3"]
[null,null,null,null,null,null,null,null,null,null,null,null,null,"639900","Servicios de información n.c.p.","1","1","Rev 4"]
[null,null,null,null,null,null,null,null,null,null,null,null,null,"832960","Servicios de información. Agencias de noticias","1","1","Rev 2"]
[null,null,null,null,null,null,null,null,null,null,null,null,null,"620900","Servicios de informática n.c.p.","1","2","Rev 4"]
[null,null,null,null,null,null,null,null,null,null,null,null,null,"641943","Servicios de intermediación financiera realizada por cajas de crédito","1","1","Rev 4"]
[null,null,null,null,null,null,null,null,null,null,null,null,null,"652203","Servicios de intermediación financiera realizada por cajas de crédito","1","1","Rev3"]
[null,null,null,null,null,null,null,null,null,null,null,null,null,"641941","Servicios de intermediación financiera realizada por las compañías financieras","1","1","Rev 4"]
[null,null,null,null,null,null,null,null,null,null,null,null,null,"652201","Servicios de intermediación financiera realizada por las compañías financieras","1","1","Rev3"]
[null,null,null,null,null,null,null,null,null,null,null,null,null,"641942","Servicios de intermediación financiera realizada por sociedades de ahorro y préstamo para la vivienda y otros inmuebles","1","1","Rev 4"]
[null,null,null,null,null,null,null,null,null,null,null,null,null,"652202","Servicios de intermediación financiera realizada por sociedades de ahorro y préstamo para la vivienda y otros inmuebles","1","1","Rev3"]
[null,null,null,null,null,null,null,null,null,null,null,null,null,"851110","Servicios de internación","1","3","Rev3"]
[null,null,null,null,null,null,null,null,null,null,null,null,null,"861020","Servicios de internación en instituciones relacionadas con la salud mental","1","3","Rev 4"]
[null,null,null,null,null,null,null,null,null,null,null,null,null,"861010","Servicios de internación excepto instituciones relacionadas con la salud mental","1","3","Rev 4"]
[null,null,null,null,null,null,null,null,null,null,null,null,null,"832529","Servicios de investigación de mercado","1","1","Rev 2"]
[null,null,null,null,null,null,null,null,null,null,null,null,null,"749290","Servicios de investigación y seguridad n.c.p.","1","1","Rev3"]
[null,null,null,null,null,null,null,null,null,null,null,null,null,"832952","Servicios de investigación y vigilancia","1","1","Rev 2"]
[null,null,null,null,null,null,null,null,null,null,null,null,null,"813000","Servicios de jardinería y mantenimiento de espacios verdes","1","3","Rev 4"]
[null,null,null,null,null,null,null,null,null,null,null,null,null,"910300","Servicios de jardines botánicos, zoológicos y de parques nacionales","1","3","Rev 4"]
[null,null,null,null,null,null,null,null,null,null,null,null,null,"923300","Servicios de jardines botánicos, zoológicos y de parques nacionales","1","3","Rev3"]
[null,null,null,null,null,null,null,null,null,null,null,null,null,"949035","Servicios de juego de salón ( incluye salones de billar, \"pool\" y \"bowling\", juegos electrónicos, etc)","1","3","Rev 2"]
[null,null,null,null,null,null,null,null,null,null,null,null,null,"752300","Servicios de justicia","1","1"]
[null,null,null,null,null,null,null,null,null,null,null,null,null,"842400","Servicios de justicia","1","1","Rev 4"]
[null,null,null,null,null,null,null,null,null,null,null,null,null,"641100","Servicios de la banca central","1","1","Rev 4"]
[null,null,null,null,null,null,null,null,null,null,null,null,null,"651100","Servicios de la banca central (Incluye las actividades del Banco Central de la República Argentina)","1","1","Rev3"]
[null,null,null,null,null,null,null,null,null,null,null,null,null,"641920","Servicios de la banca de inversión","1","1","Rev 4"]
[null,null,null,null,null,null,null,null,null,null,null,null,null,"652120","Servicios de la banca de inversión","1","1","Rev3"]
[null,null,null,null,null,null,null,null,null,null,null,null,null,"641910","Servicios de la banca mayorista","1","1","Rev 4"]
[null,null,null,null,null,null,null,null,null,null,null,null,null,"652110","Servicios de la banca mayorista","1","1","Rev3"]
[null,null,null,null,null,null,null,null,null,null,null,null,null,"641930","Servicios de la banca minorista","1","1","Rev 4"]
[null,null,null,null,null,null,null,null,null,null,null,null,null,"652130","Servicios de la banca minorista","1","1","Rev3"]
[null,null,null,null,null,null,null,null,null,null,null,null,null,"753000","Servicios de la seguridad social obligatoria","1","1","Rev3"]
[null,null,null,null,null,null,null,null,null,null,null,null,null,"843000","Servicios de la seguridad social obligatoria, excepto obras sociales","1","1","Rev 4"]
[null,null,null,null,null,null,null,null,null,null,null,null,null,"14111","Servicios de labranza, siembra, transplante  y  cuidados culturales","1","2","Rev3"]
[null,null,null,null,null,null,null,null,null,null,null,null,null,"16111","Servicios de labranza, siembra, transplante y cuidados culturales","1","2","Rev 4"]
[null,null,null,null,null,null,null,null,null,null,null,null,null,"711632","Servicios de lavado automático de automotores","1","2","Rev 2"]
[null,null,null,null,null,null,null,null,null,null,null,null,null,"952028","Servicios de lavandería y tintorería (incluye alquiler de ropa blanca).Servicios de lavado y secado automático de prendas y otros artículos textiles. Lavanderías y tintorerias","1","3","Rev 2"]
[null,null,null,null,null,null,null,null,null,null,null,null,null,"749300","Servicios de limpieza de edificios","1","2","Rev3"]
[null,null,null,null,null,null,null,null,null,null,null,null,null,"960101","Servicios de limpieza de prendas prestado por tintorerías rápidas","1","3","Rev 4"]
[null,null,null,null,null,null,null,null,null,null,null,null,null,"812010","Servicios de limpieza general de edificios","1","2","Rev 4"]
[null,null,null,null,null,null,null,null,null,null,null,null,null,"812090","Servicios de limpieza n.c.p.","1","2","Rev 4"]
[null,null,null,null,null,null,null,null,null,null,null,null,null,"611010","Servicios de locutorios","1","3","Rev 4"]
[null,null,null,null,null,null,null,null,null,null,null,null,null,"631000","Servicios de manipulación de carga (Incluye los servicios de carga y descarga de mercancías o equipajes de pasajeros, sin discriminar medios de transporte, la estiba y desestiba, etc.)","1","5","Rev3"]
[null,null,null,null,null,null,null,null,null,null,null,null,null,"521030","Servicios de manipulación de carga en el ámbito aéreo","1","5","Rev 4"]
[null,null,null,null,null,null,null,null,null,null,null,null,null,"521020","Servicios de manipulación de carga en el ámbito portuario","1","5","Rev 4"]
[null,null,null,null,null,null,null,null,null,null,null,null,null,"521010","Servicios de manipulación de carga en el ámbito terrestre","1","5","Rev 4"]
[null,null,null,null,null,null,null,null,null,null,null,null,null,"16119","Servicios de maquinaria agrícola n.c.p., excepto los de cosecha mecánica","1","2","Rev 4"]
[null,null,null,null,null,null,null,null,null,null,null,null,null,"14119","Servicios de maquinaria agrícola n.c.p., excepto los de cosecha mecánica (Incluye enfardado, enrollado, envasado - silo-pack -, clasificación y secado, etc.)","1","2","Rev3"]
[null,null,null,null,null,null,null,null,null,null,null,null,null,"530090","Servicios de mensajerías.","1","3","Rev 4"]
[null,null,null,null,null,null,null,null,null,null,null,null,null,"661121","Servicios de mercados a término","1","1","Rev 4"]
[null,null,null,null,null,null,null,null,null,null,null,null,null,"671120","Servicios de mercados a término","1","1","Rev3"]
[null,null,null,null,null,null,null,null,null,null,null,null,null,"661111","Servicios de mercados y cajas de valores","1","1","Rev 4"]
[null,null,null,null,null,null,null,null,null,null,null,null,null,"671110","Servicios de mercados y cajas de valores","1","1","Rev3"]
[null,null,null,null,null,null,null,null,null,null,null,null,null,"492210","Servicios de mudanza","1","2","Rev 4"]
[null,null,null,null,null,null,null,null,null,null,null,null,null,"602110","Servicios de mudanza (Incluye servicios de guardamuebles)","1","2","Rev3"]
[null,null,null,null,null,null,null,null,null,null,null,null,null,"910200","Servicios de museos y preservación de lugares y edificios históricos","1","1","Rev 4"]
[null,null,null,null,null,null,null,null,null,null,null,null,null,"923200","Servicios de museos y preservación de lugares y edificios históricos","1","1","Rev3"]
[null,null,null,null,null,null,null,null,null,null,null,null,null,"949910","Servicios de mutuales, excepto mutuales de salud y financieras","1","1","Rev 4"]
[null,null,null,null,null,null,null,null,null,null,null,null,null,"523039","Servicios de operadores logísticos n.c.p.","1","4","Rev 4"]
[null,null,null,null,null,null,null,null,null,null,null,null,null,"523032","Servicios de operadores logísticos seguros (ols) en el ámbito aduanero","1","4","Rev 4"]
[null,null,null,null,null,null,null,null,null,null,null,null,null,"823000","Servicios de organización de convenciones y exposiciones comerciales, excepto culturales y deportivos","1","3","Rev 4"]
[null,null,null,null,null,null,null,null,null,null,null,null,null,"931010","Servicios de organización, dirección y gestión de prácticas deportivas en clubes","1","3","Rev 4"]
[null,null,null,null,null,null,null,null,null,null,null,null,null,"924110","Servicios de organización, dirección y gestión de prácticas deportivas y explotación de las instalaciones  (Incluye clubes, gimnasios  y otras instalaciones para practicar deportes)","1","3","Rev3"]
[null,null,null,null,null,null,null,null,null,null,null,null,null,"941100","Servicios de organizaciones empresariales y de empleadores","1","1","Rev 4"]
[null,null,null,null,null,null,null,null,null,null,null,null,null,"919200","Servicios de organizaciones políticas","1","1","Rev3"]
[null,null,null,null,null,null,null,null,null,null,null,null,null,"949200","Servicios de organizaciones políticas","1","1","Rev 4"]
[null,null,null,null,null,null,null,null,null,null,null,null,null,"941200","Servicios de organizaciones profesionales","1","1","Rev 4"]
[null,null,null,null,null,null,null,null,null,null,null,null,null,"919100","Servicios de organizaciones religiosas","1","1","Rev3"]
[null,null,null,null,null,null,null,null,null,null,null,null,null,"949100","Servicios de organizaciones religiosas","1","1","Rev 4"]
[null,null,null,null,null,null,null,null,null,null,null,null,null,"990000","Servicios de organizaciones y órganos extraterritoriales","1","2","Rev3"]
[null,null,null,null,null,null,null,null,null,null,null,null,null,"939010","Servicios de parques de diversiones y parques temáticos","1","3","Rev 4"]
[null,null,null,null,null,null,null,null,null,null,null,null,null,"930201","Servicios de peluquería","1","3","Rev3"]
[null,null,null,null,null,null,null,null,null,null,null,null,null,"960201","Servicios de peluquería","1","3","Rev 4"]
[null,null,null,null,null,null,null,null,null,null,null,null,null,"959111","Servicios de peluquería. Peluquerías","1","3","Rev 2"]
[null,null,null,null,null,null,null,null,null,null,null,null,null,"552113","Servicios de pizzerías, \"fast food\" y locales de venta de comidas y bebidas al paso  (Incluye el expendio de pizza, empanadas, hamburguesas, productos lácteos excepto helados, etc.)","1","2","Rev3"]
[null,null,null,null,null,null,null,null,null,null,null,null,null,"711616","Servicios de playa de estacionamiento","1","3","Rev 2"]
[null,null,null,null,null,null,null,null,null,null,null,null,null,"524120","Servicios de playas de estacionamiento y garajes","1","3","Rev 4"]
[null,null,null,null,null,null,null,null,null,null,null,null,null,"959928","Servicios de pompas fúnebres y servicios conexos","1","5","Rev 2"]
[null,null,null,null,null,null,null,null,null,null,null,null,null,"16140","Servicios de post cosecha","1","2","Rev 4"]
[null,null,null,null,null,null,null,null,null,null,null,null,null,"863110","Servicios de prácticas de diagnóstico en laboratorios","1","3","Rev 4"]
[null,null,null,null,null,null,null,null,null,null,null,null,null,"863190","Servicios de prácticas de diagnóstico n.c.p.","1","3","Rev 4"]
[null,null,null,null,null,null,null,null,null,null,null,null,null,"863120","Servicios de prácticas de diagnóstico por imágenes","1","3","Rev 4"]
[null,null,null,null,null,null,null,null,null,null,null,null,null,"949027","Servicios de prácticas deportivas (incluye clubes, gimnasios, canchas de tenis, \"paddle\" y similares)","1","3","Rev 2"]
[null,null,null,null,null,null,null,null,null,null,null,null,null,"562010","Servicios de preparación de comidas para empresas y eventos","1","2","Rev 4"]
[null,null,null,null,null,null,null,null,null,null,null,null,null,"561020","Servicios de preparación de comidas para llevar","1","2","Rev 4"]
[null,null,null,null,null,null,null,null,null,null,null,null,null,"561040","Servicios de preparación de comidas realizadas por/para vendedores ambulantes.","1","2","Rev 4"]
[null,null,null,null,null,null,null,null,null,null,null,null,null,"16150","Servicios de procesamiento de semillas para su siembra","1","2","Rev 4"]
[null,null,null,null,null,null,null,null,null,null,null,null,null,"672110","Servicios de productores  y asesores de seguros","1","1","Rev3"]
[null,null,null,null,null,null,null,null,null,null,null,null,null,"662020","Servicios de productores y asesores de seguros","1","1","Rev 4"]
[null,null,null,null,null,null,null,null,null,null,null,null,null,"752500","Servicios de protección civil","1","2","Rev3"]
[null,null,null,null,null,null,null,null,null,null,null,null,null,"842500","Servicios de protección civil","1","2","Rev 4"]
[null,null,null,null,null,null,null,null,null,null,null,null,null,"614010","Servicios de proveedores de acceso a internet","1","2","Rev 4"]
[null,null,null,null,null,null,null,null,null,null,null,null,null,"862120","Servicios de proveedores de atención médica domiciliaria","1","2","Rev 4"]
[null,null,null,null,null,null,null,null,null,null,null,null,null,"743000","Servicios de publicidad","1","1","Rev3"]
[null,null,null,null,null,null,null,null,null,null,null,null,null,"832510","Servicios de publicidad (incluye agencias de publicidad, representantes, recepción y publicación de avisos, redacción de textos publicitarios y ejecución de trabajos de arte publicitario, etc.)","1","1","Rev 2"]
[null,null,null,null,null,null,null,null,null,null,null,null,null,"731009","Servicios de publicidad n.c.p.","1","1","Rev 4"]
[null,null,null,null,null,null,null,null,null,null,null,null,null,"16113","Servicios de pulverización, desinfección y fumigación aérea","1","4","Rev 4"]
[null,null,null,null,null,null,null,null,null,null,null,null,null,"14112","Servicios de pulverización, desinfección y fumigación aérea y terrestre, excepto la manual","1","4","Rev3"]
[null,null,null,null,null,null,null,null,null,null,null,null,null,"16112","Servicios de pulverización, desinfección y fumigación terrestre","1","4","Rev 4"]
[null,null,null,null,null,null,null,null,null,null,null,null,null,"921301","Servicios de radio  (No incluye la transmisión, actividad 642010)","1","2","Rev3"]
[null,null,null,null,null,null,null,null,null,null,null,null,null,"920001","Servicios de recepción de apuestas de quiniela, lotería y similares","1","3","Rev 4"]
[null,null,null,null,null,null,null,null,null,null,null,null,null,"869010","Servicios de rehabilitación física","1","3","Rev 4"]
[null,null,null,null,null,null,null,null,null,null,null,null,null,"951927","Servicios de reparación no clasificados en otra parte","1","2","Rev 2"]
[null,null,null,null,null,null,null,null,null,null,null,null,null,"749002","Servicios de representación e intermediación de artistas y modelos","1","2","Rev 4"]
[null,null,null,null,null,null,null,null,null,null,null,null,null,"749003","Servicios de representación e intermediación de deportistas profesionales","1","2","Rev 4"]
[null,null,null,null,null,null,null,null,null,null,null,null,null,"552112","Servicios de restaurantes y cantinas con espectáculo","1","2","Rev3"]
[null,null,null,null,null,null,null,null,null,null,null,null,null,"561012","Servicios de restaurantes y cantinas con espectáculo","1","2","Rev 4"]
[null,null,null,null,null,null,null,null,null,null,null,null,null,"552111","Servicios de restaurantes y cantinas sin espectáculo","1","2","Rev3"]
[null,null,null,null,null,null,null,null,null,null,null,null,null,"561011","Servicios de restaurantes y cantinas sin espectáculo","1","2","Rev 4"]
[null,null,null,null,null,null,null,null,null,null,null,null,null,"921910","Servicios de salones de baile, discotecas y similares","1","2","Rev3"]
[null,null,null,null,null,null,null,null,null,null,null,null,null,"939030","Servicios de salones de baile, discotecas y similares","1","2","Rev 4"]
[null,null,null,null,null,null,null,null,null,null,null,null,null,"939020","Servicios de salones de juegos","1","3","Rev 4"]
[null,null,null,null,null,null,null,null,null,null,null,null,null,"924920","Servicios de salones de juegos  (Incluye salones de billar, pool, bowling, juegos electrónicos, etc.)","1","3","Rev3"]
[null,null,null,null,null,null,null,null,null,null,null,null,null,"900090","Servicios de saneamiento público n.c.p.","2","5","Rev3","Comprendido Res 177/07 y Mod"]
[null,null,null,null,null,null,null,null,null,null,null,null,null,"801090","Servicios de seguridad e investigación n.c.p.","1","1","Rev 4"]
[null,null,null,null,null,null,null,null,null,null,null,null,null,"661130","Servicios de seguros a las personas excepto  los de salud y de vida (Incluye los seguros de accidentes)","1","1","Rev3"]
[null,null,null,null,null,null,null,null,null,null,null,null,null,"651110","Servicios de seguros de salud","1","1","Rev 4"]
[null,null,null,null,null,null,null,null,null,null,null,null,null,"661110","Servicios de seguros de salud (Incluye medicina prepaga)","1","1","Rev3"]
[null,null,null,null,null,null,null,null,null,null,null,null,null,"651120","Servicios de seguros de vida","1","1","Rev 4"]
[null,null,null,null,null,null,null,null,null,null,null,null,null,"661120","Servicios de seguros de vida (Incluye los seguros de vida, retiro y sepelio)","1","1","Rev3"]
[null,null,null,null,null,null,null,null,null,null,null,null,null,"661220","Servicios de seguros patrimoniales excepto los de las aseguradoras de riesgo de trabajo","1","1","Rev3"]
[null,null,null,null,null,null,null,null,null,null,null,null,null,"651220","Servicios de seguros patrimoniales excepto los de las aseguradoras de riesgo de trabajo (art)","1","1","Rev 4"]
[null,null,null,null,null,null,null,null,null,null,null,null,null,"651130","Servicios de seguros personales excepto los de salud y de vida","1","1","Rev 4"]
[null,null,null,null,null,null,null,null,null,null,null,null,null,"912000","Servicios de sindicatos","1","1","Rev3"]
[null,null,null,null,null,null,null,null,null,null,null,null,null,"942000","Servicios de sindicatos","1","1","Rev 4"]
[null,null,null,null,null,null,null,null,null,null,null,null,null,"801020","Servicios de sistemas de seguridad","1","1","Rev 4"]
[null,null,null,null,null,null,null,null,null,null,null,null,null,"671920","Servicios de sociedades calificadoras de riesgos","1","1","Rev3"]
[null,null,null,null,null,null,null,null,null,null,null,null,null,"661930","Servicios de sociedades calificadoras de riesgos financieros","1","1","Rev 4"]
[null,null,null,null,null,null,null,null,null,null,null,null,null,"642000","Servicios de sociedades de cartera","1","1","Rev 4"]
[null,null,null,null,null,null,null,null,null,null,null,null,null,"649991","Servicios de socios inversores en sociedades regulares según ley 19.550 - s.r.l., s.c.a, etc, excepto socios inversores en sociedades anónimas incluidos en 649999 -","1","1","Rev 4"]
[null,null,null,null,null,null,null,null,null,null,null,null,null,"951919","Servicios de tapicería","1","2","Rev 2"]
[null,null,null,null,null,null,null,null,null,null,null,null,null,"614090","Servicios de telecomunicación vía internet n.c.p.","1","2","Rev 4"]
[null,null,null,null,null,null,null,null,null,null,null,null,null,"619000","Servicios de telecomunicaciones n.c.p.","1","3","Rev 4"]
[null,null,null,null,null,null,null,null,null,null,null,null,null,"613000","Servicios de telecomunicaciones vía satélite, excepto servicios de transmisión de televisión","1","2","Rev 4"]
[null,null,null,null,null,null,null,null,null,null,null,null,null,"611090","Servicios de telefonía fija, excepto locutorios","1","2","Rev 4"]
[null,null,null,null,null,null,null,null,null,null,null,null,null,"612000","Servicios de telefonía móvil","1","2","Rev 4"]
[null,null,null,null,null,null,null,null,null,null,null,null,null,"602900","Servicios de televisión n.c.p","1","2","Rev 4"]
[null,null,null,null,null,null,null,null,null,null,null,null,null,"749001","Servicios de traducción e interpretación","1","3","Rev 4"]
[null,null,null,null,null,null,null,null,null,null,null,null,null,"642010","Servicios de transmisión de radio y televisión","1","2","Rev3"]
[null,null,null,null,null,null,null,null,null,null,null,null,null,"642099","Servicios de transmisión n.c.p. de sonido, imágenes, datos u otra información","1","2","Rev3"]
[null,null,null,null,null,null,null,null,null,null,null,null,null,"492120","Servicios de transporte automotor de pasajeros mediante taxis y remises, alquiler de autos con chofer","1","3","Rev 4"]
[null,null,null,null,null,null,null,null,null,null,null,null,null,"602220","Servicios de transporte automotor de pasajeros mediante taxis y remises; alquiler de autos con chofer","1","3","Rev3"]
[null,null,null,null,null,null,null,null,null,null,null,null,null,"602130","Servicios de transporte de animales","1","3","Rev3"]
[null,null,null,null,null,null,null,null,null,null,null,null,null,"749210","Servicios de transporte de caudales y objetos de valor","1","1","Rev3"]
[null,null,null,null,null,null,null,null,null,null,null,null,null,"801010","Servicios de transporte de caudales y objetos de valor","1","1","Rev 4"]
[null,null,null,null,null,null,null,null,null,null,null,null,null,"602120","Servicios de transporte de mercaderías a granel, incluido el transporte por camión cisterna","1","5","Rev3"]
[null,null,null,null,null,null,null,null,null,null,null,null,null,"863200","Servicios de tratamiento","1","5","Rev 4"]
[null,null,null,null,null,null,null,null,null,null,null,null,null,"851500","Servicios de tratamiento (Incluye las actividades de centros de cobaltoterapia, de radiología convencional, de acelerador lineal de rehabilitación física, de psicoterapia, de hemoterapia, de rehabilitación psíquica, unidades de hemodiálisis, centros de m","1","5","Rev3"]
[null,null,null,null,null,null,null,null,null,null,null,null,null,"930202","Servicios de tratamiento de belleza, excepto los de peluquería","1","3","Rev3"]
[null,null,null,null,null,null,null,null,null,null,null,null,null,"960202","Servicios de tratamiento de belleza, excepto los de peluquería","1","3","Rev 4"]
[null,null,null,null,null,null,null,null,null,null,null,null,null,"791901","Servicios de turismo aventura","1","2","Rev 4"]
[null,null,null,null,null,null,null,null,null,null,null,null,null,"522091","Servicios de usuarios directos de zona franca","1","4","Rev 4"]
[null,null,null,null,null,null,null,null,null,null,null,null,null,"933228","Servicios de veterinaria y agronomía","1","3","Rev 2"]
[null,null,null,null,null,null,null,null,null,null,null,null,null,"953016","Servicios domésticos. Agencias","1","1","Rev 2"]
[null,null,null,null,null,null,null,null,null,null,null,null,null,"749900","Servicios empresariales n.c.p.","1","3","Rev3"]
[null,null,null,null,null,null,null,null,null,null,null,null,null,"829900","Servicios empresariales n.c.p.","1","3","Rev 4"]
[null,null,null,null,null,null,null,null,null,null,null,null,null,"121037","Servicios forestales ","1","3","Rev 2"]
[null,null,null,null,null,null,null,null,null,null,null,null,null,"20310","Servicios forestales de extracción de madera (Incluye tala de árboles, acarreo y transporte en el interior del bosque, servicios realizados de terceros, etc.)","1","3","Rev3"]
[null,null,null,null,null,null,null,null,null,null,null,null,null,"20390","Servicios forestales excepto los relacionados con la extracción de madera (Incluye protección contra incendios, evaluación de masas forestales en pie, estimación del valor de la madera, etc.)","1","3","Rev3"]
[null,null,null,null,null,null,null,null,null,null,null,null,null,"24020","Servicios forestales excepto los servicios para la extracción de madera","1","3","Rev 4"]
[null,null,null,null,null,null,null,null,null,null,null,null,null,"24010","Servicios forestales para la extracción de madera","1","3","Rev 4"]
[null,null,null,null,null,null,null,null,null,null,null,null,null,"841100","Servicios generales de la administración pública","1","1","Rev 4"]
[null,null,null,null,null,null,null,null,null,null,null,null,null,"751100","Servicios generales de la administración pública (Incluye el desempeño de funciones ejecutivas y legislativas de administración por parte de las entidades de la administración central, regional y local; la administración y supervisión de asuntos fiscales","1","1","Rev3"]
[null,null,null,null,null,null,null,null,null,null,null,null,null,"711002","Servicios geológicos y de prospección","1","4","Rev 4"]
[null,null,null,null,null,null,null,null,null,null,null,null,null,"742102","Servicios geológicos y de prospección","1","4","Rev3"]
[null,null,null,null,null,null,null,null,null,null,null,null,null,"832421","Servicios geológicos y de prospección","1","4","Rev 2"]
[null,null,null,null,null,null,null,null,null,null,null,null,null,"851190","Servicios hospitalarios n.c.p.","1","3","Rev3"]
[null,null,null,null,null,null,null,null,null,null,null,null,null,"109000","Servicios industriales para la elaboración de alimentos y bebidas","1","3","Rev 4"]
[null,null,null,null,null,null,null,null,null,null,null,null,null,"204000","Servicios industriales para la fabricación de sustancias y productos químicos","1","4","Rev 4"]
[null,null,null,null,null,null,null,null,null,null,null,null,null,"149000","Servicios industriales para la industria confeccionista","1","3","Rev 4"]
[null,null,null,null,null,null,null,null,null,null,null,null,null,"702000","Servicios inmobiliarios realizados a cambio de una retribución o por contrata (Incluye compra, venta, alquiler, remate, tasación, administración de bienes, etc., realizados a cambio de una retribución o por contrata, y la actividad de administradores, ma","1","1","Rev3"]
[null,null,null,null,null,null,null,null,null,null,null,null,null,"682099","Servicios inmobiliarios realizados a cambio de una retribución o por contrata n.c.p.","1","1","Rev 4"]
[null,null,null,null,null,null,null,null,null,null,null,null,null,"701090","Servicios inmobiliarios realizados por cuenta propia, con bienes propios o arrendados n.c.p.","1","1","Rev3"]
[null,null,null,null,null,null,null,null,null,null,null,null,null,"681099","Servicios inmobiliarios realizados por cuenta propia, con bienes rurales propios o arrendados n.c.p.","1","1","Rev 4"]
[null,null,null,null,null,null,null,null,null,null,null,null,null,"681098","Servicios inmobiliarios realizados por cuenta propia, con bienes urbanos propios o arrendados n.c.p.","1","1","Rev 4"]
[null,null,null,null,null,null,null,null,null,null,null,null,null,"691001","Servicios jurídicos","1","1","Rev 4"]
[null,null,null,null,null,null,null,null,null,null,null,null,null,"741101","Servicios jurídicos","1","1","Rev3"]
[null,null,null,null,null,null,null,null,null,null,null,null,null,"832111","Servicios jurídicos. Abogados.","1","1","Rev 2"]
[null,null,null,null,null,null,null,null,null,null,null,null,null,"634100","Servicios mayoristas de agencias de viajes","1","1","Rev3"]
[null,null,null,null,null,null,null,null,null,null,null,null,null,"791200","Servicios mayoristas de agencias de viajes","1","1","Rev 4"]
[null,null,null,null,null,null,null,null,null,null,null,null,null,"634200","Servicios minoristas de agencias de viajes","1","1","Rev3"]
[null,null,null,null,null,null,null,null,null,null,null,null,null,"791100","Servicios minoristas de agencias de viajes","1","1","Rev 4"]
[null,null,null,null,null,null,null,null,null,null,null,null,null,"930990","Servicios n.c.p. (Incluye actividades de astrología y espiritismo, las realizadas con fines sociales como agencias matrimoniales, de investigaciones genealógicas, de contratación de acompañantes, la actividad de lustrabotas, acomodadores de autos, etc.)","1","3","Rev3"]
[null,null,null,null,null,null,null,null,null,null,null,null,null,"691002","Servicios notariales","1","1","Rev 4"]
[null,null,null,null,null,null,null,null,null,null,null,null,null,"832138","Servicios notariales. Escribanos","1","1","Rev 2"]
[null,null,null,null,null,null,null,null,null,null,null,null,null,"851300","Servicios odontológicos","1","3","Rev3"]
[null,null,null,null,null,null,null,null,null,null,null,null,null,"862200","Servicios odontológicos","1","3","Rev 4"]
[null,null,null,null,null,null,null,null,null,null,null,null,null,"14291","Servicios para el control de plagas, baños parasiticidas, etc.","1","4","Rev3"]
[null,null,null,null,null,null,null,null,null,null,null,null,null,"16291","Servicios para el control de plagas, baños parasiticidas, etc.","1","4","Rev 4"]
[null,null,null,null,null,null,null,null,null,null,null,null,null,"930910","Servicios para el mantenimiento físico-corporal (Incluye baños turcos, saunas, solarios, centros de masajes y adelgazamiento, etc.)","1","2","Rev3"]
[null,null,null,null,null,null,null,null,null,null,null,null,null,"752400","Servicios para el orden público y la seguridad","1","2","Rev3"]
[null,null,null,null,null,null,null,null,null,null,null,null,null,"842300","Servicios para el orden público y la seguridad","1","2","Rev 4"]
[null,null,null,null,null,null,null,null,null,null,null,null,null,"524330","Servicios para la aeronavegación","1","4","Rev 4"]
[null,null,null,null,null,null,null,null,null,null,null,null,null,"633320","Servicios para la aeronavegación (Incluye servicios de terminales como aeropuertos, actividades de control de tráfico aéreo, etc.)","1","4","Rev3"]
[null,null,null,null,null,null,null,null,null,null,null,null,null,"15020","Servicios para la caza","1","2","Rev3"]
[null,null,null,null,null,null,null,null,null,null,null,null,null,"524230","Servicios para la navegación","1","4","Rev 4"]
[null,null,null,null,null,null,null,null,null,null,null,null,null,"633230","Servicios para la navegación (Incluye servicios de practicaje y pilotaje, atraque y salvamento)","1","4","Rev3"]
[null,null,null,null,null,null,null,null,null,null,null,null,null,"50300","Servicios para la pesca","1","2","Rev3"]
[null,null,null,null,null,null,null,null,null,null,null,null,null,"931090","Servicios para la práctica deportiva n.c.p.","1","3","Rev 4"]
[null,null,null,null,null,null,null,null,null,null,null,null,null,"841300","Servicios para la regulación de la actividad económica","1","1","Rev 4"]
[null,null,null,null,null,null,null,null,null,null,null,null,null,"751300","Servicios para la regulación de la actividad económica (Incluye la administración pública y la regulación de varios sectores económicos; la gestión administrativa de actividades de carácter laboral; la aplicación de políticas de desarrollo regional)","1","1","Rev3"]
[null,null,null,null,null,null,null,null,null,null,null,null,null,"841200","Servicios para la regulación de las actividades sanitarias, educativas, culturales, y restantes servicios sociales, excepto seguridad social obligatoria","1","1","Rev 4"]
[null,null,null,null,null,null,null,null,null,null,null,null,null,"751200","Servicios para la regulación de las actividades sanitarias, educativas, culturales, y restantes servicios sociales, excepto seguridad social obligatoria  (Incluye  la gestión administrativa de programas destinados a mejorar el bienestar de los ciudadanos","1","1","Rev3"]
[null,null,null,null,null,null,null,null,null,null,null,null,null,"14299","Servicios pecuarios n.c.p., excepto los veterinarios","1","2","Rev3"]
[null,null,null,null,null,null,null,null,null,null,null,null,null,"960990","Servicios personales n.c.p.","1","3","Rev4"]
[null,null,null,null,null,null,null,null,null,null,null,null,null,"959944","Servicios personales no clasificados en otra parte","1","3","Rev 2"]
[null,null,null,null,null,null,null,null,null,null,null,null,null,"632031","Servicios prestados en alojamientos por hora","1","1","Rev 2"]
[null,null,null,null,null,null,null,null,null,null,null,null,null,"632090","Servicios prestados en campamentos y lugares de alojamiento no clasificados en otra parte","1","2","Rev 2"]
[null,null,null,null,null,null,null,null,null,null,null,null,null,"935018","Servicios prestados para asociaciones profesionales, comerciales y laborales (incluye cámaras, sindicatos, etc )","1","1","Rev 2"]
[null,null,null,null,null,null,null,null,null,null,null,null,null,"820016","Servicios prestados por compañías de seguros y reaseguros","1","1","Rev 2"]
[null,null,null,null,null,null,null,null,null,null,null,null,null,"931041","Servicios prestados por deportistas y atletas para la realización de prácticas deportivas","1","2","Rev 4"]
[null,null,null,null,null,null,null,null,null,null,null,null,null,"711640","Servicios prestados por estaciones de servicio","3","5","Rev 2","Comprendido Res 177/07 y Mod"]
[null,null,null,null,null,null,null,null,null,null,null,null,null,"682091","Servicios prestados por inmobiliarias","1","1","Rev 4"]
[null,null,null,null,null,null,null,null,null,null,null,null,null,"939110","Servicios prestados por organizaciones religiosas","1","1","Rev 2"]
[null,null,null,null,null,null,null,null,null,null,null,null,null,"931042","Servicios prestados por profesionales y técnicos para la realización de prácticas deportivas","1","2","Rev 4"]
[null,null,null,null,null,null,null,null,null,null,null,null,null,"924130","Servicios prestados por profesionales y técnicos, para la realización de prácticas deportivas (Incluye la actividad realizada por deportistas, atletas, entrenadores, instructores, jueces árbitros, escuelas de deporte, etc.)","1","2","Rev3"]
[null,null,null,null,null,null,null,null,null,null,null,null,null,"724000","Servicios relacionados con bases de datos","1","1","Rev3"]
[null,null,null,null,null,null,null,null,null,null,null,null,null,"713228","Servicios relacionados con el transporte aéreo (incluye radiofaros, centros de control de vuelo, alquiler de aeronaves, etc)","1","4","Rev 2"]
[null,null,null,null,null,null,null,null,null,null,null,null,null,"712310","Servicios relacionados con el transporte por agua no clasificados en otra parte excepto guarderías de lanchas ( incluye alquiler de buques, etc.)","1","4","Rev 2"]
[null,null,null,null,null,null,null,null,null,null,null,null,null,"711691","Servicios relacionados con el transporte terrestre no clasificados en otra parte (incluye alquiler de automotores sin chofer)","1","4","Rev 2"]
[null,null,null,null,null,null,null,null,null,null,null,null,null,"941433","Servicios relacionados con espectáculos teatrales, musicales y deportivos (incluye agencias de contratación de actores, servicios de iluminación, escenografía, representantes de actores, de cantantes, de deportistas, etc.)","1","2","Rev 2"]
[null,null,null,null,null,null,null,null,null,null,null,null,null,"920009","Servicios relacionados con juegos de azar y apuestas n.c.p.","1","3","Rev 4"]
[null,null,null,null,null,null,null,null,null,null,null,null,null,"711001","Servicios relacionados con la construcción.","1","3","Rev 4"]
[null,null,null,null,null,null,null,null,null,null,null,null,null,"742101","Servicios relacionados con la construcción.  (Incluye los servicios prestados por ingenieros, arquitectos y técnicos)","1","3","Rev3"]
[null,null,null,null,null,null,null,null,null,null,null,null,null,"832413","Servicios relacionados con la construcción. Ingenieros, arquitectos y técnicos","1","3","Rev 2"]
[null,null,null,null,null,null,null,null,null,null,null,null,null,"711003","Servicios relacionados con la electrónica y las comunicaciones","1","3","Rev 4"]
[null,null,null,null,null,null,null,null,null,null,null,null,null,"742103","Servicios relacionados con la electrónica y las comunicaciones","1","3","Rev3"]
[null,null,null,null,null,null,null,null,null,null,null,null,null,"832456","Servicios relacionados con la electrónica y las comunicaciones. Ingenieros y técnicos","1","3","Rev 2"]
[null,null,null,null,null,null,null,null,null,null,null,null,null,"342025","Servicios relacionados con la imprenta ( electrotipia, composición de tipo, grabado, etc.)","1","3","Rev 2"]
[null,null,null,null,null,null,null,null,null,null,null,null,null,"181200","Servicios relacionados con la impresión","1","3","Rev 4"]
[null,null,null,null,null,null,null,null,null,null,null,null,null,"222200","Servicios relacionados con la impresión","1","3","Rev3"]
[null,null,null,null,null,null,null,null,null,null,null,null,null,"851900","Servicios relacionados con la salud humana n.c.p.","1","3","Rev3"]
[null,null,null,null,null,null,null,null,null,null,null,null,null,"869090","Servicios relacionados con la salud humana n.c.p.","1","3","Rev 4"]
[null,null,null,null,null,null,null,null,null,null,null,null,null,"810312","Servicios relacionados con operaciones de intermediación con divisas (moneda extranjera) y otros servicios prestados por casas, agencias, oficinas y corredores de cambio y divisas","1","1","Rev 2"]
[null,null,null,null,null,null,null,null,null,null,null,null,null,"810320","Servicios relacionados con operaciones de intermediación prestados por agentes bursátiles y extrabursátiles","1","1","Rev 2"]
[null,null,null,null,null,null,null,null,null,null,null,null,null,"820091","Servicios relacionados con seguros prestados por entidades o personas no clasificados en otra parte ( incluye agentes de seguros, etc )","1","1","Rev 2"]
[null,null,null,null,null,null,null,null,null,null,null,null,null,"853190","Servicios sociales con alojamiento n.c.p.","1","3"]
[null,null,null,null,null,null,null,null,null,null,null,null,null,"870990","Servicios sociales con alojamiento n.c.p.","1","3","Rev 4"]
[null,null,null,null,null,null,null,null,null,null,null,null,null,"853200","Servicios sociales sin alojamiento","1","2","Rev3"]
[null,null,null,null,null,null,null,null,null,null,null,null,null,"880000","Servicios sociales sin alojamiento","1","2","Rev 4"]
[null,null,null,null,null,null,null,null,null,null,null,null,null,"939919","Servicios sociales y comunales conexos no clasificados en otra parte","1","2","Rev 2"]
[null,null,null,null,null,null,null,null,null,null,null,null,null,"832979","Servicios técnicos y profesionales no clasificados en otra parte (incluye servicio de impresión heliográfica, fotocopias, taquimecanografía, y otras formas de reproducción, excluidas imprentas)","1","2","Rev 2"]
[null,null,null,null,null,null,null,null,null,null,null,null,null,"750000","Servicios veterinarios","1","3","Rev 4"]
[null,null,null,null,null,null,null,null,null,null,null,null,null,"852000","Servicios veterinarios","1","3","Rev3"]
[null,null,null,null,null,null,null,null,null,null,null,null,null,"403000","Suministro de vapor y agua caliente","1","3","Rev3"]
[null,null,null,null,null,null,null,null,null,null,null,null,null,"353001","Suministro de vapor y aire acondicionado","1","3","Rev 4"]
[null,null,null,null,null,null,null,null,null,null,null,null,null,"502400","Tapizado y retapizado","1","2","Rev3"]
[null,null,null,null,null,null,null,null,null,null,null,null,null,"452500","Tapizado y retapizado de automotores","1","2","Rev 4"]
[null,null,null,null,null,null,null,null,null,null,null,null,null,"321125","Tejido de algodón. Tejedurías","1","3","Rev 2"]
[null,null,null,null,null,null,null,null,null,null,null,null,null,"321141","Tejido de fibras textiles no clasificadas en otra parte","1","3","Rev 2"]
[null,null,null,null,null,null,null,null,null,null,null,null,null,"321117","Tejido de lana. Tejedurías","1","3","Rev 2"]
[null,null,null,null,null,null,null,null,null,null,null,null,null,"433090","Terminación de edificios n.c.p.","1","2","Rev 4"]
[null,null,null,null,null,null,null,null,null,null,null,null,null,"454900","Terminación de edificios y obras de ingeniería civil n.c.p. (Incluye trabajos de ornamentación, limpieza exterior de edificios con vapor, chorro de arena u otros métodos, etc.)","1","2","Rev3"]
[null,null,null,null,null,null,null,null,null,null,null,null,null,"433020","Terminación y revestimiento de paredes y pisos","1","2","Rev 4"]
[null,null,null,null,null,null,null,null,null,null,null,null,null,"454200","Terminación y revestimiento de paredes y pisos (Incluye yesería, salpicré, el pulido de pisos y la colocación de revestimientos de cerámicas, de piedra tallada, de suelos flexibles, parqué, baldosas, empapelados, etc.)","1","2","Rev3"]
[null,null,null,null,null,null,null,null,null,null,null,null,null,"142000","Terminación y teñido de pieles, fabricación de artículos de piel","1","4","Rev 4"]
[null,null,null,null,null,null,null,null,null,null,null,null,null,"182009","Terminación y teñido de pieles; fabricación de artículos de piel n.c.p.","1","4","Rev3"]
[null,null,null,null,null,null,null,null,null,null,null,null,null,"999999","Toda otra actividad que elabore o manipule sustancias inflamables, tóxicas, corrosivas, de alta reactividad química, infecciosas, teratogénicas, mutagénicas, carcinógenas o radioactivas.","",0,"Rev3","Res 481/2011"]
[null,null,null,null,null,null,null,null,null,null,null,null,null,"107911","Tostado, torrado y molienda de café","1","3","Rev 4"]
[null,null,null,null,null,null,null,null,null,null,null,null,null,"154911","Tostado, torrado y molienda de café","1","3","Rev3"]
[null,null,null,null,null,null,null,null,null,null,null,null,null,"312126","Tostado, torrado y molienda de café","1","3","Rev 2"]
[null,null,null,null,null,null,null,null,null,null,null,null,null,"410136","Transmisión de electricidad","2","3","Rev 2","Comprendido Res 177/07 y Mod"]
[null,null,null,null,null,null,null,null,null,null,null,null,null,"713112","Transporte aéreo de pasajeros y de cargas","1","5","Rev 2"]
[null,null,null,null,null,null,null,null,null,null,null,null,null,"602190","Transporte automotor de cargas n.c.p. (Incluye  servicios de transporte de carga refrigerada, automotores, transporte pesado y de mercaderías peligrosas)","1","5","Rev3"]
[null,null,null,null,null,null,null,null,null,null,null,null,null,"711411","Transporte de carga a corta, mediana y larga distancia excepto servicios de mudanzas y transporte de valores, documentación, encomiendas, mensajes y similares","1","4","Rev 2"]
[null,null,null,null,null,null,null,null,null,null,null,null,null,"351201","Transporte de energía eléctrica","2","3","Rev 4","Comprendido Res 177/07 y Mod"]
[null,null,null,null,null,null,null,null,null,null,null,null,null,"401200","Transporte de energía eléctrica","2","3","Rev3","Comprendido Res 177/07 y Mod"]
[null,null,null,null,null,null,null,null,null,null,null,null,null,"711314","Transporte de pasajeros en taxímetros y remises","1","3","Rev 2"]
[null,null,null,null,null,null,null,null,null,null,null,null,null,"711322","Transporte de pasajeros no clasificados en otra parte (incluye ómnibus de turismo, escolares, alquiler de automotores con chofer, etc.)","1","3","Rev 2"]
[null,null,null,null,null,null,null,null,null,null,null,null,null,"711446","Transporte de valores, documentación, encomiendas y similares","1","1","Rev 2"]
[null,null,null,null,null,null,null,null,null,null,null,null,null,"711128","Transporte ferroviario de carga y pasajeros","1","4","Rev 2"]
[null,null,null,null,null,null,null,null,null,null,null,null,null,"712116","Transporte oceánico y de cabotaje de carga y de pasajeros","1","5","Rev 2"]
[null,null,null,null,null,null,null,null,null,null,null,null,null,"711519","Transporte por oleoductos y gasoductos","1","5","Rev 2"]
[null,null,null,null,null,null,null,null,null,null,null,null,null,"712213","Transporte por vías de navegación interior de carga y de pasajeros","1","5","Rev 2"]
[null,null,null,null,null,null,null,null,null,null,null,null,null,"711217","Transporte urbano, suburbano e interurbano de pasajeros (incluye subterráneos)","1","3","Rev 2"]
[null,null,null,null,null,null,null,null,null,null,null,null,null,"259200","Tratamiento y revestimiento de metales y trabajos de metales en general","2","4","Rev 4","Comprendido Res 177/07 y Mod"]
[null,null,null,null,null,null,null,null,null,null,null,null,null,"289200","Tratamiento y revestimiento de metales; obras de ingeniería mecánica en general realizadas a cambio de una retribución o por contrata","2","4","Rev3","Comprendido Res 177/07 y Mod"]
[null,null,null,null,null,null,null,null,null,null,null,null,null,"515300","Venta  al  por  mayor  de  vehículos,  equipos  y  máquinas  para  el transporte ferroviario, aéreo y de navegación","1","3","Rev3"]
[null,null,null,null,null,null,null,null,null,null,null,null,null,"466310","Venta al por mayor de aberturas","1","2","Rev 4"]
[null,null,null,null,null,null,null,null,null,null,null,null,null,"514310","Venta al por mayor de aberturas (Incluye puertas, ventanas, cortinas de enrollar de PVC, madera, aluminio, puertas corredizas, frentes de placards, etc.)","1","2","Rev3"]
[null,null,null,null,null,null,null,null,null,null,null,null,null,"514931","Venta al por mayor de abonos, fertilizantes y plaguicidas","1","5","Rev3"]
[null,null,null,null,null,null,null,null,null,null,null,null,null,"512272","Venta al por mayor de aceites y grasas","1","3","Rev3"]
[null,null,null,null,null,null,null,null,null,null,null,null,null,"512292","Venta al por mayor de alimentos para animales","1","2","Rev3"]
[null,null,null,null,null,null,null,null,null,null,null,null,null,"513540","Venta al por mayor de artefactos para el hogar eléctricos, a gas, kerosene u otros combustibles (Incluye electrodomésticos, cocinas, estufas y salamandras, hornos, etc., excepto equipos de sonido, televisión y video)","1","3","Rev3"]
[null,null,null,null,null,null,null,null,null,null,null,null,null,"513532","Venta al por mayor de artículos de bazar y menaje excepto de vidrio","1","3","Rev3"]
[null,null,null,null,null,null,null,null,null,null,null,null,null,"513940","Venta al por mayor de artículos de esparcimiento y deportes (Incluye embarcaciones deportivas, armas y municiones, equipos de pesca, piletas de natación de lona o plástico, etc.)","1","3","Rev3"]
[null,null,null,null,null,null,null,null,null,null,null,null,null,"514330","Venta al por mayor de artículos de ferretería","1","2","Rev3"]
[null,null,null,null,null,null,null,null,null,null,null,null,null,"513520","Venta al por mayor de artículos de iluminación","1","2","Rev3"]
[null,null,null,null,null,null,null,null,null,null,null,null,null,"513223","Venta al por mayor de artículos de librería y papelería","1","3","Rev3"]
[null,null,null,null,null,null,null,null,null,null,null,null,null,"514392","Venta al por mayor de artículos de loza, cerámica y porcelana de uso en construcción","1","1","Rev3"]
[null,null,null,null,null,null,null,null,null,null,null,null,null,"513149","Venta al por mayor de artículos de marroquinería,  paraguas y productos similares n.c.p.","1","2","Rev3"]
[null,null,null,null,null,null,null,null,null,null,null,null,null,"513113","Venta al por mayor de artículos de mercería (Incluye la venta de puntillas, galones, hombreras, agujas, botones, etc.)","1","2","Rev3"]
[null,null,null,null,null,null,null,null,null,null,null,null,null,"513410","Venta al por mayor de artículos de óptica y de fotografía (Incluye venta de lentes de contacto, líquidos oftalmológicos, armazones, cristales ópticos, películas fotográficas, cámaras y accesorios para fotografía, etc.)","1","2","Rev3"]
[null,null,null,null,null,null,null,null,null,null,null,null,null,"514933","Venta al por mayor de artículos de plástico","1","4","Rev3"]
[null,null,null,null,null,null,null,null,null,null,null,null,null,"514391","Venta al por mayor de artículos de plomería, electricidad, calefacción, obras sanitarias, etc.","1","3","Rev3"]
[null,null,null,null,null,null,null,null,null,null,null,null,null,"513420","Venta al por mayor de artículos de relojería, joyería y fantasías","1","2","Rev3"]
[null,null,null,null,null,null,null,null,null,null,null,null,null,"513999","Venta al por mayor de artículos de uso doméstico y/o personal n.c.p (Incluye artículos de platería excepto los incluidos en talabartería, cuadros y marcos que no sean obra de arte o de colección, sahumerios y artículos de santería, parrillas y hogares, e","1","2","Rev3"]
[null,null,null,null,null,null,null,null,null,null,null,null,null,"513531","Venta al por mayor de artículos de vidrio","1","2","Rev3"]
[null,null,null,null,null,null,null,null,null,null,null,null,null,"512229","Venta al por mayor de aves, huevos y productos de granja y de la caza n.c.p.","1","2","Rev3"]
[null,null,null,null,null,null,null,null,null,null,null,null,null,"512271","Venta al por mayor de azúcar","1","1","Rev3"]
[null,null,null,null,null,null,null,null,null,null,null,null,null,"512319","Venta al por mayor de bebidas alcohólicas n.c.p. (Incluye la venta de aperitivos con alcohol, cerveza, sidra, el fraccionamiento de alcohol, etc.)","1","2","Rev3"]
[null,null,null,null,null,null,null,null,null,null,null,null,null,"512312","Venta al por mayor de bebidas espirituosas","1","2","Rev3"]
[null,null,null,null,null,null,null,null,null,null,null,null,null,"512320","Venta al por mayor de bebidas no alcohólicas (Incluye la venta de aguas, sodas, bebidas refrescantes, jarabes, extractos, concentrados, gaseosas, jugos, etc.)","1","2","Rev3"]
[null,null,null,null,null,null,null,null,null,null,null,null,null,"513930","Venta al por mayor de bicicletas y rodados similares (Incluye cochecitos y sillas de paseo para bebés, andadores, triciclos, etc.)","1","3","Rev3"]
[null,null,null,null,null,null,null,null,null,null,null,null,null,"512273","Venta al por mayor de café, té, yerba mate y otras infusiones y especias y condimentos (Incluye la venta de sal, etc.)","1","3","Rev3"]
[null,null,null,null,null,null,null,null,null,null,null,null,null,"513130","Venta al por mayor de calzado excepto el ortopédico (Incluye venta de calzado de cuero, tela, plástico, goma, etc.)","1","2","Rev3"]
[null,null,null,null,null,null,null,null,null,null,null,null,null,"512221","Venta al por mayor de carnes y derivados excepto las de aves.","1","2","Rev3"]
[null,null,null,null,null,null,null,null,null,null,null,null,null,"514932","Venta al por mayor de caucho y productos de caucho excepto calzado y autopartes","1","4","Rev3"]
[null,null,null,null,null,null,null,null,null,null,null,null,null,"512111","Venta al por mayor de cereales (incluye arroz), oleaginosas y forrajeras excepto semillas","1","3","Rev3"]
[null,null,null,null,null,null,null,null,null,null,null,null,null,"512260","Venta al por mayor de chocolates, golosinas y productos para kioscos y polirrubros n.c.p., excepto cigarrillos","1","1","Rev3"]
[null,null,null,null,null,null,null,null,null,null,null,null,null,"512400","Venta al por mayor de cigarrillos y productos de tabaco","1","3","Rev3"]
[null,null,null,null,null,null,null,null,null,null,null,null,null,"514110","Venta al por mayor de combustibles y lubricantes para automotores","1","4","Rev3"]
[null,null,null,null,null,null,null,null,null,null,null,null,null,"514199","Venta al por mayor de combustibles y lubricantes, excepto para automotores,  leña y carbón","1","5","Rev3"]
[null,null,null,null,null,null,null,null,null,null,null,null,null,"513212","Venta al por mayor de diarios y revistas","1","2","Rev3"]
[null,null,null,null,null,null,null,null,null,null,null,null,null,"513222","Venta al por mayor de envases de papel y cartón","1","3","Rev3"]
[null,null,null,null,null,null,null,null,null,null,null,null,null,"515910","Venta al por mayor de equipo profesional y científico e instrumentos de medida y de control","1","3","Rev3"]
[null,null,null,null,null,null,null,null,null,null,null,null,null,"513552","Venta al por mayor de equipos de sonido, radio y televisión, comunicaciones y sus componentes, repuestos y accesorios","1","2","Rev3"]
[null,null,null,null,null,null,null,null,null,null,null,null,null,"515921","Venta al por mayor de equipos informáticos y máquinas electrónicas de escribir y calcular (Incluye la venta de computadoras incluso las portátiles y sus periféricos, impresoras, suministros para computación, software, máquinas de escribir y calcular elec","1","3","Rev3"]
[null,null,null,null,null,null,null,null,null,null,null,null,null,"512212","Venta al por mayor de fiambres y quesos","1","2","Rev3"]
[null,null,null,null,null,null,null,null,null,null,null,null,null,"513991","Venta al por mayor de flores y plantas naturales y artificiales","1","2","Rev3"]
[null,null,null,null,null,null,null,null,null,null,null,null,null,"512291","Venta al por mayor de frutas, legumbres y cereales secos y en conserva","1","2","Rev3"]
[null,null,null,null,null,null,null,null,null,null,null,null,null,"513330","Venta al por mayor de instrumental médico y odontológico y artículos ortopédicos (Incluye venta de vaporizadores, nebulizadores, masajeadores, termómetros, prótesis, muletas, plantillas, calzado ortopédico y otros artículos similares de uso personal o do","1","2","Rev3"]
[null,null,null,null,null,null,null,null,null,null,null,null,null,"513551","Venta al por mayor de instrumentos musicales, discos y casetes de audio y video, etc.","1","1","Rev3"]
[null,null,null,null,null,null,null,null,null,null,null,null,null,"513920","Venta al por mayor de juguetes (Incluye artículos de cotillón)","1","3","Rev3"]
[null,null,null,null,null,null,null,null,null,null,null,null,null,"514399","Venta al por mayor de ladrillos, cemento, cal, arena, piedra, mármol y materiales para la construcción n.c.p.","1","1","Rev3"]
[null,null,null,null,null,null,null,null,null,null,null,null,null,"512121","Venta al por mayor de lanas, cueros en bruto y productos afines","1","3","Rev3"]
[null,null,null,null,null,null,null,null,null,null,null,null,null,"513211","Venta al por mayor de libros y publicaciones","1","2","Rev3"]
[null,null,null,null,null,null,null,null,null,null,null,null,null,"513114","Venta al por mayor de mantelería, ropa de cama y artículos textiles para el hogar","1","2","Rev3"]
[null,null,null,null,null,null,null,null,null,null,null,null,null,"515200","Venta al por mayor de máquinas - herramienta de uso general","1","3","Rev3"]
[null,null,null,null,null,null,null,null,null,null,null,null,null,"515922","Venta al por mayor de máquinas y equipos de comunicaciones, control y seguridad (Incluye venta de productos de telefonía, equipos de circuito cerrado, sistemas de alarmas y sirenas contra incendios, robos y otros sistemas de seguridad, equipos de facsími","1","3","Rev3"]
[null,null,null,null,null,null,null,null,null,null,null,null,null,"515990","Venta al por mayor de máquinas, equipo y materiales conexos n.c.p. (Incluye máquinas registradoras de escribir y de calcular mecánicas, equipos para destruir documentos, etc.)","1","3","Rev3"]
[null,null,null,null,null,null,null,null,null,null,null,null,null,"515130","Venta al por mayor de máquinas, equipos e implementos de uso e n la fabricación de textiles, prendas y accesorios de vestir, calzado, artículos de cuero y marroquinería  (Incluye venta de máquinas de coser, de cortar tejidos, de tejer, extender telas, ro","1","3","Rev3"]
[null,null,null,null,null,null,null,null,null,null,null,null,null,"515140","Venta al por mayor de máquinas, equipos e implementos de uso en imprentas, artes gráficas y actividades conexas (Incluye venta de máquinas fotocopiadoras - excepto las de uso personal-, copiadoras de planos, máquinas para imprimir, guillotinar, troquelar","1","3","Rev3"]
[null,null,null,null,null,null,null,null,null,null,null,null,null,"515120","Venta al por mayor de máquinas, equipos e implementos de uso en la elaboración de alimentos, bebidas y tabacos (Incluye máquinas para moler, picar y cocer alimentos, fabricadora de pastas, bateas, enfriadoras y envasadoras de bebidas, etc.)","1","3","Rev3"]
[null,null,null,null,null,null,null,null,null,null,null,null,null,"515160","Venta al por mayor de máquinas, equipos e implementos de uso en la industria del plástico y del caucho (Incluye sopladora de envases, laminadora de plásticos, máquinas extrusoras y moldeadoras, etc.)","1","3","Rev3"]
[null,null,null,null,null,null,null,null,null,null,null,null,null,"515110","Venta al por mayor de máquinas, equipos e implementos de uso en los sectores agropecuario, jardinería, silvicultura, pesca y caza (Incluye venta de tractores, cosechadoras, enfardadoras, remolques de carga y descarga automática, motosierras, cortadoras d","1","3","Rev3"]
[null,null,null,null,null,null,null,null,null,null,null,null,null,"515190","Venta al por mayor de máquinas, equipos e implementos de uso especial n.c.p.  (Incluye motoniveladoras, excavadoras, palas mecánicas, perforadoras-percutoras, etc.)","1","3","Rev3"]
[null,null,null,null,null,null,null,null,null,null,null,null,null,"515150","Venta al por mayor de máquinas, equipos e implementos de uso médico y paramédico (Incluye venta de equipos de diagnóstico y tratamiento, camillas, cajas de cirugía, jeringas y otros implementos de material descartable, etc.)","1","3","Rev3"]
[null,null,null,null,null,null,null,null,null,null,null,null,null,"513910","Venta al por mayor de materiales y productos de limpieza","1","3","Rev3"]
[null,null,null,null,null,null,null,null,null,null,null,null,null,"512119","Venta al por mayor de materias primas agrícolas y de la silvicultura n.c.p. (Incluye el acopio y venta al por mayor de frutas, flores y plantas, etc.)","1","3","Rev3"]
[null,null,null,null,null,null,null,null,null,null,null,null,null,"512129","Venta al por mayor de materias primas pecuarias incluso animales vivos n.c.p.","1","3","Rev3"]
[null,null,null,null,null,null,null,null,null,null,null,null,null,"513122","Venta al por mayor de medias y prendas de punto","1","2","Rev3"]
[null,null,null,null,null,null,null,null,null,null,null,null,null,"519000","Venta al por mayor de mercancías n.c.p.","1","3","Rev3"]
[null,null,null,null,null,null,null,null,null,null,null,null,null,"514200","Venta al por mayor de metales y minerales metalíferos","1","3","Rev3"]
[null,null,null,null,null,null,null,null,null,null,null,null,null,"515420","Venta al por mayor de muebles e instalaciones para la industria, el comercio y los servicios n.c.p.","1","3","Rev3"]
[null,null,null,null,null,null,null,null,null,null,null,null,null,"515410","Venta al por mayor de muebles e instalaciones para oficinas","1","3","Rev3"]
[null,null,null,null,null,null,null,null,null,null,null,null,null,"513511","Venta al por mayor de muebles metálicos excepto de oficina","1","2","Rev3"]
[null,null,null,null,null,null,null,null,null,null,null,null,null,"513519","Venta al por mayor de muebles n.c.p. excepto de oficina; artículos de mimbre y corcho; colchones y somieres","1","2","Rev3"]
[null,null,null,null,null,null,null,null,null,null,null,null,null,"512250","Venta al por mayor de pan, productos de confitería y pastas frescas","1","2","Rev3"]
[null,null,null,null,null,null,null,null,null,null,null,null,null,"513221","Venta al por mayor de papel y productos de papel y cartón excepto envases","1","3","Rev3"]
[null,null,null,null,null,null,null,null,null,null,null,null,null,"513950","Venta al por mayor de papeles para pared, revestimiento para pisos de goma, plástico y textiles,  y artículos similares para la decoración","1","3","Rev3"]
[null,null,null,null,null,null,null,null,null,null,null,null,null,"503100","Venta al por mayor de partes, piezas y accesorios de vehículos automotores","1","2","Rev3"]
[null,null,null,null,null,null,null,null,null,null,null,null,null,"512230","Venta al por mayor de pescado","1","2","Rev3"]
[null,null,null,null,null,null,null,null,null,null,null,null,null,"513141","Venta al por mayor de pieles y cueros curtidos y salados","1","2","Rev3"]
[null,null,null,null,null,null,null,null,null,null,null,null,null,"514340","Venta al por mayor de pinturas y productos conexos","1","4","Rev3"]
[null,null,null,null,null,null,null,null,null,null,null,null,null,"513121","Venta al por mayor de prendas de vestir de cuero","1","2","Rev3"]
[null,null,null,null,null,null,null,null,null,null,null,null,null,"513129","Venta al por mayor de prendas de vestir n.c.p.","1","2","Rev3"]
[null,null,null,null,null,null,null,null,null,null,null,null,null,"512299","Venta al por mayor de productos alimenticios n.c.p. (Incluye la venta de miel y derivados, productos congelados,  etc.)","1","2","Rev3"]
[null,null,null,null,null,null,null,null,null,null,null,null,null,"513320","Venta al por mayor de productos cosméticos, de tocador y de perfumería","1","3","Rev3"]
[null,null,null,null,null,null,null,null,null,null,null,null,null,"514320","Venta al por mayor de productos de madera excepto muebles (Incluye placas, varillas, parqué, machimbre, etc.)","1","2","Rev3"]
[null,null,null,null,null,null,null,null,null,null,null,null,null,"513992","Venta al por mayor de productos en general en almacenes y supermercados mayoristas, con predominio de alimentos y bebidas","1","3","Rev3"]
[null,null,null,null,null,null,null,null,null,null,null,null,null,"513310","Venta al por mayor de productos farmacéuticos y  veterinarios (Incluye venta de medicamentos y kits de diagnóstico como test de embarazo, hemoglucotest, vacunas, etc.)","1","4","Rev3"]
[null,null,null,null,null,null,null,null,null,null,null,null,null,"514920","Venta al por mayor de productos intermedios n.c.p., desperdicios y desechos de papel y cartón","1","4","Rev3"]
[null,null,null,null,null,null,null,null,null,null,null,null,null,"514940","Venta al por mayor de productos intermedios n.c.p., desperdicios y desechos metálicos (Incluye chatarra, viruta de metales diversos, etc.)","1","3","Rev3"]
[null,null,null,null,null,null,null,null,null,null,null,null,null,"514910","Venta al por mayor de productos intermedios n.c.p., desperdicios y desechos textiles","1","4","Rev3"]
[null,null,null,null,null,null,null,null,null,null,null,null,null,"514990","Venta al por mayor de productos intermedios, desperdicios y desechos n.c.p. (Incluye venta al por mayor de petróleo, minerales no metalíferos, etc.)","1","5","Rev3"]
[null,null,null,null,null,null,null,null,null,null,null,null,null,"512211","Venta al por mayor de productos lácteos","1","2","Rev3"]
[null,null,null,null,null,null,null,null,null,null,null,null,null,"513111","Venta al por mayor de productos textiles excepto telas, tejidos, prendas y accesorios de vestir (Incluye fibras vegetales, animales, minerales y manufacturadas)","1","2","Rev3"]
[null,null,null,null,null,null,null,null,null,null,null,null,null,"512279","Venta al por mayor de productos y subproductos de molinería n.c.p.","1","3","Rev3"]
[null,null,null,null,null,null,null,null,null,null,null,null,null,"512112","Venta al por mayor de semillas","1","3","Rev3"]
[null,null,null,null,null,null,null,null,null,null,null,null,null,"513142","Venta al por mayor de suelas y afines (Incluye talabarterías, artículos regionales de cuero, almacenes de suelas, etc.)","1","2","Rev3"]
[null,null,null,null,null,null,null,null,null,null,null,null,null,"513115","Venta al por mayor de tapices y alfombras de materiales textiles","1","2","Rev3"]
[null,null,null,null,null,null,null,null,null,null,null,null,null,"513112","Venta al por mayor de tejidos (telas)","1","2","Rev3"]
[null,null,null,null,null,null,null,null,null,null,null,null,null,"465500","Venta al por mayor de vehículos, equipos y máquinas para el transporte ferroviario, aéreo y de navegación","1","3","Rev 4"]
[null,null,null,null,null,null,null,null,null,null,null,null,null,"514350","Venta al por mayor de vidrios planos y templados","1","3","Rev3"]
[null,null,null,null,null,null,null,null,null,null,null,null,null,"512311","Venta al por mayor de vino","1","2","Rev3"]
[null,null,null,null,null,null,null,null,null,null,null,null,null,"511930","Venta al por mayor en comisión o consignación de  madera y materiales para la construcción","1","2","Rev3"]
[null,null,null,null,null,null,null,null,null,null,null,null,null,"511960","Venta al por mayor en comisión o consignación de  maquinaria, equipo profesional industrial y comercial, embarcaciones y aeronaves","1","3","Rev3"]
[null,null,null,null,null,null,null,null,null,null,null,null,null,"511990","Venta al por mayor en comisión o consignación de  mercaderías n.c.p. (Incluye galerías de arte)","1","3","Rev3"]
[null,null,null,null,null,null,null,null,null,null,null,null,null,"461039","Venta al por mayor en comisión o consignación de alimentos, bebidas y tabaco n.c.p.","1","2","Rev 4"]
[null,null,null,null,null,null,null,null,null,null,null,null,null,"511919","Venta al por mayor en comisión o consignación de alimentos, bebidas y tabaco n.c.p.","1","2","Rev3"]
[null,null,null,null,null,null,null,null,null,null,null,null,null,"461011","Venta al por mayor en comisión o consignación de cereales (incluye arroz), oleaginosas y forrajeras excepto semillas","1","3","Rev 4"]
[null,null,null,null,null,null,null,null,null,null,null,null,null,"511111","Venta al por mayor en comisión o consignación de cereales (incluye arroz), oleaginosas y forrajeras excepto semillas","1","3","Rev3"]
[null,null,null,null,null,null,null,null,null,null,null,null,null,"461040","Venta al por mayor en comisión o consignación de combustibles","3","5","Rev 4","Comprendido Res 177/07 y Mod"]
[null,null,null,null,null,null,null,null,null,null,null,null,null,"511940","Venta al por mayor en comisión o consignación de energía eléctrica, gas y combustibles","1","5","Rev3"]
[null,null,null,null,null,null,null,null,null,null,null,null,null,"461013","Venta al por mayor en comisión o consignación de frutas","1","3","Rev 4"]
[null,null,null,null,null,null,null,null,null,null,null,null,null,"461021","Venta al por mayor en comisión o consignación de ganado bovino en pie","1","2","Rev 4"]
[null,null,null,null,null,null,null,null,null,null,null,null,null,"461022","Venta al por mayor en comisión o consignación de ganado en pie excepto bovino","1","2","Rev 4"]
[null,null,null,null,null,null,null,null,null,null,null,null,null,"611204","Acopio y venta de azúcar","1","3","Rev 2"]
[null,null,null,null,null,null,null,null,null,null,null,null,null,"611212","Acopio y venta de café, té, yerba mate, tung, y especias","1",2,"Rev 2"]
[null,null,null,null,null,null,null,null,null,null,null,null,null,"611166","Acopio y venta de frutas, legumbres y cereales secos y en\nconserva.","1","3","Rev 2"]
[null,null,null,null,null,null,null,null,null,null,null,null,null,"611093","Acopio y venta de lana, cueros y productos afines.","1","2","Rev 2"]
[null,null,null,null,null,null,null,null,null,null,null,null,null,"611174","Acopio y venta de pescados y otros productos marinos, fluviales y lacustres","1","2","Rev 2"]
[null,null,null,null,null,null,null,null,null,null,null,null,null,"611190","Acopio y venta de productos y subproductos de molinería","1","2","Rev 2"]
[null,null,null,null,null,null,null,null,null,null,null,null,null,"611301","Acopio, distribución y venta de productos alimentarios en general. Almacenes y supermercados al por mayor de productos alimentarios.","1","3","Rev 2"]
[null,null,null,null,null,null,null,null,null,null,null,null,null,"500151","Colocación de pisos y revestimientos no clasificadas en otra parte\nexcepto empapelado (incluye plastificado de pisos de madera) PB\ny 1º piso","1","2","Rev 2"]
[null,null,null,null,null,null,null,null,null,null,null,null,null,"322040","Confección de pilotos e impermeables","1","3","Rev 2"]
[null,null,null,null,null,null,null,null,null,null,null,null,null,"322024","Confección de prendas de vestir de piel y sucedáneos","1","3","Rev 2"]
[null,null,null,null,null,null,null,null,null,null,null,null,null,"500046","Construcciones no clasificadas en otra parte (incluye galpones,\ntinglados, silos, etc.).","1","4","Rev 2"]
[null,null,null,null,null,null,null,null,null,null,null,null,null,"111198","Cria de animales destinados a la produccion de pieles","1","2","Rev 2"]
[null,null,null,null,null,null,null,null,null,null,null,null,null,"410225","Distribución de gas natural por redes.","1","3","Rev 2"]
[null,null,null,null,null,null,null,null,null,null,null,null,null,"941220","Distribución y alquiler de películas para vídeo.","1","1","Rev 2"]
[null,null,null,null,null,null,null,null,null,null,null,null,null,"615021","Distribución y venta de abonos, fertilizadores y plaguicidas","1","3","Rev 2"]
[null,null,null,null,null,null,null,null,null,null,null,null,null,"611239","Distribución y venta de alimentos para animales.","1","2","Rev 2"]
[null,null,null,null,null,null,null,null,null,null,null,null,null,"618098","Distribución y venta de aparatos fotográficos e Instrumentos de óptica","1","2","Rev 2"]
[null,null,null,null,null,null,null,null,null,null,null,null,null,"617040","Distribución y venta de armas y artículos de cuchillería.","1","1","Rev 2"]
[null,null,null,null,null,null,null,null,null,null,null,null,null,"616036","Distribución y venta de artículos de bazar y menaje","1","1","Rev 2"]
[null,null,null,null,null,null,null,null,null,null,null,null,null,"613096","Distribución y venta de artículos de cuero excepto prendas de vestir y calzado. Marroquinerias.","1","2","Rev 2"]
[null,null,null,null,null,null,null,null,null,null,null,null,null,"619027","Distribución y venta de artículos de juguetería y cotillón","1","1","Rev 2"]
[null,null,null,null,null,null,null,null,null,null,null,null,null,"615072","Distribución y venta de artículos de limpieza, pulido y saneamiento y otros productos de higiene}","1","2","Rev 2"]
[null,null,null,null,null,null,null,null,null,null,null,null,null,"613037","Distribución y venta de artículos de mercería, medias y artículos de punto","1","2","Rev 2"]
[null,null,null,null,null,null,null,null,null,null,null,null,null,"614068","Distribución y venta de artículos de papelería y librería","1","1","Rev 2"]
[null,null,null,null,null,null,null,null,null,null,null,null,null,"615080","Distribución y venta de artículos de plástico","1","2","Rev 2"]
[null,null,null,null,null,null,null,null,null,null,null,null,null,"616060","Distribución y venta de artículos de plomería, electricidad, calefacción, obras sanitarias, etc.","1","2","Rev 2"]
[null,null,null,null,null,null,null,null,null,null,null,null,null,"613053","Distribución y venta de artículos de tapicería (tapices, alfombras, etc.)","1","2","Rev 2"]
[null,null,null,null,null,null,null,null,null,null,null,null,null,"615064","Distribución y venta de artículos de tocador (incluye jabones de tocador, perfumes, cosméticos, etc.)","1","2","Rev 2"]
[null,null,null,null,null,null,null,null,null,null,null,null,null,"616052","Distribución y venta de artículos de vidrio y cristal","1","2","Rev 2"]
[null,null,null,null,null,null,null,null,null,null,null,null,null,"617032","Distribución y venta de artículos metálicos excepto maquinarias, armas y artículos de cuchillería, Ferreterías","1","2","Rev 2"]
[null,null,null,null,null,null,null,null,null,null,null,null,null,"617091","Distribución y venta de artículos metálicos no clasificados en otra parte","1","2","Rev 2"]
[null,null,null,null,null,null,null,null,null,null,null,null,null,"619094","Distribución y venta de artículos no clasificados en otra parte","1","3","Rev 2"]
[null,null,null,null,null,null,null,null,null,null,null,null,null,"612057","Distribución y venta de bebidas no alcohólicas, malteadas, cervezas y aguas gaseosas (incluye bebidas refrescantes, jarabes, extractos, concentrados, etc.)","1","2","Rev 2"]
[null,null,null,null,null,null,null,null,null,null,null,null,null,"613126","Distribución y venta de calzado excepto el de caucho. Zapaterías, Zapatillerías.","1","2","Rev 2"]
[null,null,null,null,null,null,null,null,null,null,null,null,null,"615110","Distribución y venta de caucho y productos de caucho (incluye\ncalzado de caucho).","1","2","Rev 2"]
[null,null,null,null,null,null,null,null,null,null,null,null,null,"611220","Distribución y venta de chocolates, productos a base de  cacao y productos de confitería (incluye caramelos, frutas confitadas, pastillas, gomas de mascar, etc.)","1","3","Rev 2"]
[null,null,null,null,null,null,null,null,null,null,null,null,null,"614084","Distribución y venta de diarios y revistas","1","2","Rev 2"]
[null,null,null,null,null,null,null,null,null,null,null,null,null,"614041","Distribución y venta de envases de papel y cartón","1","2","Rev 2"]
[null,null,null,null,null,null,null,null,null,null,null,null,null,"618071","Distribución y venta de equipo profesional y científico e instrumentos de medida y de control","1","2","Rev 2"]
[null,null,null,null,null,null,null,null,null,null,null,null,null,"618055","Distribución y venta de equipos y aparatos de radio y televisión, comunicaciones y sus componentes, repuestos y accesorios","1","2","Rev 2"]
[null,null,null,null,null,null,null,null,null,null,null,null,null,"619035","Distribución y venta de flores y plantas naturales y artificiales","1","2","Rev 2"]
[null,null,null,null,null,null,null,null,null,null,null,null,null,"617016","Distribución y venta de hierro, aceros y metales no ferrosos","1","2","Rev 2"]
[null,null,null,null,null,null,null,null,null,null,null,null,null,"618063","Distribución y venta de instrumentos musicales, discos, cassettes, etc.","1","2","Rev 2"]
[null,null,null,null,null,null,null,null,null,null,null,null,null,"619019","Distribución y venta de joyas, relojes y artículos conexos","1","2","Rev 2"]
[null,null,null,null,null,null,null,null,null,null,null,null,null,"616079","Distribución y venta de ladrillos, cemento, cal, arena, piedra,\nmármol y otros materiales para la construcción excepto puertas,\nventanas y armazones.","1","3","Rev 2"]
[null,null,null,null,null,null,null,null,null,null,null,null,null,"613045","Distribución y venta de mantelería y ropa de cama","1","2","Rev 2"]
[null,null,null,null,null,null,null,null,null,null,null,null,null,"618047","Distribución y venta de máquinas de oficina, cálculo, contabilidad, equipos computadores, máquinas de escribir, cajas registradoras, etc, sus componentes y repuestos.","1","2","Rev 2"]
[null,null,null,null,null,null,null,null,null,null,null,null,null,"618020","Distribución y venta de máquinas, equipos y aparatos de uso doméstico (incluye los eléctricos)","1","2","Rev 2"]
[null,null,null,null,null,null,null,null,null,null,null,null,null,"617024","Distribución y venta de muebles y accesorios metálicos.","1","2","Rev 2"]
[null,null,null,null,null,null,null,null,null,null,null,null,null,"616028","Distribución y venta de objetos de barro, loza, porcelana, etc. excepto artículos de bazar y menaje","1","2","Rev 2"]
[null,null,null,null,null,null,null,null,null,null,null,null,null,"615102","Distribución y venta de petróleo, carbón y sus derivados","1","3","Rev 2"]
[null,null,null,null,null,null,null,null,null,null,null,null,null,"613088","Distribución y venta de pieles y cueros curtidos y salados","1","3","Rev 2"]
[null,null,null,null,null,null,null,null,null,null,null,null,null,"615048","Distribución y venta de pinturas, barnices, lacas, esmaltes y productos similares y conexos","1","3","Rev 2"]
[null,null,null,null,null,null,null,null,null,null,null,null,null,"613118","Distribución y venta de prendas de vestir de cuero excepto calzado","1","2","Rev 2"]
[null,null,null,null,null,null,null,null,null,null,null,null,null,"615056","Distribución y venta de productos farmacéuticos y medicinales (incluye los de uso veterinario)","1","4","Rev 2"]
[null,null,null,null,null,null,null,null,null,null,null,null,null,"613134","Distribución y venta de suelas y afines. Talabarterías y almacenes de suelas","1","2","Rev 2"]
[null,null,null,null,null,null,null,null,null,null,null,null,null,"612065","Distribución y venta de tabacos, cigarrillos y otras manufacturas del tabaco","1","3","Rev 2"]
[null,null,null,null,null,null,null,null,null,null,null,null,null,"613029","Distribución y venta de tejidos","1","2","Rev 2"]
[null,null,null,null,null,null,null,null,null,null,null,null,null,"616044","Distribución y venta de vidrios planos y templados.","1","3","Rev 2"]
[null,null,null,null,null,null,null,null,null,null,null,null,null,"612030","Distribución y venta de vino","1","2","Rev 2"]
[null,null,null,null,null,null,null,null,null,null,null,null,null,"614076","Edición, distribución y venta de libros y publicaciones. Editoriales (sin impresión)","1","2","Rev 2"]
[null,null,null,null,null,null,null,null,null,null,null,null,null,"312134","Elaboracion de concentrados de café, té y yerba mate","1","3","Rev 2"]
[null,null,null,null,null,null,null,null,null,null,null,null,null,"312142","Fabrica de hielo excepto el seco","1","2","Rev 2"]
[null,null,null,null,null,null,null,null,null,null,null,null,null,"383961","Fabricación de aparatos y suministros eléctricos n.c.p. (incluye accesores electricos)","2","3","Rev 2","Comprendido Res 177/07 y Mod"]
[null,null,null,null,null,null,null,null,null,null,null,null,null,"381985","Fabricación de artefactos para iluminación excepto los eléctricos.","2","3","Rev 2","Comprendido Res 177/07 y Mod"]
[null,null,null,null,null,null,null,null,null,null,null,null,null,"331236","Fabricación de artículos de cestería, de caña y mimbre","1","1","Rev 2"]
[null,null,null,null,null,null,null,null,null,null,null,null,null,"383333","Fabricación de enceradoras, pulidoras, batidoras, licuadoras y similares","2","3","Rev 2","Comprendido Res 177/07 y Mod"]
[null,null,null,null,null,null,null,null,null,null,null,null,null,"362034","Fabricacion de espejos y vitrales","1","4","Rev 2"]
[null,null,null,null,null,null,null,null,null,null,null,null,null,"352926","Fabricación de fosforos","1","5","Rev 2"]
[null,null,null,null,null,null,null,null,null,null,null,null,null,"385239","Fabricación de lentes y otros artículos oftálmicos.","1","2","Rev 2"]
[null,null,null,null,null,null,null,null,null,null,null,null,null,"311731","Fabricacion de masas y otros productos de pastelería",null,null,"Rev 2"]
[null,null,null,null,null,null,null,null,null,null,null,null,null,"361054","Fabricación de objetos cerámicos excepto revestimientos de pisos y paredes, n.c.p.","1","3","Rev 2"]
[null,null,null,null,null,null,null,null,null,null,null,null,null,"390941","Fabricación de paraguas.","1","3","Rev 2"]
[null,null,null,null,null,null,null,null,null,null,null,null,null,"321168","Fabricacion de productos de tejeduría n.c.p.","1","3","Rev 2"]
[null,null,null,null,null,null,null,null,null,null,null,null,null,"381993","Fabricación de productos metálicos n.c.p, excepto maquinaria y equipo (incluye clavos, productos de bulonería, etc.)","2","4","Rev 2","Comprendido Res 177/07 y Mod"]
[null,null,null,null,null,null,null,null,null,null,null,null,null,"352918","Fabricación de tintas y negro de humo","3","5","Rev 2","Comprendido Res 177/07 y Mod"]
[null,null,null,null,null,null,null,null,null,null,null,null,null,"384321","Fabricación y armado de carrocerías para automóviles, camiones y\notros vehículos para transporte de carga y pasajeros (incluye casas\nrodantes).","2","4","Rev 2","Comprendido Res 177/07 y Mod"]
[null,null,null,null,null,null,null,null,null,null,null,null,null,"382418","Fabricación y reparación de maquinaria y equipo para la construcción","2","3","Rev 2"]
[null,null,null,null,null,null,null,null,null,null,null,null,null,"383139","Fabricación y reparación de maquinarias y aparatos industriales eléctricos n.c.p.","1","2","Rev 2"]
[null,null,null,null,null,null,null,null,null,null,null,null,null,"382914","Fabricación y reparación de máquinas de coser y tejer","2","3","Rev 2","Comprendido Res 177/07 y Mod"]
[null,null,null,null,null,null,null,null,null,null,null,null,null,"612014","Fraccionamiento de alcoholes","1","4","Rev 2"]
[null,null,null,null,null,null,null,null,null,null,null,null,null,"612049","Fraccionamiento, distribución y venta de bebidas espirituosas","1","2","Rev 2"]
[null,null,null,null,null,null,null,null,null,null,null,null,null,"500070","Hormigonado (Pb y 1º piso)","1","2","Rev 2"]
[null,null,null,null,null,null,null,null,null,null,null,null,null,"371025","Laminación y estirado. Laminadoras","3","4","Rev 2","Comprendido Res 177/07 y Mod"]
[null,null,null,null,null,null,null,null,null,null,null,null,null,"151190","Matanza de animales N.C.P. y procesamiento de su carne, elaboración de subproductos cárnicos","1",4]
[null,null,null,null,null,null,null,null,null,null,null,null,null,"611018","Operaciones de intermediación de ganado en pie de terceros.\nConsignatarios de hacienda.","1","2","Rev 2"]
[null,null,null,null,null,null,null,null,null,null,null,null,null,"611085","Operaciones de intermediación de lanas, cueros y productos\nafines de terceros. Consignatarios.","1","2","Rev 2"]
[null,null,null,null,null,null,null,null,null,null,null,null,null,"321036","Preparacion de fibras textiles excepto lana y algodón","1","3","Rev 2"]
[null,null,null,null,null,null,null,null,null,null,null,null,null,"949043","Producción de espectáculos deportivos","1","1","Rev 2"]
[null,null,null,null,null,null,null,null,null,null,null,null,null,"410233","Producción de gases no clasificados en otra parte.","1","4","Rev 2"]
[null,null,null,null,null,null,null,null,null,null,null,null,null,"321133","Tejido de fibras sintéticas y seda (excluye la fabricación de medias). Tejedurías","1","3","Rev 2"]
[null,null,null,null,null,null,null,null,null,null,null,null,null,"711225","Transporte de pasajeros a larga distancia por carretera.","1","3","Rev 2"]
[null,null,null,null,null,null,null,null,null,null,null,null,null,"463153","VENTA AL POR MAYOR DE ACEITES Y GRASAS","1","3","Rev 4"]
[null,null,null,null,null,null,null,null,null,null,null,null,null,"163170","VENTA AL POR MAYOR DE ALIMENTOS BALANCEADOS PARA ANIMALES","1","2","Rev 4"]
[null,null,null,null,null,null,null,null,null,null,null,null,null,"464632","VENTA AL POR MAYOR DE ARTÍCULOS DE BAZAR Y MENAJE EXCEPTO DE VIDRIO","1","3","Rev 4"]
[null,null,null,null,null,null,null,null,null,null,null,null,null,"464950","VENTA AL POR MAYOR DE ARTÍCULOS DE ESPARCIMIENTO Y DEPORTES","1","3","Rev 4"]
[null,null,null,null,null,null,null,null,null,null,null,null,null,"466330","VENTA AL POR MAYOR DE ARTÍCULOS DE FERRETERÍA Y MATERIALES ELÉCTRICOS","1","2","Rev 4"]
[null,null,null,null,null,null,null,null,null,null,null,null,null,"464620","VENTA AL POR MAYOR DE ARTÍCULOS DE ILUMINACIÓN","1","2","Rev 4"]
[null,null,null,null,null,null,null,null,null,null,null,null,null,"464223","VENTA AL POR MAYOR DE ARTÍCULOS DE LIBRERÍA Y PAPELERÍA","1","3","Rev 4"]
[null,null,null,null,null,null,null,null,null,null,null,null,null,"466391","VENTA AL POR MAYOR DE ARTÍCULOS DE LOZA, CERÁMICA Y PORCELANA DE USO EN CONSTRUCCIÓN","1","1","Rev 4"]
[null,null,null,null,null,null,null,null,null,null,null,null,null,"464149","VENTA AL POR MAYOR DE ARTÍCULOS DE MARROQUINERÍA, PARAGUAS Y PRODUCTOS SIMILARES N.C.P.","1","2","Rev 4"]
[null,null,null,null,null,null,null,null,null,null,null,null,null,"464112","VENTA AL POR MAYOR DE ARTÍCULOS DE MERCERÍA","1","2","Rev 4"]
[null,null,null,null,null,null,null,null,null,null,null,null,null,"464410","VENTA AL POR MAYOR DE ARTÍCULOS DE ÓPTICA Y DE FOTOGRAFÍA","1","2","Rev 4"]
[null,null,null,null,null,null,null,null,null,null,null,null,null,"466931","VENTA AL POR MAYOR DE ARTÍCULOS DE PLÁSTICO","1","4","Rev 4"]
[null,null,null,null,null,null,null,null,null,null,null,null,null,"464420","VENTA AL POR MAYOR DE ARTÍCULOS DE RELOJERÍA, JOYERÍA Y FANTASÍAS","1","2","Rev 4"]
[null,null,null,null,null,null,null,null,null,null,null,null,null,"464999","VENTA AL POR MAYOR DE ARTÍCULOS DE USO DOMÉSTICO O PERSONAL N.C.P","1","2","Rev 4"]
[null,null,null,null,null,null,null,null,null,null,null,null,null,"464631","VENTA AL POR MAYOR DE ARTÍCULOS DE VIDRIO","1","2","Rev 4"]
[null,null,null,null,null,null,null,null,null,null,null,null,null,"466399","VENTA AL POR MAYOR DE ARTÍCULOS PARA LA CONSTRUCCIÓN N.C.P.","1","2","Rev 4"]
[null,null,null,null,null,null,null,null,null,null,null,null,null,"466360","VENTA AL POR MAYOR DE ARTÍCULOS PARA PLOMERÍA, INSTALACIÓN DE GAS Y CALEFACCIÓN","1","3","Rev 4"]
[null,null,null,null,null,null,null,null,null,null,null,null,null,"463129","VENTA AL POR MAYOR DE AVES, HUEVOS Y PRODUCTOS DE GRANJA Y DE LA CAZA N.C.P.","1","2","Rev 4"]
[null,null,null,null,null,null,null,null,null,null,null,null,null,"463152","VENTA AL POR MAYOR DE AZÚCAR","1","1","Rev 4"]
[null,null,null,null,null,null,null,null,null,null,null,null,null,"463219","VENTA AL POR MAYOR DE BEBIDAS ALCOHÓLICAS N.C.P.","1","2","Rev 4"]
[null,null,null,null,null,null,null,null,null,null,null,null,null,"463212","VENTA AL POR MAYOR DE BEBIDAS ESPIRITOSAS","1","2","Rev 4"]
[null,null,null,null,null,null,null,null,null,null,null,null,null,"463220","VENTA AL POR MAYOR DE BEBIDAS NO ALCOHÓLICAS","1","2","Rev 4"]
[null,null,null,null,null,null,null,null,null,null,null,null,null,"464940","VENTA AL POR MAYOR DE BICICLETAS Y RODADOS SIMILARES","1","3","Rev 4"]
[null,null,null,null,null,null,null,null,null,null,null,null,null,"463154","VENTA AL POR MAYOR DE CAFÉ, TÉ, YERBA MATE Y OTRAS INFUSIONES Y ESPECIAS Y CONDIMENTOS","1","3","Rev 4"]
[null,null,null,null,null,null,null,null,null,null,null,null,null,"464130","VENTA AL POR MAYOR DE CALZADO EXCEPTO EL ORTOPÉDICO (INCLUYE VENTA DE CALZADO DE CUERO, TELA, PLÁSTICO, GOMA, ETC.)","1",1,"Rev 4"]
[null,null,null,null,null,null,null,null,null,null,null,null,null,"463121","VENTA AL POR MAYOR DE CARNES ROJAS Y DERIVADOS","1","2","Rev 4"]
[null,null,null,null,null,null,null,null,null,null,null,null,null,"464910","VENTA AL POR MAYOR DE CD'S Y DVD'S DE AUDIO Y VIDEO GRABADOS.","1","1","Rev 4"]
[null,null,null,null,null,null,null,null,null,null,null,null,null,"463160","VENTA AL POR MAYOR DE CHOCOLATES, GOLOSINAS Y PRODUCTOS PARA KIOSCOS Y POLIRRUBROS N.C.P., EXCEPTO CIGARRILLOS","1","1","Rev 4"]
[null,null,null,null,null,null,null,null,null,null,null,null,null,"463300","VENTA AL POR MAYOR DE CIGARRILLOS Y PRODUCTOS DE TABACO","1","3","Rev 4"]
[null,null,null,null,null,null,null,null,null,null,null,null,null,"466129","VENTA AL POR MAYOR DE COMBUSTIBLES, LUBRICANTES, LEÑA Y CARBÓN, EXCEPTO GAS LICUADO Y COMBUSTIBLES Y LUBRICANTES PARA AUTOMOTORES","1","5","Rev 4"]
[null,null,null,null,null,null,null,null,null,null,null,null,null,"465220","VENTA AL POR MAYOR DE COMPONENTES ELECTRÓNICOS","1","2","Rev 4"]
[null,null,null,null,null,null,null,null,null,null,null,null,null,"466350","VENTA AL POR MAYOR DE CRISTALES Y ESPEJOS","1","2","Rev 4"]
[null,null,null,null,null,null,null,null,null,null,null,null,null,"464212","VENTA AL POR MAYOR DE DIARIOS Y REVISTAS","1","2","Rev 4"]
[null,null,null,null,null,null,null,null,null,null,null,null,null,"464501","VENTA AL POR MAYOR DE ELECTRODOMÉSTICOS Y ARTEFACTOS PARA EL HOGAR EXCEPTO EQUIPOS DE AUDIO Y VIDEO","1",2,"Rev 4"]
[null,null,null,null,null,null,null,null,null,null,null,null,null,"464222","VENTA AL POR MAYOR DE ENVASES DE PAPEL Y CARTÓN","1","3","Rev 4"]
[null,null,null,null,null,null,null,null,null,null,null,null,null,"465930","VENTA AL POR MAYOR DE EQUIPO PROFESIONAL Y CIENTÍFICO E INSTRUMENTOS DE MEDIDA Y DE CONTROL N.C.P.","1","3","Rev 4"]
[null,null,null,null,null,null,null,null,null,null,null,null,null,"464502","VENTA AL POR MAYOR DE EQUIPOS DE AUDIO, VIDEO Y TELEVISIÓN","1","2","Rev 4"]
[null,null,null,null,null,null,null,null,null,null,null,null,null,"465210","VENTA AL POR MAYOR DE EQUIPOS DE TELEFONÍA Y COMUNICACIONES","1","2","Rev 4"]
[null,null,null,null,null,null,null,null,null,null,null,null,null,"465100","VENTA AL POR MAYOR DE EQUIPOS, PERIFÉRICOS, ACCESORIOS Y PROGRAMAS INFORMÁTICOS","1","3","Rev 4"]
[null,null,null,null,null,null,null,null,null,null,null,null,null,"463112","VENTA AL POR MAYOR DE FIAMBRES Y QUESOS","1","2","Rev 4"]
[null,null,null,null,null,null,null,null,null,null,null,null,null,"464991","VENTA AL POR MAYOR DE FLORES Y PLANTAS NATURALES Y ARTIFICIALES","1","2","Rev 4"]
[null,null,null,null,null,null,null,null,null,null,null,null,null,"463191","VENTA AL POR MAYOR DE FRUTAS, LEGUMBRES Y CEREALES SECOS Y EN CONSERVA","1","2","Rev 4"]
[null,null,null,null,null,null,null,null,null,null,null,null,null,"464330","VENTA AL POR MAYOR DE INSTRUMENTAL MÉDICO Y ODONTOLÓGICO Y ARTÍCULOS ORTOPÉDICOS","1",2,"Rev 4"]
[null,null,null,null,null,null,null,null,null,null,null,null,null,"469010","VENTA AL POR MAYOR DE INSUMOS AGROPECUARIOS DIVERSOS","1","3","Rev 4"]
[null,null,null,null,null,null,null,null,null,null,null,null,null,"464930","VENTA AL POR MAYOR DE JUGUETES","1","3","Rev 4"]
[null,null,null,null,null,null,null,null,null,null,null,null,null,"462201","VENTA AL POR MAYOR DE LANAS, CUEROS EN BRUTO Y PRODUCTOS AFINES","1","3","Rev 4"]
[null,null,null,null,null,null,null,null,null,null,null,null,null,"464211","VENTA AL POR MAYOR DE LIBROS Y PUBLICACIONES","1","2","Rev 4"]
[null,null,null,null,null,null,null,null,null,null,null,null,null,"464113","VENTA AL POR MAYOR DE MANTELERÍA, ROPA DE CAMA Y ARTÍCULOS TEXTILES PARA EL HOGAR","1","2","Rev 4"]
[null,null,null,null,null,null,null,null,null,null,null,null,null,"465920","VENTA AL POR MAYOR DE MAQUINARIA Y EQUIPO DE OFICINA, EXCEPTO EQUIPO INFORMÁTICO","1","2","Rev 4"]
[null,null,null,null,null,null,null,null,null,null,null,null,null,"465400","VENTA AL POR MAYOR DE MÁQUINAS  HERRAMIENTA DE USO GENERAL","1","3","Rev 4"]
[null,null,null,null,null,null,null,null,null,null,null,null,null,"465910","VENTA AL POR MAYOR DE MÁQUINAS Y EQUIPO DE CONTROL Y SEGURIDAD","1","3","Rev 4"]
[null,null,null,null,null,null,null,null,null,null,null,null,null,"465990","Venta al por mayor de máquinas, equipo y materiales conexos n.c.p. (Incluye máquinas registradoras de escribir y de calcular mecánicas, equipos para destruir documentos, etc.)","1",3,"Rev 4"]
[null,null,null,null,null,null,null,null,null,null,null,null,null,"465340","VENTA AL POR MAYOR DE MÁQUINAS, EQUIPOS E IMPLEMENTOS DE USO EN IMPRENTAS, ARTES GRÁFICAS Y ACTIVIDADES CONEXAS","1","3","Rev 4"]
[null,null,null,null,null,null,null,null,null,null,null,null,null,"465320","VENTA AL POR MAYOR DE MÁQUINAS, EQUIPOS E IMPLEMENTOS DE USO EN LA ELABORACIÓN DE ALIMENTOS, BEBIDAS Y TABACO","1","3","Rev 4"]
[null,null,null,null,null,null,null,null,null,null,null,null,null,"465330","VENTA AL POR MAYOR DE MÁQUINAS, EQUIPOS E IMPLEMENTOS DE USO EN LA FABRICACIÓN DE TEXTILES, PRENDAS Y ACCESORIOS DE VESTIR, CALZADO, ARTÍCULOS DE CUERO Y MARROQUINERÍA","1","3","Rev 4"]
[null,null,null,null,null,null,null,null,null,null,null,null,null,"465360","VENTA AL POR MAYOR DE MÁQUINAS, EQUIPOS E IMPLEMENTOS DE USO EN LA INDUSTRIA DEL PLÁSTICO Y DEL CAUCHO","1","3","Rev 4"]
[null,null,null,null,null,null,null,null,null,null,null,null,null,"465310","VENTA AL POR MAYOR DE MÁQUINAS, EQUIPOS E IMPLEMENTOS DE USO EN LOS SECTORES AGROPECUARIO, JARDINERÍA, SILVICULTURA, PESCA Y CAZA","1","3","Rev 4"]
[null,null,null,null,null,null,null,null,null,null,null,null,null,"465390","VENTA AL POR MAYOR DE MÁQUINAS, EQUIPOS E IMPLEMENTOS DE USO ESPECIAL N.C.P.","1","3","Rev 4"]
[null,null,null,null,null,null,null,null,null,null,null,null,null,"465350","Venta al por mayor de máquinas, equipos e implementos de uso médico y paramédico (Incluye venta de equipos de diagnóstico y tratamiento, camillas, cajas de cirugía, jeringas y otros implementos de material descartable, etc.)","1",3,"Rev 4"]
[null,null,null,null,null,null,null,null,null,null,null,null,null,"464920","VENTA AL POR MAYOR DE MATERIALES Y PRODUCTOS DE LIMPIEZA","1","3","Rev 4"]
[null,null,null,null,null,null,null,null,null,null,null,null,null,"462190","VENTA AL POR MAYOR DE MATERIAS PRIMAS AGRÍCOLAS Y DE LA SILVICULTURA N.C.P.","1","3","Rev 4"]
[null,null,null,null,null,null,null,null,null,null,null,null,null,"462209","VENTA AL POR MAYOR DE MATERIAS PRIMAS PECUARIAS N.C.P. INCLUSO ANIMALES VIVOS","1","3","Rev 4"]
[null,null,null,null,null,null,null,null,null,null,null,null,null,"464122","VENTA AL POR MAYOR DE MEDIAS Y PRENDAS DE PUNTO","1","2","Rev 4"]
[null,null,null,null,null,null,null,null,null,null,null,null,null,"469090","Venta al por mayor de mercancías n.c.p.","1",3,"Rev 4"]
[null,null,null,null,null,null,null,null,null,null,null,null,null,"466200","VENTA AL POR MAYOR DE METALES Y MINERALES METALÍFEROS","1","3","Rev 4"]
[null,null,null,null,null,null,null,null,null,null,null,null,null,"465690","VENTA AL POR MAYOR DE MUEBLES E INSTALACIONES PARA LA INDUSTRIA, EL COMERCIO Y LOS SERVICIOS N.C.P.","1","3","Rev 4"]
[null,null,null,null,null,null,null,null,null,null,null,null,null,"465610","VENTA AL POR MAYOR DE MUEBLES E INSTALACIONES PARA OFICINAS","1","3","Rev 4"]
[null,null,null,null,null,null,null,null,null,null,null,null,null,"464610","VENTA AL POR MAYOR DE MUEBLES EXCEPTO DE OFICINA, ARTÍCULOS DE MIMBRE Y CORCHO, COLCHONES Y SOMIERES","1","2","Rev 4"]
[null,null,null,null,null,null,null,null,null,null,null,null,null,"463151","VENTA AL POR MAYOR DE PAN, PRODUCTOS DE CONFITERÍA Y PASTAS FRESCAS","1","2","Rev 4"]
[null,null,null,null,null,null,null,null,null,null,null,null,null,"464221","VENTA AL POR MAYOR DE PAPEL Y PRODUCTOS DE PAPEL Y CARTÓN EXCEPTO ENVASES","1","3","Rev 4"]
[null,null,null,null,null,null,null,null,null,null,null,null,null,"466370","VENTA AL POR MAYOR DE PAPELES PARA PARED, REVESTIMIENTO PARA PISOS DE GOMA, PLÁSTICO Y TEXTILES, Y ARTÍCULOS SIMILARES PARA LA DECORACIÓN","1","3","Rev 4"]
[null,null,null,null,null,null,null,null,null,null,null,null,null,"453100","VENTA AL POR MAYOR DE PARTES, PIEZAS Y ACCESORIOS DE VEHÍCULOS AUTOMOTORES","1","2","Rev 4"]
[null,null,null,null,null,null,null,null,null,null,null,null,null,"463130","VENTA AL POR MAYOR DE PESCADO","1","2","Rev 4"]
[null,null,null,null,null,null,null,null,null,null,null,null,null,"464141","VENTA AL POR MAYOR DE PIELES Y CUEROS CURTIDOS Y SALADOS","1","2","Rev 4"]
[null,null,null,null,null,null,null,null,null,null,null,null,null,"466340","Venta al por mayor de pinturas y productos conexos","1",4,"Rev 3"]
[null,null,null,null,null,null,null,null,null,null,null,null,null,"464121","VENTA AL POR MAYOR DE PRENDAS DE VESTIR DE CUERO","1","2","Rev 4"]
[null,null,null,null,null,null,null,null,null,null,null,null,null,"464129","VENTA AL POR MAYOR DE PRENDAS Y ACCESORIOS DE VESTIR N.C.P., EXCEPTO UNIFORMES Y ROPA DE TRABAJO","1","2","Rev 4"]
[null,null,null,null,null,null,null,null,null,null,null,null,null,"463199","VENTA AL POR MAYOR DE PRODUCTOS ALIMENTICIOS N.C.P.","1","2","Rev 4"]
[null,null,null,null,null,null,null,null,null,null,null,null,null,"464320","VENTA AL POR MAYOR DE PRODUCTOS COSMÉTICOS, DE TOCADOR Y DE PERFUMERÍA","1","3","Rev 4"]
[null,null,null,null,null,null,null,null,null,null,null,null,null,"466320","VENTA AL POR MAYOR DE PRODUCTOS DE MADERA EXCEPTO MUEBLES","1","2","Rev 4"]
[null,null,null,null,null,null,null,null,null,null,null,null,null,"464310","VENTA AL POR MAYOR DE PRODUCTOS FARMACÉUTICOS","1","4","Rev 4"]
[null,null,null,null,null,null,null,null,null,null,null,null,null,"466920","VENTA AL POR MAYOR DE PRODUCTOS INTERMEDIOS N.C.P., DESPERDICIOS Y DESECHOS DE PAPEL Y CARTÓN","1","4","Rev 4"]
[null,null,null,null,null,null,null,null,null,null,null,null,null,"466910","VENTA AL POR MAYOR DE PRODUCTOS INTERMEDIOS N.C.P., DESPERDICIOS Y DESECHOS TEXTILES","1","4","Rev 4"]
[null,null,null,null,null,null,null,null,null,null,null,null,null,"466939","VENTA AL POR MAYOR DE PRODUCTOS INTERMEDIOS, DESPERDICIOS Y DESECHOS DE VIDRIO, CAUCHO, GOMA Y QUÍMICOS N.C.P.","1","5","Rev 4"]
[null,null,null,null,null,null,null,null,null,null,null,null,null,"466990","VENTA AL POR MAYOR DE PRODUCTOS INTERMEDIOS, DESPERDICIOS Y DESECHOS N.C.P.","1","5","Rev 4"]
[null,null,null,null,null,null,null,null,null,null,null,null,null,"463111","VENTA AL POR MAYOR DE PRODUCTOS LÁCTEOS","1","2","Rev 4"]
[null,null,null,null,null,null,null,null,null,null,null,null,null,"464119","VENTA AL POR MAYOR DE PRODUCTOS TEXTILES N.C.P.","1","2","Rev 4"]
[null,null,null,null,null,null,null,null,null,null,null,null,null,"464340","VENTA AL POR MAYOR DE PRODUCTOS VETERINARIOS","1","3","Rev 4"]
[null,null,null,null,null,null,null,null,null,null,null,null,null,"463159","VENTA AL POR MAYOR DE PRODUCTOS Y SUBPRODUCTOS DE MOLINERÍA N.C.P.","1","3","Rev 4"]
[null,null,null,null,null,null,null,null,null,null,null,null,null,"462120","VENTA AL POR MAYOR DE SEMILLAS Y GRANOS PARA FORRAJES","1","3","Rev 4"]
[null,null,null,null,null,null,null,null,null,null,null,null,null,"464142","VENTA AL POR MAYOR DE SUELAS Y AFINES","1","2","Rev 4"]
[null,null,null,null,null,null,null,null,null,null,null,null,null,"464114","VENTA AL POR MAYOR DE TAPICES Y ALFOMBRAS DE MATERIALES TEXTILES","1","2","Rev 4"]
[null,null,null,null,null,null,null,null,null,null,null,null,null,"464111","VENTA AL POR MAYOR DE TEJIDOS (TELAS)","1","2","Rev 4"]
[null,null,null,null,null,null,null,null,null,null,null,null,null,"464150","VENTA AL POR MAYOR DE UNIFORMES Y ROPA DE TRABAJO","1","2","Rev 4"]
[null,null,null,null,null,null,null,null,null,null,null,null,null,"463211","VENTA AL POR MAYOR DE VINO","1","2","Rev 4"]
[null,null,null,null,null,null,null,null,null,null,null,null,null,"461092","VENTA AL POR MAYOR EN COMISIÓN O CONSIGNACIÓN DE MADERA Y MATERIALES PARA LA CONSTRUCCIÓN","1","2","Rev 4"]
[null,null,null,null,null,null,null,null,null,null,null,null,null,"611182","Venta de aceites y grasas","1","3","Rev 2"]
[null,null,null,null,null,null,null,null,null,null,null,null,null,"624330","Venta de antigüedades, objetos de arte y artículos de segundo uso\nen remates.","1","1","Rev 2"]
[null,null,null,null,null,null,null,null,null,null,null,null,null,"624187","Venta de artículos de caucho excepto cámaras y cubiertas.","1","3","Rev 2"]
[null,null,null,null,null,null,null,null,null,null,null,null,null,"611123","Venta de aves y huevos","1","2","Rev 2"]
[null,null,null,null,null,null,null,null,null,null,null,null,null,"611115","Venta de fiambres, embutidos y chacinados","1","2","Rev 2"]
[null,null,null,null,null,null,null,null,null,null,null,null,null,"624152","Venta de flores y plantas naturales y artificiales.","1","1","Rev 2"]
[null,null,null,null,null,null,null,null,null,null,null,null,null,"614017","Venta de madera y productos de madera excepto muebles y accesorios.","1","2","Rev 2"]
[null,null,null,null,null,null,null,null,null,null,null,null,null,"624241","Venta de máquinas y motores y sus repuestos.","1","2","Rev 2"]
[null,null,null,null,null,null,null,null,null,null,null,null,null,"611131","Venta de productos lácteos","1","2","Rev 2"]
[null,null,null,null,null,null,null,null,null,null,null,null,null,"461094","Venta al por mayor en comisión o consignación de maquinaria, equipo profesional industrial y comercial, embarcaciones y aeronaves","1","3","Rev 4"]
[null,null,null,null,null,null,null,null,null,null,null,null,null,"461099","Venta al por mayor en comisión o consignación de mercaderías n.c.p.","1","3","Rev 4"]
[null,null,null,null,null,null,null,null,null,null,null,null,null,"461093","Venta al por mayor en comisión o consignación de minerales, metales y productos químicos industriales","1","5","Rev 4"]
[null,null,null,null,null,null,null,null,null,null,null,null,null,"511950","Venta al por mayor en comisión o consignación de minerales, metales y productos químicos industriales","1","5","Rev3"]
[null,null,null,null,null,null,null,null,null,null,null,null,null,"461095","Venta al por mayor en comisión o consignación de papel, cartón, libros, revistas, diarios, materiales de embalaje y artículos de librería","1","3","Rev 4"]
[null,null,null,null,null,null,null,null,null,null,null,null,null,"511970","Venta al por mayor en comisión o consignación de papel, cartón, libros, revistas, diarios, materiales de embalaje y artículos de librería","1","3","Rev3"]
[null,null,null,null,null,null,null,null,null,null,null,null,null,"461019","Venta al por mayor en comisión o consignación de productos agrícolas n.c.p.","1","3","Rev 4"]
[null,null,null,null,null,null,null,null,null,null,null,null,null,"511119","Venta al por mayor en comisión o consignación de productos agrícolas n.c.p.","1","3","Rev3"]
[null,null,null,null,null,null,null,null,null,null,null,null,null,"461029","Venta al por mayor en comisión o consignación de productos pecuarios n.c.p.","1","3","Rev 4"]
[null,null,null,null,null,null,null,null,null,null,null,null,null,"511920","Venta al por mayor en comisión o consignación de productos textiles, prendas de vestir, calzado excepto el ortopédico,  artículos de marroquinería, paraguas y similares y productos de cuero n.c.p.","1","2","Rev3"]
[null,null,null,null,null,null,null,null,null,null,null,null,null,"461091","Venta al por mayor en comisión o consignación de productos textiles, prendas de vestir, calzado excepto el ortopédico, artículos de marroquinería, paraguas y similares y productos","1","2","Rev 4"]
[null,null,null,null,null,null,null,null,null,null,null,null,null,"461012","Venta al por mayor en comisión o consignación de semillas","1","3","Rev 4"]
[null,null,null,null,null,null,null,null,null,null,null,null,null,"511112","Venta al por mayor en comisión o consignación de semillas","1","3","Rev3"]
[null,null,null,null,null,null,null,null,null,null,null,null,null,"463180","Venta al por mayor en supermercados mayoristas de alimentos","1","3","Rev 4"]
[null,null,null,null,null,null,null,null,null,null,null,null,null,"463140","Venta al por mayor y empaque de frutas, de legumbres y hortalizas frescas","1","3","Rev 4"]
[null,null,null,null,null,null,null,null,null,null,null,null,null,"512240","Venta al por mayor y empaque de frutas, de legumbres y hortalizas frescas (Incluye la conservación en cámaras frigoríficas por parte de los empaquetadores)","1","3","Rev3"]
[null,null,null,null,null,null,null,null,null,null,null,null,null,"475210","Venta al por menor de aberturas","1","2","Rev 4"]
[null,null,null,null,null,null,null,null,null,null,null,null,null,"523610","Venta al por menor de aberturas (Incluye puertas, ventanas, cortinas de enrollar de PVC, madera, aluminio, puertas corredizas, frentes de placards, etc.)","1","2","Rev3"]
[null,null,null,null,null,null,null,null,null,null,null,null,null,"478010","Venta al por menor de alimentos, bebidas y tabaco en puestos móviles y mercados","1","1","Rev 4"]
[null,null,null,null,null,null,null,null,null,null,null,null,null,"477830","Venta al por menor de antigüedades","1","1","Rev 4"]
[null,null,null,null,null,null,null,null,null,null,null,null,null,"524910","Venta al por menor de antigüedades (Incluye venta de antigüedades en remates)","1","1","Rev3"]
[null,null,null,null,null,null,null,null,null,null,null,null,null,"474020","Venta al por menor de aparatos de telefonía y comunicación","1","2","Rev 4"]
[null,null,null,null,null,null,null,null,null,null,null,null,null,"523942","Venta al por menor de armas y artículos de cuchillería, artículos para la caza y pesca","1","3","Rev3"]
[null,null,null,null,null,null,null,null,null,null,null,null,null,"476320","Venta al por menor de armas, artículos para la caza y pesca","1","3","Rev 4"]
[null,null,null,null,null,null,null,null,null,null,null,null,null,"523550","Venta al por menor de artefactos  para el hogar eléctricos, a gas, a kerosene u otros combustibles (Incluye   electrodomésticos -excepto   equipos   de sonido-, televisión y video, cocinas, estufas, hornos, etc.)","1","3","Rev3"]
[null,null,null,null,null,null,null,null,null,null,null,null,null,"475440","Venta al por menor de artículos de bazar y menaje","1","3","Rev 4"]
[null,null,null,null,null,null,null,null,null,null,null,null,null,"523540","Venta al por menor de artículos de bazar y menaje","1","3","Rev3"]
[null,null,null,null,null,null,null,null,null,null,null,null,null,"523991","Venta al por menor de artículos de caucho excepto cámaras y cubiertas","1","3","Rev3"]
[null,null,null,null,null,null,null,null,null,null,null,null,null,"523994","Venta al por menor de artículos de colección y objetos de arte","1","1","Rev3"]
[null,null,null,null,null,null,null,null,null,null,null,null,null,"523941","Venta al por menor de artículos de deporte, equipos e indumentaria deportiva","1","2","Rev3"]
[null,null,null,null,null,null,null,null,null,null,null,null,null,"523630","Venta al por menor de artículos de ferretería","1","3","Rev3"]
[null,null,null,null,null,null,null,null,null,null,null,null,null,"475230","Venta al por menor de artículos de ferretería y materiales eléctricos","1","3","Rev 4"]
[null,null,null,null,null,null,null,null,null,null,null,null,null,"475430","Venta al por menor de artículos de iluminación","1","2","Rev 4"]
[null,null,null,null,null,null,null,null,null,null,null,null,null,"523530","Venta al por menor de artículos de iluminación","1","2","Rev3"]
[null,null,null,null,null,null,null,null,null,null,null,null,null,"477290","Venta al por menor de artículos de marroquinería, paraguas y similares n.c.p.","1","2","Rev 4"]
[null,null,null,null,null,null,null,null,null,null,null,null,null,"523490","Venta al por menor de artículos de marroquinería, paraguas y similares n.c.p.","1","2","Rev3"]
[null,null,null,null,null,null,null,null,null,null,null,null,null,"477410","Venta al por menor de artículos de óptica y fotografía","1","2","Rev 4"]
[null,null,null,null,null,null,null,null,null,null,null,null,null,"523710","Venta al por menor de artículos de óptica y fotografía","1","2","Rev3"]
[null,null,null,null,null,null,null,null,null,null,null,null,null,"477420","Venta al por menor de artículos de relojería y joyería","1","1","Rev 4"]
[null,null,null,null,null,null,null,null,null,null,null,null,null,"523720","Venta al por menor de artículos de relojería, joyería y fantasía","1","1","Rev3"]
[null,null,null,null,null,null,null,null,null,null,null,null,null,"477210","Venta al por menor de artículos de talabartería y artículos regionales","1","2","Rev 4"]
[null,null,null,null,null,null,null,null,null,null,null,null,null,"477490","Venta al por menor de artículos nuevos n.c.p.","1","1","Rev 4"]
[null,null,null,null,null,null,null,null,null,null,null,null,null,"523999","Venta al por menor de artículos nuevos n.c.p. (Incluye casas de regalos, de artesanías y artículos regionales excepto de talabartería, de artículos religiosos, de monedas y sellos, etc.)","1","1","Rev3"]
[null,null,null,null,null,null,null,null,null,null,null,null,null,"475490","Venta al por menor de artículos para el hogar n.c.p.","1","2","Rev 4"]
[null,null,null,null,null,null,null,null,null,null,null,null,null,"523590","Venta al por menor de artículos para el hogar n.c.p.","1","2","Rev3"]
[null,null,null,null,null,null,null,null,null,null,null,null,null,"475250","Venta al por menor de artículos para plomería e instalación de gas","1","2","Rev 4"]
[null,null,null,null,null,null,null,null,null,null,null,null,null,"523650","Venta al por menor de artículos para plomería e instalación de gas","1","2"]
[null,null,null,null,null,null,null,null,null,null,null,null,null,"523410","Venta al por menor de artículos regionales y de talabartería (Incluye venta de artículos de talabartería y regionales de cuero, plata, alpaca y similares)","1","2","Rev3"]
[null,null,null,null,null,null,null,null,null,null,null,null,null,"475190","Venta al por menor de artículos textiles n.c.p. excepto prendas de vestir","1","2","Rev 4"]
[null,null,null,null,null,null,null,null,null,null,null,null,null,"523290","Venta al por menor de artículos textiles n.c.p. excepto prendas de vestir (Incluye la venta al por menor de tapices, alfombras,  etc.)","1","2","Rev3"]
[null,null,null,null,null,null,null,null,null,null,null,null,null,"477890","Venta al por menor de artículos usados n.c.p. excepto+e1155 automotores y motocicletas","1","1","Rev 4"]
[null,null,null,null,null,null,null,null,null,null,null,null,null,"524990","Venta al por menor de artículos usados n.c.p. excluidos automotores y motocicletas","1","1","Rev3"]
[null,null,null,null,null,null,null,null,null,null,null,null,null,"453220","Venta al por menor de baterías","1","3","Rev 4"]
[null,null,null,null,null,null,null,null,null,null,null,null,null,"503220","Venta al por menor de baterías","1","3","Rev3"]
[null,null,null,null,null,null,null,null,null,null,null,null,null,"522500","Venta al por menor de bebidas","1","2","Rev3"]
[null,null,null,null,null,null,null,null,null,null,null,null,null,"472200","Venta al por menor de bebidas en comercios especializados","1","2","Rev 4"]
[null,null,null,null,null,null,null,null,null,null,null,null,null,"477430","Venta al por menor de bijouterie y fantasía","1","1","Rev 4"]
[null,null,null,null,null,null,null,null,null,null,null,null,null,"472172","Venta al por menor de bombones, golosinas y demás productos de confitería","1","2","Rev 4"]
[null,null,null,null,null,null,null,null,null,null,null,null,null,"522420","Venta al por menor de bombones, golosinas y demás productos de confitería","1","2","Rev3"]
[null,null,null,null,null,null,null,null,null,null,null,null,null,"477230","Venta al por menor de calzado deportivo","1","2","Rev 4"]
[null,null,null,null,null,null,null,null,null,null,null,null,null,"523420","Venta al por menor de calzado excepto el ortopédico","1","2","Rev3"]
[null,null,null,null,null,null,null,null,null,null,null,null,null,"477220","Venta al por menor de calzado, excepto el ortopédico y el deportivo","1","2","Rev 4"]
[null,null,null,null,null,null,null,null,null,null,null,null,null,"453210","Venta al por menor de cámaras y cubiertas","1","2","Rev 4"]
[null,null,null,null,null,null,null,null,null,null,null,null,null,"503210","Venta al por menor de cámaras y cubiertas","1","2","Rev3"]
[null,null,null,null,null,null,null,null,null,null,null,null,null,"472130","Venta al por menor de carnes rojas, menudencias y chacinados frescos","1","2","Rev 4"]
[null,null,null,null,null,null,null,null,null,null,null,null,null,"522210","Venta al por menor de carnes rojas, menudencias y chacinados frescos","1","2","Rev3"]
[null,null,null,null,null,null,null,null,null,null,null,null,null,"476200","Venta al por menor de cd´s y dvd´s de audio y video grabados","1","1","Rev 4"]
[null,null,null,null,null,null,null,null,null,null,null,null,null,"475420","Venta al por menor de colchones y somieres","1","3","Rev 4"]
[null,null,null,null,null,null,null,null,null,null,null,null,null,"523520","Venta al por menor de colchones y somieres","1","3","Rev3"]
[null,null,null,null,null,null,null,null,null,null,null,null,null,"473000","Venta al por menor de combustible para vehículos automotores y motocicletas","3","5","Rev 4","Comprendido Res 177/07 y Mod"]
[null,null,null,null,null,null,null,null,null,null,null,null,null,"505000","Venta al por menor de combustible para vehículos automotores y motocicletas (Incluye estaciones de servicios y la venta al por menor de productos lubricantes y refrigerantes para automotores y motocicletas)","3","5","Rev3","Comprendido Res 177/07 y Mod"]
[null,null,null,null,null,null,null,null,null,null,null,null,null,"475120","Venta al por menor de confecciones para el hogar","1","2","Rev 4"]
[null,null,null,null,null,null,null,null,null,null,null,null,null,"523220","Venta al por menor de confecciones para el hogar (Incluye la venta al por menor de sábanas, toallas, mantelería, cortinas confeccionadas, colchas, cubrecamas, etc.)","1","2","Rev3"]
[null,null,null,null,null,null,null,null,null,null,null,null,null,"475260","Venta al por menor de cristales, espejos, mamparas y cerramientos","1","2","Rev 4"]
[null,null,null,null,null,null,null,null,null,null,null,null,null,"523660","Venta al por menor de cristales, espejos, mamparas y cerramientos","1","2","Rev3"]
[null,null,null,null,null,null,null,null,null,null,null,null,null,"476120","Venta al por menor de diarios y revistas","1","1","Rev 4"]
[null,null,null,null,null,null,null,null,null,null,null,null,null,"523820","Venta al por menor de diarios y revistas","1","1","Rev3"]
[null,null,null,null,null,null,null,null,null,null,null,null,null,"475300","Venta al por menor de electrodomésticos, artefactos para el hogar y equipos de audio y video","1","3","Rev 4"]
[null,null,null,null,null,null,null,null,null,null,null,null,null,"523993","Venta al por menor de equipo profesional y científico e instrumentos de medida y de control","1","1","Rev3"]
[null,null,null,null,null,null,null,null,null,null,null,null,null,"476310","Venta al por menor de equipos y artículos deportivos","1","2","Rev 4"]
[null,null,null,null,null,null,null,null,null,null,null,null,null,"474010","Venta al por menor de equipos, periféricos, accesorios y programas informáticos","1","2","Rev 4"]
[null,null,null,null,null,null,null,null,null,null,null,null,null,"472112","Venta al por menor de fiambres y embutidos","1","2","Rev 4"]
[null,null,null,null,null,null,null,null,null,null,null,null,null,"522112","Venta al por menor de fiambres y embutidos","1","2","Rev3"]
[null,null,null,null,null,null,null,null,null,null,null,null,null,"523911","Venta al por menor de flores y plantas naturales y artificiales","1","1","Rev3"]
[null,null,null,null,null,null,null,null,null,null,null,null,null,"477440","Venta al por menor de flores, plantas, semillas, abonos, fertilizantes y otros productos de vivero","1","2","Rev 4"]
[null,null,null,null,null,null,null,null,null,null,null,null,null,"472160","Venta al por menor de frutas, legumbres y hortalizas frescas","1","2","Rev 4"]
[null,null,null,null,null,null,null,null,null,null,null,null,null,"522300","Venta al por menor de frutas, legumbres y hortalizas frescas","1","2","Rev3"]
[null,null,null,null,null,null,null,null,null,null,null,null,null,"477460","Venta al por menor de fuel oil, gas en garrafas, carbón y leña","1","5","Rev 4"]
[null,null,null,null,null,null,null,null,null,null,null,null,null,"523960","Venta al por menor de fuel oil, gas en garrafas, carbón y leña (No incluye las estaciones de servicios que se clasifican en 505000)","1","5","Rev3"]
[null,null,null,null,null,null,null,null,null,null,null,null,null,"475110","Venta al por menor de hilados, tejidos y artículos de mercería","1","2","Rev 4"]
[null,null,null,null,null,null,null,null,null,null,null,null,null,"523210","Venta al por menor de hilados, tejidos y artículos de mercería (Incluye mercerías, sederías, comercios de venta de lanas y otros hilados, etc.)","1","2","Rev3"]
[null,null,null,null,null,null,null,null,null,null,null,null,null,"522220","Venta al por menor de huevos, carne de aves y  productos de granja y de la caza n.c.p.","1","2","Rev3"]
[null,null,null,null,null,null,null,null,null,null,null,null,null,"472140","Venta al por menor de huevos, carne de aves y productos de granja y de la caza","1","2","Rev 4"]
[null,null,null,null,null,null,null,null,null,null,null,null,null,"523320","Venta al por menor de indumentaria de trabajo, uniformes y guardapolvos","1","2","Rev3"]
[null,null,null,null,null,null,null,null,null,null,null,null,null,"477140","Venta al por menor de indumentaria deportiva","1","2","Rev 4"]
[null,null,null,null,null,null,null,null,null,null,null,null,null,"477130","Venta al por menor de indumentaria para bebés y niños","1","2","Rev 4"]
[null,null,null,null,null,null,null,null,null,null,null,null,null,"523330","Venta al por menor de indumentaria para bebés y niños","1","2","Rev3"]
[null,null,null,null,null,null,null,null,null,null,null,null,null,"477330","Venta al por menor de instrumental médico y odontológico y artículos ortopédicos","1","1","Rev 4"]
[null,null,null,null,null,null,null,null,null,null,null,null,null,"523130","Venta al por menor de instrumental médico y odontológico y artículos ortopédicos (Incluye venta de vaporizadores, nebulizadores, masajeadores, termómetros, prótesis, muletas, plantillas, calzado ortopédico y otros artículos similares de uso personal o do","1","1","Rev3"]
[null,null,null,null,null,null,null,null,null,null,null,null,null,"523560","Venta al por menor de instrumentos musicales, equipos de sonido, casetes de audio y video, discos de audio y video","1","1","Rev3"]
[null,null,null,null,null,null,null,null,null,null,null,null,null,"523930","Venta al por menor de juguetes y artículos de cotillón","1","3","Rev3"]
[null,null,null,null,null,null,null,null,null,null,null,null,null,"476400","Venta al por menor de juguetes, artículos de cotillón y juegos de mesa","1","3","Rev 4"]
[null,null,null,null,null,null,null,null,null,null,null,null,null,"476110","Venta al por menor de libros","1","2","Rev 4"]
[null,null,null,null,null,null,null,null,null,null,null,null,null,"523810","Venta al por menor de libros y publicaciones","1","2","Rev3"]
[null,null,null,null,null,null,null,null,null,null,null,null,null,"477820","Venta al por menor de libros, revistas y similares usados","1","1","Rev 4"]
[null,null,null,null,null,null,null,null,null,null,null,null,null,"524200","Venta al por menor de libros, revistas y similares usados","1","1","Rev3"]
[null,null,null,null,null,null,null,null,null,null,null,null,null,"523620","Venta al por menor de maderas y artículos de madera  y corcho excepto muebles","1","3","Rev3"]
[null,null,null,null,null,null,null,null,null,null,null,null,null,"475220","Venta al por menor de maderas y artículos de madera y corcho, excepto muebles","1","3","Rev 4"]
[null,null,null,null,null,null,null,null,null,null,null,null,null,"523950","Venta al por menor de máquinas y equipos para oficina y sus componentes y repuestos","1","2","Rev3"]
[null,null,null,null,null,null,null,null,null,null,null,null,null,"523992","Venta al por menor de máquinas y motores y sus repuestos","1","2","Rev3"]
[null,null,null,null,null,null,null,null,null,null,null,null,null,"475290","Venta al por menor de materiales de construcción n.c.p.","1","2","Rev 4"]
[null,null,null,null,null,null,null,null,null,null,null,null,null,"523690","Venta al por menor de materiales de construcción n.c.p.","1","2","Rev3"]
[null,null,null,null,null,null,null,null,null,null,null,null,null,"477450","Venta al por menor de materiales y productos de limpieza","1","3","Rev 4"]
[null,null,null,null,null,null,null,null,null,null,null,null,null,"523920","Venta al por menor de materiales y productos de limpieza","1","3","Rev3"]
[null,null,null,null,null,null,null,null,null,null,null,null,null,"523510","Venta al por menor de muebles excepto de oficina, la industria, el comercio y los servicios; artículos de mimbre y corcho","1","2","Rev3"]
[null,null,null,null,null,null,null,null,null,null,null,null,null,"475410","Venta al por menor de muebles para el hogar, artículos de mimbre y corcho","1","2","Rev 4"]
[null,null,null,null,null,null,null,null,null,null,null,null,null,"477810","Venta al por menor de muebles usados","1","2","Rev 4"]
[null,null,null,null,null,null,null,null,null,null,null,null,null,"524100","Venta al por menor de muebles usados","1","2","Rev3"]
[null,null,null,null,null,null,null,null,null,null,null,null,null,"477480","Venta al por menor de obras de arte","1","1","Rev 4"]
[null,null,null,null,null,null,null,null,null,null,null,null,null,"477840","Venta al por menor de oro, monedas, sellos y similares","1","1","Rev 4"]
[null,null,null,null,null,null,null,null,null,null,null,null,null,"472171","Venta al por menor de pan y productos de panadería","1","2","Rev 4"]
[null,null,null,null,null,null,null,null,null,null,null,null,null,"522410","Venta al por menor de pan y productos de panadería","1","2","Rev3"]
[null,null,null,null,null,null,null,null,null,null,null,null,null,"476130","Venta al por menor de papel, cartón, materiales de embalaje y artículos de librería","1","3","Rev4"]
[null,null,null,null,null,null,null,null,null,null,null,null,null,"523830","Venta al por menor de papel, cartón, materiales de embalaje y artículos de librería","1","3","Rev3"]
[null,null,null,null,null,null,null,null,null,null,null,null,null,"475270","Venta al por menor de papeles para pared, revestimientos para pisos y artículos similares para la decoración","1","2","Rev 4"]
[null,null,null,null,null,null,null,null,null,null,null,null,null,"523670","Venta al por menor de papeles para pared, revestimientos para pisos y artículos similares para la decoración","1","2","Rev3"]
[null,null,null,null,null,null,null,null,null,null,null,null,null,"503290","Venta al por menor de partes, piezas y accesorios excepto cámaras, cubiertas y baterías","1","2","Rev3"]
[null,null,null,null,null,null,null,null,null,null,null,null,null,"453291","Venta al por menor de partes, piezas y accesorios nuevos n.c.p.","1","2","Rev 4"]
[null,null,null,null,null,null,null,null,null,null,null,null,null,"453292","Venta al por menor de partes, piezas y accesorios usados n.c.p.","1","2","Rev 4"]
[null,null,null,null,null,null,null,null,null,null,null,null,null,"522910","Venta al por menor de pescados y  productos de la pesca","1","2","Rev3"]
[null,null,null,null,null,null,null,null,null,null,null,null,null,"472150","Venta al por menor de pescados y productos de la pesca","1","2","Rev 4"]
[null,null,null,null,null,null,null,null,null,null,null,null,null,"475240","Venta al por menor de pinturas y productos conexos","1","3","Rev 4"]
[null,null,null,null,null,null,null,null,null,null,null,null,null,"523640","Venta al por menor de pinturas y productos conexos","1","3","Rev3"]
[null,null,null,null,null,null,null,null,null,null,null,null,null,"477150","Venta al por menor de prendas de cuero","1","2","Rev 4"]
[null,null,null,null,null,null,null,null,null,null,null,null,null,"523391","Venta al por menor de prendas de vestir de cuero y sucedáneos excepto calzado","1","2","Rev3"]
[null,null,null,null,null,null,null,null,null,null,null,null,null,"477190","Venta al por menor de prendas y accesorios de vestir n.c.p.","1","2","Rev 4"]
[null,null,null,null,null,null,null,null,null,null,null,null,null,"523399","Venta al por menor de prendas y accesorios de vestir n.c.p. excepto calzado, artículos de marroquinería, paraguas y similares","1","2","Rev3"]
[null,null,null,null,null,null,null,null,null,null,null,null,null,"522999","Venta al por menor de productos alimentarios n.c.p., en comercios especializados","1","2","Rev3"]
[null,null,null,null,null,null,null,null,null,null,null,null,null,"472190","Venta al por menor de productos alimenticios n.c.p., en comercios especializados","1","2","Rev 4"]
[null,null,null,null,null,null,null,null,null,null,null,null,null,"477320","Venta al por menor de productos cosméticos, de tocador y de perfumería","1","2","Rev 4"]
[null,null,null,null,null,null,null,null,null,null,null,null,null,"523120","Venta al por menor de productos cosméticos, de tocador y de perfumería","1","2","Rev3"]
[null,null,null,null,null,null,null,null,null,null,null,null,null,"472120","Venta al por menor de productos de almacén y dietética","1","2","Rev 4"]
[null,null,null,null,null,null,null,null,null,null,null,null,null,"522120","Venta al por menor de productos de almacén y dietética","1","2","Rev3"]
[null,null,null,null,null,null,null,null,null,null,null,null,null,"477310","Venta al por menor de productos farmacéuticos y de herboristería","1","2","Rev 4"]
[null,null,null,null,null,null,null,null,null,null,null,null,null,"523110","Venta al por menor de productos farmacéuticos y de herboristería","1","2","Rev3"]
[null,null,null,null,null,null,null,null,null,null,null,null,null,"472111","Venta al por menor de productos lácteos","1","2","Rev 4"]
[null,null,null,null,null,null,null,null,null,null,null,null,null,"522111","Venta al por menor de productos lácteos","1","2","Rev3"]
[null,null,null,null,null,null,null,null,null,null,null,null,null,"478090","Venta al por menor de productos n.c.p. en puestos móviles y mercados","1","1","Rev 4"]
[null,null,null,null,null,null,null,null,null,null,null,null,null,"523970","Venta al por menor de productos veterinarios y animales domésticos","1","3","Rev3"]
[null,null,null,null,null,null,null,null,null,null,null,null,null,"477470","Venta al por menor de productos veterinarios, animales domésticos y alimento balanceado para mascotas","1","3","Rev 4"]
[null,null,null,null,null,null,null,null,null,null,null,null,null,"477110","Venta al por menor de ropa interior, medias, prendas para dormir y para la playa","1","2","Rev 4"]
[null,null,null,null,null,null,null,null,null,null,null,null,null,"523310","Venta al por menor de ropa interior, medias, prendas para dormir y para la playa (Incluye corsetería, lencería, camisetas, medias excepto ortopédicas, pijamas, camisones y saltos de cama, salidas de baño, trajes de baño, etc.)","1","2","Rev3"]
[null,null,null,null,null,null,null,null,null,null,null,null,null,"523912","Venta al por menor de semillas, abonos, fertilizantes y otros productos de vivero","1","2","Rev3"]
[null,null,null,null,null,null,null,null,null,null,null,null,null,"472300","Venta al por menor de tabaco en comercios especializados","1","2","Rev 4"]
[null,null,null,null,null,null,null,null,null,null,null,null,null,"522991","Venta al por menor de tabaco y sus productos","1","2","Rev3"]
[null,null,null,null,null,null,null,null,null,null,null,null,null,"477120","Venta al por menor de uniformes escolares y guardapolvos","1","2","Rev 4"]
[null,null,null,null,null,null,null,null,null,null,null,null,null,"471900","Venta al por menor en comercios no especializados, sin predominio de productos alimenticios y bebidas","1","2","Rev 4"]
[null,null,null,null,null,null,null,null,null,null,null,null,null,"471110","Venta al por menor en hipermercados","1","3","Rev 4"]
[null,null,null,null,null,null,null,null,null,null,null,null,null,"521110","Venta al por menor en hipermercados con predominio de productos alimentarios y bebidas","1","3","Rev3"]
[null,null,null,null,null,null,null,null,null,null,null,null,null,"471190","Venta al por menor en kioscos, polirrubros y comercios no especializados n.c.p.","1","1","Rev 4"]
[null,null,null,null,null,null,null,null,null,null,null,null,null,"521190","Venta al por menor en kioscos, polirrubros y comercios no especializados n.c.p.","1","1","Rev3"]
[null,null,null,null,null,null,null,null,null,null,null,null,null,"471130","Venta al por menor en minimercados","1","2","Rev 4"]
[null,null,null,null,null,null,null,null,null,null,null,null,null,"521130","Venta al por menor en minimercados con predominio de productos alimentarios y bebidas","1","2","Rev3"]
[null,null,null,null,null,null,null,null,null,null,null,null,null,"525200","Venta al por menor en puestos móviles","1","1","Rev3"]
[null,null,null,null,null,null,null,null,null,null,null,null,null,"471120","Venta al por menor en supermercados","1","3","Rev 4"]
[null,null,null,null,null,null,null,null,null,null,null,null,null,"521120","Venta al por menor en supermercados con predominio de productos alimentarios y bebidas","1","3","Rev3"]
[null,null,null,null,null,null,null,null,null,null,null,null,null,"521200","Venta al por menor excepto la especializada, sin predominio de productos alimentarios y bebidas","1","2","Rev3"]
[null,null,null,null,null,null,null,null,null,null,null,null,null,"525900","Venta al por menor no realizada en establecimientos  n.c.p. (Incluye venta mediante máquinas expendedoras, vendedores ambulantes y vendedores a domicilio)","1","1","Rev3"]
[null,null,null,null,null,null,null,null,null,null,null,null,null,"479900","Venta al por menor no realizada en establecimientos n.c.p.","1","1","Rev 4"]
[null,null,null,null,null,null,null,null,null,null,null,null,null,"479109","Venta al por menor por correo, televisión y otros medios de comunicación n.c.p.","1","1","Rev 4"]
[null,null,null,null,null,null,null,null,null,null,null,null,null,"525100","Venta al por menor por correo, televisión, internet y otros medios de comunicación","1","1","Rev3"]
[null,null,null,null,null,null,null,null,null,null,null,null,null,"479101","Venta al por menor por internet","1","1","Rev 4"]
[null,null,null,null,null,null,null,null,null,null,null,null,null,"624322","Venta de antiguedades, objetos de arte y artículos de segundo uso excepto en remates","1","1","Rev 2"]
[null,null,null,null,null,null,null,null,null,null,null,null,null,"624306","Venta de aparatos fotográficos, artículos de fotografía e instrumentos de óptica","1","2","Rev 2"]
[null,null,null,null,null,null,null,null,null,null,null,null,null,"624225","Venta de aparatos y artefactos electricos para iluminación","1","2","Rev 2"]
[null,null,null,null,null,null,null,null,null,null,null,null,null,"624098","Venta de armas y artículos de cuchillería, caza y pesca","1","3","Rev 2"]
[null,null,null,null,null,null,null,null,null,null,null,null,null,"624195","Venta de artículos de bazar y menaje. Bazares","1","3","Rev 2"]
[null,null,null,null,null,null,null,null,null,null,null,null,null,"623040","Venta de artículos de cuero excepto prendas de vestir y calzado.Marroquinerías (incluye carteras, valijas, etc.)","1","2","Rev 2"]
[null,null,null,null,null,null,null,null,null,null,null,null,null,"624047","Venta de artículos de juguetería y cotillón.Jugueterías.","1","3","Rev 2"]
[null,null,null,null,null,null,null,null,null,null,null,null,null,"624055","Venta de artículos de librería, papelería y oficina. Librerías y papelerías","1","2","Rev 2"]
[null,null,null,null,null,null,null,null,null,null,null,null,null,"624012","Venta de artículos de madera excepto muebles","1","3","Rev 2"]
[null,null,null,null,null,null,null,null,null,null,null,null,null,"624128","Venta de artículos de tocador, perfumes y cosméticos. Perfumerías","1","2","Rev 2"]
[null,null,null,null,null,null,null,null,null,null,null,null,null,"624381","Venta de artículos no clasificados en otra parte","1","2","Rev 2"]
[null,null,null,null,null,null,null,null,null,null,null,null,null,"624233","Venta de artículos para el hogar (incluye heladeras, lavarropas, cocinas, televisores, etc )","1","3","Rev 2"]
[null,null,null,null,null,null,null,null,null,null,null,null,null,"451110","Venta de autos, camionetas y utilitarios nuevos","1","2","Rev 4"]
[null,null,null,null,null,null,null,null,null,null,null,null,null,"501110","Venta de autos, camionetas y utilitarios, nuevos (Incluye taxis, jeeps, 4x4 y vehículos similares)","1","2","Rev3"]
[null,null,null,null,null,null,null,null,null,null,null,null,null,"451210","Venta de autos, camionetas y utilitarios, usados","1","2","Rev 4"]
[null,null,null,null,null,null,null,null,null,null,null,null,null,"501210","Venta de autos, camionetas y utilitarios, usados (Incluye taxis, jeeps, 4x4 y vehículos similares)","1","2","Rev3"]
[null,null,null,null,null,null,null,null,null,null,null,null,null,"622036","Venta de billetes de loteria y recepción de apuestas de quiniela, concursos deportivos y otros juegos de azar. Agencias de loteria, quiniela, prode y otros juegos de azar.","1","3","Rev 2"]
[null,null,null,null,null,null,null,null,null,null,null,null,null,"621099","Venta de bombones, golosinas y otros artículos de confitería","1","2","Rev 2"]
[null,null,null,null,null,null,null,null,null,null,null,null,null,"623067","Venta de calzado.Zapaterias.Zapatillerias","1","2","Rev 2"]
[null,null,null,null,null,null,null,null,null,null,null,null,null,"624179","Venta de cámaras y cubiertas. Gomerías (incluye las que poseen anexos de recapado)","1","2","Rev 2"]
[null,null,null,null,null,null,null,null,null,null,null,null,null,"621013","Venta de carnes y derivados excepto las de aves. Carnicerías","1","2","Rev 2"]
[null,null,null,null,null,null,null,null,null,null,null,null,null,"624292","Venta de equipo profesional y científico e instrumentos de medida y de control","1","1","Rev 2"]
[null,null,null,null,null,null,null,null,null,null,null,null,null,"621056","Venta de fiambres y comidas preparadas. Roticerías y fiambrerías","1","2","Rev 2"]
[null,null,null,null,null,null,null,null,null,null,null,null,null,"624160","Venta de garrafas y combustibles sólidos y líquidos (excluye estaciones de servicio)","1","5","Rev 2"]
[null,null,null,null,null,null,null,null,null,null,null,null,null,"624039","Venta de instrumentos musicales, discos, cassettes, etc. Casas de música","1","1","Rev 2"]
[null,null,null,null,null,null,null,null,null,null,null,null,null,"624314","Venta de joyas, relojes y artículos conexos","1","1","Rev 2"]
[null,null,null,null,null,null,null,null,null,null,null,null,null,"624063","Venta de máquinas de oficina, cálculo, contabilidad, equipos computadores, máquinas de escribir, máquinas registradoras, etc. y sus componentes y repuestos","1","2","Rev 2"]
[null,null,null,null,null,null,null,null,null,null,null,null,null,"624209","Venta de materiales para la construcción excepto sanitarios.","1","2","Rev 2"]
[null,null,null,null,null,null,null,null,null,null,null,null,null,"454010","Venta de motocicletas y de sus partes, piezas y accesorios","1","2","Rev 4"]
[null,null,null,null,null,null,null,null,null,null,null,null,null,"504010","Venta de motocicletas y de sus partes, piezas y accesorios","1","2"]
[null,null,null,null,null,null,null,null,null,null,null,null,null,"614025","Venta de muebles y accesorios excepto los metálicos","1","2","Rev 2"]
[null,null,null,null,null,null,null,null,null,null,null,null,null,"624020","Venta de muebles y accesorios.Mueblerías","1","3","Rev 2"]
[null,null,null,null,null,null,null,null,null,null,null,null,null,"621080","Venta de pan y demás productos de panadería. Panadería","1","2","Rev 2"]
[null,null,null,null,null,null,null,null,null,null,null,null,null,"621048","Venta de pescados y otros productos marinos, fluviales y lacustres.Pescaderías.","1","2","Rev 2"]
[null,null,null,null,null,null,null,null,null,null,null,null,null,"624071","Venta de pinturas, barnices, lacas, esmaltes, etc. y artículos de ferretería excepto maquinarias, armas y artículos de cuchillería. Pinturerías y ferreterías.","1","3","Rev 2"]
[null,null,null,null,null,null,null,null,null,null,null,null,null,"623059","Venta de prendas de vestir de cuero y sucedáneos excepto calzado","1","2","Rev 2"]
[null,null,null,null,null,null,null,null,null,null,null,null,null,"621102","Venta de productos alimentarios en general.Almacenes ( no incluye supermercados de productos en general )","1","2","Rev 2"]
[null,null,null,null,null,null,null,null,null,null,null,null,null,"624403","Venta de productos en general. Supermercados. Autoservicios.","1","3","Rev 2"]
[null,null,null,null,null,null,null,null,null,null,null,null,null,"624101","Venta de productos farmacéuticos, medicinales y de herboristería excepto productos medicinales de uso veterinario.Farmacias y herboristerias.","1","2","Rev 2"]
[null,null,null,null,null,null,null,null,null,null,null,null,null,"624136","Venta de productos medicinales para animales. Veterinarias.","1","3","Rev 2"]
[null,null,null,null,null,null,null,null,null,null,null,null,null,"623032","Venta de productos textiles y artículos confeccionados con materiales textiles","1","2","Rev 2"]
[null,null,null,null,null,null,null,null,null,null,null,null,null,"624284","Venta de repuestos y accesorios para vehículos automotores","1","3","Rev 2"]
[null,null,null,null,null,null,null,null,null,null,null,null,null,"624144","Venta de semillas, abonos y plaguicidas","1","2","Rev 2"]
[null,null,null,null,null,null,null,null,null,null,null,null,null,"622028","Venta de tabacos, cigarrillos y otras manufacturas del tabaco","1","3","Rev 2"]
[null,null,null,null,null,null,null,null,null,null,null,null,null,"623024","Venta de tapices y alfombras","1","2","Rev 2"]
[null,null,null,null,null,null,null,null,null,null,null,null,null,"624268","Venta de vehículos automotores nuevos","1","2","Rev 2"]
[null,null,null,null,null,null,null,null,null,null,null,null,null,"451190","Venta de vehículos automotores nuevos n.c.p.","1","2","Rev 4"]
[null,null,null,null,null,null,null,null,null,null,null,null,null,"624276","Venta de vehículos automotores usados","1","2","Rev 2"]
[null,null,null,null,null,null,null,null,null,null,null,null,null,"451290","Venta de vehículos automotores usados n.c.p.","1","2","Rev 4"]
[null,null,null,null,null,null,null,null,null,null,null,null,null,"501190","Venta de vehículos automotores, nuevos n.c.p. (Incluye casas rodantes, trailers, camiones, remolques, ambulancias, ómnibus, microbuses y similares, cabezas tractoras, etc.)","1","2","Rev3"]
[null,null,null,null,null,null,null,null,null,null,null,null,null,"501290","Venta de vehículos automotores, usados n.c.p. (Incluye, casas rodantes, trailers, camiones, remolques, ambulancias, ómnibus, microbuses y similares, cabezas tractoras, etc..)","1","2","Rev3"]
[null,null,null,null,null,null,null,null,null,null,null,null,null,"624349","Venta y alquiler de artículos de deporte, equipo e indumentaria deportivos.","1","2","Rev 2"]
[null,null,null,null,null,null,null,null,null,null,null,null,null,"621021","Ventas de aves y huevos, animales de corral y caza y otros productos de granja","1","2","Rev 2"]
[null,null,null,null,null,null,null,null,null,null,null,null,null,"621072","Ventas de frutas, legumbres y hortalizas frescas. Verdulerías y fruterías","1","2","Rev 2"]
[null,null,null,null,null,null,null,null,null,null,null,null,null,"623016","Ventas de prendas de vestir excepto las de cuero (no incluye calzado) y tejidos de punto","1","2","Rev 2"]
[null,null,null,null,null,null,null,null,null,null,null,null,null,"621064","Ventas de productos lácteos. Lecherías","1","2","Rev 2"]
[null,null,null,null,null,null,null,null,null,null,null,null,null,"999997","Depositos de gases, hidrocarburos y sus derivados, y productos químicos","",5,null,"Res 481/2011"]
[null,null,null,null,null,null,null,null,null,null,null,null,null,"999998","Construccion de grandes obras de infraestructura ","",5,null,"Res 481/2011"]
[null,null,null,null,null,null,null,null,null,null,null,null,null,"999999","Toda otra actividad que elabora o manipule sustancias inflamables, tóxicas, corrosivas, de alta reactividad química, infecciosas, teratogénicas, mutagénicas, carcinogénicas o radioactivas","",5,null,"Res 481/2011"]

{"sheet":"TIPO","index":5,"n_rows":97,"n_cols":6,"rows_kept":97,"cut":false,"hidden":true,"merged":[]}
["G","L","S",null,"GLS","Nº"]
[0,0,0,null,{"$f":"+A2&B2&C2","v":"000"},0]
[0,0,"S0",null,"00S0",0]
[0,0,"S1",null,"00S1",1]
[0,0,"S2",null,"00S2",2]
[0,0,"S3",null,"00S3",3]
[0,0,"S4",null,"00S4",4]
[0,"L0",0,null,"0L00",0]
[0,"L0","S0",null,"0L0S0",0]
[0,"L0","S1",null,"0L0S1",1]
[0,"L0","S2",null,"0L0S2",2]
[0,"L0","S3",null,"0L0S3",3]
[0,"L0","S4",null,"0L0S4",4]
[0,"L1",0,null,"0L10",1]
[0,"L1","S0",null,"0L1S0",1]
[0,"L1","S1",null,"0L1S1",1]
[0,"L1","S2",null,"0L1S2",2]
[0,"L1","S3",null,"0L1S3",3]
[0,"L1","S4",null,"0L1S4",4]
[0,"L2",0,null,"0L20",3]
[0,"L2","S0",null,"0L2S0",3]
[0,"L2","S1",null,"0L2S1",3]
[0,"L2","S2",null,"0L2S2",3]
[0,"L2","S3",null,"0L2S3",3]
[0,"L2","S4",null,"0L2S4",4]
["G0",0,0,null,"G000",0]
["G0",0,"S0",null,"G00S0",0]
["G0",0,"S1",null,"G00S1",1]
["G0",0,"S2",null,"G00S2",2]
["G0",0,"S3",null,"G00S3",3]
["G0",0,"S4",null,"G00S4",4]
["G0","L0",0,null,"G0L00",0]
["G0","L0","S0",null,"G0L0S0",0]
["G0","L0","S1",null,{"$f":"+A34&B34&C34","v":"G0L0S1"},1]
["G0","L0","S2",null,"G0L0S2",2]
["G0","L0","S3",null,"G0L0S3",3]
["G0","L0","S4",null,"G0L0S4",4]
["G0","L1",0,null,"G0L10",1]
["G0","L1","S0",null,"G0L1S0",1]
["G0","L1","S1",null,"G0L1S1",1]
["G0","L1","S2",null,"G0L1S2",2]
["G0","L1","S3",null,"G0L1S3",3]
["G0","L1","S4",null,"G0L1S4",4]
["G0","L2",0,null,"G0L20",3]
["G0","L2","S0",null,"G0L2S0",3]
["G0","L2","S1",null,"G0L2S1",3]
["G0","L2","S2",null,"G0L2S2",3]
["G0","L2","S3",null,"G0L2S3",3]
["G0","L2","S4",null,"G0L2S4",4]
["G1",0,0,null,"G100",1]
["G1",0,"S0",null,"G10S0",1]
["G1",0,"S1",null,"G10S1",1]
["G1",0,"S2",null,"G10S2",2]
["G1",0,"S3",null,"G10S3",3]
["G1",0,"S4",null,"G10S4",4]
["G1","L0",0,null,"G1L00",1]
["G1","L0","S0",null,"G1L0S0",1]
["G1","L0","S1",null,"G1L0S1",1]
["G1","L0","S2",null,"G1L0S2",2]
["G1","L0","S3",null,"G1L0S3",3]
["G1","L0","S4",null,"G1L0S4",4]
["G1","L1",0,null,"G1L10",1]
["G1","L1","S0",null,"G1L1S0",1]
["G1","L1","S1",null,"G1L1S1",1]
["G1","L1","S2",null,"G1L1S2",2]
["G1","L1","S3",null,{"$f":"+A66&B66&C66","v":"G1L1S3"},3]
["G1","L1","S4",null,"G1L1S4",4]
["G1","L2",0,null,"G1L20",3]
["G1","L2","S0",null,"G1L2S0",3]
["G1","L2","S1",null,"G1L2S1",3]
["G1","L2","S2",null,"G1L2S2",3]
["G1","L2","S3",null,"G1L2S3",3]
["G1","L2","S4",null,"G1L2S4",4]
["G2",0,0,null,"G200",4]
["G2",0,"S0",null,"G20S0",4]
["G2",0,"S1",null,"G20S1",4]
["G2",0,"S2",null,"G20S2",4]
["G2",0,"S3",null,"G20S3",4]
["G2",0,"S4",null,"G20S4",4]
["G2","L0",0,null,"G2L00",4]
["G2","L0","S0",null,"G2L0S0",4]
["G2","L0","S1",null,"G2L0S1",4]
["G2","L0","S2",null,"G2L0S2",4]
["G2","L0","S3",null,"G2L0S3",4]
["G2","L0","S4",null,"G2L0S4",4]
["G2","L1",0,null,"G2L10",4]
["G2","L1","S0",null,"G2L1S0",4]
["G2","L1","S1",null,"G2L1S1",4]
["G2","L1","S2",null,"G2L1S2",4]
["G2","L1","S3",null,"G2L1S3",4]
["G2","L1","S4",null,"G2L1S4",4]
["G2","L2",0,null,"G2L20",4]
["G2","L2","S0",null,"G2L2S0",4]
["G2","L2","S1",null,"G2L2S1",4]
["G2","L2","S2",null,"G2L2S2",4]
["G2","L2","S3",null,"G2L2S3",4]
["G2","L2","S4",null,"G2L2S4",4]

{"sheet":"Hoja1","index":6,"n_rows":0,"n_cols":0,"rows_kept":0,"cut":false,"hidden":true,"merged":[]}